Workbook

Sheet intro
Q1: NO | R1: NO | S1: NO
B2: Economy-wide material flow accounts (EW-MFA)
B3: 2020 EW-MFA questionnaire
A4: INTRODUCTION
B5: version 25 August 2020
B6: This is Eurostat's electronic questionnaire for the 2020 data collection on economy-wide material flow accounts (EW-MFA). It includes a number of sheets – an overview is provided in sheet 'structure'. Reporting Tables A, B, and D are based on Regulation (EU) No. 691/2011.
B8: Please specify your country by selecting from the drop-down list: | H8: =IF(I8="","",LOOKUP(I8,Parameters!B31:C69)) -> 
B10: Deadline for returning back the 2020 EW-MFA questionnaire is: | I10: 31 December 2020
B12: The sheet 'instructions' provides you with detailed information on filling in the questionnaire. Please address any questions to the following e-mail address:
B13: ESTAT-MFA@ec.europa.eu
B14: This electronic questionnaire shall be submitted to Eurostat using the EDAMIS reporting system (Electronic Data files Administration and Management Information System). Please ensure that the following EDAMIS parameters are entered:
B15: Domain: ENVPFLAC
B16: Data set: ENVPFLAC_MFA_A
B17: Year: 2018 (which is the most recent legally mandatory reference year). Eurostat greatly appreciates receiving EW-MFA data starting from 2000 ranging up to 2019.
B18: The eDAMIS system has been installed in all National Statistical Institutes and your local eDAMIS coordinator will give you a user-id and password.
B19: Should you have any questions regarding data transmission, please contact your local eDAMIS coordinator or the Eurostat eDAMIS helpdesk at:
B20: estat-support-edamis@ec.europa.eu
B21: or call +352 4301 33213.
B22: Please provide the primary contact person for EW-MFA in your country (institution, unit, name, email, telephone):

Sheet structure
A2: =intro!B2 -> Economy-wide material flow accounts (EW-MFA)
A3: =intro!B3 -> 2020 EW-MFA questionnaire
A4: Table of contents
B6: ="Overview of the "&intro!K3&" electronic questionnaire EW-MFA" -> Overview of the electronic questionnaire EW-MFA
E7: Number of decimals shown in data tables | F7: 0 Decimal
E8: Calculation Method (based on number of decimals) | F8: ROUND(SUM(V))
B10: Sheet | D10: Title | E10: Content | F10: Status
B11: 1 | C11: intro | D11: EW-MFA questionnaire - Introduction | E11: General information about the EW-MFA questionnaire | F11: to be filled out (please select country and provide primary contact person)
B12: =B11+1 -> 2 | C12: structure | D12: Table of content of the EW-MFA questionnaire | E12: Overview of this electronic EXCELworkbook | F12: for information
B13: =B12+1 -> 3 | C13: instructions | D13: Instructions for completing the EW-MFA questionnaire and overview of the checking rules | E13: Instructions on how to use and fill in the questionnaire | F13: for information
B14: =B13+1 -> 4 | C14: footnote instructions | D14: Instructions for reporting of the footnotes | E14: Provides instructions for SDMX compliant reporting of footnotes | F14: for information
B15: =B14+1 -> 5 | C15: footnotes_list | D15: List of footnotes | E15: Please insert footnote texts for each footnote symbol you use in tables A to I | F15: for information
B16: 6 | C16: Table_A | D16: Domestic extraction (DE) | E16: Table A records material flows from the environment into the economy in a detailed breakdown by type of material | F16: to be filled out
B17: 7 | C17: Table_B | D17: Imports - total imports (intra- and extra-EU imports) | E17: The physical trade tables (Tables B to E) record the imports and exports of products in thousand tonnes and grouped by materials. Table B accounts for total imports | F17: to be filled out
B18: 8 | C18: Table_C | D18: Imports - extra-EU imports | E18: The physical trade tables (Tables B to E) record the imports and exports of products in thousand tonnes and grouped by materials. Table C accounts for extra-EU imports | F18: to be filled out
B19: 9 | C19: Table_D | D19: Exports - total exports (intra- and extra-EU exports) | E19: The physical trade tables (Tables B to E) record the imports and exports of products in thousand tonnes and grouped by materials. Table D accounts for total exports | F19: to be filled out
B20: 10 | C20: Table_E | D20: Exports - extra-EU exports | E20: The physical trade tables (Tables B to E) record the imports and exports of products in thousand tonnes and grouped by materials. Table E accounts for extra-EU exports | F20: to be filled out
B21: 11 | C21: Table_F | D21: Domestic processed output (DPO) | E21: Table F records material flows from the economy to the domestic environment (e.g. emissions to air, water and soil) | F21: to be filled out
B22: 12 | C22: Table_G | D22: Balancing items | E22: Table G reports some memorandum items which are necessary to have the full material balance related to a national economy | F22: to be filled out
B23: 13 | C23: Table_H | D23: Indicators | E23: Table H presents the EW-MFA derived indicators which are automatically calculated from Table A to G | F23: to be filled out
B24: 14 | C24: Table_I | D24: Material flow accounts in raw material equivalents (RME) | E24: Table I records material flow accounts in raw material equivalents (MFA-RME). Some items are calculated automatically based on data reported in Table A and Table I | F24: to be filled out
B25: 15 | C25: Grazed biomass v1 | D25: Compilation tool for "grazed biomass" | E25: This tool helps to estimate the item MF.1.2.2.2 Grazed biomass in Table A | F25: to be used for estimation or crosschecking purposes
B26: 16 | C26: Crop residues v1 | D26: Compilation tool for "crop residues" | E26: This tool helps to estimate the item MF.1.2.1 Crop residues (used) in Table A | F26: to be used for estimation or crosschecking purposes
B27: 17 | C27: Sand and gravel v1 | D27: Compilation tool for "sand and gravel" | E27: This tool helps to estimate the item MF.3.8 Sand and gravel in Table A | F27: to be used for estimation or crosschecking purposes
B28: 18 | C28: Clay v1 | D28: Compilation tool for "clay" | E28: This tool helps to estimate "clay" within the item MF.3.7 Clays and kaolin in Table A | F28: to be used for estimation or crosschecking purposes
B29: 19 | C29: Limestone v1 | D29: Compilation tool for "limestone" | E29: This tool helps to estimate "limestone" within the item MF.3.6 Limestone and gypsum in Table A | F29: to be used for estimation or crosschecking purposes
B30: 20 | C30: Table G Estimation tool | D30: Compilation tool for Balancing items | E30: This tool helps to estimate the Balancing items to be reported in Table G | F30: to be used for estimation or crosschecking purposes
B31: 21 | C31: Annex to Table G tool | D31: Annex to the Compilation tool for Balancing items | E31: Provides coefficients used in the compilation tool | F31: for information
B32: 22 | C32: Check Report | D32: Check Report | E32: The Check Report informs about data problems such as empty cells, consistency and plausibility | F32: to be checked before returning the questionnaire
B33: 23 | C33: Annex 1 | D33: Correspondences between EW-MFA classification for biomass and various Eurostat statistics, such as e.g. agricultural crop statistics, forestry statistics, fishery statistics | F33: to be used for compilation purposes; the annexes are provided in a separate EXCEL file
B34: 24 | C34: Annex 2 | D34: Correspondence table between the EW-MFA classification for metal ores, non-metallic minerals and fossil energy materials with codes of Eurostat's energy statistics/balances, PRODCOM and CPA
B35: 25 | C35: Annex 3 | D35: Correspondence table between EW-MFA classification for non-metallic minerals and CPA, PRODCOM, BGS and USGS
B36: 26 | C36: Annex 4 | D36: Correspondence between Combined Nomenclature 2019 and EW-MFA classification for imports and exports
B37: 27 | C37: Annex 5 | D37: Correspondence between Combined Nomenclature 2019 and EW-MFA classification for stages of manufacturing
B38: 28 | C38: Annex 6 | D38: Conversion factors for imports and exports - Combined Nomenclature, 2017
B39: 29 | C39: Annex 7 | D39: Complete version of the Combined Nomenclature 2020 including the 2,4, 6 and 8 digits codes, valid from 1988

Sheet instructions
B5: =intro!B2 -> Economy-wide material flow accounts (EW-MFA)
B6: =intro!B3 -> 2020 EW-MFA questionnaire
B8: Instructions for completing the EW-MFA questionnaire and overview of the checking rules
B10: 1. Instructions for completing the EW-MFA questionnaire
B11: The following technical instructions relate to the handling of the electronic EXCEL questionnaire.
B12: Theoretical and conceptual foundations of economy-wide material flow accounts (EW-MFA) next to detailed compilation guidelines for filling this questionnaire can be found in:
B13: Economy-wide material flow accounts handbook – 2018 edition'
B14: Note: a new classification of materials was introduced with the 2018 handbook (see Annex A of the handbook). The data sheets of this questionnaire were adjusted accordingly, i.e. the row codes and row labels were changed.
B15: Additional guidelines related to Table I (Material flow accounts in raw material equivalents (RME)) can be found here:
B16: Handbook for estimating raw material equivalents (RME) - of imports and exports and RME - based indicators for countries - based on Eurostat's EU RME model, October 2019
B17: Please note the following issues:
B18: 1) Eurostat introduced a separate sheet 'footnote instructions'.
B19: 2) Pre-defined footnotes 'n' ('not to be published') and 's' ('Eurostat estimate') are to be set exclusively by Eurostat.
B20: 3) Built-in checking tools have been aligned to the validation rules agreed by the Working Group as far as feasible.
B21: 4) The questionnaire is an Excel file with embbeded macros. Should you have problems opening the file and enabling the macros, please check your local Excel settings related to macros.
B22: 1.A) Getting started
B23: 1. Please select your country code from the drop-down menu in the first sheet 'intro'. Do not forget to provide the primary contact person for EW-MFA in your country.
B24: 2. Complete the data sheets and please do not change the format of the questionnaire (i.e. add/delete rows or columns) since Eurostat uses automated routines for data validation.
B25: 3. Each data sheet offers the time range from year 1990 until 2020. According to Regulation (EU) No. 691/2011 reporting data for reference years 2014-2018 is mandatory. If you have data available beyond this time range, please report it. Eurostat appreciates receiving data starting from reference year 2000.
B26: 1.B) How to correctly report figures and symbols?
B27: 4. Figures have to be reported in the white cells of the data sheets.
B28: 5. Please report exact figures; you may report as much decimals as you want. Do not report rounded or truncated values.
B29: 6. Please report positive figures. Negative figures are only accepted for the following items:
B30: - in Table A for item MF.1.3 MEMO 'Net increment of timber stock';
B31: - in Table H for items H.6 'Physical trade balance (PTB)' and H.8 'Net additions to stock (NAS)';
B32: - in Table I for item 'Raw material consumption (RMC)'.
B33: 7. Please report real zero ('0') if there are no extractions or physical trade for the respective material class.
B34: 8. Please report colon (':') for data not available, i.e. if the quantity extracted is not known. Note that in such case the superior sub-total or total cannot be derived.
B35: 'Not available' (:) symbol is not allowed for mandatory years highlighted in red font, except for the following items:
B36: - Table A (Domestic extraction): 'Straw' (MF.1.2.1.1) and 'Other crop residues' (MF.1.2.1.2);
B37: - Tables B (Imports) and D (Exports): adjustment items for residence principle (MF.4.2.3, MF.4.2.3.1, MF.4.2.3.2, MF.4.2.3.3).
B38: 9. Missing values (empty cells) for the mandatory years are not allowed.
B40: 2. The built-in checking tool
B41: There is a checking tool built into the questionnaire, please use it! To reduce the validation time, Eurostat appreciates receiving error-free questionnaires.
B42: The tool checks empty cells, valid/invalid symbols, erroneous reporting of footnotes, inconsistencies, plausibility issues and identifies incorrect use of confidentiality flags. The detailed validation rules for EW-MFA - as agreed by the ESS - are published in the 'EW-MFA validation rules 2020'.
B43: 2.A) How to use the checking tool?
B44: The checking macro runs automatically upon closing the questionnaire, i.e. over all data sheets. This is intended to force the checks to be done.
B45: The tool can also be run manually:
B46: - to check individual data sheets by pressing the 'Check' button at the top of each data sheet.
B47: - to check the whole questionnaire by pressing the 'Check the whole questionnaire' button in the 'intro' sheet' or 'structure' sheet'.
B48: 2.B) What is checked and how are errors/warnings displayed?
B49: Errors and warnings are visualised in the data sheets through cells highlighted in different colours. In addition, by hovering the mouse over the highlighted cell a comment appears with detailed explanation of the detected problem.
B50: Eurostat kindly asks you to address each highlighted cell. If correctly done, after the next check the highlight will disappear from the concerned cell. In case of plausibility warnings (orange cells) there are two options: If the implausibility is caused by an error, please correct it. If the value is correct, please add a footnote explaining the detected implausibility.
B51: The checking tool produces an error report which you find in the sheet 'Check Report'. It provides a list of all cells [with hyperlinks] for which errors or other issues were detected.
B52: The below list explains in detail the checks performed and how the error messages are displayed.
B54: Symbols check: verifies if the symbols used in the questionnaire are valid. The problematic cells are highlighted in red.
B56: Footnote check: verifies if footnotes are reported correctly. It also verifies that a 'free text' footnote symbol has an associated text in the sheet 'footnotes_list'. Otherwise, the cell is highlighted in red.
B58: Consistency check: verifies the sum of components which has to equal the corresponding total or subtotal. For example, the sum of MF.1.1.1 to MF.1.1.A should be equal to the value
B59: reported in MF.1.1, and MF.1.1 + MF.1.2 + MF.1.3 + MF.1.4 should be equal to MF.1 . In case of inconsistency, the cell corresponding to the total or subtotal is highlighted in blue.
B61: Confidentiality check: verifies that certain rules related to confidentiality are applied:
C62: - Avoid confidentiality at MF-1- digit level;
C63: - Cells with zero or 'not available' cannot be confidential;
C64: - Ensure that the figure flagged as confidential cannot be derived through calculation.
B65: If the above criteria are not followed, cells are highlighted in purple.
B67: Plausibility check: concerns 'big changes' between consecutive years. 'Big changes' have been defined as follows:
B68: - For domestic extraction (Table A) value must not vary more than 30% from one year to the next if it represents more than 20% of the superior material category, class or group of that year.
B69: - For imports and exports (Table B and D) value must not vary more than 50% from one year to the next if they represent more than 20% of the superior material category, class or group of that year.
B70: If the annual change is higher than the above described threshold, the cell is highlighted in green if an explaining freetext footnote or a pre-defined b)-footnote is added.
B71: If the annual change is higher than the above described threshold and any explanation is missing the cell is highlighted in orange.
B72: In this latter case please add a free text footnote explaining the detected implausible high change.
B73: In case there are both, consistency and plausibility issues, the cell is highlighted in orange and the value appears in blue.
B74: Mandatory cells check: The dataset must include all mandatory characteristics for the five mandatory reference years. In the EW-MFA questionnaire, these are highlighted in red font. Cells with missing data except for the items specified above under point 1.B.8 will be highlighted in darker colours and for non mandatory cells in lighter colours.

Sheet footnote instructions
B5: =intro!B2 -> Economy-wide material flow accounts (EW-MFA)
B6: =intro!B3 -> 2020 EW-MFA questionnaire
B8: Instructions for SDMX compliant reporting of footnotes in the EXCEL questionnaire
B10: Eurostat introduces a revised way of reporting footnotes in EXCEL questionnaires. This new footnote syntax is introduced for all EXCEL questionnaires used in the domain of environmental economic accounts. It must be used for all EDAMIS domains.
B11: Please note that Eurostat introduced a centralised 'footnote_list' sheet.
B13: How to report footnotes?
B14: In this questionnaire reporting of footnotes includes two components:
B15: (1) a footnote symbol reported in the data sheet next to a reported value, and
B16: (2) a footnote content associated with the symbol, displayed in the sheet entitled 'footnote_list'
B17: Footnote symbols are reported in the so-called footnote-symbol-cell, i.e. yellow cells next to the white value cells.
B18: There are two types of footnote symbols – letters with a closing bracket for pre-defined footnotes (e.g. ‘p)’) and numbers with a closing bracket for 'free text' footnotes (e.g. ‘2)’).
B21: Pre-defined footnotes with standard meanings
B22: So called 'pre-defined footnotes' are footnotes with standard meanings.
B23: The following table shows the letter-symbols, labels and meanings of 'pre-defined footnotes' that users may employ in this questionnaire.
B25: Symbol | C25: Label | F25: Meaning
B26: b) | C26: Break in time series | F26: Break occurring when there is a change in the standards for defining and observing a variable over time.
B27: c) | C27: Confidential | F27: Confidential data are data which are subject to confidentiality clauses.
B28: d) | C28: Secondary confidentiality | F28: Secondary confidentiality' is used to hiding non-confidential values in order to prevent third parties to indirectly deduce values flagged with c)-flag). Please note that this footnote converts into confidential (c) when published in Eurostat’s online database.
B29: e) | C29: Estimated data | F29: The particular value yielded by an estimator in a given set of circumstances.
B30: p) | C30: Provisional | F30: The provider considers that the data will be revised.
B32: Free text' footnotes
B33: A 'free text' footnote is used for any meaning beyond the pre-defined footnotes.
B34: The symbol for 'free text' footnotes are numbers followed by a closing bracket (e.g. '1)').
B35: The content of 'free text' footnotes must be specified by the user in the sheet 'footnote_list'.
B36: Note that one and only one 'free text' footnote symbol can be associated to a reported value (data point).
B38: Specific order of footnote symbols must be respected!
B39: It is possible to associate more than one footnote to a value-cell (data point).
B40: In case of multiple footnote symbols, a specific order must be followed!
B41: 1st position - First must come the 'free text' footnote symbol. The first position is always reserved for this! You must put a bracket even if you do not have any 'free text' footnote in case of further pre-defined footnote symbols should follow.
B42: 2nd position - Secondly, footnote symbol for confidentiality: this can be c) or d). The second position is always reserved for one and only one footnote symbol expressing confidentiality. You must put a bracket without letter if you do not have to express any confidentiality in case further pre-defined footnote symbols should follow.
B43: 3rd and more position - Finally, the third and possibly fourth, fifth and sixth positions are reserved for other pre-defined footnote symbols, namely b), e), and p).
B44: The following table summarises the specific order for reporting footnote symbols:
B46: Position | C46: Footnote type | F46: What to do if 'empty'
B47: 1st | C47: free text', number followed by right bracket: e.g. ‘1)’ (Note: only one is possible!) | F47: A right bracket without number must be set in case pre-defined symbols should follow.
B48: 2nd | C48: Confidentiality related predefined footnote symbol: c) or d) (only one!) | F48: A right bracket without letter must be set in case further pre-defined symbols should follow.
B49: 3rd and more | C49: Other pre-defined footnote symbols: b)e)p) | F49: No brackets to be set.
B51: Examples (use cases) for footnote reporting
B53: Example | D53: Meaning
B54: No. | C54: Symbols | D54: 1st position 'free text' | G54: 2nd position confidentiality | J54: 3rd & more position
B55: 1 | C55: 1) | D55: Free text' footnote is given in separate sheet | G55: empty | J55: empty
B56: 2 | C56: 1)d) | D56: Free text' footnote is given in separate sheet | G56: Secondary' confidentiality | J56: empty
B57: 3 | C57: 1)c)p) | D57: Free text' footnote is given in separate sheet | G57: Primary' confidentiality' | J57: Provisional value
B58: 4 | C58: 1)c)b)p) | D58: Free text' footnote is given in separate sheet | G58: Primary' confidentiality | J58: Break in series and provisional value
B59: 5 | C59: 1))b) | D59: Free text' footnote is given in separate sheet | G59: empty | J59: Break in series
B60: 6 | C60: ))b)p) | D60: empty | G60: empty | J60: Break in series and provisional value
B61: 7 | C61: )c)p) | D61: empty | G61: Primary' confidentiality | J61: Provisional value
B62: 8 | C62: )d)b)p) | D62: empty | G62: Secondary' confidentiality | J62: Break in series and provisional value
B63: 9 | C63: )d) | D63: empty | G63: Secondary' confidentiality | J63: empty
B64: 10 | C64: ))b) | D64: empty | G64: empty | J64: Break in series
B65: 11 | C65: ))b)p) | D65: empty | G65: empty | J65: Break in series and provisional value

Sheet Parameters (hidden)
AL2: Ratio for Rules | AM2: 0.2 | AN2: IF YOU MOVE THIS | AT2: SAMPLE FOR RULE Comparing Table I and H but not used
B3: General Parameters | E3: Table | F3: Eurobase | G3: Unit | H3: Sheet | I3: Label | J3: Unit Label | K3: CLLine | L3: Flag Row | M3: Struct Row | N3: Of Which | O3: Nr of decimals for consistency check | P3: Indicators | Q3: Eurobase | R3: Label | S3: Type | T3: Line | U3: Parent | V3: Growth | W3: Elephant | X3: Share | Y3: 2ndConf | Z3: 3rdConf | AA3: Mandatory | AB3: Equation | AC3: Formula (Must be TRUE) | AD3: Line to Flag | AF3: Code | AG3: Label | AH3: Semantic | AI3: Request Value | AJ3: Disable Plausibility | AK3: Eurostat | AL3: Min Ratio for Rules | AM3: 1 | AN3: YOU HAVE TO CHECK THE EQUATION RULES | AT3: Data is higher than 20% of table H "H.4 Direct material input (DMI)" indicator | AU3: ABS(SUM(Table_I!#14)-SUM(Table_H!#7))<=Parameters!AG3*ABS(SUM(Table_H!#7)) | AV3: 14
B4: Questionnaire Starting Year | C4: 1990 | E4: A | F4: DE | G4: THS_T | H4: Table_A | I4: DOMESTIC EXTRACTION | J4: 1000 Metric tonnes | K4: 1 | L4: 69 | M4: 16 | O4: 5 Decimals | P4: MF.1 | Q4: MF1 | R4: Biomass | S4: 0 | T4: 4 | U4: 68 | V4: 0.3 | W4: 68 | X4: 0.2 | Y4: 0 | Z4: 0 | AA4: X | AB4: Sum of raw, semi and finished product does not equal total imports or exports | AC4: ROUNDDOWN(SUM(#78),1)=ROUNDDOWN(SUM(#75:#77),1) | AD4: 75 | AF4: b | AG4: Break in series | AH4: Standard | AI4: No | AJ4: Yes | AK4: No | AL4: Max Ratio for Rules | AM4: 8 | AT4: Data is higher than 20% of table H "H.5 Domestic material consumption (DMC)" indicator | AU4: ABS(SUM(Table_I!#24)-SUM(Table_H!#8))<=Parameters!AG3*ABS(SUM(Table_H!#8)) | AV4: 24
B5: Questionnaire End Year | C5: 2020 | E5: B | F5: IMP | G5: THS_T | H5: Table_B | I5: Imports - total trade (intra + extra EU-28 trade) | J5: 1000 Metric tonnes | K5: 2 | L5: 79 | M5: 17 | O5: 5 Decimals | P5: MF.1.1 | Q5: MF11 | R5: Crops (excluding fodder crops) | S5: 0 | T5: 5 | U5: 4 | V5: 0.3 | W5: 4 | X5: 0.2 | Y5: 4 | Z5: 4 | AA5: X | AB5: Sum of raw, semi and finished product does not equal total imports or exports | AC5: ROUNDDOWN(SUM(#78),1)=ROUNDDOWN(SUM(#75:#77),1) | AD5: 76 | AF5: c | AG5: Confidential | AH5: Confidentiality | AI5: Yes | AJ5: No | AK5: No
B6: Number of Tables | C6: 9 | E6: C | F6: IMP_XEU | G6: THS_T | H6: Table_C | I6: Imports - extra-EU28 trade | J6: 1000 Metric tonnes | K6: 2 | L6: 79 | M6: 18 | N6: B | O6: 5 Decimals | P6: MF.1.1.1 | Q6: MF111 | R6: Cereals | S6: 0 | T6: 6 | U6: 5 | V6: 0.3 | W6: 4 | X6: 0.2 | Y6: 5 | Z6: 5 | AA6: X | AB6: Sum of raw, semi and finished product does not equal total imports or exports | AC6: ROUNDDOWN(SUM(#78),1)=ROUNDDOWN(SUM(#75:#77),1) | AD6: 77 | AF6: d | AG6: Secondary confidentiality | AH6: Confidentiality | AI6: Yes | AJ6: No | AK6: No
B7: Number of Equations | C7: =COUNTA(AB:AB)-1 -> 13 | E7: D | F7: EXP | G7: THS_T | H7: Table_D | I7: Exports - total trade (intra + extra EU-28 trade) | J7: 1000 Metric tonnes | K7: 2 | L7: 79 | M7: 19 | O7: 5 Decimals | P7: MF.1.1.2 | Q7: MF112 | R7: Roots, tubers | S7: 0 | T7: 7 | U7: 5 | V7: 0.3 | W7: 4 | X7: 0.2 | Y7: 5 | Z7: 5 | AA7: X | AB7: Data should have a value between 100-800% of table B "Total Imports - total trade (intra + extra EU-28 trade)" indicator | AC7: OR(SUM(Table_B!#78)=0, SUM(Table_I!#9)=0, AND(SUM(Table_I!#9) >= Parameters!AM3*SUM(Table_B!#78), SUM(Table_I!#9) <= Parameters!AM4*SUM(Table_B!#78))) | AD7: 9 | AF7: e | AG7: Estimated data | AH7: Standard | AI7: Yes | AJ7: No | AK7: No
B8: Number of Indicators | C8: =G27+H27 -> 223 | E8: E | F8: EXP_XEU | G8: THS_T | H8: Table_E | I8: Exports - extra-EU28 trade | J8: 1000 Metric tonnes | K8: 2 | L8: 79 | M8: 20 | N8: D | O8: 5 Decimals | P8: MF.1.1.3 | Q8: MF113 | R8: Sugar crops | S8: 0 | T8: 8 | U8: 5 | V8: 0.3 | W8: 4 | X8: 0.2 | Y8: 5 | Z8: 5 | AA8: X | AB8: Data should have a value between 100-800% of table B "MF.1 Biomass" indicator | AC8: OR(SUM(Table_B!#4)=0, SUM(Table_I!#10)=0, AND(SUM(Table_I!#10) >= Parameters!AM3*SUM(Table_B!#4), SUM(Table_I!#10) <= Parameters!AM4*SUM(Table_B!#4))) | AD8: 10 | AF8: n | AG8: Not Publishable | AH8: Confidentiality | AI8: Yes | AJ8: No | AK8: Yes
B9: Start Row | C9: 4 | E9: F | F9: DPO | G9: THS_T | H9: Table_F | I9: Domestic processed output | J9: 1000 Metric tonnes | K9: 3 | L9: 41 | M9: 21 | O9: 5 Decimals | P9: MF.1.1.4 | Q9: MF114 | R9: Pulses | S9: 0 | T9: 9 | U9: 5 | V9: 0.3 | W9: 4 | X9: 0.2 | Y9: 5 | Z9: 5 | AA9: X | AB9: Data should have a value between 100-800% of table B "MF.2 Metal ores (gross ores)" indicator | AC9: OR(SUM(Table_B!#34)=0, SUM(Table_I!#11)=0, AND(SUM(Table_I!#11) >= Parameters!AM3*SUM(Table_B!#34), SUM(Table_I!#11) <= Parameters!AM4*SUM(Table_B!#34))) | AD9: 11 | AF9: p | AG9: Provisional | AH9: Standard | AI9: Yes | AJ9: No | AK9: No
B10: Start Column | C10: 6 | E10: G | F10: BI | G10: THS_T | H10: Table_G | I10: Selected balancing items | J10: 1000 Metric tonnes | K10: 4 | L10: 17 | M10: 22 | O10: 5 Decimals | P10: MF.1.1.5 | Q10: MF115 | R10: Nuts | S10: 0 | T10: 10 | U10: 5 | V10: 0.3 | W10: 4 | X10: 0.2 | Y10: 5 | Z10: 5 | AA10: X | AB10: Data should have a value between 100-800% of table B "MF.3 Non-metallic minerals" indicator | AC10: OR(SUM(Table_B!#47)=0, SUM(Table_I!#12)=0, AND(SUM(Table_I!#12) >= Parameters!AM3*SUM(Table_B!#47), SUM(Table_I!#12) <= Parameters!AM4*SUM(Table_B!#47))) | AD10: 12 | AF10: s | AG10: Eurostat estimate | AH10: Eurostat | AI10: Yes | AJ10: No | AK10: Yes
B11: Reference Column | C11: 2 | E11: H | F11: DE | G11: THS_T | H11: Table_H | I11: Indicators | J11: 1000 Metric tonnes | K11: 5 | L11: 12 | M11: 23 | O11: 5 Decimals | P11: MF.1.1.6 | Q11: MF116 | R11: Oil-bearing crops | S11: 0 | T11: 11 | U11: 5 | V11: 0.3 | W11: 4 | X11: 0.2 | Y11: 5 | Z11: 5 | AA11: X | AB11: Data should have a value between 100-800% of table B "MF.4 Fossil energy materials/carriers" indicator | AC11: OR(SUM(Table_B!#59)=0, SUM(Table_I!#13)=0, AND(SUM(Table_I!#13) >= Parameters!AM3*SUM(Table_B!#59), SUM(Table_I!#13) <= Parameters!AM4*SUM(Table_B!#59))) | AD11: 13
B12: Label Column | C12: 3 | E12: I | F12: RME | G12: THS_T | H12: Table_I | I12: Material flow accounts in raw material equivalents (RME) | J12: 1000 Metric tonnes | K12: 6 | L12: 29 | M12: 24 | O12: 5 Decimals | P12: MF.1.1.7 | Q12: MF117 | R12: Vegetables | S12: 0 | T12: 12 | U12: 5 | V12: 0.3 | W12: 4 | X12: 0.2 | Y12: 5 | Z12: 5 | AA12: X | AB12: Data should have a value between 100-800% of table D "Total Exports - total trade (intra + extra EU-28 trade)" indicator | AC12: OR(SUM(Table_D!#78)=0, SUM(Table_I!#19)=0, AND(SUM(Table_I!#19) >= Parameters!AM3*SUM(Table_D!#78), SUM(Table_I!#19) <= Parameters!AM4*SUM(Table_D!#78))) | AD12: 19
B13: Plausibility Year Start | C13: 2014 | P13: MF.1.1.8 | Q13: MF118 | R13: Fruits | S13: 0 | T13: 13 | U13: 5 | V13: 0.3 | W13: 4 | X13: 0.2 | Y13: 5 | Z13: 5 | AA13: X | AB13: Data should have a value between 100-800% of table D "MF.1 Biomass" indicator | AC13: OR(SUM(Table_D!#4)=0, SUM(Table_I!#20)=0, AND(SUM(Table_I!#20) >= Parameters!AM3*SUM(Table_D!#4), SUM(Table_I!#20) <= Parameters!AM4*SUM(Table_D!#4))) | AD13: 20
B14: Plausibility Year End | C14: 2018 | P14: MF.1.1.9 | Q14: MF119 | R14: Fibres | S14: 0 | T14: 14 | U14: 5 | V14: 0.3 | W14: 4 | X14: 0.2 | Y14: 5 | Z14: 5 | AA14: X | AB14: Data should have a value between 100-800% of table D "MF.2 Metal ores (gross ores)" indicator | AC14: OR(SUM(Table_D!#34)=0, SUM(Table_I!#21)=0, AND(SUM(Table_I!#21) >= Parameters!AM3*SUM(Table_D!#34), SUM(Table_I!#21) <= Parameters!AM4*SUM(Table_D!#34))) | AD14: 21
B15: Item can have many NA subitems | C15: X | P15: MF.1.1.A | Q15: MF1110 | R15: Other crops n.e.c. | S15: 0 | T15: 15 | U15: 5 | V15: 0.3 | W15: 4 | X15: 0.2 | Y15: 5 | Z15: 5 | AA15: X | AB15: Data should have a value between 100-800% of table D "MF.3 Non-metallic minerals" indicator | AC15: OR(SUM(Table_D!#47)=0, SUM(Table_I!#22)=0, AND(SUM(Table_I!#22) >= Parameters!AM3*SUM(Table_D!#47), SUM(Table_I!#22) <= Parameters!AM4*SUM(Table_D!#47))) | AD15: 22
B16: Number of Fixed Flags | C16: =COUNTA(AF:AF)-1 -> 7 | P16: MF.1.2 | Q16: MF12 | R16: Crop residues (used), fodder crops and grazed biomass | S16: 0 | T16: 16 | U16: 4 | V16: 0.3 | W16: 4 | X16: 0.2 | Y16: 4 | Z16: 4 | AA16: X | AB16: Data should have a value between 100-800% of table D "MF.4 Fossil energy materials/carriers" indicator | AC16: OR(SUM(Table_D!#59)=0, SUM(Table_I!#23)=0, AND(SUM(Table_I!#23) >= Parameters!AM3*SUM(Table_D!#59), SUM(Table_I!#23) <= Parameters!AM4*SUM(Table_D!#59))) | AD16: 23
B17: Number of Footnotes | C17: 99 | P17: MF.1.2.1 | Q17: MF121 | R17: Crop residues (used) | S17: 0 | T17: 17 | U17: 16 | V17: 0.3 | W17: 4 | X17: 0.2 | Y17: 16 | Z17: 16 | AA17: X
B18: Number of Check Types/Colors | C18: 35 | P18: MF.1.2.1.1 | Q18: MF1211 | R18: Straw | S18: 0 | T18: 18 | U18: 17 | V18: 0.3 | W18: 4 | X18: 0.2 | Y18: 17 | Z18: 17
B19: Number of CodeList | C19: 6 | P19: MF.1.2.1.2 | Q19: MF1212 | R19: Other crop residues (sugar and fodder beet leaves, other) | S19: 0 | T19: 19 | U19: 17 | V19: 0.3 | W19: 4 | X19: 0.2 | Y19: 17 | Z19: 17
B20: Disable Plausibility on Footnotes | C20: Yes | P20: MF.1.2.2 | Q20: MF122 | R20: Fodder crops and grazed biomass | S20: 0 | T20: 20 | U20: 16 | V20: 0.3 | W20: 4 | X20: 0.2 | Y20: 16 | Z20: 16 | AA20: X
B21: Flags and Footnotes Coding System | C21: SDMX Flags | E21: CodeList | F21: Label | G21: Start Items | H21: Nb Items | I21: UseHi | J21: Start Eq. | K21: Nb Equat. | P21: MF.1.2.2.1 | Q21: MF1221 | R21: Fodder crops (incl. biomass harvest from grassland) | S21: 0 | T21: 21 | U21: 20 | V21: 0.3 | W21: 4 | X21: 0.2 | Y21: 20 | Z21: 20 | AA21: X
B22: Accept use of Eurostat flags | E22: 1 | F22: Product A | G22: 0 | H22: 65 | I22: X | J22: 0 | K22: 0 | P22: MF.1.2.2.2 | Q22: MF1222 | R22: Grazed biomass | S22: 0 | T22: 22 | U22: 20 | V22: 0.3 | W22: 4 | X22: 0.2 | Y22: 20 | Z22: 20 | AA22: X
E23: 2 | F23: Product BCDE | G23: =G22+H22 -> 65 | H23: 75 | I23: X | J23: =J22+K22 -> 0 | K23: 3 | P23: MF.1.3 | Q23: MF13 | R23: Wood | S23: 0 | T23: 23 | U23: 4 | V23: 0.3 | W23: 4 | X23: 0.2 | Y23: 4 | Z23: 4 | AA23: X
E24: 3 | F24: Product F | G24: =G23+H23 -> 140 | H24: 37 | I24: X | J24: =J23+K23 -> 3 | K24: 0 | P24: MF.1.3.1 | Q24: MF131 | R24: Timber (Industrial roundwood) | S24: 0 | T24: 24 | U24: 23 | V24: 0.3 | W24: 4 | X24: 0.2 | Y24: 23 | Z24: 23 | AA24: X
E25: 4 | F25: Balancing Items | G25: =G24+H24 -> 177 | H25: 13 | I25: X | J25: 3 | K25: 0 | P25: MF.1.3.2 | Q25: MF132 | R25: Wood fuel and other extraction | S25: 0 | T25: 25 | U25: 23 | V25: 0.3 | W25: 4 | X25: 0.2 | Y25: 23 | Z25: 23 | AA25: X
E26: 5 | F26: Indicator H | G26: =G25+H25 -> 190 | H26: 8 | J26: 3 | K26: 0 | P26: MF.1.3 MEMO | R26: Net increment of timber stock | S26: 1 | T26: 26 | U26: -1 | V26: 0.3 | W26: 4 | X26: 0.2 | Y26: -1 | Z26: -1
E27: 6 | F27: Indicator I | G27: 198 | H27: 25 | I27: X | J27: 3 | K27: 10 | P27: MF.1.4 | Q27: MF14 | R27: Wild fish catch, aquatic plants/animals, hunting and gathering | S27: 0 | T27: 27 | U27: 4 | V27: 0.3 | W27: 4 | X27: 0.2 | Y27: 4 | Z27: 4 | AA27: X
P28: MF.1.4.1 | Q28: MF141 | R28: Wild fish catch | S28: 0 | T28: 28 | U28: 27 | V28: 0.3 | W28: 4 | X28: 0.2 | Y28: 27 | Z28: 27 | AA28: X
P29: MF.1.4.2 | Q29: MF142 | R29: All other aquatic animals and plants | S29: 0 | T29: 29 | U29: 27 | V29: 0.3 | W29: 4 | X29: 0.2 | Y29: 27 | Z29: 27 | AA29: X
B30: Country | C30: Code | E30: File Export Parameters | J30: Type | P30: MF.1.4.3 | Q30: MF143 | R30: Hunting and gathering | S30: 0 | T30: 30 | U30: 27 | V30: 0.3 | W30: 4 | X30: 0.2 | Y30: 27 | Z30: 27 | AA30: X
B31: Albania | C31: AL | E31: Flat File separator | H31: <TAB> | I31: -> Type <TAB> for tabulation | J31: 0 | K31: Positive only | P31: MF.2 | Q31: MF2 | R31: Metal ores (gross ores) | S31: 0 | T31: 31 | U31: 68 | V31: 0.3 | W31: 68 | X31: 0.2 | Y31: 0 | Z31: 0 | AA31: X
B32: Austria | C32: AT | E32: File Extension | H32: .txt | I32: -> Do not forget the "." | J32: 1 | K32: Any value | P32: MF.2.1 | Q32: MF21 | R32: Iron | S32: 0 | T32: 32 | U32: 31 | V32: 0.3 | W32: 31 | X32: 0.2 | Y32: 31 | Z32: 31 | AA32: X
B33: Belgium | C33: BE | E33: Text Footnotes Separator | H33: | | J33: 2 | K33: Year | P33: MF.2.2 | Q33: MF22 | R33: Non-ferrous metal | S33: 0 | T33: 33 | U33: 31 | V33: 0.3 | W33: 31 | X33: 0.2 | Y33: 31 | Z33: 31 | AA33: X
B34: Bosnia | C34: BA | E34: Add Empty Lines | H34: X | I34: -> X to activate, empty otherwise | J34: 3 | K34: Frozen | P34: MF.2.2.1 | Q34: MF221 | R34: Copper | S34: 5 | T34: 34 | U34: 33 | V34: 0.3 | W34: 31 | X34: 0.2 | Y34: 33 | Z34: 33 | AA34: X
B35: Bulgaria | C35: BG | E35: Add M flag | H35: X | I35: -> X to activate, empty otherwise | J35: 4 | K35: Percent | P35: MF.2.2.1 MEMO | R35: Copper ores - metal content | S35: 0 | T35: 35 | U35: 34 | V35: 0 | W35: 31 | X35: 0.2 | Y35: -1 | Z35: -1
B36: Croatia | C36: HR | E36: Round Values | I36: -> X to activate, empty otherwise | J36: 5 | K36: Of which Total: Ind > Sum(SubInd) | P36: MF.2.2.2 | Q36: MF222 | R36: Nickel | S36: 5 | T36: 36 | U36: 33 | V36: 0.3 | W36: 31 | X36: 0.2 | Y36: 33 | Z36: 33 | AA36: X
B37: Cyprus | C37: CY | P37: MF.2.2.2 MEMO | R37: Nickel - metal content | S37: 0 | T37: 37 | U37: 36 | V37: 0 | W37: 31 | X37: 0.2 | Y37: -1 | Z37: -1
B38: Czechia | C38: CZ | E38: Decimal | P38: MF.2.2.3 | Q38: MF223 | R38: Lead | S38: 5 | T38: 38 | U38: 33 | V38: 0.3 | W38: 31 | X38: 0.2 | Y38: 33 | Z38: 33 | AA38: X
B39: Denmark | C39: DK | E39: 0 Decimal | P39: MF.2.2.3 MEMO | R39: Lead - metal content | S39: 0 | T39: 39 | U39: 38 | V39: 0 | W39: 31 | X39: 0.2 | Y39: -1 | Z39: -1
B40: Estonia | C40: EE | E40: 1 Decimal | P40: MF.2.2.4 | Q40: MF224 | R40: Zinc | S40: 5 | T40: 40 | U40: 33 | V40: 0.3 | W40: 31 | X40: 0.2 | Y40: 33 | Z40: 33 | AA40: X
B41: Finland | C41: FI | E41: 2 Decimals | P41: MF.2.2.4 MEMO | R41: Zinc - metal content | S41: 0 | T41: 41 | U41: 40 | V41: 0 | W41: 31 | X41: 0.2 | Y41: -1 | Z41: -1
B42: France | C42: FR | E42: 3 Decimals | P42: MF.2.2.5 | Q42: MF225 | R42: Tin | S42: 5 | T42: 42 | U42: 33 | V42: 0.3 | W42: 31 | X42: 0.2 | Y42: 33 | Z42: 33 | AA42: X
B43: Germany | C43: DE | E43: 4 Decimals | P43: MF.2.2.5 MEMO | R43: Tin - metal content | S43: 0 | T43: 43 | U43: 42 | V43: 0 | W43: 31 | X43: 0.2 | Y43: -1 | Z43: -1
B44: Greece | C44: EL | E44: 5 Decimals | G44: Colors | H44: Description of checks | I44: Text displayed in comment | J44: Display comment yes or no | K44: Detailed description of the checks | P44: MF.2.2.6 | Q44: MF226 | R44: Gold, silver, platinum and other precious metals | S44: 0 | T44: 44 | U44: 33 | V44: 0.3 | W44: 31 | X44: 0.2 | Y44: 33 | Z44: 33 | AA44: X
B45: Hungary | C45: HU | G45: 123.456 | H45: Default Value | P45: MF.2.2.7 | Q45: MF227 | R45: Bauxite and other aluminium | S45: 0 | T45: 45 | U45: 33 | V45: 0.3 | W45: 31 | X45: 0.2 | Y45: 33 | Z45: 33 | AA45: X
B46: Iceland | C46: IS | E46: Calculation | G46: 123.456 | H46: Illegal Symbol | I46: [@1] | P46: MF.2.2.8 | Q46: MF228 | R46: Uranium and thorium | S46: 0 | T46: 46 | U46: 33 | V46: 0.3 | W46: 31 | X46: 0.2 | Y46: 33 | Z46: 33 | AA46: X
B47: Ireland | C47: IE | E47: SUM(ROUND(V)) | G47: 123.456 | H47: Consistency (Total <> Subtotal) | I47: Reported total or sub-total does not equal sum of sub-items; the calculated sum of sub-items = @1 | J47: X | K47: This consistency error is highlighted when all sub-items are reported and the reported total or sub-total does not equal the sum of the sub-items and it calculates the correct total or sub-total based on the reported figures. | P47: MF.2.2.9 | Q47: MF229 | R47: Other n.e.c. | S47: 0 | T47: 47 | U47: 33 | V47: 0.3 | W47: 31 | X47: 0.2 | Y47: 33 | Z47: 33 | AA47: X
B48: Italy | C48: IT | E48: ROUND(SUM(V)) | G48: 123.456 | H48: Consistency (sub-items) | I48: The reported total or sub-total cannot be calculated as one item is 'not available' | J48: X | K48: This consistency error is highlighted when the total or the sub-total is reported and it is equal with the sum of the reported sub-items and one of the sub-items is 'not available'. | P48: MF.3 | Q48: MF3 | R48: Non metalic minerals | S48: 0 | T48: 48 | U48: 68 | V48: 0.3 | W48: 68 | X48: 0.2 | Y48: 0 | Z48: 0 | AA48: X
B49: Kosovo (under United Nations Security Council Resolution 1244/99) | C49: XK | G49: 123.456 | H49: Consistency (sub-items) | I49: Calculated value = @1 | K49: not used | P49: MF.3.1 | Q49: MF31 | R49: Marble, granite, sandstone, porphyry, basalt, other ornamental or building stone (excluding slate) | S49: 0 | T49: 49 | U49: 48 | V49: 0.3 | W49: 48 | X49: 0.2 | Y49: 48 | Z49: 48 | AA49: X
B50: Latvia | C50: LV | G50: 123.456 | H50: Consistency (Total <= SubTotal) | I50: The reported total or sub-total cannot be calculated as more of sub-items are indicated as 'not available'. | J50: X | K50: This consistency error is highlighted when the total or the sub-total is reported and it is smaller or equal with the sum of the sub-items and several sub-items are 'not available'. | P50: MF.3.2 | Q50: MF32 | R50: Chalk and dolomite | S50: 0 | T50: 50 | U50: 48 | V50: 0.3 | W50: 48 | X50: 0.2 | Y50: 48 | Z50: 48 | AA50: X
B51: Liechtenstein | C51: LI | G51: 123.456 | H51: Consistency (Total > sum of sub-items) | I51: The reported total is higher than the sum-of the sub-items and more of the sub-items are 'not available' | J51: X | K51: This consistency error is highlighted when the total or the sub-total is reported and it is bigger than the sum of the sub-items and several sub-items are 'not available' Currently not activated; In order to activate this check remove the x from cell C15 in this parameter sheet. | P51: MF.3.3 | Q51: MF33 | R51: Slate | S51: 0 | T51: 51 | U51: 48 | V51: 0.3 | W51: 48 | X51: 0.2 | Y51: 48 | Z51: 48 | AA51: X
B52: Lithuania | C52: LT | G52: 123.456 | H52: Consistency (Equation) | I52: @1 | J52: X | K52: This consistency check is applied only for trade by stage of manufacturing and it verifies if the sum of the raw products, semi-manufactured products and finished products equal the total imports or exports. | P52: MF.3.4 | Q52: MF34 | R52: Chemical and fertilizer minerals | S52: 0 | T52: 52 | U52: 48 | V52: 0.3 | W52: 48 | X52: 0.2 | Y52: 48 | Z52: 48 | AA52: X
B53: Luxembourg | C53: LU | G53: 123.456 | H53: Plausibility | I53: Growth rate = @1 (Threshold +/-@2) | J53: X | P53: MF.3.5 | Q53: MF35 | R53: Salt | S53: 0 | T53: 53 | U53: 48 | V53: 0.3 | W53: 48 | X53: 0.2 | Y53: 48 | Z53: 48 | AA53: X
B54: Malta | C54: MT | G54: 123.456 | H54: Plausibility | I54: Growth rate = @1 (Threshold +/-@2) | J54: X | P54: MF.3.6 | Q54: MF36 | R54: Limestone and gypsum | S54: 0 | T54: 54 | U54: 48 | V54: 0.3 | W54: 48 | X54: 0.2 | Y54: 48 | Z54: 48 | AA54: X
B55: Montenegro | C55: ME | G55: c)10) | H55: Default footnote | P55: MF.3.7 | Q55: MF37 | R55: Clays and kaolin | S55: 0 | T55: 55 | U55: 48 | V55: 0.3 | W55: 48 | X55: 0.2 | Y55: 48 | Z55: 48 | AA55: X
B56: Netherlands | C56: NL | G56: a)21) | H56: Illegal footnote | I56: No footnote description | P56: MF.3.8 | Q56: MF38 | R56: Sand and gravel | S56: 0 | T56: 56 | U56: 48 | V56: 0.3 | W56: 48 | X56: 0.2 | Y56: 48 | Z56: 48 | AA56: X
B57: North Macedonia | C57: MK | G57: a)21) | H57: Illegal footnote | I57: Wrong footnote number | P57: MF.3.9 | Q57: MF39 | R57: Other n.e.c | S57: 0 | T57: 57 | U57: 48 | V57: 0.3 | W57: 48 | X57: 0.2 | Y57: 48 | Z57: 48 | AA57: X
B58: Norway | C58: NO | G58: a)21) | H58: Illegal footnote | I58: Wrong footnote letter | P58: MF.3.A | Q58: MF310 | R58: Excavated earthen materials (including soil), only if used | S58: 0 | T58: 58 | U58: 0 | V58: 0.3 | W58: -2 | X58: 0.2 | Y58: 48 | Z58: 48
B59: Poland | C59: PL | G59: a)21) | H59: Illegal footnote | I59: Wrong footnote ending [@1] | P59: MF.4 | Q59: MF4 | R59: Fossil energy materials/carriers | S59: 0 | T59: 59 | U59: 68 | V59: 0.3 | W59: 68 | X59: 0.2 | Y59: 0 | Z59: 0 | AA59: X
B60: Portugal | C60: PT | G60: a)21) | H60: Illegal footnote | I60: Flag '@1' is not allowed with 'Not Available' symbol | P60: MF.4.1 | Q60: MF41 | R60: Coal and other solid energy materials/carriers | S60: 0 | T60: 60 | U60: 59 | V60: 0.3 | W60: 59 | X60: 0.2 | Y60: 59 | Z60: 59 | AA60: X
B61: Romania | C61: RO | G61: a)21) | H61: Illegal Footnote | I61: @1 | J61: X | K61: This check is done for all footnotes and depends on the error, one of the above five message (cell I56-I60) will be displayed. | P61: MF.4.1.1 | Q61: MF411 | R61: Lignite (brown coal) | S61: 0 | T61: 61 | U61: 60 | V61: 0.3 | W61: 59 | X61: 0.2 | Y61: 60 | Z61: 60 | AA61: X
B62: Serbia | C62: RS | G62: c) | H62: Confidentiality error | I62: Secondary confidentiality required under sector @1 (see footnote instructions sheet) | J62: X | K62: This confidentiality error is highlighted when only one sub-item (i.e. this highlighted one) is flagged confidential. In such a case it is recommended to flag additional sub-items (secondary confidentiality flag 'd') on the same hierarchical MF-level in order to enable displaying the total or sub-total. | P62: MF.4.1.2 | Q62: MF412 | R62: Hard coal | S62: 0 | T62: 62 | U62: 60 | V62: 0.3 | W62: 59 | X62: 0.2 | Y62: 60 | Z62: 60 | AA62: X
B63: Slovak Republic | C63: SK | G63: c) | H63: Confidentiality warning | I63: Confidentiality not correctly applied (see footnote instructions sheet) | J63: X | K63: This confidentiality error is highlighted when a total or sub-total is flagged confidential although it should because one or two sub-items are flagged confidential. In such cases it is recommended to flag additional sub-items (secondary confidentiality) in order to enable displaying the total or sub-total. Also this confidentiality error is highlighted when the c) flag is used for zero or 'not available' cells. | P63: MF.4.1.3 | Q63: MF413 | R63: Oil shale and tar sands | S63: 0 | T63: 63 | U63: 60 | V63: 0.3 | W63: 59 | X63: 0.2 | Y63: 60 | Z63: 60 | AA63: X
B64: Slovenia | C64: SI | G64: c) | H64: Frozen line | P64: MF.4.1.4 | Q64: MF414 | R64: Peat | S64: 0 | T64: 64 | U64: 60 | V64: 0.3 | W64: 59 | X64: 0.2 | Y64: 60 | Z64: 60 | AA64: X
B65: Spain | C65: ES | F65: Only Font color will be used ==> | G65: 123.456 | H65: Of Which | I65: Value should be smaller than value (@2) in sheet '@1' | J65: X | P65: MF.4.2 | Q65: MF42 | R65: Liquid and gaseous energy materials/carriers | S65: 0 | T65: 65 | U65: 59 | V65: 0.3 | W65: 59 | X65: 0.2 | Y65: 59 | Z65: 59 | AA65: X
B66: Sweden | C66: SE | G66: 123.456 | H66: Plausibility with Footnote | I66: Growth rate = @1 (Threshold +/-@2) | J66: X | P66: MF.4.2.1 | Q66: MF421 | R66: Crude oil, condensate and natural gas liquids (NGL) | S66: 0 | T66: 66 | U66: 65 | V66: 0.3 | W66: 59 | X66: 0.2 | Y66: 65 | Z66: 65 | AA66: X
B67: Switzerland | C67: CH | G67: 123.456 | H67: Plausibility with Footnote | I67: Growth rate = @1 (Threshold +/-@2) | J67: X | P67: MF.4.2.2 | Q67: MF422 | R67: Natural gas | S67: 0 | T67: 67 | U67: 65 | V67: 0.3 | W67: 59 | X67: 0.2 | Y67: 65 | Z67: 65 | AA67: X
B68: Turkey | C68: TR | G68: 123.456 | H68: Mandatory Cell | I68: Data is mandatory | J68: X | P68: TOTAL | R68: Total Extraction | S68: 0 | T68: 68 | U68: 0 | V68: 0.3 | W68: -2 | X68: 0.2 | Y68: 0 | Z68: 0 | AA68: X
B69: United Kingdom | C69: UK | G69: 123.456 | H69: Consistency (Total <= SubTotal) | I69: The reported value must be higher than its MEMO item. | J69: X | K69: For MEMO Items only (Linked to variable using the OfWhich parameter : Type=5) | P69: MF.1 | Q69: MF1 | R69: Biomass and biomass products | S69: 0 | T69: 4 | U69: 78 | V69: 0.5 | W69: 78 | X69: 0.2 | Y69: 0 | Z69: 0 | AA69: X
G70: c)10) | H70: Eurostat reserved flag | I70: @1 | J70: X | K70: Raised only is 'Accept Eurostat Flag Use' option is activated. Does not take the lead on Stadard Footnote Error (Act as Information). Use the Display message to add the message as cell Comment. | P70: MF.1.1 | Q70: MF11 | R70: Crops, raw and processed | S70: 0 | T70: 5 | U70: 4 | V70: 0.5 | W70: 4 | X70: 0.2 | Y70: 4 | Z70: 4 | AA70: X
G71: a)21) | H71: SDMX footnote syntax | I71: @1) is not a valid ‘free-text’ footnote symbol | K71: Occurs when a non numeric or extra numeric (<0 or >100) is used as ‘free-text’ footnote symbol on the first position of the SDMX format(1st position = ‘free-text’ footnote) | P71: MF.1.1.1 | Q71: MF111 | R71: Cereals, raw and processed | S71: 0 | T71: 6 | U71: 5 | V71: 0.5 | W71: 4 | X71: 0.2 | Y71: 5 | Z71: 5 | AA71: X
G72: a)21) | H72: SDMX footnote syntax | I72: @1) is not a valid pre-defined footnote symbol expressing confidentiality | K72: Occurs when a non-confidential pre-defined footnote symbol is used in second position of the SDMX format BUT PRE-DEFINED FOOTNOTE SYMBOL DOES EXIST | P72: MF.1.1.2 | Q72: MF112 | R72: Roots, tubers, raw and processed | S72: 0 | T72: 7 | U72: 5 | V72: 0.5 | W72: 4 | X72: 0.2 | Y72: 5 | Z72: 5 | AA72: X
G73: a)21) | H73: SDMX footnote syntax | I73: @1) is not a valid pre-defined footnote symbol | K73: Occurs when a non-valid footnote symbol is used in second position of SDMX format AND pre-defined footnote symbol does not exist at all | P73: MF.1.1.3 | Q73: MF113 | R73: Sugar crops, raw and processed | S73: 0 | T73: 8 | U73: 5 | V73: 0.5 | W73: 4 | X73: 0.2 | Y73: 5 | Z73: 5 | AA73: X
G74: a)21) | H74: Illegal footnote | I74: Wrong use of brackets (footnote separators) | K74: Occurs when flag is coditied like this: c))b) | P74: MF.1.1.4 | Q74: MF114 | R74: Pulses, raw and processed | S74: 0 | T74: 9 | U74: 5 | V74: 0.5 | W74: 4 | X74: 0.2 | Y74: 5 | Z74: 5 | AA74: X
G75: a)21) | H75: SDMX footnote syntax | I75: @1) is not a valid pre-defined footnote symbol for the third (and more) position | K75: Occurs when a pre-defined footnote symbol expressing confidentiality is used in third position of SDMX format like ))c) | P75: MF.1.1.5 | Q75: MF115 | R75: Nuts, raw and processed | S75: 0 | T75: 10 | U75: 5 | V75: 0.5 | W75: 4 | X75: 0.2 | Y75: 5 | Z75: 5 | AA75: X
G76: a)21) | H76: SDMX footnote syntax | I76: @1) is not a valid footnote symbol for the third (and more) position | K76: Occurs when the footnote symbol (letter or number) is not allowed for the third position of SDMX format | P76: MF.1.1.6 | Q76: MF116 | R76: Oil-bearing crops, raw and processed | S76: 0 | T76: 11 | U76: 5 | V76: 0.5 | W76: 4 | X76: 0.2 | Y76: 5 | Z76: 5 | AA76: X
G77: a)21) | H77: Illegal footnote | I77: @1) is duplicated | K77: Occurs when a footnote symbol is used twice. (does not apply when an Excel formula is used) | P77: MF.1.1.7 | Q77: MF117 | R77: Vegetables, raw and processed | S77: 0 | T77: 12 | U77: 5 | V77: 0.5 | W77: 4 | X77: 0.2 | Y77: 5 | Z77: 5 | AA77: X
G78: a)21) | H78: Classical Flag syntax | I78: @1) other confidential flag used (@2) | K78: Occurs when more than one confidential flag is used (c, d or n) | P78: MF.1.1.8 | Q78: MF118 | R78: Fruits, raw and processed | S78: 0 | T78: 13 | U78: 5 | V78: 0.5 | W78: 4 | X78: 0.2 | Y78: 5 | Z78: 5 | AA78: X
G79: a)21) | H79: Illegal footnote | I79: @1) is a pre-defined footnote symbol that can be set by Eurostat only | K79: Occurs when a n) or s) footnote symbol is used directly by MS (and respective option/switch disabled) | P79: MF.1.1.9 | Q79: MF119 | R79: Fibres, raw and processed | S79: 0 | T79: 14 | U79: 5 | V79: 0.5 | W79: 4 | X79: 0.2 | Y79: 5 | Z79: 5 | AA79: X
P80: MF.1.1.A | Q80: MF1110 | R80: Other crops n.e.c., raw and processed | S80: 0 | T80: 15 | U80: 5 | V80: 0.5 | W80: 4 | X80: 0.2 | Y80: 5 | Z80: 5 | AA80: X
P81: MF.1.2 | Q81: MF12 | R81: Crop residues and fodder crops | S81: 0 | T81: 16 | U81: 4 | V81: 0.5 | W81: 4 | X81: 0.2 | Y81: 4 | Z81: 4 | AA81: X
P82: MF.1.2.1 | Q82: MF121 | R82: Crop residues (used), raw and processed | S82: 0 | T82: 17 | U82: 16 | V82: 0.5 | W82: 4 | X82: 0.2 | Y82: 16 | Z82: 16 | AA82: X
P83: MF.1.2.1.1 | Q83: MF1211 | R83: Straw | S83: 0 | T83: 18 | U83: 17 | V83: 0.5 | W83: 4 | X83: 0.2 | Y83: 17 | Z83: 17 | AA83: X
P84: MF.1.2.1.2 | R84: Other crop residues | S84: 3 | T84: 19 | U84: 17 | V84: 0.5 | W84: 4 | X84: 0.2 | Y84: 17 | Z84: 17
P85: MF.1.2.2 | Q85: MF122 | R85: Fodder crops | S85: 0 | T85: 20 | U85: 16 | V85: 0.5 | W85: 4 | X85: 0.2 | Y85: 16 | Z85: 16 | AA85: X
P86: MF.1.2.2.1 | Q86: MF1221 | R86: Fodder crops | S86: 0 | T86: 21 | U86: 20 | V86: 0.5 | W86: 4 | X86: 0.2 | Y86: 20 | Z86: 20 | AA86: X
P87: MF.1.3 | Q87: MF13 | R87: Wood and wood products | S87: 0 | T87: 22 | U87: 4 | V87: 0.5 | W87: 4 | X87: 0.2 | Y87: 4 | Z87: 4 | AA87: X
P88: MF.1.3.1 | Q88: MF131 | R88: Timber, raw and processed | S88: 0 | T88: 23 | U88: 22 | V88: 0.5 | W88: 4 | X88: 0.2 | Y88: 22 | Z88: 22 | AA88: X
P89: MF.1.3.2 | Q89: MF132 | R89: Wood fuel and other extraction, raw and processed | S89: 0 | T89: 24 | U89: 22 | V89: 0.5 | W89: 4 | X89: 0.2 | Y89: 22 | Z89: 22 | AA89: X
P90: MF.1.4 | Q90: MF14 | R90: Fish capture and other aquatic animals and plants, raw and processed | S90: 0 | T90: 25 | U90: 4 | V90: 0.5 | W90: 4 | X90: 0.2 | Y90: 4 | Z90: 4 | AA90: X
P91: MF.1.4.1 | Q91: MF141 | R91: Fish capture | S91: 0 | T91: 26 | U91: 25 | V91: 0.5 | W91: 4 | X91: 0.2 | Y91: 25 | Z91: 25 | AA91: X
P92: MF.1.4.2 | Q92: MF142 | R92: All other aquatic animals and plants | S92: 0 | T92: 27 | U92: 25 | V92: 0.5 | W92: 4 | X92: 0.2 | Y92: 25 | Z92: 25 | AA92: X
P93: MF.1.5 | Q93: MF15 | R93: Live animals other than in 1.4., and animal products | S93: 0 | T93: 28 | U93: 4 | V93: 0.5 | W93: 4 | X93: 0.2 | Y93: 4 | Z93: 4 | AA93: X
P94: MF.1.5.1 | Q94: MF151 | R94: Live animals other than in 1.4. | S94: 0 | T94: 29 | U94: 28 | V94: 0.5 | W94: 4 | X94: 0.2 | Y94: 28 | Z94: 28 | AA94: X
P95: MF.1.5.2 | Q95: MF152 | R95: Meat and meat preparations | S95: 0 | T95: 30 | U95: 28 | V95: 0.5 | W95: 4 | X95: 0.2 | Y95: 28 | Z95: 28 | AA95: X
P96: MF.1.5.3 | Q96: MF153 | R96: Dairy products, birds eggs, and honey | S96: 0 | T96: 31 | U96: 28 | V96: 0.5 | W96: 4 | X96: 0.2 | Y96: 28 | Z96: 28 | AA96: X
P97: MF.1.5.4 | Q97: MF154 | R97: Other products from animals (animal fibres, skins, furs, leather etc.) | S97: 0 | T97: 32 | U97: 28 | V97: 0.5 | W97: 4 | X97: 0.2 | Y97: 28 | Z97: 28 | AA97: X
P98: MF.1.6 | Q98: MF16 | R98: Products mainly from biomass | S98: 0 | T98: 33 | U98: 4 | V98: 0.5 | W98: 4 | X98: 0.2 | Y98: 4 | Z98: 4 | AA98: X
P99: MF.2 | Q99: MF2 | R99: Metal ores and concentrates, raw and processed | S99: 0 | T99: 34 | U99: 78 | V99: 0.5 | W99: 78 | X99: 0.2 | Y99: 0 | Z99: 0 | AA99: X
P100: MF.2.1 | Q100: MF21 | R100: Iron ores and concentrates, iron and steel, raw and processed | S100: 0 | T100: 35 | U100: 34 | V100: 0.5 | W100: 34 | X100: 0.2 | Y100: 34 | Z100: 34 | AA100: X
P101: MF.2.2 | Q101: MF22 | R101: Non-ferrous metal ores and concentrates, raw and processed | S101: 0 | T101: 36 | U101: 34 | V101: 0.5 | W101: 34 | X101: 0.2 | Y101: 34 | Z101: 34 | AA101: X
P102: MF.2.2.1 | Q102: MF221 | R102: Copper | S102: 0 | T102: 37 | U102: 36 | V102: 0.5 | W102: 34 | X102: 0.2 | Y102: 36 | Z102: 36 | AA102: X
P103: MF.2.2.2 | Q103: MF222 | R103: Nickel | S103: 0 | T103: 38 | U103: 36 | V103: 0.5 | W103: 34 | X103: 0.2 | Y103: 36 | Z103: 36 | AA103: X
P104: MF.2.2.3 | Q104: MF223 | R104: Lead | S104: 0 | T104: 39 | U104: 36 | V104: 0.5 | W104: 34 | X104: 0.2 | Y104: 36 | Z104: 36 | AA104: X
P105: MF.2.2.4 | Q105: MF224 | R105: Zinc | S105: 0 | T105: 40 | U105: 36 | V105: 0.5 | W105: 34 | X105: 0.2 | Y105: 36 | Z105: 36 | AA105: X
P106: MF.2.2.5 | Q106: MF225 | R106: Tin | S106: 0 | T106: 41 | U106: 36 | V106: 0.5 | W106: 34 | X106: 0.2 | Y106: 36 | Z106: 36 | AA106: X
P107: MF.2.2.6 | Q107: MF226 | R107: Gold, silver, platinum and other precious metal | S107: 0 | T107: 42 | U107: 36 | V107: 0.5 | W107: 34 | X107: 0.2 | Y107: 36 | Z107: 36 | AA107: X
P108: MF.2.2.7 | Q108: MF227 | R108: Bauxite and other aluminium | S108: 0 | T108: 43 | U108: 36 | V108: 0.5 | W108: 34 | X108: 0.2 | Y108: 36 | Z108: 36 | AA108: X
P109: MF.2.2.8 | Q109: MF228 | R109: Uranium and thorium | S109: 0 | T109: 44 | U109: 36 | V109: 0.5 | W109: 34 | X109: 0.2 | Y109: 36 | Z109: 36 | AA109: X
P110: MF.2.2.9 | Q110: MF229 | R110: Other n.e.c. | S110: 0 | T110: 45 | U110: 36 | V110: 0.5 | W110: 34 | X110: 0.2 | Y110: 36 | Z110: 36 | AA110: X
P111: MF.2.3 | Q111: MF23 | R111: Products mainly from metals | S111: 0 | T111: 46 | U111: 34 | V111: 0.5 | W111: 34 | X111: 0.2 | Y111: 34 | Z111: 34 | AA111: X
P112: MF.3 | Q112: MF3 | R112: Non-metallic minerals, raw and processed | S112: 0 | T112: 47 | U112: 78 | V112: 0.5 | W112: 78 | X112: 0.2 | Y112: 0 | Z112: 0 | AA112: X
P113: MF.3.1 | Q113: MF31 | R113: Marble, granite, sandstone, porphyry, basalt, other ornamental or building stone (excluding slate) | S113: 0 | T113: 48 | U113: 47 | V113: 0.5 | W113: 47 | X113: 0.2 | Y113: 47 | Z113: 47 | AA113: X
P114: MF.3.2 | Q114: MF32 | R114: Chalk and dolomite | S114: 0 | T114: 49 | U114: 47 | V114: 0.5 | W114: 47 | X114: 0.2 | Y114: 47 | Z114: 47 | AA114: X
P115: MF.3.3 | Q115: MF33 | R115: Slate | S115: 0 | T115: 50 | U115: 47 | V115: 0.5 | W115: 47 | X115: 0.2 | Y115: 47 | Z115: 47 | AA115: X
P116: MF.3.4 | Q116: MF34 | R116: Chemical and fertilizer minerals | S116: 0 | T116: 51 | U116: 47 | V116: 0.5 | W116: 47 | X116: 0.2 | Y116: 47 | Z116: 47 | AA116: X
P117: MF.3.5 | Q117: MF35 | R117: Salt | S117: 0 | T117: 52 | U117: 47 | V117: 0.5 | W117: 47 | X117: 0.2 | Y117: 47 | Z117: 47 | AA117: X
P118: MF.3.6 | Q118: MF36 | R118: Limestone and gypsum | S118: 0 | T118: 53 | U118: 47 | V118: 0.5 | W118: 47 | X118: 0.2 | Y118: 47 | Z118: 47 | AA118: X
P119: MF.3.7 | Q119: MF37 | R119: Clays and kaolin | S119: 0 | T119: 54 | U119: 47 | V119: 0.5 | W119: 47 | X119: 0.2 | Y119: 47 | Z119: 47 | AA119: X
P120: MF.3.8 | Q120: MF38 | R120: Sand and gravel | S120: 0 | T120: 55 | U120: 47 | V120: 0.5 | W120: 47 | X120: 0.2 | Y120: 47 | Z120: 47 | AA120: X
P121: MF.3.9 | Q121: MF39 | R121: Other n.e.c. | S121: 0 | T121: 56 | U121: 47 | V121: 0.5 | W121: 47 | X121: 0.2 | Y121: 47 | Z121: 47 | AA121: X
P122: MF.3.A | R122: Excavated earthen materials (including soil), only if used | S122: 3 | T122: 57 | U122: 47 | V122: 0.5 | W122: -2 | X122: 0.2 | Y122: 47 | Z122: 47
P123: MF.3.B | Q123: MF311 | R123: Products mainly from non metallic minerals | S123: 0 | T123: 58 | U123: 47 | V123: 0.5 | W123: 47 | X123: 0.2 | Y123: 47 | Z123: 47 | AA123: X
P124: MF.4 | Q124: MF4 | R124: Fossil energy materials/carriers, raw and processed | S124: 0 | T124: 59 | U124: 78 | V124: 0.5 | W124: 78 | X124: 0.2 | Y124: 0 | Z124: 0 | AA124: X
P125: MF.4.1 | Q125: MF41 | R125: Coal and other solid energy products, raw and processed | S125: 0 | T125: 60 | U125: 59 | V125: 0.5 | W125: 59 | X125: 0.2 | Y125: 59 | Z125: 59 | AA125: X
P126: MF.4.1.1 | Q126: MF411 | R126: Lignite (brown coal) | S126: 0 | T126: 61 | U126: 60 | V126: 0.5 | W126: 59 | X126: 0.2 | Y126: 60 | Z126: 60 | AA126: X
P127: MF.4.1.2 | Q127: MF412 | R127: Hard coal | S127: 0 | T127: 62 | U127: 60 | V127: 0.5 | W127: 59 | X127: 0.2 | Y127: 60 | Z127: 60 | AA127: X
P128: MF.4.1.3 | Q128: MF413 | R128: Oil shale and tar sands | S128: 0 | T128: 63 | U128: 60 | V128: 0.5 | W128: 59 | X128: 0.2 | Y128: 60 | Z128: 60 | AA128: X
P129: MF.4.1.4 | Q129: MF414 | R129: Peat | S129: 0 | T129: 64 | U129: 60 | V129: 0.5 | W129: 59 | X129: 0.2 | Y129: 60 | Z129: 60 | AA129: X
P130: MF.4.2 | Q130: MF42 | R130: Liquid and gaseous energy products, raw and processed | S130: 0 | T130: 65 | U130: 59 | V130: 0.5 | W130: 59 | X130: 0.2 | Y130: 59 | Z130: 59 | AA130: X
P131: MF.4.2.1 | Q131: MF421 | R131: Crude oil, condensate and natural gas liquids (NGL) | S131: 0 | T131: 66 | U131: 65 | V131: 0.5 | W131: 59 | X131: 0.2 | Y131: 65 | Z131: 65 | AA131: X
P132: MF.4.2.2 | Q132: MF422 | R132: Natural gas | S132: 0 | T132: 67 | U132: 65 | V132: 0.5 | W132: 59 | X132: 0.2 | Y132: 65 | Z132: 65 | AA132: X
P133: MF.4.2.3 | Q133: MF423 | R133: Adjustment for residence principle: Fuel bunkered by resident units abroad | S133: 0 | T133: 68 | U133: 65 | V133: 0.5 | W133: 59 | X133: 0.2 | Y133: 65 | Z133: 65
P134: MF.4.2.3.1 | Q134: MF4231 | R134: Fuel for land transport | S134: 0 | T134: 69 | U134: 68 | V134: 0.5 | W134: 59 | X134: 0.2 | Y134: 68 | Z134: 68
P135: MF.4.2.3.2 | Q135: MF4232 | R135: Fuel for water transport | S135: 0 | T135: 70 | U135: 68 | V135: 0.5 | W135: 59 | X135: 0.2 | Y135: 68 | Z135: 68
P136: MF.4.2.3.3 | Q136: MF4233 | R136: Fuel for air transport | S136: 0 | T136: 71 | U136: 68 | V136: 0.5 | W136: 59 | X136: 0.2 | Y136: 68 | Z136: 68
P137: MF.4.3 | Q137: MF43 | R137: Products mainly from fossil energy products | S137: 0 | T137: 72 | U137: 59 | V137: 0.5 | W137: 59 | X137: 0.2 | Y137: 59 | Z137: 59 | AA137: X
P138: MF.5 | Q138: MF5 | R138: Other products | S138: 0 | T138: 73 | U138: 78 | V138: 0.5 | W138: 78 | X138: 0.2 | Y138: 0 | Z138: 0 | AA138: X
P139: MF.6 | Q139: MF6 | R139: Waste imported for final treatment and disposal | S139: 0 | T139: 74 | U139: 78 | V139: 0.5 | W139: 78 | X139: 0.2 | Y139: 0 | Z139: 0 | AA139: X
Q140: SM_RAW | R140: Raw products | S140: 0 | T140: 75 | U140: 0 | V140: 0.5 | W140: 78 | X140: 0.2 | Y140: 0 | Z140: 0
Q141: SM_SFIN | R141: Semi-manufactured products | S141: 0 | T141: 76 | U141: 0 | V141: 0.5 | W141: 78 | X141: 0.2 | Y141: 0 | Z141: 0
Q142: SM_FIN | R142: Finished products | S142: 0 | T142: 77 | U142: 0 | V142: 0.5 | W142: 78 | X142: 0.2 | Y142: 0 | Z142: 0
R143: total trade | S143: 0 | T143: 78 | U143: 0 | V143: 0.5 | W143: 78 | X143: 0.2 | Y143: 0 | Z143: 0 | AA143: X
P144: MF.7.1 | Q144: MF_DPO_1 | R144: Emissions to air | S144: 0 | T144: 4 | U144: 43 | V144: 0.3 | W144: 43 | X144: 0.2 | Y144: 0 | Z144: 0
P145: MF.7.1.1 | Q145: MF_DPO_11 | R145: Carbon dioxide (CO2) | S145: 0 | T145: 5 | U145: 4 | V145: 0.3 | W145: 4 | X145: 0.2 | Y145: 4 | Z145: 4
P146: MF.7.1.1.1 | Q146: MF_DPO_111 | R146: Carbon dioxide (CO2) from biomass combustion | S146: 0 | T146: 6 | U146: 5 | V146: 0.3 | W146: 4 | X146: 0.5 | Y146: 5 | Z146: 5
P147: MF.7.1.1.2 | Q147: MF_DPO_112 | R147: Carbon dioxide (CO2) excluding biomass combustion | S147: 0 | T147: 7 | U147: 5 | V147: 0.3 | W147: 4 | X147: 0.5 | Y147: 5 | Z147: 5
P148: MF.7.1.2 | Q148: MF_DPO_12 | R148: Methane (CH4) | S148: 0 | T148: 8 | U148: 4 | V148: 0.5 | W148: 4 | X148: 0.2 | Y148: 4 | Z148: 4
P149: MF.7.1.3 | Q149: MF_DPO_13 | R149: Dinitrogen oxide (N2O) | S149: 0 | T149: 9 | U149: 4 | V149: 0.5 | W149: 4 | X149: 0.2 | Y149: 4 | Z149: 4
P150: MF.7.1.4 | Q150: MF_DPO_14 | R150: Nitrous oxides (NOx) | S150: 0 | T150: 10 | U150: 4 | V150: 0.5 | W150: 4 | X150: 0.2 | Y150: 4 | Z150: 4
P151: MF.7.1.5 | Q151: MF_DPO_15 | R151: Hydroflourcarbons (HFCs) | S151: 0 | T151: 11 | U151: 4 | V151: 0.5 | W151: 4 | X151: 0.2 | Y151: 4 | Z151: 4
P152: MF.7.1.6 | Q152: MF_DPO_16 | R152: Perflourocarbons (PFCs) | S152: 0 | T152: 12 | U152: 4 | V152: 0.5 | W152: 4 | X152: 0.2 | Y152: 4 | Z152: 4
P153: MF.7.1.7 | Q153: MF_DPO_17 | R153: Sulfur hexaflouride | S153: 0 | T153: 13 | U153: 4 | V153: 0.5 | W153: 4 | X153: 0.2 | Y153: 4 | Z153: 4
P154: MF.7.1.8 | Q154: MF_DPO_18 | R154: Carbon monoxide (CO) | S154: 0 | T154: 14 | U154: 4 | V154: 0.5 | W154: 4 | X154: 0.2 | Y154: 4 | Z154: 4
P155: MF.7.1.9 | Q155: MF_DPO_19 | R155: Non-methane volatile organic compounds (NMVOC) | S155: 0 | T155: 15 | U155: 4 | V155: 0.5 | W155: 4 | X155: 0.2 | Y155: 4 | Z155: 4
P156: MF.7.1.A | Q156: MF_DPO_110 | R156: Sulfur dioxide (SO2) | S156: 0 | T156: 16 | U156: 4 | V156: 0.5 | W156: 4 | X156: 0.2 | Y156: 4 | Z156: 4
P157: MF.7.1.B | Q157: MF_DPO_111 | R157: Ammonia (NH3) | S157: 0 | T157: 17 | U157: 4 | V157: 0.5 | W157: 4 | X157: 0.2 | Y157: 4 | Z157: 4
P158: MF.7.1.C | Q158: MF_DPO_112 | R158: Heavy metals | S158: 0 | T158: 18 | U158: 4 | V158: 0.5 | W158: 4 | X158: 0.2 | Y158: 4 | Z158: 4
P159: MF.7.1.D | Q159: MF_DPO_113 | R159: Persistent organic pollutantsPOPs | S159: 0 | T159: 19 | U159: 4 | V159: 0.5 | W159: 4 | X159: 0.2 | Y159: 4 | Z159: 4
P160: MF.7.1.E | Q160: MF_DPO_114 | R160: Particles (e.g PM10, Dust) | S160: 0 | T160: 20 | U160: 4 | V160: 0.5 | W160: 4 | X160: 0.2 | Y160: 4 | Z160: 4
P161: MF.7.1.F | Q161: MF_DPO_115 | R161: Other (e.g. Nitrogen trifluoride - NF3) | S161: 0 | T161: 21 | U161: 4 | V161: 0.5 | W161: 4 | X161: 0.2 | Y161: 0 | Z161: 0
P162: MF.7.2 | Q162: MF_DPO_2 | R162: Waste disposal | S162: 0 | T162: 22 | U162: 43 | V162: 0.5 | W162: 43 | X162: 0.2 | Y162: 0 | Z162: 0
P163: MF.7.2.MEMO | Q163: MF_DPO_21 | R163: Disposal of municipal waste to the environment | S163: 0 | T163: 23 | U163: 0 | V163: 0 | W163: 22 | X163: 0.2 | Y163: 22 | Z163: 22
P164: MF.7.3 | Q164: MF_DPO_3 | R164: Emissions to water | S164: 0 | T164: 24 | U164: 43 | V164: 0.5 | W164: 43 | X164: 0.2 | Y164: 0 | Z164: 0
P165: MF.7.3.1 | Q165: MF_DPO_31 | R165: Nitrogen (N) | S165: 0 | T165: 25 | U165: 24 | V165: 0 | W165: 27 | X165: 0.2 | Y165: 27 | Z165: 27
P166: MF.7.3.2 | Q166: MF_DPO_32 | R166: Phosphorus (P) | S166: 0 | T166: 26 | U166: 24 | V166: 0 | W166: 27 | X166: 0.2 | Y166: 27 | Z166: 27
P167: MF.7.3.3 | Q167: MF_DPO_33 | R167: Heavy metals | S167: 0 | T167: 27 | U167: 24 | V167: 0 | W167: 27 | X167: 0.2 | Y167: 27 | Z167: 27
P168: MF.7.3.4 | Q168: MF_DPO_34 | R168: Other substances and (organic) materials | S168: 0 | T168: 28 | U168: 24 | V168: 0 | W168: 27 | X168: 0.2 | Y168: 27 | Z168: 27
P169: MF.7.3.5 | Q169: MF_DPO_35 | R169: Dumping of materials at sea | S169: 0 | T169: 29 | U169: 24 | V169: 0 | W169: 27 | X169: 0.2 | Y169: 27 | Z169: 27
P170: MF.7.4 | Q170: MF_DPO_4 | R170: Dissipative use of products | S170: 0 | T170: 30 | U170: 43 | V170: 0.5 | W170: 43 | X170: 0.2 | Y170: 0 | Z170: 0
P171: MF.7.4.1 | Q171: MF_DPO_41 | R171: Organic fertiliser (manure) | S171: 0 | T171: 31 | U171: 30 | V171: 0 | W171: 33 | X171: 0.2 | Y171: 33 | Z171: 33
P172: MF.7.4.2 | Q172: MF_DPO_42 | R172: Mineral fertiliser | S172: 0 | T172: 32 | U172: 30 | V172: 0 | W172: 33 | X172: 0.2 | Y172: 33 | Z172: 33
P173: MF.7.4.3 | Q173: MF_DPO_43 | R173: Sewage sludge | S173: 0 | T173: 33 | U173: 30 | V173: 0 | W173: 33 | X173: 0.2 | Y173: 33 | Z173: 33
P174: MF.7.4.4 | Q174: MF_DPO_44 | R174: Compost | S174: 0 | T174: 34 | U174: 30 | V174: 0 | W174: 33 | X174: 0.2 | Y174: 33 | Z174: 33
P175: MF.7.4.5 | Q175: MF_DPO_45 | R175: Pesticides | S175: 0 | T175: 35 | U175: 30 | V175: 0 | W175: 33 | X175: 0.2 | Y175: 33 | Z175: 33
P176: MF.7.4.6 | Q176: MF_DPO_46 | R176: Seeds | S176: 0 | T176: 36 | U176: 30 | V176: 0 | W176: 33 | X176: 0.2 | Y176: 33 | Z176: 33
P177: MF.7.4.7 | Q177: MF_DPO_47 | R177: Salt and other thawing materials spread on roads (incl grit) | S177: 0 | T177: 37 | U177: 30 | V177: 0 | W177: 33 | X177: 0.2 | Y177: 33 | Z177: 33
P178: MF.7.4.8 | Q178: MF_DPO_48 | R178: Solvents, laughing gas and other | S178: 0 | T178: 38 | U178: 30 | V178: 0 | W178: 33 | X178: 0.2 | Y178: 33 | Z178: 33
P179: MF.7.5 | Q179: MF_DPO_5 | R179: Dissipative losses (e.g abrasion from tires, friction products, buildings and infrastructure) | S179: 0 | T179: 39 | U179: 43 | V179: 0.5 | W179: 0 | X179: 0.2 | Y179: 0 | Z179: 0
R180: Total domestic processed output | S180: 0 | T180: 40 | U180: 0 | V180: 0.3 | W180: 0 | X180: 0.2 | Y180: 0 | Z180: 0
P181: MF.8.1 | Q181: MF_BI_1 | R181: Balancing items: input side | S181: 0 | T181: 4 | U181: 0 | V181: 0.3 | W181: -1 | X181: 0.2 | Y181: 0 | Z181: 0
P182: MF.8.1.1 | Q182: MF_BI_11 | R182: Oxygen for combustion processes | S182: 0 | T182: 5 | U182: 4 | V182: 0.3 | W182: -1 | X182: 0.2 | Y182: 4 | Z182: 4
P183: MF.8.1.2 | Q183: MF_BI_12 | R183: Oxygen for respiration of humans and livestock; bacterial respiration from solid waste and wastewater | S183: 0 | T183: 6 | U183: 4 | V183: 0.5 | W183: -1 | X183: 0.2 | Y183: 4 | Z183: 4
P184: MF.8.1.3 | Q184: MF_BI_13 | R184: Nitrogen for Haber-Bosch process | S184: 0 | T184: 7 | U184: 4 | V184: 0.5 | W184: -1 | X184: 0.2 | Y184: 4 | Z184: 4
P185: MF.8.1.4 | Q185: MF_BI_14 | R185: Water requirements for the domestic production of exported beverages | S185: 0 | T185: 8 | U185: 4 | V185: 0.5 | W185: -1 | X185: 0.2 | Y185: 4 | Z185: 4
P186: MF.8.2 | Q186: MF_BI_2 | R186: Balancing items: output side | S186: 0 | T186: 9 | U186: 0 | V186: 0.3 | W186: 0 | X186: 0.2 | Y186: 0 | Z186: 0
P187: MF.8.2.1 | Q187: MF_BI_21 | R187: Water vapour from combustion | S187: 1 | T187: 10 | U187: 9 | V187: 0.3 | W187: 9 | X187: 0.2 | Y187: 9 | Z187: 9
P188: MF.8.2.1.1 | Q188: MF_BI_211 | R188: Water vapour from moisture content of fuels | S188: 1 | T188: 11 | U188: 10 | V188: 0.3 | W188: 10 | X188: 0.2 | Y188: 10 | Z188: 10
P189: MF.8.2.1.2 | Q189: MF_BI_212 | R189: Water vapour from the oxidised hydrogen components of fuels | S189: 1 | T189: 12 | U189: 10 | V189: 0.3 | W189: 10 | X189: 0.2 | Y189: 10 | Z189: 10
P190: MF.8.2.2 | Q190: MF_BI_22 | R190: Gases from respiration of humans and livestock (CO2 and H2O), and from bacterial respiration from solid waste and wastewater (H2O) | S190: 0 | T190: 13 | U190: 9 | V190: 0.3 | W190: 9 | X190: 0.2 | Y190: 9 | Z190: 9
P191: MF.8.2.2.1 | Q191: MF_BI_221 | R191: Carbon dioxide (CO2) | S191: 0 | T191: 14 | U191: 13 | V191: 0.3 | W191: 13 | X191: 0.2 | Y191: 13 | Z191: 13
P192: MF.8.2.2.2 | Q192: MF_BI_222 | R192: Water vapour (H2O) | S192: 0 | T192: 15 | U192: 13 | V192: 0.3 | W192: 13 | X192: 0.2 | Y192: 13 | Z192: 13
P193: MF.8.2.3 | Q193: MF_BI_23 | R193: Excorporated water from biomass products | S193: 0 | T193: 16 | U193: 9 | V193: 0.3 | W193: 9 | X193: 0.2 | Y193: 9 | Z193: 9
P194: H.1 | Q194: TOTAL | R194: Domestic extraction (used) (DEU) | S194: 0 | T194: 4 | U194: 0 | V194: 0.3 | W194: -1 | X194: 0.2 | Y194: 0 | Z194: 0
P195: H.2 | Q195: TOTAL | R195: Imports | S195: 0 | T195: 5 | U195: 0 | V195: 0.5 | W195: -1 | X195: 0.2 | Y195: 0 | Z195: 0 | AA195: X
P196: H.3 | Q196: TOTAL | R196: Exports | S196: 0 | T196: 6 | U196: 0 | V196: 0.5 | W196: -1 | X196: 0.2 | Y196: 0 | Z196: 0 | AA196: X
P197: H.4 | Q197: TOTAL | R197: Direct material input (DMI) | S197: 0 | T197: 7 | U197: 0 | V197: 0.5 | W197: -1 | X197: 0.2 | Y197: 0 | Z197: 0 | AA197: X
P198: H.5 | Q198: TOTAL | R198: Domestic material consumption (DMC) | S198: 0 | T198: 8 | U198: 0 | V198: 0.15 | W198: -1 | X198: 0.2 | Y198: 0 | Z198: 0 | AA198: X
P199: H.6 | Q199: TOTAL | R199: Physical trade balance (PTB) | S199: 1 | T199: 9 | U199: 0 | V199: 0.5 | W199: -1 | X199: 0.2 | Y199: 0 | Z199: 0 | AA199: X
P200: H.7 | Q200: TOTAL | R200: Domestic processed output (DPO) | S200: 0 | T200: 10 | U200: 0 | V200: 0.3 | W200: -1 | X200: 0.2 | Y200: 0 | Z200: 0
P201: H.8 | Q201: TOTAL | R201: Net additions to stock (NAS) | S201: 1 | T201: 11 | U201: 0 | V201: 0.5 | W201: -1 | X201: 0.2 | Y201: 0 | Z201: 0
... 25 more rows

Sheet footnotes_list
B2: Country : | D2: =intro!I8 -> 0 | E2: Flags Mode
E3: =Parameters!C21 -> SDMX Flags
B4: Type: | D4: Text
B5: Content: | D5: Footnotes (associating symbols to content text)
C7: List of footnotes
C9: footnote symbol | D9: footnote text (content) associated to footnote symbol
B10: obs_status | C10: b) | D10: Break in series
B11: conf_status | C11: c) | D11: Confidential
B12: conf_status | C12: d) | D12: Secondary confidentiality
B13: obs_status | C13: e) | D13: Estimated data
B14: obs_status | C14: n) | D14: Not to be published (only to be set by Eurostat!)
B15: obs_status | C15: p) | D15: Provisional
B16: obs_status | C16: s) | D16: Eurostat estimate (only to be set by Eurostat!)
B17: obs_comment | C17: 1)
B18: obs_comment | C18: 2)
B19: obs_comment | C19: 3)
B20: obs_comment | C20: 4)
B21: obs_comment | C21: 5)
B22: obs_comment | C22: 6)
B23: obs_comment | C23: 7)
B24: obs_comment | C24: 8)
B25: obs_comment | C25: 9)
B26: obs_comment | C26: 10)
B27: obs_comment | C27: 11)
B28: obs_comment | C28: 12)
B29: obs_comment | C29: 13)
B30: obs_comment | C30: 14)
B31: obs_comment | C31: 15)
B32: obs_comment | C32: 16)
B33: obs_comment | C33: 17)
B34: obs_comment | C34: 18)
B35: obs_comment | C35: 19)
B36: obs_comment | C36: 20)
B37: obs_comment | C37: 21)
B38: obs_comment | C38: 22)
B39: obs_comment | C39: 23)
B40: obs_comment | C40: 24)
B41: obs_comment | C41: 25)
B42: obs_comment | C42: 26)
B43: obs_comment | C43: 27)
B44: obs_comment | C44: 28)
B45: obs_comment | C45: 29)
B46: obs_comment | C46: 30)
B47: obs_comment | C47: 31)
B48: obs_comment | C48: 32)
B49: obs_comment | C49: 33)
B50: obs_comment | C50: 34)
B51: obs_comment | C51: 35)
B52: obs_comment | C52: 36)
B53: obs_comment | C53: 37)
B54: obs_comment | C54: 38)
B55: obs_comment | C55: 39)
B56: obs_comment | C56: 40)
B57: obs_comment | C57: 41)
B58: obs_comment | C58: 42)
B59: obs_comment | C59: 43)
B60: obs_comment | C60: 44)
B61: obs_comment | C61: 45)
B62: obs_comment | C62: 46)
B63: obs_comment | C63: 47)
B64: obs_comment | C64: 48)
B65: obs_comment | C65: 49)
B66: obs_comment | C66: 50)
B67: obs_comment | C67: 51)
B68: obs_comment | C68: 52)
B69: obs_comment | C69: 53)
B70: obs_comment | C70: 54)
B71: obs_comment | C71: 55)
B72: obs_comment | C72: 56)
B73: obs_comment | C73: 57)
B74: obs_comment | C74: 58)
B75: obs_comment | C75: 59)
B76: obs_comment | C76: 60)
B77: obs_comment | C77: 61)
B78: obs_comment | C78: 62)
B79: obs_comment | C79: 63)
B80: obs_comment | C80: 64)
B81: obs_comment | C81: 65)
B82: obs_comment | C82: 66)
B83: obs_comment | C83: 67)
B84: obs_comment | C84: 68)
B85: obs_comment | C85: 69)
B86: obs_comment | C86: 70)
B87: obs_comment | C87: 71)
B88: obs_comment | C88: 72)
B89: obs_comment | C89: 73)
B90: obs_comment | C90: 74)
B91: obs_comment | C91: 75)
B92: obs_comment | C92: 76)
B93: obs_comment | C93: 77)
B94: obs_comment | C94: 78)
B95: obs_comment | C95: 79)
B96: obs_comment | C96: 80)
B97: obs_comment | C97: 81)
B98: obs_comment | C98: 82)
B99: obs_comment | C99: 83)
B100: obs_comment | C100: 84)
B101: obs_comment | C101: 85)
B102: obs_comment | C102: 86)
B103: obs_comment | C103: 87)
B104: obs_comment | C104: 88)
B105: obs_comment | C105: 89)
B106: obs_comment | C106: 90)
B107: obs_comment | C107: 91)
B108: obs_comment | C108: 92)
B109: obs_comment | C109: 93)
B110: obs_comment | C110: 94)
B111: obs_comment | C111: 95)
B112: obs_comment | C112: 96)
B113: obs_comment | C113: 97)
B114: obs_comment | C114: 98)
B115: obs_comment | C115: 99)

Sheet Parameter_mapping (hidden)
A1: Data Sheet | B1: Parameter Sheet
A2: Table_A | B2: Parameters_SDMX_Converter
A3: Table_B | B3: Parameters_SDMX_Converter
A4: Table_D | B4: Parameters_SDMX_Converter
A5: Table_F | B5: Parameters_SDMX_Converter
A6: Table_G | B6: Parameters_SDMX_Converter
A7: Table_H | B7: Parameters_SDMX_Converter
A8: Table_I | B8: Parameters_SDMX_Converter

Sheet Parameters_SDMX_Converter (hidden)
A1: Element | B1: Type | C1: PosType | D1: Position | F1: DataStart | G1: F4
A2: FREQ | B2: DIM | C2: FIX | D2: A | F2: DataEnd | G2: BL78
A3: REF_AREA | B3: DIM | C3: CELL | D3: D1 | F3: TranscodingSheet | G3: Transcoding
A4: DEMAND_PROD | B4: DIM | C4: CELL | D4: CJ4 | F4: ConceptSeparator | G4: )
A5: MATERIAL | B5: DIM | C5: COLUMN | D5: CN | F5: DefaultValue | G5: null
A6: UNIT_MEASURE | B6: DIM | C6: CELL | D6: CP4 | F6: SkipIncompleteKeys | G6: true
A7: UNIT_MULT | B7: ATT | C7: CELL | D7: CQ4 | F7: RoundingPrecision | G7: 8
A8: PRODUCT | B8: DIM | C8: CELL | D8: CR4 | F8: formatValues | G8: actualValue
A9: SECTOR | B9: DIM | C9: CELL | D9: CS4
A10: TIME_PERIOD | B10: DIM | C10: ROW | D10: 3
A11: COMMENT_OBS | B11: ATT | C11: OBS_LEVEL | D11: 1/1
A12: OBS_STATUS_4 | B12: ATT | C12: OBS_LEVEL | D12: 1/6
A13: OBS_STATUS_3 | B13: ATT | C13: OBS_LEVEL | D13: 1/5
A14: OBS_STATUS_2 | B14: ATT | C14: OBS_LEVEL | D14: 1/4
A15: OBS_STATUS_1 | B15: ATT | C15: MIXED | D15: OBS_LEVEL | E15: 1/3 | F15: FIX | G15: A
A16: CONF_STATUS | B16: ATT | C16: MIXED | D16: OBS_LEVEL | E16: 1/2 | F16: FIX | G16: F
A17: ACCOUNTING_ENTRY | B17: DIM | C17: MIXED | D17: COLUMN | E17: CK | F17: CELL | G17: CK4
A18: COUNTERPART_AREA | B18: DIM | C18: MIXED | D18: COLUMN | E18: CL | F18: CELL | G18: CL4
A19: BRIDGE_ITEMS | B19: DIM | C19: MIXED | D19: COLUMN | E19: CM | F19: ROW | G19: 83
A20: STO | B20: DIM | C20: MIXED | D20: COLUMN | E20: CO | F20: CELL | G20: CO4
A21: COMMENT_DSET | B21: ATT | C21: SKIP
A22: DISS_ORG | B22: ATT | C22: SKIP
A23: COMPILING_ORG | B23: ATT | C23: SKIP
A24: LAST_UPDATE | B24: ATT | C24: SKIP
A25: TITLE_COMPL | B25: ATT | C25: SKIP
A26: TITLE | B26: ATT | C26: SKIP
A27: DECIMALS | B27: ATT | C27: SKIP
A28: COMMENT_TS | B28: ATT | C28: SKIP
A29: PRE_BREAK_VALUE | B29: ATT | C29: SKIP
A30: EMBARGO_TIME | B30: ATT | C30: SKIP

Sheet Transcoding (hidden)
A1: Text | B1: Dimension | C1: Value
A2: : | B2: OBS_VALUE | C2: NaN
A3: b | B3: OBS_STATUS_1 | C3: B
A4: e | B4: OBS_STATUS_1 | C4: E
A5: p | B5: OBS_STATUS_1 | C5: P
A6: n | B6: OBS_STATUS_1 | C6: N
A7: s | B7: OBS_STATUS_1 | C7: S
A8: b | B8: OBS_STATUS_2 | C8: B
A9: e | B9: OBS_STATUS_2 | C9: E
A10: p | B10: OBS_STATUS_2 | C10: P
A11: n | B11: OBS_STATUS_2 | C11: N
A12: s | B12: OBS_STATUS_2 | C12: S
A13: b | B13: OBS_STATUS_3 | C13: B
A14: e | B14: OBS_STATUS_3 | C14: E
A15: p | B15: OBS_STATUS_3 | C15: P
A16: n | B16: OBS_STATUS_3 | C16: N
A17: s | B17: OBS_STATUS_3 | C17: S
A18: b | B18: OBS_STATUS_4 | C18: B
A19: e | B19: OBS_STATUS_4 | C19: E
A20: p | B20: OBS_STATUS_4 | C20: P
A21: n | B21: OBS_STATUS_4 | C21: N
A22: s | B22: OBS_STATUS_4 | C22: S
A23: c | B23: CONF_STATUS | C23: C
A24: d | B24: CONF_STATUS | C24: D
A25: 1 | B25: COMMENT_OBS | C25: =IF(ISBLANK(footnotes_list!D17),"",footnotes_list!D17) -> 
A26: 2 | B26: COMMENT_OBS | C26: =IF(ISBLANK(footnotes_list!D18),"",footnotes_list!D18) -> 
A27: 3 | B27: COMMENT_OBS | C27: =IF(ISBLANK(footnotes_list!D19),"",footnotes_list!D19) -> 
A28: 4 | B28: COMMENT_OBS | C28: =IF(ISBLANK(footnotes_list!D20),"",footnotes_list!D20) -> 
A29: 5 | B29: COMMENT_OBS | C29: =IF(ISBLANK(footnotes_list!D21),"",footnotes_list!D21) -> 
A30: 6 | B30: COMMENT_OBS | C30: =IF(ISBLANK(footnotes_list!D22),"",footnotes_list!D22) -> 
A31: 7 | B31: COMMENT_OBS | C31: =IF(ISBLANK(footnotes_list!D23),"",footnotes_list!D23) -> 
A32: 8 | B32: COMMENT_OBS | C32: =IF(ISBLANK(footnotes_list!D24),"",footnotes_list!D24) -> 
A33: 9 | B33: COMMENT_OBS | C33: =IF(ISBLANK(footnotes_list!D25),"",footnotes_list!D25) -> 
A34: 10 | B34: COMMENT_OBS | C34: =IF(ISBLANK(footnotes_list!D26),"",footnotes_list!D26) -> 
A35: 11 | B35: COMMENT_OBS | C35: =IF(ISBLANK(footnotes_list!D27),"",footnotes_list!D27) -> 
A36: 12 | B36: COMMENT_OBS | C36: =IF(ISBLANK(footnotes_list!D28),"",footnotes_list!D28) -> 
A37: 13 | B37: COMMENT_OBS | C37: =IF(ISBLANK(footnotes_list!D29),"",footnotes_list!D29) -> 
A38: 14 | B38: COMMENT_OBS | C38: =IF(ISBLANK(footnotes_list!D30),"",footnotes_list!D30) -> 
A39: 15 | B39: COMMENT_OBS | C39: =IF(ISBLANK(footnotes_list!D31),"",footnotes_list!D31) -> 
A40: 16 | B40: COMMENT_OBS | C40: =IF(ISBLANK(footnotes_list!D32),"",footnotes_list!D32) -> 
A41: 17 | B41: COMMENT_OBS | C41: =IF(ISBLANK(footnotes_list!D33),"",footnotes_list!D33) -> 
A42: 18 | B42: COMMENT_OBS | C42: =IF(ISBLANK(footnotes_list!D34),"",footnotes_list!D34) -> 
A43: 19 | B43: COMMENT_OBS | C43: =IF(ISBLANK(footnotes_list!D35),"",footnotes_list!D35) -> 
A44: 20 | B44: COMMENT_OBS | C44: =IF(ISBLANK(footnotes_list!D36),"",footnotes_list!D36) -> 
A45: 21 | B45: COMMENT_OBS | C45: =IF(ISBLANK(footnotes_list!D37),"",footnotes_list!D37) -> 
A46: 22 | B46: COMMENT_OBS | C46: =IF(ISBLANK(footnotes_list!D38),"",footnotes_list!D38) -> 
A47: 23 | B47: COMMENT_OBS | C47: =IF(ISBLANK(footnotes_list!D39),"",footnotes_list!D39) -> 
A48: 24 | B48: COMMENT_OBS | C48: =IF(ISBLANK(footnotes_list!D40),"",footnotes_list!D40) -> 
A49: 25 | B49: COMMENT_OBS | C49: =IF(ISBLANK(footnotes_list!D41),"",footnotes_list!D41) -> 
A50: 26 | B50: COMMENT_OBS | C50: =IF(ISBLANK(footnotes_list!D42),"",footnotes_list!D42) -> 
A51: 27 | B51: COMMENT_OBS | C51: =IF(ISBLANK(footnotes_list!D43),"",footnotes_list!D43) -> 
A52: 28 | B52: COMMENT_OBS | C52: =IF(ISBLANK(footnotes_list!D44),"",footnotes_list!D44) -> 
A53: 29 | B53: COMMENT_OBS | C53: =IF(ISBLANK(footnotes_list!D45),"",footnotes_list!D45) -> 
A54: 30 | B54: COMMENT_OBS | C54: =IF(ISBLANK(footnotes_list!D46),"",footnotes_list!D46) -> 
A55: 31 | B55: COMMENT_OBS | C55: =IF(ISBLANK(footnotes_list!D47),"",footnotes_list!D47) -> 
A56: 32 | B56: COMMENT_OBS | C56: =IF(ISBLANK(footnotes_list!D48),"",footnotes_list!D48) -> 
A57: 33 | B57: COMMENT_OBS | C57: =IF(ISBLANK(footnotes_list!D49),"",footnotes_list!D49) -> 
A58: 34 | B58: COMMENT_OBS | C58: =IF(ISBLANK(footnotes_list!D50),"",footnotes_list!D50) -> 
A59: 35 | B59: COMMENT_OBS | C59: =IF(ISBLANK(footnotes_list!D51),"",footnotes_list!D51) -> 
A60: 36 | B60: COMMENT_OBS | C60: =IF(ISBLANK(footnotes_list!D52),"",footnotes_list!D52) -> 
A61: 37 | B61: COMMENT_OBS | C61: =IF(ISBLANK(footnotes_list!D53),"",footnotes_list!D53) -> 
A62: 38 | B62: COMMENT_OBS | C62: =IF(ISBLANK(footnotes_list!D54),"",footnotes_list!D54) -> 
A63: 39 | B63: COMMENT_OBS | C63: =IF(ISBLANK(footnotes_list!D55),"",footnotes_list!D55) -> 
A64: 40 | B64: COMMENT_OBS | C64: =IF(ISBLANK(footnotes_list!D56),"",footnotes_list!D56) -> 
A65: 41 | B65: COMMENT_OBS | C65: =IF(ISBLANK(footnotes_list!D57),"",footnotes_list!D57) -> 
A66: 42 | B66: COMMENT_OBS | C66: =IF(ISBLANK(footnotes_list!D58),"",footnotes_list!D58) -> 
A67: 43 | B67: COMMENT_OBS | C67: =IF(ISBLANK(footnotes_list!D59),"",footnotes_list!D59) -> 
A68: 44 | B68: COMMENT_OBS | C68: =IF(ISBLANK(footnotes_list!D60),"",footnotes_list!D60) -> 
A69: 45 | B69: COMMENT_OBS | C69: =IF(ISBLANK(footnotes_list!D61),"",footnotes_list!D61) -> 
A70: 46 | B70: COMMENT_OBS | C70: =IF(ISBLANK(footnotes_list!D62),"",footnotes_list!D62) -> 
A71: 47 | B71: COMMENT_OBS | C71: =IF(ISBLANK(footnotes_list!D63),"",footnotes_list!D63) -> 
A72: 48 | B72: COMMENT_OBS | C72: =IF(ISBLANK(footnotes_list!D64),"",footnotes_list!D64) -> 
A73: 49 | B73: COMMENT_OBS | C73: =IF(ISBLANK(footnotes_list!D65),"",footnotes_list!D65) -> 
A74: 50 | B74: COMMENT_OBS | C74: =IF(ISBLANK(footnotes_list!D66),"",footnotes_list!D66) -> 
A75: 51 | B75: COMMENT_OBS | C75: =IF(ISBLANK(footnotes_list!D67),"",footnotes_list!D67) -> 
A76: 52 | B76: COMMENT_OBS | C76: =IF(ISBLANK(footnotes_list!D68),"",footnotes_list!D68) -> 
A77: 53 | B77: COMMENT_OBS | C77: =IF(ISBLANK(footnotes_list!D69),"",footnotes_list!D69) -> 
A78: 54 | B78: COMMENT_OBS | C78: =IF(ISBLANK(footnotes_list!D70),"",footnotes_list!D70) -> 
A79: 55 | B79: COMMENT_OBS | C79: =IF(ISBLANK(footnotes_list!D71),"",footnotes_list!D71) -> 
A80: 56 | B80: COMMENT_OBS | C80: =IF(ISBLANK(footnotes_list!D72),"",footnotes_list!D72) -> 
A81: 57 | B81: COMMENT_OBS | C81: =IF(ISBLANK(footnotes_list!D73),"",footnotes_list!D73) -> 
A82: 58 | B82: COMMENT_OBS | C82: =IF(ISBLANK(footnotes_list!D74),"",footnotes_list!D74) -> 
A83: 59 | B83: COMMENT_OBS | C83: =IF(ISBLANK(footnotes_list!D75),"",footnotes_list!D75) -> 
A84: 60 | B84: COMMENT_OBS | C84: =IF(ISBLANK(footnotes_list!D76),"",footnotes_list!D76) -> 
A85: 61 | B85: COMMENT_OBS | C85: =IF(ISBLANK(footnotes_list!D77),"",footnotes_list!D77) -> 
A86: 62 | B86: COMMENT_OBS | C86: =IF(ISBLANK(footnotes_list!D78),"",footnotes_list!D78) -> 
A87: 63 | B87: COMMENT_OBS | C87: =IF(ISBLANK(footnotes_list!D79),"",footnotes_list!D79) -> 
A88: 64 | B88: COMMENT_OBS | C88: =IF(ISBLANK(footnotes_list!D80),"",footnotes_list!D80) -> 
A89: 65 | B89: COMMENT_OBS | C89: =IF(ISBLANK(footnotes_list!D81),"",footnotes_list!D81) -> 
A90: 66 | B90: COMMENT_OBS | C90: =IF(ISBLANK(footnotes_list!D82),"",footnotes_list!D82) -> 
A91: 67 | B91: COMMENT_OBS | C91: =IF(ISBLANK(footnotes_list!D83),"",footnotes_list!D83) -> 
A92: 68 | B92: COMMENT_OBS | C92: =IF(ISBLANK(footnotes_list!D84),"",footnotes_list!D84) -> 
A93: 69 | B93: COMMENT_OBS | C93: =IF(ISBLANK(footnotes_list!D85),"",footnotes_list!D85) -> 
A94: 70 | B94: COMMENT_OBS | C94: =IF(ISBLANK(footnotes_list!D86),"",footnotes_list!D86) -> 
A95: 71 | B95: COMMENT_OBS | C95: =IF(ISBLANK(footnotes_list!D87),"",footnotes_list!D87) -> 
A96: 72 | B96: COMMENT_OBS | C96: =IF(ISBLANK(footnotes_list!D88),"",footnotes_list!D88) -> 
A97: 73 | B97: COMMENT_OBS | C97: =IF(ISBLANK(footnotes_list!D89),"",footnotes_list!D89) -> 
A98: 74 | B98: COMMENT_OBS | C98: =IF(ISBLANK(footnotes_list!D90),"",footnotes_list!D90) -> 
A99: 75 | B99: COMMENT_OBS | C99: =IF(ISBLANK(footnotes_list!D91),"",footnotes_list!D91) -> 
A100: 76 | B100: COMMENT_OBS | C100: =IF(ISBLANK(footnotes_list!D92),"",footnotes_list!D92) -> 
A101: 77 | B101: COMMENT_OBS | C101: =IF(ISBLANK(footnotes_list!D93),"",footnotes_list!D93) -> 
A102: 78 | B102: COMMENT_OBS | C102: =IF(ISBLANK(footnotes_list!D94),"",footnotes_list!D94) -> 
A103: 79 | B103: COMMENT_OBS | C103: =IF(ISBLANK(footnotes_list!D95),"",footnotes_list!D95) -> 
A104: 80 | B104: COMMENT_OBS | C104: =IF(ISBLANK(footnotes_list!D96),"",footnotes_list!D96) -> 
A105: 81 | B105: COMMENT_OBS | C105: =IF(ISBLANK(footnotes_list!D97),"",footnotes_list!D97) -> 
A106: 82 | B106: COMMENT_OBS | C106: =IF(ISBLANK(footnotes_list!D98),"",footnotes_list!D98) -> 
A107: 83 | B107: COMMENT_OBS | C107: =IF(ISBLANK(footnotes_list!D99),"",footnotes_list!D99) -> 
A108: 84 | B108: COMMENT_OBS | C108: =IF(ISBLANK(footnotes_list!D100),"",footnotes_list!D100) -> 
A109: 85 | B109: COMMENT_OBS | C109: =IF(ISBLANK(footnotes_list!D101),"",footnotes_list!D101) -> 
A110: 86 | B110: COMMENT_OBS | C110: =IF(ISBLANK(footnotes_list!D102),"",footnotes_list!D102) -> 
A111: 87 | B111: COMMENT_OBS | C111: =IF(ISBLANK(footnotes_list!D103),"",footnotes_list!D103) -> 
A112: 88 | B112: COMMENT_OBS | C112: =IF(ISBLANK(footnotes_list!D104),"",footnotes_list!D104) -> 
A113: 89 | B113: COMMENT_OBS | C113: =IF(ISBLANK(footnotes_list!D105),"",footnotes_list!D105) -> 
A114: 90 | B114: COMMENT_OBS | C114: =IF(ISBLANK(footnotes_list!D106),"",footnotes_list!D106) -> 
A115: 91 | B115: COMMENT_OBS | C115: =IF(ISBLANK(footnotes_list!D107),"",footnotes_list!D107) -> 
A116: 92 | B116: COMMENT_OBS | C116: =IF(ISBLANK(footnotes_list!D108),"",footnotes_list!D108) -> 
A117: 93 | B117: COMMENT_OBS | C117: =IF(ISBLANK(footnotes_list!D109),"",footnotes_list!D109) -> 
A118: 94 | B118: COMMENT_OBS | C118: =IF(ISBLANK(footnotes_list!D110),"",footnotes_list!D110) -> 
A119: 95 | B119: COMMENT_OBS | C119: =IF(ISBLANK(footnotes_list!D111),"",footnotes_list!D111) -> 
A120: 96 | B120: COMMENT_OBS | C120: =IF(ISBLANK(footnotes_list!D112),"",footnotes_list!D112) -> 
A121: 97 | B121: COMMENT_OBS | C121: =IF(ISBLANK(footnotes_list!D113),"",footnotes_list!D113) -> 
A122: 98 | B122: COMMENT_OBS | C122: =IF(ISBLANK(footnotes_list!D114),"",footnotes_list!D114) -> 
A123: 99 | B123: COMMENT_OBS | C123: =IF(ISBLANK(footnotes_list!D115),"",footnotes_list!D115) -> 

Sheet Table_A
A1: DATAENTRY | C1: Country: | D1: =intro!H8 ->  | CJ1: DEMAND_PROD | CK1: ACCOUNTING_ENTRY | CL1: COUNTERPART_AREA | CM1: BRIDGE_ITEM | CN1: MATERIAL | CO1: STO | CP1: UNIT_MEASURE | CQ1: UNIT_MULT | CR1: PRODUCT | CS1: SECTOR
A2: DE | B2: THS_T | C2: Unit | D2: Million National Currency | E2: 1000 Metric tonnes
B3: Matflows | C3: TABLE A: DOMESTIC EXTRACTION | F3: 1990 | H3: 1991 | J3: 1992 | L3: 1993 | N3: 1994 | P3: 1995 | R3: 1996 | T3: 1997 | V3: 1998 | X3: 1999 | Z3: 2000 | AB3: 2001 | AD3: 2002 | AF3: 2003 | AH3: 2004 | AJ3: 2005 | AL3: 2006 | AN3: 2007 | AP3: 2008 | AR3: 2009 | AT3: 2010 | AV3: 2011 | AX3: 2012 | AZ3: 2013 | BB3: 2014 | BD3: 2015 | BF3: 2016 | BH3: 2017 | BJ3: 2018 | BL3: 2019 | BN3: 2020
B4: MF1 | C4: MF.1 Biomass | CJ4: P | CK4: EN | CL4: W2 | CM4: RES | CN4: MF1 | CO4: MDE | CP4: TN | CQ4: 3 | CR4: _T | CS4: S1
B5: MF11 | C5: MF.1.1 Crops (excluding fodder crops) | CM5: RES | CN5: MF11
B6: MF111 | C6: MF.1.1.1 Cereals | CM6: RES | CN6: MF111
B7: MF112 | C7: MF.1.1.2 Roots, tubers | CM7: RES | CN7: MF112
B8: MF113 | C8: MF.1.1.3 Sugar crops | CM8: RES | CN8: MF113
B9: MF114 | C9: MF.1.1.4 Pulses | CM9: RES | CN9: MF114
B10: MF115 | C10: MF.1.1.5 Nuts | CM10: RES | CN10: MF115
B11: MF116 | C11: MF.1.1.6 Oil-bearing crops | CM11: RES | CN11: MF116
B12: MF117 | C12: MF.1.1.7 Vegetables | CM12: RES | CN12: MF117
B13: MF118 | C13: MF.1.1.8 Fruits | CM13: RES | CN13: MF118
B14: MF119 | C14: MF.1.1.9 Fibres | CM14: RES | CN14: MF119
B15: MF1110 | C15: MF.1.1.A Other crops (excluding fodder crops) n.e.c. | CM15: RES | CN15: MF11A
B16: MF12 | C16: MF.1.2 Crop residues (used), fodder crops and grazed biomass | CM16: RES | CN16: MF12
B17: MF121 | C17: MF.1.2.1 Crop residues (used) | CM17: RES | CN17: MF121
B18: MF1211 | C18: MF.1.2.1.1 Straw | CM18: RES | CN18: MF1211
B19: MF1212 | C19: MF.1.2.1.2 Other crop residues (sugar and fodder beet leaves, etc.) | CM19: RES | CN19: MF1212
B20: MF122 | C20: MF.1.2.2 Fodder crops and grazed biomass | CM20: RES | CN20: MF122
B21: MF1221 | C21: MF.1.2.2.1 Fodder crops (including biomass harvest from grassland) | CM21: RES | CN21: MF1221
B22: MF1222 | C22: MF.1.2.2.2 Grazed biomass | CM22: RES | CN22: MF1222
B23: MF13 | C23: MF.1.3 Wood | CM23: RES | CN23: MF13
B24: MF131 | C24: MF.1.3.1 Timber (Industrial roundwood) | CM24: RES | CN24: MF131
B25: MF132 | C25: MF.1.3.2 Wood fuel and other extraction | CM25: RES | CN25: MF132
B26: MF13M | C26: MF.1.3 MEMO: Net increment of timber stock (memo item ) | CM26: RES | CN26: MEMO_MF13
B27: MF14 | C27: MF.1.4 Wild fish catch, aquatic plants and animals, hunting and gathering | CM27: RES | CN27: MF14
B28: MF141 | C28: MF.1.4.1 Wild fish catch | CM28: RES | CN28: MF141
B29: MF142 | C29: MF.1.4.2 All other aquatic animals and plants | CM29: RES | CN29: MF142
B30: MF143 | C30: MF.1.4.3 Hunting and gathering | CM30: RES | CN30: MF143
B31: MF2 | C31: MF.2 Metal ores (gross ores) | CM31: RES | CN31: MF2
B32: MF21 | C32: MF.2.1 Iron | CM32: RES | CN32: MF21
B33: MF22 | C33: MF.2.2 Non-ferrous metal | CM33: RES | CN33: MF22
B34: MF221 | C34: MF.2.2.1 Copper | CM34: RES | CN34: MF221
B35: MF221M | C35: MF.2.2.1 MEMO Copper - metal content | CM35: RES | CN35: MEMO_MF221
B36: MF222 | C36: MF.2.2.2 Nickel | CM36: RES | CN36: MF222
B37: MF222M | C37: MF.2.2.2 MEMO Nickel - metal content | CM37: RES | CN37: MEMO_MF222
B38: MF223 | C38: MF.2.2.3 Lead | CM38: RES | CN38: MF223
B39: MF223M | C39: MF.2.2.3 MEMO Lead - metal content | CM39: RES | CN39: MEMO_MF223
B40: MF224 | C40: MF.2.2.4 Zinc | CM40: RES | CN40: MF224
B41: MF224M | C41: MF.2.2.4 MEMO Zinc - metal content | CM41: RES | CN41: MEMO_MF224
B42: MF225 | C42: MF.2.2.5 Tin | CM42: RES | CN42: MF225
B43: MF225M | C43: MF.2.2.5 MEMO Tin - metal content | CM43: RES | CN43: MEMO_MF225
B44: MF226 | C44: MF.2.2.6 Gold, silver, platinum and other precious metals | CM44: RES | CN44: MF226
B45: MF227 | C45: MF.2.2.7 Bauxite and other aluminium | CM45: RES | CN45: MF227
B46: MF228 | C46: MF.2.2.8 Uranium and thorium | CM46: RES | CN46: MF228
B47: MF229 | C47: MF.2.2.9 Other non-ferrous metals | CM47: RES | CN47: MF229
B48: MF3 | C48: MF.3 Non-metalic minerals | CM48: RES | CN48: MF3
B49: MF31 | C49: MF.3.1 Marble, granite, sandstone, porphyry, basalt, other ornamental or building stone (excluding slate) | CM49: RES | CN49: MF31
B50: MF32 | C50: MF.3.2 Chalk and dolomite | CM50: RES | CN50: MF32
B51: MF33 | C51: MF.3.3 Slate | CM51: RES | CN51: MF33
B52: MF34 | C52: MF.3.4 Chemical and fertilizer minerals | CM52: RES | CN52: MF34
B53: MF35 | C53: MF.3.5 Salt | CM53: RES | CN53: MF35
B54: MF36 | C54: MF.3.6 Limestone and gypsum | CM54: RES | CN54: MF36
B55: MF37 | C55: MF.3.7 Clays and kaolin | CM55: RES | CN55: MF37
B56: MF38 | C56: MF.3.8 Sand and gravel | CM56: RES | CN56: MF38
B57: MF39 | C57: MF.3.9 Other non-metallic minerals n.e.c | CM57: RES | CN57: MF39
B58: MF310 | C58: MF.3.A Excavated earthen materials (including soil), only if used (optional reporting) | CM58: RES | CN58: MF3A
B59: MF4 | C59: MF.4 Fossil energy materials/carriers | CM59: RES | CN59: MF4
B60: MF41 | C60: MF.4.1 Coal and other solid energy materials/carriers | CM60: RES | CN60: MF41
B61: MF411 | C61: MF.4.1.1 Lignite (brown coal) | CM61: RES | CN61: MF411
B62: MF412 | C62: MF.4.1.2 Hard coal | CM62: RES | CN62: MF412
B63: MF413 | C63: MF.4.1.3 Oil shale and tar sands | CM63: RES | CN63: MF413
B64: MF414 | C64: MF.4.1.4 Peat | CM64: RES | CN64: MF414
B65: MF42 | C65: MF.4.2 Liquid and gaseous energy materials/carriers | CM65: RES | CN65: MF42
B66: MF421 | C66: MF.4.2.1 Crude oil, condensate and natural gas liquids (NGL) | CM66: RES | CN66: MF421
B67: MF422 | C67: MF.4.2.2 Natural gas | CM67: RES | CN67: MF422
B68: TOTAL | C68: Total domestic extraction | F68: =IFERROR(IF(COUNT(F4,F31,F48,F59)=4,F4+F31+F48+F59,":"),":") -> : | H68: =IFERROR(IF(COUNT(H4,H31,H48,H59)=4,H4+H31+H48+H59,":"),":") -> : | J68: =IFERROR(IF(COUNT(J4,J31,J48,J59)=4,J4+J31+J48+J59,":"),":") -> : | L68: =IFERROR(IF(COUNT(L4,L31,L48,L59)=4,L4+L31+L48+L59,":"),":") -> : | N68: =IFERROR(IF(COUNT(N4,N31,N48,N59)=4,N4+N31+N48+N59,":"),":") -> : | P68: =IFERROR(IF(COUNT(P4,P31,P48,P59)=4,P4+P31+P48+P59,":"),":") -> : | R68: =IFERROR(IF(COUNT(R4,R31,R48,R59)=4,R4+R31+R48+R59,":"),":") -> : | T68: =IFERROR(IF(COUNT(T4,T31,T48,T59)=4,T4+T31+T48+T59,":"),":") -> : | V68: =IFERROR(IF(COUNT(V4,V31,V48,V59)=4,V4+V31+V48+V59,":"),":") -> : | X68: =IFERROR(IF(COUNT(X4,X31,X48,X59)=4,X4+X31+X48+X59,":"),":") -> : | Z68: =IFERROR(IF(COUNT(Z4,Z31,Z48,Z59)=4,Z4+Z31+Z48+Z59,":"),":") -> : | AB68: =IFERROR(IF(COUNT(AB4,AB31,AB48,AB59)=4,AB4+AB31+AB48+AB59,":"),":") -> : | AD68: =IFERROR(IF(COUNT(AD4,AD31,AD48,AD59)=4,AD4+AD31+AD48+AD59,":"),":") -> : | AF68: =IFERROR(IF(COUNT(AF4,AF31,AF48,AF59)=4,AF4+AF31+AF48+AF59,":"),":") -> : | AH68: =IFERROR(IF(COUNT(AH4,AH31,AH48,AH59)=4,AH4+AH31+AH48+AH59,":"),":") -> : | AJ68: =IFERROR(IF(COUNT(AJ4,AJ31,AJ48,AJ59)=4,AJ4+AJ31+AJ48+AJ59,":"),":") -> : | AL68: =IFERROR(IF(COUNT(AL4,AL31,AL48,AL59)=4,AL4+AL31+AL48+AL59,":"),":") -> : | AN68: =IFERROR(IF(COUNT(AN4,AN31,AN48,AN59)=4,AN4+AN31+AN48+AN59,":"),":") -> : | AP68: =IFERROR(IF(COUNT(AP4,AP31,AP48,AP59)=4,AP4+AP31+AP48+AP59,":"),":") -> : | AR68: =IFERROR(IF(COUNT(AR4,AR31,AR48,AR59)=4,AR4+AR31+AR48+AR59,":"),":") -> : | AT68: =IFERROR(IF(COUNT(AT4,AT31,AT48,AT59)=4,AT4+AT31+AT48+AT59,":"),":") -> : | AV68: =IFERROR(IF(COUNT(AV4,AV31,AV48,AV59)=4,AV4+AV31+AV48+AV59,":"),":") -> : | AX68: =IFERROR(IF(COUNT(AX4,AX31,AX48,AX59)=4,AX4+AX31+AX48+AX59,":"),":") -> : | AZ68: =IFERROR(IF(COUNT(AZ4,AZ31,AZ48,AZ59)=4,AZ4+AZ31+AZ48+AZ59,":"),":") -> : | BB68: =IFERROR(IF(COUNT(BB4,BB31,BB48,BB59)=4,BB4+BB31+BB48+BB59,":"),":") -> : | BD68: =IFERROR(IF(COUNT(BD4,BD31,BD48,BD59)=4,BD4+BD31+BD48+BD59,":"),":") -> : | BF68: =IFERROR(IF(COUNT(BF4,BF31,BF48,BF59)=4,BF4+BF31+BF48+BF59,":"),":") -> : | BH68: =IFERROR(IF(COUNT(BH4,BH31,BH48,BH59)=4,BH4+BH31+BH48+BH59,":"),":") -> : | BJ68: =IFERROR(IF(COUNT(BJ4,BJ31,BJ48,BJ59)=4,BJ4+BJ31+BJ48+BJ59,":"),":") -> : | BL68: =IFERROR(IF(COUNT(BL4,BL31,BL48,BL59)=4,BL4+BL31+BL48+BL59,":"),":") -> : | BN68: =IFERROR(IF(COUNT(BN4,BN31,BN48,BN59)=4,BN4+BN31+BN48+BN59,":"),":") -> : | CM68: RES | CN68: _T

Sheet Table_B
A1: DATAENTRY | C1: Country: | D1: =intro!H8 ->  | CJ1: DEMAND_PROD | CK1: ACCOUNTING_ENTRY | CL1: COUNTERPART_AREA | CM1: BRIDGE_ITEM | CN1: MATERIAL | CO1: STO | CP1: UNIT_MEASURE | CQ1: UNIT_MULT | CR1: PRODUCT | CS1: SECTOR
A2: IMP | B2: THS_T | C2: Unit | D2: Million National Currency | E2: 1000 Metric tonnes
B3: Matflows | C3: Table B: Imports - total trade (intra + extra EU-28 trade) | F3: 1990 | H3: 1991 | J3: 1992 | L3: 1993 | N3: 1994 | P3: 1995 | R3: 1996 | T3: 1997 | V3: 1998 | X3: 1999 | Z3: 2000 | AB3: 2001 | AD3: 2002 | AF3: 2003 | AH3: 2004 | AJ3: 2005 | AL3: 2006 | AN3: 2007 | AP3: 2008 | AR3: 2009 | AT3: 2010 | AV3: 2011 | AX3: 2012 | AZ3: 2013 | BB3: 2014 | BD3: 2015 | BF3: 2016 | BH3: 2017 | BJ3: 2018 | BL3: 2019 | BN3: 2020
B4: MF1 | C4: MF.1 Biomass | CJ4: P | CK4: C | CL4: W1 | CM4: RES | CN4: MF1 | CO4: P7 | CP4: TN | CQ4: 3 | CR4: _T | CS4: S1
B5: MF11 | C5: MF.1.1 Crops (excluding fodder crops) | CM5: RES | CN5: MF11
B6: MF111 | C6: MF.1.1.1 Cereals | CM6: RES | CN6: MF111
B7: MF112 | C7: MF.1.1.2 Roots, tubers | CM7: RES | CN7: MF112
B8: MF113 | C8: MF.1.1.3 Sugar crops | CM8: RES | CN8: MF113
B9: MF114 | C9: MF.1.1.4 Pulses | CM9: RES | CN9: MF114
B10: MF115 | C10: MF.1.1.5 Nuts | CM10: RES | CN10: MF115
B11: MF116 | C11: MF.1.1.6 Oil-bearing crops | CM11: RES | CN11: MF116
B12: MF117 | C12: MF.1.1.7 Vegetables | CM12: RES | CN12: MF117
B13: MF118 | C13: MF.1.1.8 Fruits | CM13: RES | CN13: MF118
B14: MF119 | C14: MF.1.1.9 Fibres | CM14: RES | CN14: MF119
B15: MF1110 | C15: MF.1.1.A Other crops (excluding fodder crops) n.e.c. | CM15: RES | CN15: MF11A
B16: MF12 | C16: MF.1.2 Crop residues (used) and fodder crops | CM16: RES | CN16: MF12
B17: MF121 | C17: MF.1.2.1 Crop residues (used) | CM17: RES | CN17: MF121
B18: MF1211 | C18: MF.1.2.1.1 Straw | CM18: RES | CN18: MF1211
B19: MF1212 | C19: MF.1.2.1.2 Other crop residues (sugar and fodder beet leaves, etc.) | CM19: RES | CN19: MF1212
B20: MF122 | C20: MF.1.2.2 Fodder crops and grazed biomass | CM20: RES | CN20: MF122
B21: MF1221 | C21: MF.1.2.2.1 Fodder crops (including biomass harvest from grassland) | CM21: RES | CN21: MF1221
B22: MF13 | C22: MF.1.3 Wood | CM22: RES | CN22: MF13
B23: MF131 | C23: MF.1.3.1 Timber (industrial roundwood) | CM23: RES | CN23: MF131
B24: MF132 | C24: MF.1.3.2 Wood fuel and other extraction | CM24: RES | CN24: MF132
B25: MF14 | C25: MF.1.4 Wild fish catch, aquatic plants and animals, hunting and gathering | CM25: RES | CN25: MF14
B26: MF141 | C26: MF.1.4.1 Wild fish catch | CM26: RES | CN26: MF141
B27: MF142 | C27: MF.1.4.2 All other aquatic animals and plants | CM27: RES | CN27: MF142
B28: MF15 | C28: MF.1.5 Live animals and animal products (excluding wild fish, aquatic plants and animals, hunted and gathered animals) | CM28: RES | CN28: MF15
B29: MF151 | C29: MF.1.5.1 Live animals (excluding wild fish, aquatic plants and animals, hunted and gathered animals) | CM29: RES | CN29: MF151
B30: MF152 | C30: MF.1.5.2 Meat and meat preparations | CM30: RES | CN30: MF152
B31: MF153 | C31: MF.1.5.3 Dairy products, birds eggs, and honey | CM31: RES | CN31: MF153
B32: MF154 | C32: MF.1.5.4 Other products from animals (animal fibres, skins, furs, leather etc.) | CM32: RES | CN32: MF154
B33: MF16 | C33: MF.1.6 Products mainly from biomass | CM33: RES | CN33: MF16
B34: MF2 | C34: MF.2 Metal ores (gross ores) | CM34: RES | CN34: MF2
B35: MF21 | C35: MF.2.1 Iron | CM35: RES | CN35: MF21
B36: MF22 | C36: MF.2.2 Non-ferrous metal | CM36: RES | CN36: MF22
B37: MF221 | C37: MF.2.2.1 Copper | CM37: RES | CN37: MF221
B38: MF222 | C38: MF.2.2.2 Nickel | CM38: RES | CN38: MF222
B39: MF223 | C39: MF.2.2.3 Lead | CM39: RES | CN39: MF223
B40: MF224 | C40: MF.2.2.4 Zinc | CM40: RES | CN40: MF224
B41: MF225 | C41: MF.2.2.5 Tin | CM41: RES | CN41: MF225
B42: MF226 | C42: MF.2.2.6 Gold, silver, platinum and other precious metal | CM42: RES | CN42: MF226
B43: MF227 | C43: MF.2.2.7 Bauxite and other aluminium | CM43: RES | CN43: MF227
B44: MF228 | C44: NF.2.2.8 Uranium and thorium | CM44: RES | CN44: MF228
B45: MF229 | C45: MF.2.2.9 Other non-ferrous metals | CM45: RES | CN45: MF229
B46: MF23 | C46: MF.2.3 Products mainly from metals | CM46: RES | CN46: MF23
B47: MF3 | C47: MF.3 Non-metallic minerals | CM47: RES | CN47: MF3
B48: MF31 | C48: MF.3.1 Marble, granite, sandstone, porphyry, basalt, other ornamental or building stone (excluding slate) | CM48: RES | CN48: MF31
B49: MF32 | C49: MF.3.2 Chalk and dolomite | CM49: RES | CN49: MF32
B50: MF33 | C50: MF.3.3 Slate | CM50: RES | CN50: MF33
B51: MF34 | C51: MF.3.4 Chemical and fertilizer minerals | CM51: RES | CN51: MF34
B52: MF35 | C52: MF.3.5 Salt | CM52: RES | CN52: MF35
B53: MF36 | C53: MF.3.6 Limestone and gypsum | CM53: RES | CN53: MF36
B54: MF37 | C54: MF.3.7 Clays and kaolin | CM54: RES | CN54: MF37
B55: MF38 | C55: MF.3.8 Sand and gravel | CM55: RES | CN55: MF38
B56: MF39 | C56: MF.3.9 Other non-metallic minerals n.e.c | CM56: RES | CN56: MF39
B57: MF310 | C57: MF.3.A Excavated earthen materials (including soil), only if used (optional reporting) | CM57: RES | CN57: MF3A
B58: MF311 | C58: MF.3.B Products mainly from non-metallic minerals | CM58: RES | CN58: MF3B
B59: MF4 | C59: MF.4 Fossil energy materials/carriers | CM59: RES | CN59: MF4
B60: MF41 | C60: MF.4.1 Coal and other solid energy materials/carriers | CM60: RES | CN60: MF41
B61: MF411 | C61: MF.4.1.1 Lignite (brown coal) | CM61: RES | CN61: MF411
B62: MF412 | C62: MF.4.1.2 Hard coal | CM62: RES | CN62: MF412
B63: MF413 | C63: MF.4.1.3 Oil shale and tar sands | CM63: RES | CN63: MF413
B64: MF414 | C64: MF.4.1.4 Peat | CM64: RES | CN64: MF414
B65: MF42 | C65: MF.4.2 Liquid and gaseous energy materials/carriers | CN65: MF42
B66: MF421 | C66: MF.4.2.1 Crude oil, condensate and natural gas liquids (NGL) | CN66: MF421
B67: MF422 | C67: MF.4.2.2 Natural gas | CN67: MF422
B68: MF423 | C68: MF.4.2.3 Fuels bunkered (Imports: by resident units abroad; Exports: by non-resident units domestically) | CM68: RES_ABR | CN68: MF42
B69: MF4231 | C69: MF.4.2.3.1 Fuel for land transport | CM69: RES_ABR_LTR | CN69: MF42
B70: MF4232 | C70: MF.4.2.3.2 Fuel for water transport | CM70: RES_ABR_WTR | CN70: MF42
B71: MF4233 | C71: MF.4.2.3.3 Fuel for air transport | CM71: RES_ABR_ATR | CN71: MF42
B72: MF43 | C72: MF.4.3 Products mainly from fossil energy products | CM72: RES | CN72: MF43
B73: MF5 | C73: MF.5 Other products | CM73: RES | CN73: MF5
B74: MF6 | C74: MF.6 Waste for final treatment and disposal | CM74: RES | CN74: MF6
B75: SM_RAW | C75: Raw products | CM75: RES | CN75: SM_RAW
B76: SM_SFIN | C76: Semi-manufactured products | CM76: RES | CN76: SM_SFIN
B77: SM_FIN | C77: Finished products | CM77: RES | CN77: SM_FIN
B78: TOTAL | C78: Imports - total trade (intra + extra EU-28 trade) by stage of manufacturing - optional reporting | F78: =IFERROR(IF(COUNT(F4,F34,F47,F59,F73,F74)=6,F4+F34+F47+F59+F73+F74,":"),":") -> : | H78: =IFERROR(IF(COUNT(H4,H34,H47,H59,H73,H74)=6,H4+H34+H47+H59+H73+H74,":"),":") -> : | J78: =IFERROR(IF(COUNT(J4,J34,J47,J59,J73,J74)=6,J4+J34+J47+J59+J73+J74,":"),":") -> : | L78: =IFERROR(IF(COUNT(L4,L34,L47,L59,L73,L74)=6,L4+L34+L47+L59+L73+L74,":"),":") -> : | N78: =IFERROR(IF(COUNT(N4,N34,N47,N59,N73,N74)=6,N4+N34+N47+N59+N73+N74,":"),":") -> : | P78: =IFERROR(IF(COUNT(P4,P34,P47,P59,P73,P74)=6,P4+P34+P47+P59+P73+P74,":"),":") -> : | R78: =IFERROR(IF(COUNT(R4,R34,R47,R59,R73,R74)=6,R4+R34+R47+R59+R73+R74,":"),":") -> : | T78: =IFERROR(IF(COUNT(T4,T34,T47,T59,T73,T74)=6,T4+T34+T47+T59+T73+T74,":"),":") -> : | V78: =IFERROR(IF(COUNT(V4,V34,V47,V59,V73,V74)=6,V4+V34+V47+V59+V73+V74,":"),":") -> : | X78: =IFERROR(IF(COUNT(X4,X34,X47,X59,X73,X74)=6,X4+X34+X47+X59+X73+X74,":"),":") -> : | Z78: =IFERROR(IF(COUNT(Z4,Z34,Z47,Z59,Z73,Z74)=6,Z4+Z34+Z47+Z59+Z73+Z74,":"),":") -> : | AB78: =IFERROR(IF(COUNT(AB4,AB34,AB47,AB59,AB73,AB74)=6,AB4+AB34+AB47+AB59+AB73+AB74,":"),":") -> : | AD78: =IFERROR(IF(COUNT(AD4,AD34,AD47,AD59,AD73,AD74)=6,AD4+AD34+AD47+AD59+AD73+AD74,":"),":") -> : | AF78: =IFERROR(IF(COUNT(AF4,AF34,AF47,AF59,AF73,AF74)=6,AF4+AF34+AF47+AF59+AF73+AF74,":"),":") -> : | AH78: =IFERROR(IF(COUNT(AH4,AH34,AH47,AH59,AH73,AH74)=6,AH4+AH34+AH47+AH59+AH73+AH74,":"),":") -> : | AJ78: =IFERROR(IF(COUNT(AJ4,AJ34,AJ47,AJ59,AJ73,AJ74)=6,AJ4+AJ34+AJ47+AJ59+AJ73+AJ74,":"),":") -> : | AL78: =IFERROR(IF(COUNT(AL4,AL34,AL47,AL59,AL73,AL74)=6,AL4+AL34+AL47+AL59+AL73+AL74,":"),":") -> : | AN78: =IFERROR(IF(COUNT(AN4,AN34,AN47,AN59,AN73,AN74)=6,AN4+AN34+AN47+AN59+AN73+AN74,":"),":") -> : | AP78: =IFERROR(IF(COUNT(AP4,AP34,AP47,AP59,AP73,AP74)=6,AP4+AP34+AP47+AP59+AP73+AP74,":"),":") -> : | AR78: =IFERROR(IF(COUNT(AR4,AR34,AR47,AR59,AR73,AR74)=6,AR4+AR34+AR47+AR59+AR73+AR74,":"),":") -> : | AT78: =IFERROR(IF(COUNT(AT4,AT34,AT47,AT59,AT73,AT74)=6,AT4+AT34+AT47+AT59+AT73+AT74,":"),":") -> : | AV78: =IFERROR(IF(COUNT(AV4,AV34,AV47,AV59,AV73,AV74)=6,AV4+AV34+AV47+AV59+AV73+AV74,":"),":") -> : | AX78: =IFERROR(IF(COUNT(AX4,AX34,AX47,AX59,AX73,AX74)=6,AX4+AX34+AX47+AX59+AX73+AX74,":"),":") -> : | AZ78: =IFERROR(IF(COUNT(AZ4,AZ34,AZ47,AZ59,AZ73,AZ74)=6,AZ4+AZ34+AZ47+AZ59+AZ73+AZ74,":"),":") -> : | BB78: =IFERROR(IF(COUNT(BB4,BB34,BB47,BB59,BB73,BB74)=6,BB4+BB34+BB47+BB59+BB73+BB74,":"),":") -> : | BD78: =IFERROR(IF(COUNT(BD4,BD34,BD47,BD59,BD73,BD74)=6,BD4+BD34+BD47+BD59+BD73+BD74,":"),":") -> : | BF78: =IFERROR(IF(COUNT(BF4,BF34,BF47,BF59,BF73,BF74)=6,BF4+BF34+BF47+BF59+BF73+BF74,":"),":") -> : | BH78: =IFERROR(IF(COUNT(BH4,BH34,BH47,BH59,BH73,BH74)=6,BH4+BH34+BH47+BH59+BH73+BH74,":"),":") -> : | BJ78: =IFERROR(IF(COUNT(BJ4,BJ34,BJ47,BJ59,BJ73,BJ74)=6,BJ4+BJ34+BJ47+BJ59+BJ73+BJ74,":"),":") -> : | BL78: =IFERROR(IF(COUNT(BL4,BL34,BL47,BL59,BL73,BL74)=6,BL4+BL34+BL47+BL59+BL73+BL74,":"),":") -> : | BN78: =IFERROR(IF(COUNT(BN4,BN34,BN47,BN59,BN73,BN74)=6,BN4+BN34+BN47+BN59+BN73+BN74,":"),":") -> : | CM78: RES | CN78: _T
E83: BRIDGE_ITEM | F83: =IF(COUNT(F68:F71)>0,"TER","RES") -> RES | H83: =IF(COUNT(H68:H71)>0,"TER","RES") -> RES | J83: =IF(COUNT(J68:J71)>0,"TER","RES") -> RES | L83: =IF(COUNT(L68:L71)>0,"TER","RES") -> RES | N83: =IF(COUNT(N68:N71)>0,"TER","RES") -> RES | P83: =IF(COUNT(P68:P71)>0,"TER","RES") -> RES | R83: =IF(COUNT(R68:R71)>0,"TER","RES") -> RES | T83: =IF(COUNT(T68:T71)>0,"TER","RES") -> RES | V83: =IF(COUNT(V68:V71)>0,"TER","RES") -> RES | X83: =IF(COUNT(X68:X71)>0,"TER","RES") -> RES | Z83: =IF(COUNT(Z68:Z71)>0,"TER","RES") -> RES | AB83: =IF(COUNT(AB68:AB71)>0,"TER","RES") -> RES | AD83: =IF(COUNT(AD68:AD71)>0,"TER","RES") -> RES | AF83: =IF(COUNT(AF68:AF71)>0,"TER","RES") -> RES | AH83: =IF(COUNT(AH68:AH71)>0,"TER","RES") -> RES | AJ83: =IF(COUNT(AJ68:AJ71)>0,"TER","RES") -> RES | AL83: =IF(COUNT(AL68:AL71)>0,"TER","RES") -> RES | AN83: =IF(COUNT(AN69:AN71)>0,"TER","RES") -> RES | AP83: =IF(COUNT(AP68:AP71)>0,"TER","RES") -> RES | AR83: =IF(COUNT(AR68:AR71)>0,"TER","RES") -> RES | AT83: =IF(COUNT(AT68:AT71)>0,"TER","RES") -> RES | AV83: =IF(COUNT(AV68:AV71)>0,"TER","RES") -> RES | AX83: =IF(COUNT(AX68:AX71)>0,"TER","RES") -> RES | AZ83: =IF(COUNT(AZ68:AZ71)>0,"TER","RES") -> RES | BB83: =IF(COUNT(BB68:BB71)>0,"TER","RES") -> RES | BD83: =IF(COUNT(BD68:BD71)>0,"TER","RES") -> RES | BF83: =IF(COUNT(BF68:BF71)>0,"TER","RES") -> RES | BH83: =IF(COUNT(BH68:BH71)>0,"TER","RES") -> RES | BJ83: =IF(COUNT(BJ68:BJ71)>0,"TER","RES") -> RES | BL83: =IF(COUNT(BL69:BL71)>0,"TER","RES") -> RES

Sheet Table_C
A1: DATAENTRY | C1: Country: | D1: =intro!H8 -> 
C2: Unit | D2: Million National Currency | E2: 1000 Metric tonnes
C3: Table C: Imports - extra-EU28 trade | F3: 1990 | H3: 1991 | J3: 1992 | L3: 1993 | N3: 1994 | P3: 1995 | R3: 1996 | T3: 1997 | V3: 1998 | X3: 1999 | Z3: 2000 | AB3: 2001 | AD3: 2002 | AF3: 2003 | AH3: 2004 | AJ3: 2005 | AL3: 2006 | AN3: 2007 | AP3: 2008 | AR3: 2009 | AT3: 2010 | AV3: 2011 | AX3: 2012 | AZ3: 2013 | BB3: 2014 | BD3: 2015 | BF3: 2016 | BH3: 2017 | BJ3: 2018 | BL3: 2019 | BN3: 2020
C4: MF.1 Biomass
C5: MF.1.1 Crops (excluding fodder crops)
C6: MF.1.1.1 Cereals
C7: MF.1.1.2 Roots, tubers
C8: MF.1.1.3 Sugar crops
C9: MF.1.1.4 Pulses
C10: MF.1.1.5 Nuts
C11: MF.1.1.6 Oil-bearing crops
C12: MF.1.1.7 Vegetables
C13: MF.1.1.8 Fruits
C14: MF.1.1.9 Fibres
C15: MF.1.1.A Other crops (excluding fodder crops) n.e.c.
C16: MF.1.2 Crop residues (used) and fodder crops
C17: MF.1.2.1 Crop residues (used)
C18: MF.1.2.1.1 Straw
C19: MF.1.2.1.2 Other crop residues (sugar and fodder beet leaves, etc.)
C20: MF.1.2.2 Fodder crops and grazed biomass
C21: MF.1.2.2.1 Fodder crops (including biomass harvest from grassland)
C22: MF.1.3 Wood
C23: MF.1.3.1 Timber (industrial roundwood)
C24: MF.1.3.2 Wood fuel and other extraction
C25: MF.1.4 Wild fish catch, aquatic plants and animals, hunting and gathering
C26: MF.1.4.1 Wild fish catch
C27: MF.1.4.2 All other aquatic animals and plants
C28: MF.1.5 Live animals and animal products (excluding wild fish, aquatic plants and animals, hunted and gathered animals)
C29: MF.1.5.1 Live animals (excluding wild fish, aquatic plants and animals, hunted and gathered animals)
C30: MF.1.5.2 Meat and meat preparations
C31: MF.1.5.3 Dairy products, birds eggs, and honey
C32: MF.1.5.4 Other products from animals (animal fibres, skins, furs, leather etc.)
C33: MF.1.6 Products mainly from biomass
C34: MF.2 Metal ores (gross ores)
C35: MF.2.1 Iron
C36: MF.2.2 Non-ferrous metal
C37: MF.2.2.1 Copper
C38: MF.2.2.2 Nickel
C39: MF.2.2.3 Lead
C40: MF.2.2.4 Zinc
C41: MF.2.2.5 Tin
C42: MF.2.2.6 Gold, silver, platinum and other precious metal
C43: MF.2.2.7 Bauxite and other aluminium
C44: NF.2.2.8 Uranium and thorium
C45: MF.2.2.9 Other non-ferrous metals
C46: MF.2.3 Products mainly from metals
C47: MF.3 Non-metallic minerals
C48: MF.3.1 Marble, granite, sandstone, porphyry, basalt, other ornamental or building stone (excluding slate)
C49: MF.3.2 Chalk and dolomite
C50: MF.3.3 Slate
C51: MF.3.4 Chemical and fertilizer minerals
C52: MF.3.5 Salt
C53: MF.3.6 Limestone and gypsum
C54: MF.3.7 Clays and kaolin
C55: MF.3.8 Sand and gravel
C56: MF.3.9 Other non-metallic minerals n.e.c
C57: MF.3.A Excavated earthen materials (including soil), only if used (optional reporting)
C58: MF.3.B Products mainly from non-metallic minerals
C59: MF.4 Fossil energy materials/carriers
C60: MF.4.1 Coal and other solid energy materials/carriers
C61: MF.4.1.1 Lignite (brown coal)
C62: MF.4.1.2 Hard coal
C63: MF.4.1.3 Oil shale and tar sands
C64: MF.4.1.4 Peat
C65: MF.4.2 Liquid and gaseous energy materials/carriers
C66: MF.4.2.1 Crude oil, condensate and natural gas liquids (NGL)
C67: MF.4.2.2 Natural gas
C68: MF.4.2.3 Fuels bunkered (Imports: by resident units abroad; Exports: by non-resident units domestically)
C69: MF.4.2.3.1 Fuel for land transport
C70: MF.4.2.3.2 Fuel for water transport
C71: MF.4.2.3.3 Fuel for air transport
C72: MF.4.3 Products mainly from fossil energy products
C73: MF.5 Other products
C74: MF.6 Waste for final treatment and disposal
C75: Raw products
C76: Semi-manufactured products
C77: Finished products
C78: Imports - extra-EU28 trade by stage of manufacturing - optional reporting | F78: =IFERROR(IF(COUNT(F4,F34,F47,F59,F73,F74)=6,F4+F34+F47+F59+F73+F74,":"),":") -> : | H78: =IFERROR(IF(COUNT(H4,H34,H47,H59,H73,H74)=6,H4+H34+H47+H59+H73+H74,":"),":") -> : | J78: =IFERROR(IF(COUNT(J4,J34,J47,J59,J73,J74)=6,J4+J34+J47+J59+J73+J74,":"),":") -> : | L78: =IFERROR(IF(COUNT(L4,L34,L47,L59,L73,L74)=6,L4+L34+L47+L59+L73+L74,":"),":") -> : | N78: =IFERROR(IF(COUNT(N4,N34,N47,N59,N73,N74)=6,N4+N34+N47+N59+N73+N74,":"),":") -> : | P78: =IFERROR(IF(COUNT(P4,P34,P47,P59,P73,P74)=6,P4+P34+P47+P59+P73+P74,":"),":") -> : | R78: =IFERROR(IF(COUNT(R4,R34,R47,R59,R73,R74)=6,R4+R34+R47+R59+R73+R74,":"),":") -> : | T78: =IFERROR(IF(COUNT(T4,T34,T47,T59,T73,T74)=6,T4+T34+T47+T59+T73+T74,":"),":") -> : | V78: =IFERROR(IF(COUNT(V4,V34,V47,V59,V73,V74)=6,V4+V34+V47+V59+V73+V74,":"),":") -> : | X78: =IFERROR(IF(COUNT(X4,X34,X47,X59,X73,X74)=6,X4+X34+X47+X59+X73+X74,":"),":") -> : | Z78: =IFERROR(IF(COUNT(Z4,Z34,Z47,Z59,Z73,Z74)=6,Z4+Z34+Z47+Z59+Z73+Z74,":"),":") -> : | AB78: =IFERROR(IF(COUNT(AB4,AB34,AB47,AB59,AB73,AB74)=6,AB4+AB34+AB47+AB59+AB73+AB74,":"),":") -> : | AD78: =IFERROR(IF(COUNT(AD4,AD34,AD47,AD59,AD73,AD74)=6,AD4+AD34+AD47+AD59+AD73+AD74,":"),":") -> : | AF78: =IFERROR(IF(COUNT(AF4,AF34,AF47,AF59,AF73,AF74)=6,AF4+AF34+AF47+AF59+AF73+AF74,":"),":") -> : | AH78: =IFERROR(IF(COUNT(AH4,AH34,AH47,AH59,AH73,AH74)=6,AH4+AH34+AH47+AH59+AH73+AH74,":"),":") -> : | AJ78: =IFERROR(IF(COUNT(AJ4,AJ34,AJ47,AJ59,AJ73,AJ74)=6,AJ4+AJ34+AJ47+AJ59+AJ73+AJ74,":"),":") -> : | AL78: =IFERROR(IF(COUNT(AL4,AL34,AL47,AL59,AL73,AL74)=6,AL4+AL34+AL47+AL59+AL73+AL74,":"),":") -> : | AN78: =IFERROR(IF(COUNT(AN4,AN34,AN47,AN59,AN73,AN74)=6,AN4+AN34+AN47+AN59+AN73+AN74,":"),":") -> : | AP78: =IFERROR(IF(COUNT(AP4,AP34,AP47,AP59,AP73,AP74)=6,AP4+AP34+AP47+AP59+AP73+AP74,":"),":") -> : | AR78: =IFERROR(IF(COUNT(AR4,AR34,AR47,AR59,AR73,AR74)=6,AR4+AR34+AR47+AR59+AR73+AR74,":"),":") -> : | AT78: =IFERROR(IF(COUNT(AT4,AT34,AT47,AT59,AT73,AT74)=6,AT4+AT34+AT47+AT59+AT73+AT74,":"),":") -> : | AV78: =IFERROR(IF(COUNT(AV4,AV34,AV47,AV59,AV73,AV74)=6,AV4+AV34+AV47+AV59+AV73+AV74,":"),":") -> : | AX78: =IFERROR(IF(COUNT(AX4,AX34,AX47,AX59,AX73,AX74)=6,AX4+AX34+AX47+AX59+AX73+AX74,":"),":") -> : | AZ78: =IFERROR(IF(COUNT(AZ4,AZ34,AZ47,AZ59,AZ73,AZ74)=6,AZ4+AZ34+AZ47+AZ59+AZ73+AZ74,":"),":") -> : | BB78: =IFERROR(IF(COUNT(BB4,BB34,BB47,BB59,BB73,BB74)=6,BB4+BB34+BB47+BB59+BB73+BB74,":"),":") -> : | BD78: =IFERROR(IF(COUNT(BD4,BD34,BD47,BD59,BD73,BD74)=6,BD4+BD34+BD47+BD59+BD73+BD74,":"),":") -> : | BF78: =IFERROR(IF(COUNT(BF4,BF34,BF47,BF59,BF73,BF74)=6,BF4+BF34+BF47+BF59+BF73+BF74,":"),":") -> : | BH78: =IFERROR(IF(COUNT(BH4,BH34,BH47,BH59,BH73,BH74)=6,BH4+BH34+BH47+BH59+BH73+BH74,":"),":") -> : | BJ78: =IFERROR(IF(COUNT(BJ4,BJ34,BJ47,BJ59,BJ73,BJ74)=6,BJ4+BJ34+BJ47+BJ59+BJ73+BJ74,":"),":") -> : | BL78: =IFERROR(IF(COUNT(BL4,BL34,BL47,BL59,BL73,BL74)=6,BL4+BL34+BL47+BL59+BL73+BL74,":"),":") -> : | BN78: =IFERROR(IF(COUNT(BN4,BN34,BN47,BN59,BN73,BN74)=6,BN4+BN34+BN47+BN59+BN73+BN74,":"),":") -> :

Sheet Table_D
A1: DATAENTRY | C1: Country: | D1: =intro!H8 ->  | CJ1: DEMAND_PROD | CK1: ACCOUNTING_ENTRY | CL1: COUNTERPART_AREA | CM1: BRIDGE_ITEM | CN1: MATERIAL | CO1: STO | CP1: UNIT_MEASURE | CQ1: UNIT_MULT | CR1: PRODUCT | CS1: SECTOR
A2: EXP | B2: THS_T | C2: Unit | D2: Million National Currency | E2: 1000 Metric tonnes
B3: Matflows | C3: Table D: Exports - total trade (intra + extra EU-28 trade) | F3: 1990 | H3: 1991 | J3: 1992 | L3: 1993 | N3: 1994 | P3: 1995 | R3: 1996 | T3: 1997 | V3: 1998 | X3: 1999 | Z3: 2000 | AB3: 2001 | AD3: 2002 | AF3: 2003 | AH3: 2004 | AJ3: 2005 | AL3: 2006 | AN3: 2007 | AP3: 2008 | AR3: 2009 | AT3: 2010 | AV3: 2011 | AX3: 2012 | AZ3: 2013 | BB3: 2014 | BD3: 2015 | BF3: 2016 | BH3: 2017 | BJ3: 2018 | BL3: 2019 | BN3: 2020
B4: MF1 | C4: MF.1 Biomass | CJ4: P | CK4: D | CL4: W1 | CM4: RES | CN4: MF1 | CO4: P6 | CP4: TN | CQ4: 3 | CR4: _T | CS4: S1
B5: MF11 | C5: MF.1.1 Crops (excluding fodder crops) | CM5: RES | CN5: MF11
B6: MF111 | C6: MF.1.1.1 Cereals | CM6: RES | CN6: MF111
B7: MF112 | C7: MF.1.1.2 Roots, tubers | CM7: RES | CN7: MF112
B8: MF113 | C8: MF.1.1.3 Sugar crops | CM8: RES | CN8: MF113
B9: MF114 | C9: MF.1.1.4 Pulses | CM9: RES | CN9: MF114
B10: MF115 | C10: MF.1.1.5 Nuts | CM10: RES | CN10: MF115
B11: MF116 | C11: MF.1.1.6 Oil-bearing crops | CM11: RES | CN11: MF116
B12: MF117 | C12: MF.1.1.7 Vegetables | CM12: RES | CN12: MF117
B13: MF118 | C13: MF.1.1.8 Fruits | CM13: RES | CN13: MF118
B14: MF119 | C14: MF.1.1.9 Fibres | CM14: RES | CN14: MF119
B15: MF1110 | C15: MF.1.1.A Other crops (excluding fodder crops) n.e.c. | CM15: RES | CN15: MF11A
B16: MF12 | C16: MF.1.2 Crop residues (used) and fodder crops | CM16: RES | CN16: MF12
B17: MF121 | C17: MF.1.2.1 Crop residues (used) | CM17: RES | CN17: MF121
B18: MF1211 | C18: MF.1.2.1.1 Straw | CM18: RES | CN18: MF1211
B19: MF1212 | C19: MF.1.2.1.2 Other crop residues (sugar and fodder beet leaves, etc.) | CM19: RES | CN19: MF1212
B20: MF122 | C20: MF.1.2.2 Fodder crops and grazed biomass | CM20: RES | CN20: MF122
B21: MF1221 | C21: MF.1.2.2.1 Fodder crops (including biomass harvest from grassland) | CM21: RES | CN21: MF1221
B22: MF13 | C22: MF.1.3 Wood | CM22: RES | CN22: MF13
B23: MF131 | C23: MF.1.3.1 Timber (industrial roundwood) | CM23: RES | CN23: MF131
B24: MF132 | C24: MF.1.3.2 Wood fuel and other extraction | CM24: RES | CN24: MF132
B25: MF14 | C25: MF.1.4 Wild fish catch, aquatic plants and animals, hunting and gathering | CM25: RES | CN25: MF14
B26: MF141 | C26: MF.1.4.1 Wild fish catch | CM26: RES | CN26: MF141
B27: MF142 | C27: MF.1.4.2 All other aquatic animals and plants | CM27: RES | CN27: MF142
B28: MF15 | C28: MF.1.5 Live animals and animal products (excluding wild fish, aquatic plants and animals, hunted and gathered animals) | CM28: RES | CN28: MF15
B29: MF151 | C29: MF.1.5.1 Live animals (excluding wild fish, aquatic plants and animals, hunted and gathered animals) | CM29: RES | CN29: MF151
B30: MF152 | C30: MF.1.5.2 Meat and meat preparations | CM30: RES | CN30: MF152
B31: MF153 | C31: MF.1.5.3 Dairy products, birds eggs, and honey | CM31: RES | CN31: MF153
B32: MF154 | C32: MF.1.5.4 Other products from animals (animal fibres, skins, furs, leather etc.) | CM32: RES | CN32: MF154
B33: MF16 | C33: MF.1.6 Products mainly from biomass | CM33: RES | CN33: MF16
B34: MF2 | C34: MF.2 Metal ores (gross ores) | CM34: RES | CN34: MF2
B35: MF21 | C35: MF.2.1 Iron | CM35: RES | CN35: MF21
B36: MF22 | C36: MF.2.2 Non-ferrous metal | CM36: RES | CN36: MF22
B37: MF221 | C37: MF.2.2.1 Copper | CM37: RES | CN37: MF221
B38: MF222 | C38: MF.2.2.2 Nickel | CM38: RES | CN38: MF222
B39: MF223 | C39: MF.2.2.3 Lead | CM39: RES | CN39: MF223
B40: MF224 | C40: MF.2.2.4 Zinc | CM40: RES | CN40: MF224
B41: MF225 | C41: MF.2.2.5 Tin | CM41: RES | CN41: MF225
B42: MF226 | C42: MF.2.2.6 Gold, silver, platinum and other precious metal | CM42: RES | CN42: MF226
B43: MF227 | C43: MF.2.2.7 Bauxite and other aluminium | CM43: RES | CN43: MF227
B44: MF228 | C44: NF.2.2.8 Uranium and thorium | CM44: RES | CN44: MF228
B45: MF229 | C45: MF.2.2.9 Other non-ferrous metals | CM45: RES | CN45: MF229
B46: MF23 | C46: MF.2.3 Products mainly from metals | CM46: RES | CN46: MF23
B47: MF3 | C47: MF.3 Non-metallic minerals | CM47: RES | CN47: MF3
B48: MF31 | C48: MF.3.1 Marble, granite, sandstone, porphyry, basalt, other ornamental or building stone (excluding slate) | CM48: RES | CN48: MF31
B49: MF32 | C49: MF.3.2 Chalk and dolomite | CM49: RES | CN49: MF32
B50: MF33 | C50: MF.3.3 Slate | CM50: RES | CN50: MF33
B51: MF34 | C51: MF.3.4 Chemical and fertilizer minerals | CM51: RES | CN51: MF34
B52: MF35 | C52: MF.3.5 Salt | CM52: RES | CN52: MF35
B53: MF36 | C53: MF.3.6 Limestone and gypsum | CM53: RES | CN53: MF36
B54: MF37 | C54: MF.3.7 Clays and kaolin | CM54: RES | CN54: MF37
B55: MF38 | C55: MF.3.8 Sand and gravel | CM55: RES | CN55: MF38
B56: MF39 | C56: MF.3.9 Other non-metallic minerals n.e.c | CM56: RES | CN56: MF39
B57: MF310 | C57: MF.3.A Excavated earthen materials (including soil), only if used (optional reporting) | CM57: RES | CN57: MF3A
B58: MF311 | C58: MF.3.B Products mainly from non-metallic minerals | CM58: RES | CN58: MF3B
B59: MF4 | C59: MF.4 Fossil energy materials/carriers | CM59: RES | CN59: MF4
B60: MF41 | C60: MF.4.1 Coal and other solid energy materials/carriers | CM60: RES | CN60: MF41
B61: MF411 | C61: MF.4.1.1 Lignite (brown coal) | CM61: RES | CN61: MF411
B62: MF412 | C62: MF.4.1.2 Hard coal | CM62: RES | CN62: MF412
B63: MF413 | C63: MF.4.1.3 Oil shale and tar sands | CM63: RES | CN63: MF413
B64: MF414 | C64: MF.4.1.4 Peat | CM64: RES | CN64: MF414
B65: MF42 | C65: MF.4.2 Liquid and gaseous energy materials/carriers | CN65: MF42
B66: MF421 | C66: MF.4.2.1 Crude oil, condensate and natural gas liquids (NGL) | CN66: MF421
B67: MF422 | C67: MF.4.2.2 Natural gas | CN67: MF422
B68: MF423 | C68: MF.4.2.3 Fuels bunkered (Imports: by resident units abroad; Exports: by non-resident units domestically) | CM68: RES_ABR | CN68: MF42
B69: MF4231 | C69: MF.4.2.3.1 Fuel for land transport | CM69: RES_ABR_LTR | CN69: MF42
B70: MF4232 | C70: MF.4.2.3.2 Fuel for water transport | CM70: RES_ABR_WTR | CN70: MF42
B71: MF4233 | C71: MF.4.2.3.3 Fuel for air transport | CM71: RES_ABR_ATR | CN71: MF42
B72: MF43 | C72: MF.4.3 Products mainly from fossil energy products | CM72: RES | CN72: MF43
B73: MF5 | C73: MF.5 Other products | CM73: RES | CN73: MF5
B74: MF6 | C74: MF.6 Waste for final treatment and disposal | CM74: RES | CN74: MF6
B75: SM_RAW | C75: Raw products | CM75: RES | CN75: SM_RAW
B76: SM_SFIN | C76: Semi-manufactured products | CM76: RES | CN76: SM_SFIN
B77: SM_FIN | C77: Finished products | CM77: RES | CN77: SM_FIN
B78: TOTAL | C78: Exports - total trade (intra + extra EU-28 trade) by stage of manufacturing - optional reporting | F78: =IFERROR(IF(COUNT(F4,F34,F47,F59,F73,F74)=6,F4+F34+F47+F59+F73+F74,":"),":") -> : | H78: =IFERROR(IF(COUNT(H4,H34,H47,H59,H73,H74)=6,H4+H34+H47+H59+H73+H74,":"),":") -> : | J78: =IFERROR(IF(COUNT(J4,J34,J47,J59,J73,J74)=6,J4+J34+J47+J59+J73+J74,":"),":") -> : | L78: =IFERROR(IF(COUNT(L4,L34,L47,L59,L73,L74)=6,L4+L34+L47+L59+L73+L74,":"),":") -> : | N78: =IFERROR(IF(COUNT(N4,N34,N47,N59,N73,N74)=6,N4+N34+N47+N59+N73+N74,":"),":") -> : | P78: =IFERROR(IF(COUNT(P4,P34,P47,P59,P73,P74)=6,P4+P34+P47+P59+P73+P74,":"),":") -> : | R78: =IFERROR(IF(COUNT(R4,R34,R47,R59,R73,R74)=6,R4+R34+R47+R59+R73+R74,":"),":") -> : | T78: =IFERROR(IF(COUNT(T4,T34,T47,T59,T73,T74)=6,T4+T34+T47+T59+T73+T74,":"),":") -> : | V78: =IFERROR(IF(COUNT(V4,V34,V47,V59,V73,V74)=6,V4+V34+V47+V59+V73+V74,":"),":") -> : | X78: =IFERROR(IF(COUNT(X4,X34,X47,X59,X73,X74)=6,X4+X34+X47+X59+X73+X74,":"),":") -> : | Z78: =IFERROR(IF(COUNT(Z4,Z34,Z47,Z59,Z73,Z74)=6,Z4+Z34+Z47+Z59+Z73+Z74,":"),":") -> : | AB78: =IFERROR(IF(COUNT(AB4,AB34,AB47,AB59,AB73,AB74)=6,AB4+AB34+AB47+AB59+AB73+AB74,":"),":") -> : | AD78: =IFERROR(IF(COUNT(AD4,AD34,AD47,AD59,AD73,AD74)=6,AD4+AD34+AD47+AD59+AD73+AD74,":"),":") -> : | AF78: =IFERROR(IF(COUNT(AF4,AF34,AF47,AF59,AF73,AF74)=6,AF4+AF34+AF47+AF59+AF73+AF74,":"),":") -> : | AH78: =IFERROR(IF(COUNT(AH4,AH34,AH47,AH59,AH73,AH74)=6,AH4+AH34+AH47+AH59+AH73+AH74,":"),":") -> : | AJ78: =IFERROR(IF(COUNT(AJ4,AJ34,AJ47,AJ59,AJ73,AJ74)=6,AJ4+AJ34+AJ47+AJ59+AJ73+AJ74,":"),":") -> : | AL78: =IFERROR(IF(COUNT(AL4,AL34,AL47,AL59,AL73,AL74)=6,AL4+AL34+AL47+AL59+AL73+AL74,":"),":") -> : | AN78: =IFERROR(IF(COUNT(AN4,AN34,AN47,AN59,AN73,AN74)=6,AN4+AN34+AN47+AN59+AN73+AN74,":"),":") -> : | AP78: =IFERROR(IF(COUNT(AP4,AP34,AP47,AP59,AP73,AP74)=6,AP4+AP34+AP47+AP59+AP73+AP74,":"),":") -> : | AR78: =IFERROR(IF(COUNT(AR4,AR34,AR47,AR59,AR73,AR74)=6,AR4+AR34+AR47+AR59+AR73+AR74,":"),":") -> : | AT78: =IFERROR(IF(COUNT(AT4,AT34,AT47,AT59,AT73,AT74)=6,AT4+AT34+AT47+AT59+AT73+AT74,":"),":") -> : | AV78: =IFERROR(IF(COUNT(AV4,AV34,AV47,AV59,AV73,AV74)=6,AV4+AV34+AV47+AV59+AV73+AV74,":"),":") -> : | AX78: =IFERROR(IF(COUNT(AX4,AX34,AX47,AX59,AX73,AX74)=6,AX4+AX34+AX47+AX59+AX73+AX74,":"),":") -> : | AZ78: =IFERROR(IF(COUNT(AZ4,AZ34,AZ47,AZ59,AZ73,AZ74)=6,AZ4+AZ34+AZ47+AZ59+AZ73+AZ74,":"),":") -> : | BB78: =IFERROR(IF(COUNT(BB4,BB34,BB47,BB59,BB73,BB74)=6,BB4+BB34+BB47+BB59+BB73+BB74,":"),":") -> : | BD78: =IFERROR(IF(COUNT(BD4,BD34,BD47,BD59,BD73,BD74)=6,BD4+BD34+BD47+BD59+BD73+BD74,":"),":") -> : | BF78: =IFERROR(IF(COUNT(BF4,BF34,BF47,BF59,BF73,BF74)=6,BF4+BF34+BF47+BF59+BF73+BF74,":"),":") -> : | BH78: =IFERROR(IF(COUNT(BH4,BH34,BH47,BH59,BH73,BH74)=6,BH4+BH34+BH47+BH59+BH73+BH74,":"),":") -> : | BJ78: =IFERROR(IF(COUNT(BJ4,BJ34,BJ47,BJ59,BJ73,BJ74)=6,BJ4+BJ34+BJ47+BJ59+BJ73+BJ74,":"),":") -> : | BL78: =IFERROR(IF(COUNT(BL4,BL34,BL47,BL59,BL73,BL74)=6,BL4+BL34+BL47+BL59+BL73+BL74,":"),":") -> : | BN78: =IFERROR(IF(COUNT(BN4,BN34,BN47,BN59,BN73,BN74)=6,BN4+BN34+BN47+BN59+BN73+BN74,":"),":") -> : | CM78: RES | CN78: _T
E83: BRIDGE_ITEM | F83: =IF(COUNT(F68:F71)>0,"TER","RES") -> RES | H83: =IF(COUNT(H68:H71)>0,"TER","RES") -> RES | J83: =IF(COUNT(J68:J71)>0,"TER","RES") -> RES | L83: =IF(COUNT(L68:L71)>0,"TER","RES") -> RES | N83: =IF(COUNT(N68:N71)>0,"TER","RES") -> RES | P83: =IF(COUNT(P68:P71)>0,"TER","RES") -> RES | R83: =IF(COUNT(R68:R71)>0,"TER","RES") -> RES | T83: =IF(COUNT(T68:T71)>0,"TER","RES") -> RES | V83: =IF(COUNT(V68:V71)>0,"TER","RES") -> RES | X83: =IF(COUNT(X68:X71)>0,"TER","RES") -> RES | Z83: =IF(COUNT(Z68:Z71)>0,"TER","RES") -> RES | AB83: =IF(COUNT(AB68:AB71)>0,"TER","RES") -> RES | AD83: =IF(COUNT(AD68:AD71)>0,"TER","RES") -> RES | AF83: =IF(COUNT(AF68:AF71)>0,"TER","RES") -> RES | AH83: =IF(COUNT(AH68:AH71)>0,"TER","RES") -> RES | AJ83: =IF(COUNT(AJ68:AJ71)>0,"TER","RES") -> RES | AL83: =IF(COUNT(AL68:AL71)>0,"TER","RES") -> RES | AN83: =IF(COUNT(AN69:AN71)>0,"TER","RES") -> RES | AP83: =IF(COUNT(AP68:AP71)>0,"TER","RES") -> RES | AR83: =IF(COUNT(AR68:AR71)>0,"TER","RES") -> RES | AT83: =IF(COUNT(AT68:AT71)>0,"TER","RES") -> RES | AV83: =IF(COUNT(AV68:AV71)>0,"TER","RES") -> RES | AX83: =IF(COUNT(AX68:AX71)>0,"TER","RES") -> RES | AZ83: =IF(COUNT(AZ68:AZ71)>0,"TER","RES") -> RES | BB83: =IF(COUNT(BB68:BB71)>0,"TER","RES") -> RES | BD83: =IF(COUNT(BD68:BD71)>0,"TER","RES") -> RES | BF83: =IF(COUNT(BF68:BF71)>0,"TER","RES") -> RES | BH83: =IF(COUNT(BH68:BH71)>0,"TER","RES") -> RES | BJ83: =IF(COUNT(BJ68:BJ71)>0,"TER","RES") -> RES | BL83: =IF(COUNT(BL69:BL71)>0,"TER","RES") -> RES

Sheet Table_E
A1: DATAENTRY | C1: Country: | D1: =intro!H8 -> 
C2: Unit | E2: 1000 Metric tonnes
C3: Table E: Exports - extra-EU28 trade | F3: 1990 | H3: 1991 | J3: 1992 | L3: 1993 | N3: 1994 | P3: 1995 | R3: 1996 | T3: 1997 | V3: 1998 | X3: 1999 | Z3: 2000 | AB3: 2001 | AD3: 2002 | AF3: 2003 | AH3: 2004 | AJ3: 2005 | AL3: 2006 | AN3: 2007 | AP3: 2008 | AR3: 2009 | AT3: 2010 | AV3: 2011 | AX3: 2012 | AZ3: 2013 | BB3: 2014 | BD3: 2015 | BF3: 2016 | BH3: 2017 | BJ3: 2018 | BL3: 2019 | BN3: 2020
C4: MF.1 Biomass
C5: MF.1.1 Crops (excluding fodder crops)
C6: MF.1.1.1 Cereals
C7: MF.1.1.2 Roots, tubers
C8: MF.1.1.3 Sugar crops
C9: MF.1.1.4 Pulses
C10: MF.1.1.5 Nuts
C11: MF.1.1.6 Oil-bearing crops
C12: MF.1.1.7 Vegetables
C13: MF.1.1.8 Fruits
C14: MF.1.1.9 Fibres
C15: MF.1.1.A Other crops (excluding fodder crops) n.e.c.
C16: MF.1.2 Crop residues (used) and fodder crops
C17: MF.1.2.1 Crop residues (used)
C18: MF.1.2.1.1 Straw
C19: MF.1.2.1.2 Other crop residues (sugar and fodder beet leaves, etc.)
C20: MF.1.2.2 Fodder crops and grazed biomass
C21: MF.1.2.2.1 Fodder crops (including biomass harvest from grassland)
C22: MF.1.3 Wood
C23: MF.1.3.1 Timber (industrial roundwood)
C24: MF.1.3.2 Wood fuel and other extraction
C25: MF.1.4 Wild fish catch, aquatic plants and animals, hunting and gathering
C26: MF.1.4.1 Wild fish catch
C27: MF.1.4.2 All other aquatic animals and plants
C28: MF.1.5 Live animals and animal products (excluding wild fish, aquatic plants and animals, hunted and gathered animals)
C29: MF.1.5.1 Live animals (excluding wild fish, aquatic plants and animals, hunted and gathered animals)
C30: MF.1.5.2 Meat and meat preparations
C31: MF.1.5.3 Dairy products, birds eggs, and honey
C32: MF.1.5.4 Other products from animals (animal fibres, skins, furs, leather etc.)
C33: MF.1.6 Products mainly from biomass
C34: MF.2 Metal ores (gross ores)
C35: MF.2.1 Iron
C36: MF.2.2 Non-ferrous metal
C37: MF.2.2.1 Copper
C38: MF.2.2.2 Nickel
C39: MF.2.2.3 Lead
C40: MF.2.2.4 Zinc
C41: MF.2.2.5 Tin
C42: MF.2.2.6 Gold, silver, platinum and other precious metal
C43: MF.2.2.7 Bauxite and other aluminium
C44: NF.2.2.8 Uranium and thorium
C45: MF.2.2.9 Other non-ferrous metals
C46: MF.2.3 Products mainly from metals
C47: MF.3 Non-metallic minerals
C48: MF.3.1 Marble, granite, sandstone, porphyry, basalt, other ornamental or building stone (excluding slate)
C49: MF.3.2 Chalk and dolomite
C50: MF.3.3 Slate
C51: MF.3.4 Chemical and fertilizer minerals
C52: MF.3.5 Salt
C53: MF.3.6 Limestone and gypsum
C54: MF.3.7 Clays and kaolin
C55: MF.3.8 Sand and gravel
C56: MF.3.9 Other non-metallic minerals n.e.c
C57: MF.3.A Excavated earthen materials (including soil), only if used (optional reporting)
C58: MF.3.B Products mainly from non-metallic minerals
C59: MF.4 Fossil energy materials/carriers
C60: MF.4.1 Coal and other solid energy materials/carriers
C61: MF.4.1.1 Lignite (brown coal)
C62: MF.4.1.2 Hard coal
C63: MF.4.1.3 Oil shale and tar sands
C64: MF.4.1.4 Peat
C65: MF.4.2 Liquid and gaseous energy materials/carriers
C66: MF.4.2.1 Crude oil, condensate and natural gas liquids (NGL)
C67: MF.4.2.2 Natural gas
C68: MF.4.2.3 Fuels bunkered (Imports: by resident units abroad; Exports: by non-resident units domestically)
C69: MF.4.2.3.1 Fuel for land transport
C70: MF.4.2.3.2 Fuel for water transport
C71: MF.4.2.3.3 Fuel for air transport
C72: MF.4.3 Products mainly from fossil energy products
C73: MF.5 Other products
C74: MF.6 Waste for final treatment and disposal
C75: Raw products
C76: Semi-manufactured products
C77: Finished products
C78: Exports - extra-EU28 trade by stage of manufacturing - optional reporting | F78: =IFERROR(IF(COUNT(F4,F34,F47,F59,F73,F74)=6,F4+F34+F47+F59+F73+F74,":"),":") -> : | H78: =IFERROR(IF(COUNT(H4,H34,H47,H59,H73,H74)=6,H4+H34+H47+H59+H73+H74,":"),":") -> : | J78: =IFERROR(IF(COUNT(J4,J34,J47,J59,J73,J74)=6,J4+J34+J47+J59+J73+J74,":"),":") -> : | L78: =IFERROR(IF(COUNT(L4,L34,L47,L59,L73,L74)=6,L4+L34+L47+L59+L73+L74,":"),":") -> : | N78: =IFERROR(IF(COUNT(N4,N34,N47,N59,N73,N74)=6,N4+N34+N47+N59+N73+N74,":"),":") -> : | P78: =IFERROR(IF(COUNT(P4,P34,P47,P59,P73,P74)=6,P4+P34+P47+P59+P73+P74,":"),":") -> : | R78: =IFERROR(IF(COUNT(R4,R34,R47,R59,R73,R74)=6,R4+R34+R47+R59+R73+R74,":"),":") -> : | T78: =IFERROR(IF(COUNT(T4,T34,T47,T59,T73,T74)=6,T4+T34+T47+T59+T73+T74,":"),":") -> : | V78: =IFERROR(IF(COUNT(V4,V34,V47,V59,V73,V74)=6,V4+V34+V47+V59+V73+V74,":"),":") -> : | X78: =IFERROR(IF(COUNT(X4,X34,X47,X59,X73,X74)=6,X4+X34+X47+X59+X73+X74,":"),":") -> : | Z78: =IFERROR(IF(COUNT(Z4,Z34,Z47,Z59,Z73,Z74)=6,Z4+Z34+Z47+Z59+Z73+Z74,":"),":") -> : | AB78: =IFERROR(IF(COUNT(AB4,AB34,AB47,AB59,AB73,AB74)=6,AB4+AB34+AB47+AB59+AB73+AB74,":"),":") -> : | AD78: =IFERROR(IF(COUNT(AD4,AD34,AD47,AD59,AD73,AD74)=6,AD4+AD34+AD47+AD59+AD73+AD74,":"),":") -> : | AF78: =IFERROR(IF(COUNT(AF4,AF34,AF47,AF59,AF73,AF74)=6,AF4+AF34+AF47+AF59+AF73+AF74,":"),":") -> : | AH78: =IFERROR(IF(COUNT(AH4,AH34,AH47,AH59,AH73,AH74)=6,AH4+AH34+AH47+AH59+AH73+AH74,":"),":") -> : | AJ78: =IFERROR(IF(COUNT(AJ4,AJ34,AJ47,AJ59,AJ73,AJ74)=6,AJ4+AJ34+AJ47+AJ59+AJ73+AJ74,":"),":") -> : | AL78: =IFERROR(IF(COUNT(AL4,AL34,AL47,AL59,AL73,AL74)=6,AL4+AL34+AL47+AL59+AL73+AL74,":"),":") -> : | AN78: =IFERROR(IF(COUNT(AN4,AN34,AN47,AN59,AN73,AN74)=6,AN4+AN34+AN47+AN59+AN73+AN74,":"),":") -> : | AP78: =IFERROR(IF(COUNT(AP4,AP34,AP47,AP59,AP73,AP74)=6,AP4+AP34+AP47+AP59+AP73+AP74,":"),":") -> : | AR78: =IFERROR(IF(COUNT(AR4,AR34,AR47,AR59,AR73,AR74)=6,AR4+AR34+AR47+AR59+AR73+AR74,":"),":") -> : | AT78: =IFERROR(IF(COUNT(AT4,AT34,AT47,AT59,AT73,AT74)=6,AT4+AT34+AT47+AT59+AT73+AT74,":"),":") -> : | AV78: =IFERROR(IF(COUNT(AV4,AV34,AV47,AV59,AV73,AV74)=6,AV4+AV34+AV47+AV59+AV73+AV74,":"),":") -> : | AX78: =IFERROR(IF(COUNT(AX4,AX34,AX47,AX59,AX73,AX74)=6,AX4+AX34+AX47+AX59+AX73+AX74,":"),":") -> : | AZ78: =IFERROR(IF(COUNT(AZ4,AZ34,AZ47,AZ59,AZ73,AZ74)=6,AZ4+AZ34+AZ47+AZ59+AZ73+AZ74,":"),":") -> : | BB78: =IFERROR(IF(COUNT(BB4,BB34,BB47,BB59,BB73,BB74)=6,BB4+BB34+BB47+BB59+BB73+BB74,":"),":") -> : | BD78: =IFERROR(IF(COUNT(BD4,BD34,BD47,BD59,BD73,BD74)=6,BD4+BD34+BD47+BD59+BD73+BD74,":"),":") -> : | BF78: =IFERROR(IF(COUNT(BF4,BF34,BF47,BF59,BF73,BF74)=6,BF4+BF34+BF47+BF59+BF73+BF74,":"),":") -> : | BH78: =IFERROR(IF(COUNT(BH4,BH34,BH47,BH59,BH73,BH74)=6,BH4+BH34+BH47+BH59+BH73+BH74,":"),":") -> : | BJ78: =IFERROR(IF(COUNT(BJ4,BJ34,BJ47,BJ59,BJ73,BJ74)=6,BJ4+BJ34+BJ47+BJ59+BJ73+BJ74,":"),":") -> : | BL78: =IFERROR(IF(COUNT(BL4,BL34,BL47,BL59,BL73,BL74)=6,BL4+BL34+BL47+BL59+BL73+BL74,":"),":") -> : | BN78: =IFERROR(IF(COUNT(BN4,BN34,BN47,BN59,BN73,BN74)=6,BN4+BN34+BN47+BN59+BN73+BN74,":"),":") -> :

Sheet Table_F
A1: DATAENTRY | C1: Country: | D1: =intro!H8 ->  | CJ1: DEMAND_PROD | CK1: ACCOUNTING_ENTRY | CL1: COUNTERPART_AREA | CM1: BRIDGE_ITEM | CN1: MATERIAL | CO1: STO | CP1: UNIT_MEASURE | CQ1: UNIT_MULT | CR1: PRODUCT | CS1: SECTOR
A2: DPO | B2: THS_T | C2: Unit | E2: 1000 Metric tonnes
B3: Matflows | C3: Table F: Domestic processed output | F3: 1990 | H3: 1991 | J3: 1992 | L3: 1993 | N3: 1994 | P3: 1995 | R3: 1996 | T3: 1997 | V3: 1998 | X3: 1999 | Z3: 2000 | AB3: 2001 | AD3: 2002 | AF3: 2003 | AH3: 2004 | AJ3: 2005 | AL3: 2006 | AN3: 2007 | AP3: 2008 | AR3: 2009 | AT3: 2010 | AV3: 2011 | AX3: 2012 | AZ3: 2013 | BB3: 2014 | BD3: 2015 | BF3: 2016 | BH3: 2017 | BJ3: 2018 | BL3: 2019 | BN3: 2020
B4: MF_DPO_1 | C4: MF.7.1 Emissions to air | CJ4: P | CK4: EC | CL4: W2 | CM4: RES | CN4: MF71 | CO4: MDPO | CP4: TN | CQ4: 3 | CR4: _T | CS4: S1
B5: MF_DPO_11 | C5: MF.7.1.1 Carbon dioxide (CO2) | CM5: RES | CN5: MF711
B6: MF_DPO_111 | C6: MF.7.1.1.1 Carbon dioxide (CO2) from biomass combustion | CM6: RES | CN6: MF7111
B7: MF_DPO_112 | C7: MF.7.1.1.2 Carbon dioxide (CO2) excluding biomass combustion | CM7: RES | CN7: MF7112
B8: MF_DPO_12 | C8: MF.7.1.2 Methane (CH4) | CM8: RES | CN8: MF712
B9: MF_DPO_13 | C9: MF.7.1.3 Dinitrogen oxide (N2O) | CM9: RES | CN9: MF713
B10: MF_DPO_14 | C10: MF.7.1.4 Nitrous oxides (NOx) | CM10: RES | CN10: MF714
B11: MF_DPO_15 | C11: MF.7.1.5 Hydroflourcarbons (HFCs) | CM11: RES | CN11: MF715
B12: MF_DPO_16 | C12: MF.7.1.6 Perflourocarbons (PFCs) | CM12: RES | CN12: MF716
B13: MF_DPO_17 | C13: MF.7.1.7 Sulfur hexaflouride | CM13: RES | CN13: MF717
B14: MF_DPO_18 | C14: MF.7.1.8 Carbon monoxide (CO) | CM14: RES | CN14: MF718
B15: MF_DPO_19 | C15: MF.7.1.9 Non-methane volatile organic compounds (NMVOC) | CM15: RES | CN15: MF719
B16: MF_DPO_110 | C16: MF.7.1.A Sulfur dioxide (SO2) | CM16: RES | CN16: MF71A
B17: MF_DPO_111 | C17: MF.7.1.B Ammonia (NH3) | CM17: RES | CN17: MF71B
B18: MF_DPO_112 | C18: MF.7.1.C Heavy metals | CM18: RES | CN18: MF71C
B19: MF_DPO_113 | C19: MF.7.1.D Persistent organic pollutants (POPs) | CM19: RES | CN19: MF71D
B20: MF_DPO_114 | C20: MF.7.1.E Particles (e.g. PM10, Dust) | CM20: RES | CN20: MF71E
B21: MF_DPO_115 | C21: MF.7.1.F Other emissions to air | CM21: RES | CN21: MF71F
B22: MF_DPO_2 | C22: MF.7.2 Waste disposal to the environment | CM22: RES | CN22: MF72
B23: MF_DPO_21M | C23: MF.7.2 MEMO Waste disposal to controlled landfills (memo item) | CM23: RES | CN23: MEMO_MF72
B24: MF_DPO_3 | C24: MF.7.3 Emissions to water | CM24: RES | CN24: MF73
B25: MF_DPO_31 | C25: MF.7.3.1 Nitrogen (N) | CM25: RES | CN25: MF731
B26: MF_DPO_32 | C26: MF.7.3.2 Phosphorus (P) | CM26: RES | CN26: MF732
B27: MF_DPO_33 | C27: MF.7.3.3 Heavy metals | CM27: RES | CN27: MF733
B28: MF_DPO_34 | C28: MF.7.3.4 Other substances and (organic) materials | CM28: RES | CN28: MF734
B29: MF_DPO_35 | C29: MF.7.3.5 Dumping of materials at sea | CM29: RES | CN29: MF735
B30: MF_DPO_4 | C30: MF.7.4 Dissipative use of products | CM30: RES | CN30: MF74
B31: MF_DPO_41 | C31: MF.7.4.1 Organic fertiliser (manure) | CM31: RES | CN31: MF741
B32: MF_DPO_42 | C32: MF.7.4.2 Mineral fertiliser | CM32: RES | CN32: MF742
B33: MF_DPO_43 | C33: MF.7.4.3 Sewage sludge | CM33: RES | CN33: MF743
B34: MF_DPO_44 | C34: MF.7.4.4 Compost | CM34: RES | CN34: MF744
B35: MF_DPO_45 | C35: MF.7.4.5 Pesticides | CM35: RES | CN35: MF745
B36: MF_DPO_46 | C36: MF.7.4.6 Seeds | CM36: RES | CN36: MF746
B37: MF_DPO_47 | C37: MF.7.4.7 Salt and other thawing materials spread on roads (including grit) | CM37: RES | CN37: MF747
B38: MF_DPO_48 | C38: MF.7.4.8 Solvents, laughing gas and other | CM38: RES | CN38: MF748
B39: MF_DPO_5 | C39: MF.7.5 Dissipative losses | CM39: RES | CN39: MF75
B40: TOTAL | C40: Total domestic processed output | F40: =IFERROR(IF(COUNT(F4,F22,F24,F30,F39)=5,F4+F22+F24+F30+F39,":"),":") -> : | H40: =IFERROR(IF(COUNT(H4,H22,H24,H30,H39)=5,H4+H22+H24+H30+H39,":"),":") -> : | J40: =IFERROR(IF(COUNT(J4,J22,J24,J30,J39)=5,J4+J22+J24+J30+J39,":"),":") -> : | L40: =IFERROR(IF(COUNT(L4,L22,L24,L30,L39)=5,L4+L22+L24+L30+L39,":"),":") -> : | N40: =IFERROR(IF(COUNT(N4,N22,N24,N30,N39)=5,N4+N22+N24+N30+N39,":"),":") -> : | P40: =IFERROR(IF(COUNT(P4,P22,P24,P30,P39)=5,P4+P22+P24+P30+P39,":"),":") -> : | R40: =IFERROR(IF(COUNT(R4,R22,R24,R30,R39)=5,R4+R22+R24+R30+R39,":"),":") -> : | T40: =IFERROR(IF(COUNT(T4,T22,T24,T30,T39)=5,T4+T22+T24+T30+T39,":"),":") -> : | V40: =IFERROR(IF(COUNT(V4,V22,V24,V30,V39)=5,V4+V22+V24+V30+V39,":"),":") -> : | X40: =IFERROR(IF(COUNT(X4,X22,X24,X30,X39)=5,X4+X22+X24+X30+X39,":"),":") -> : | Z40: =IFERROR(IF(COUNT(Z4,Z22,Z24,Z30,Z39)=5,Z4+Z22+Z24+Z30+Z39,":"),":") -> : | AB40: =IFERROR(IF(COUNT(AB4,AB22,AB24,AB30,AB39)=5,AB4+AB22+AB24+AB30+AB39,":"),":") -> : | AD40: =IFERROR(IF(COUNT(AD4,AD22,AD24,AD30,AD39)=5,AD4+AD22+AD24+AD30+AD39,":"),":") -> : | AF40: =IFERROR(IF(COUNT(AF4,AF22,AF24,AF30,AF39)=5,AF4+AF22+AF24+AF30+AF39,":"),":") -> : | AH40: =IFERROR(IF(COUNT(AH4,AH22,AH24,AH30,AH39)=5,AH4+AH22+AH24+AH30+AH39,":"),":") -> : | AJ40: =IFERROR(IF(COUNT(AJ4,AJ22,AJ24,AJ30,AJ39)=5,AJ4+AJ22+AJ24+AJ30+AJ39,":"),":") -> : | AL40: =IFERROR(IF(COUNT(AL4,AL22,AL24,AL30,AL39)=5,AL4+AL22+AL24+AL30+AL39,":"),":") -> : | AN40: =IFERROR(IF(COUNT(AN4,AN22,AN24,AN30,AN39)=5,AN4+AN22+AN24+AN30+AN39,":"),":") -> : | AP40: =IFERROR(IF(COUNT(AP4,AP22,AP24,AP30,AP39)=5,AP4+AP22+AP24+AP30+AP39,":"),":") -> : | AR40: =IFERROR(IF(COUNT(AR4,AR22,AR24,AR30,AR39)=5,AR4+AR22+AR24+AR30+AR39,":"),":") -> : | AT40: =IFERROR(IF(COUNT(AT4,AT22,AT24,AT30,AT39)=5,AT4+AT22+AT24+AT30+AT39,":"),":") -> : | AV40: =IFERROR(IF(COUNT(AV4,AV22,AV24,AV30,AV39)=5,AV4+AV22+AV24+AV30+AV39,":"),":") -> : | AX40: =IFERROR(IF(COUNT(AX4,AX22,AX24,AX30,AX39)=5,AX4+AX22+AX24+AX30+AX39,":"),":") -> : | AZ40: =IFERROR(IF(COUNT(AZ4,AZ22,AZ24,AZ30,AZ39)=5,AZ4+AZ22+AZ24+AZ30+AZ39,":"),":") -> : | BB40: =IFERROR(IF(COUNT(BB4,BB22,BB24,BB30,BB39)=5,BB4+BB22+BB24+BB30+BB39,":"),":") -> : | BD40: =IFERROR(IF(COUNT(BD4,BD22,BD24,BD30,BD39)=5,BD4+BD22+BD24+BD30+BD39,":"),":") -> : | BF40: =IFERROR(IF(COUNT(BF4,BF22,BF24,BF30,BF39)=5,BF4+BF22+BF24+BF30+BF39,":"),":") -> : | BH40: =IFERROR(IF(COUNT(BH4,BH22,BH24,BH30,BH39)=5,BH4+BH22+BH24+BH30+BH39,":"),":") -> : | BJ40: =IFERROR(IF(COUNT(BJ4,BJ22,BJ24,BJ30,BJ39)=5,BJ4+BJ22+BJ24+BJ30+BJ39,":"),":") -> : | BL40: =IFERROR(IF(COUNT(BL4,BL22,BL24,BL30,BL39)=5,BL4+BL22+BL24+BL30+BL39,":"),":") -> : | BN40: =IFERROR(IF(COUNT(BN4,BN22,BN24,BN30,BN39)=5,BN4+BN22+BN24+BN30+BN39,":"),":") -> : | CM40: RES | CN40: _T

Sheet Table_G
A1: DATAENTRY | C1: Country: | D1: =intro!H8 ->  | CJ1: DEMAND_PROD | CK1: ACCOUNTING_ENTRY | CL1: COUNTERPART_AREA | CM1: BRIDGE_ITEM | CN1: MATERIAL | CO1: STO | CP1: UNIT_MEASURE | CQ1: UNIT_MULT | CR1: PRODUCT | CS1: SECTOR
A2: BI | B2: THS_T | C2: Unit | D2: Million National Currency | E2: 1000 Metric tonnes
B3: Matflows | C3: Table G: Balancing items | F3: 1990 | H3: 1991 | J3: 1992 | L3: 1993 | N3: 1994 | P3: 1995 | R3: 1996 | T3: 1997 | V3: 1998 | X3: 1999 | Z3: 2000 | AB3: 2001 | AD3: 2002 | AF3: 2003 | AH3: 2004 | AJ3: 2005 | AL3: 2006 | AN3: 2007 | AP3: 2008 | AR3: 2009 | AT3: 2010 | AV3: 2011 | AX3: 2012 | AZ3: 2013 | BB3: 2014 | BD3: 2015 | BF3: 2016 | BH3: 2017 | BJ3: 2018 | BL3: 2019 | BN3: 2020
B4: MF_BI_1 | C4: MF.8.1 Balancing items: input side | F4: =IFERROR(IF(COUNT(F5,F6,F7,F8)=4,F5+F6+F7+F8,":"),":") -> : | H4: =IFERROR(IF(COUNT(H5,H6,H7,H8)=4,H5+H6+H7+H8,":"),":") -> : | J4: =IFERROR(IF(COUNT(J5,J6,J7,J8)=4,J5+J6+J7+J8,":"),":") -> : | L4: =IFERROR(IF(COUNT(L5,L6,L7,L8)=4,L5+L6+L7+L8,":"),":") -> : | N4: =IFERROR(IF(COUNT(N5,N6,N7,N8)=4,N5+N6+N7+N8,":"),":") -> : | P4: =IFERROR(IF(COUNT(P5,P6,P7,P8)=4,P5+P6+P7+P8,":"),":") -> : | R4: =IFERROR(IF(COUNT(R5,R6,R7,R8)=4,R5+R6+R7+R8,":"),":") -> : | T4: =IFERROR(IF(COUNT(T5,T6,T7,T8)=4,T5+T6+T7+T8,":"),":") -> : | V4: =IFERROR(IF(COUNT(V5,V6,V7,V8)=4,V5+V6+V7+V8,":"),":") -> : | X4: =IFERROR(IF(COUNT(X5,X6,X7,X8)=4,X5+X6+X7+X8,":"),":") -> : | Z4: =IFERROR(IF(COUNT(Z5,Z6,Z7,Z8)=4,Z5+Z6+Z7+Z8,":"),":") -> : | AB4: =IFERROR(IF(COUNT(AB5,AB6,AB7,AB8)=4,AB5+AB6+AB7+AB8,":"),":") -> : | AD4: =IFERROR(IF(COUNT(AD5,AD6,AD7,AD8)=4,AD5+AD6+AD7+AD8,":"),":") -> : | AF4: =IFERROR(IF(COUNT(AF5,AF6,AF7,AF8)=4,AF5+AF6+AF7+AF8,":"),":") -> : | AH4: =IFERROR(IF(COUNT(AH5,AH6,AH7,AH8)=4,AH5+AH6+AH7+AH8,":"),":") -> : | AJ4: =IFERROR(IF(COUNT(AJ5,AJ6,AJ7,AJ8)=4,AJ5+AJ6+AJ7+AJ8,":"),":") -> : | AL4: =IFERROR(IF(COUNT(AL5,AL6,AL7,AL8)=4,AL5+AL6+AL7+AL8,":"),":") -> : | AN4: =IFERROR(IF(COUNT(AN5,AN6,AN7,AN8)=4,AN5+AN6+AN7+AN8,":"),":") -> : | AP4: =IFERROR(IF(COUNT(AP5,AP6,AP7,AP8)=4,AP5+AP6+AP7+AP8,":"),":") -> : | AR4: =IFERROR(IF(COUNT(AR5,AR6,AR7,AR8)=4,AR5+AR6+AR7+AR8,":"),":") -> : | AT4: =IFERROR(IF(COUNT(AT5,AT6,AT7,AT8)=4,AT5+AT6+AT7+AT8,":"),":") -> : | AV4: =IFERROR(IF(COUNT(AV5,AV6,AV7,AV8)=4,AV5+AV6+AV7+AV8,":"),":") -> : | AX4: =IFERROR(IF(COUNT(AX5,AX6,AX7,AX8)=4,AX5+AX6+AX7+AX8,":"),":") -> : | AZ4: =IFERROR(IF(COUNT(AZ5,AZ6,AZ7,AZ8)=4,AZ5+AZ6+AZ7+AZ8,":"),":") -> : | BB4: =IFERROR(IF(COUNT(BB5,BB6,BB7,BB8)=4,BB5+BB6+BB7+BB8,":"),":") -> : | BD4: =IFERROR(IF(COUNT(BD5,BD6,BD7,BD8)=4,BD5+BD6+BD7+BD8,":"),":") -> : | BF4: =IFERROR(IF(COUNT(BF5,BF6,BF7,BF8)=4,BF5+BF6+BF7+BF8,":"),":") -> : | BH4: =IFERROR(IF(COUNT(BH5,BH6,BH7,BH8)=4,BH5+BH6+BH7+BH8,":"),":") -> : | BJ4: =IFERROR(IF(COUNT(BJ5,BJ6,BJ7,BJ8)=4,BJ5+BJ6+BJ7+BJ8,":"),":") -> : | BL4: =IFERROR(IF(COUNT(BL5,BL6,BL7,BL8)=4,BL5+BL6+BL7+BL8,":"),":") -> : | BN4: =IFERROR(IF(COUNT(BN5,BN6,BN7,BN8)=4,BN5+BN6+BN7+BN8,":"),":") -> : | CJ4: P | CK4: B | CL4: W2 | CM4: RES | CN4: MF81 | CO4: BBI | CP4: TN | CQ4: 3 | CR4: _T | CS4: S1
B5: MF_BI_11 | C5: MF.8.1.1 Oxygen for combustion processes | CM5: RES | CN5: MF811
B6: MF_BI_12 | C6: MF.8.1.2 Oxygen for respiration of humans and livestock; bacterial respiration from solid waste and wastewater | CM6: RES | CN6: MF812
B7: MF_BI_13 | C7: MF.8.1.3 Nitrogen for Haber-Bosch process | CM7: RES | CN7: MF813
B8: MF_BI_14 | C8: MF.8.1.4 Water requirements for the domestic production of exported beverages | CM8: RES | CN8: MF814
B9: MF_BI_2 | C9: MF.8.2 Balancing items: output side | F9: =IFERROR(IF(COUNT(F10,F13,F16)=3,F10+F13+F16,":"),":") -> : | H9: =IFERROR(IF(COUNT(H10,H13,H16)=3,H10+H13+H16,":"),":") -> : | J9: =IFERROR(IF(COUNT(J10,J13,J16)=3,J10+J13+J16,":"),":") -> : | L9: =IFERROR(IF(COUNT(L10,L13,L16)=3,L10+L13+L16,":"),":") -> : | N9: =IFERROR(IF(COUNT(N10,N13,N16)=3,N10+N13+N16,":"),":") -> : | P9: =IFERROR(IF(COUNT(P10,P13,P16)=3,P10+P13+P16,":"),":") -> : | R9: =IFERROR(IF(COUNT(R10,R13,R16)=3,R10+R13+R16,":"),":") -> : | T9: =IFERROR(IF(COUNT(T10,T13,T16)=3,T10+T13+T16,":"),":") -> : | V9: =IFERROR(IF(COUNT(V10,V13,V16)=3,V10+V13+V16,":"),":") -> : | X9: =IFERROR(IF(COUNT(X10,X13,X16)=3,X10+X13+X16,":"),":") -> : | Z9: =IFERROR(IF(COUNT(Z10,Z13,Z16)=3,Z10+Z13+Z16,":"),":") -> : | AB9: =IFERROR(IF(COUNT(AB10,AB13,AB16)=3,AB10+AB13+AB16,":"),":") -> : | AD9: =IFERROR(IF(COUNT(AD10,AD13,AD16)=3,AD10+AD13+AD16,":"),":") -> : | AF9: =IFERROR(IF(COUNT(AF10,AF13,AF16)=3,AF10+AF13+AF16,":"),":") -> : | AH9: =IFERROR(IF(COUNT(AH10,AH13,AH16)=3,AH10+AH13+AH16,":"),":") -> : | AJ9: =IFERROR(IF(COUNT(AJ10,AJ13,AJ16)=3,AJ10+AJ13+AJ16,":"),":") -> : | AL9: =IFERROR(IF(COUNT(AL10,AL13,AL16)=3,AL10+AL13+AL16,":"),":") -> : | AN9: =IFERROR(IF(COUNT(AN10,AN13,AN16)=3,AN10+AN13+AN16,":"),":") -> : | AP9: =IFERROR(IF(COUNT(AP10,AP13,AP16)=3,AP10+AP13+AP16,":"),":") -> : | AR9: =IFERROR(IF(COUNT(AR10,AR13,AR16)=3,AR10+AR13+AR16,":"),":") -> : | AT9: =IFERROR(IF(COUNT(AT10,AT13,AT16)=3,AT10+AT13+AT16,":"),":") -> : | AV9: =IFERROR(IF(COUNT(AV10,AV13,AV16)=3,AV10+AV13+AV16,":"),":") -> : | AX9: =IFERROR(IF(COUNT(AX10,AX13,AX16)=3,AX10+AX13+AX16,":"),":") -> : | AZ9: =IFERROR(IF(COUNT(AZ10,AZ13,AZ16)=3,AZ10+AZ13+AZ16,":"),":") -> : | BB9: =IFERROR(IF(COUNT(BB10,BB13,BB16)=3,BB10+BB13+BB16,":"),":") -> : | BD9: =IFERROR(IF(COUNT(BD10,BD13,BD16)=3,BD10+BD13+BD16,":"),":") -> : | BF9: =IFERROR(IF(COUNT(BF10,BF13,BF16)=3,BF10+BF13+BF16,":"),":") -> : | BH9: =IFERROR(IF(COUNT(BH10,BH13,BH16)=3,BH10+BH13+BH16,":"),":") -> : | BJ9: =IFERROR(IF(COUNT(BJ10,BJ13,BJ16)=3,BJ10+BJ13+BJ16,":"),":") -> : | BL9: =IFERROR(IF(COUNT(BL10,BL13,BL16)=3,BL10+BL13+BL16,":"),":") -> : | BN9: =IFERROR(IF(COUNT(BN10,BN13,BN16)=3,BN10+BN13+BN16,":"),":") -> : | CM9: RES | CN9: MF82
B10: MF_BI_21 | C10: MF.8.2.1 Water vapour from combustion | CM10: RES | CN10: MF821
B11: MF_BI_211 | C11: MF.8.2.1.1 Water vapour from moisture content of fuels | CM11: RES | CN11: MF8211
B12: MF_BI_212 | C12: MF.8.2.1.2 Water vapour from the oxidised hydrogen components of fuels | CM12: RES | CN12: MF8212
B13: MF_BI_22 | C13: MF.8.2.2 Gases from respiration of humans and livestock (CO2 and H2O), and from bacterial respiration from solid waste and wastewater (H2O) | CM13: RES | CN13: MF822
B14: MF_BI_221 | C14: MF.8.2.2.1 Carbon dioxide (CO2) | CM14: RES | CN14: MF8221
B15: MF_BI_222 | C15: MF.8.2.2.2 Water vapour (H2O) | CM15: RES | CN15: MF8222
B16: MF_BI_23 | C16: MF.8.2.3 Excorporated water from biomass products | CM16: RES | CN16: MF823

Sheet Table_H
A1: DATAENTRY | C1: Country: | D1: =intro!H8 ->  | F1: The values in Table H are automatically calculated based on data reported in Table A to Table G. Therefore the cells are protected. | CJ1: DEMAND_PROD | CK1: ACCOUNTING_ENTRY | CL1: COUNTERPART_AREA | CM1: BRIDGE_ITEM | CN1: MATERIAL | CO1: STO | CP1: UNIT_MEASURE | CQ1: UNIT_MULT | CR1: PRODUCT | CS1: SECTOR
B2: THS_T | C2: Unit | D2: Million National Currency | E2: 1000 Metric tonnes
C3: Table H: Indicators | F3: 1990 | H3: 1991 | J3: 1992 | L3: 1993 | N3: 1994 | P3: 1995 | R3: 1996 | T3: 1997 | V3: 1998 | X3: 1999 | Z3: 2000 | AB3: 2001 | AD3: 2002 | AF3: 2003 | AH3: 2004 | AJ3: 2005 | AL3: 2006 | AN3: 2007 | AP3: 2008 | AR3: 2009 | AT3: 2010 | AV3: 2011 | AX3: 2012 | AZ3: 2013 | BB3: 2014 | BD3: 2015 | BF3: 2016 | BH3: 2017 | BJ3: 2018 | BL3: 2019 | BN3: 2020
B4: DE | C4: H.1 Domestic extraction (DE) | F4: =Table_A!F68 -> : | H4: =Table_A!H68 -> : | J4: =Table_A!J68 -> : | L4: =Table_A!L68 -> : | N4: =Table_A!N68 -> : | P4: =Table_A!P68 -> : | R4: =Table_A!R68 -> : | T4: =Table_A!T68 -> : | V4: =Table_A!V68 -> : | X4: =Table_A!X68 -> : | Z4: =Table_A!Z68 -> : | AB4: =Table_A!AB68 -> : | AD4: =Table_A!AD68 -> : | AF4: =Table_A!AF68 -> : | AH4: =Table_A!AH68 -> : | AJ4: =Table_A!AJ68 -> : | AL4: =Table_A!AL68 -> : | AN4: =Table_A!AN68 -> : | AP4: =Table_A!AP68 -> : | AR4: =Table_A!AR68 -> : | AT4: =Table_A!AT68 -> : | AV4: =Table_A!AV68 -> : | AX4: =Table_A!AX68 -> : | AZ4: =Table_A!AZ68 -> : | BB4: =Table_A!BB68 -> : | BD4: =Table_A!BD68 -> : | BF4: =Table_A!BF68 -> : | BH4: =Table_A!BH68 -> : | BJ4: =Table_A!BJ68 -> : | BL4: =Table_A!BL68 -> : | BN4: =Table_A!BN68 -> : | CI4: REPORTED IN TABLE A
B5: IMP | C5: H.2 Imports | F5: =Table_B!F78 -> : | H5: =Table_B!H78 -> : | J5: =Table_B!J78 -> : | L5: =Table_B!L78 -> : | N5: =Table_B!N78 -> : | P5: =Table_B!P78 -> : | R5: =Table_B!R78 -> : | T5: =Table_B!T78 -> : | V5: =Table_B!V78 -> : | X5: =Table_B!X78 -> : | Z5: =Table_B!Z78 -> : | AB5: =Table_B!AB78 -> : | AD5: =Table_B!AD78 -> : | AF5: =Table_B!AF78 -> : | AH5: =Table_B!AH78 -> : | AJ5: =Table_B!AJ78 -> : | AL5: =Table_B!AL78 -> : | AN5: =Table_B!AN78 -> : | AP5: =Table_B!AP78 -> : | AR5: =Table_B!AR78 -> : | AT5: =Table_B!AT78 -> : | AV5: =Table_B!AV78 -> : | AX5: =Table_B!AX78 -> : | AZ5: =Table_B!AZ78 -> : | BB5: =Table_B!BB78 -> : | BD5: =Table_B!BD78 -> : | BF5: =Table_B!BF78 -> : | BH5: =Table_B!BH78 -> : | BJ5: =Table_B!BJ78 -> : | BL5: =Table_B!BL78 -> : | BN5: =Table_B!BN78 -> : | CI5: REPORTED IN TABLE B
B6: EXP | C6: H.3 Exports | F6: =Table_D!F78 -> : | H6: =Table_D!H78 -> : | J6: =Table_D!J78 -> : | L6: =Table_D!L78 -> : | N6: =Table_D!N78 -> : | P6: =Table_D!P78 -> : | R6: =Table_D!R78 -> : | T6: =Table_D!T78 -> : | V6: =Table_D!V78 -> : | X6: =Table_D!X78 -> : | Z6: =Table_D!Z78 -> : | AB6: =Table_D!AB78 -> : | AD6: =Table_D!AD78 -> : | AF6: =Table_D!AF78 -> : | AH6: =Table_D!AH78 -> : | AJ6: =Table_D!AJ78 -> : | AL6: =Table_D!AL78 -> : | AN6: =Table_D!AN78 -> : | AP6: =Table_D!AP78 -> : | AR6: =Table_D!AR78 -> : | AT6: =Table_D!AT78 -> : | AV6: =Table_D!AV78 -> : | AX6: =Table_D!AX78 -> : | AZ6: =Table_D!AZ78 -> : | BB6: =Table_D!BB78 -> : | BD6: =Table_D!BD78 -> : | BF6: =Table_D!BF78 -> : | BH6: =Table_D!BH78 -> : | BJ6: =Table_D!BJ78 -> : | BL6: =Table_D!BL78 -> : | BN6: =Table_D!BN78 -> : | CI6: REPORTED IN TABLE C
B7: DMI | C7: H.4 Direct material input (DMI) | F7: =IFERROR(F4+F5,":") -> : | H7: =IFERROR(H4+H5,":") -> : | J7: =IFERROR(J4+J5,":") -> : | L7: =IFERROR(L4+L5,":") -> : | N7: =IFERROR(N4+N5,":") -> : | P7: =IFERROR(P4+P5,":") -> : | R7: =IFERROR(R4+R5,":") -> : | T7: =IFERROR(T4+T5,":") -> : | V7: =IFERROR(V4+V5,":") -> : | X7: =IFERROR(X4+X5,":") -> : | Z7: =IFERROR(Z4+Z5,":") -> : | AB7: =IFERROR(AB4+AB5,":") -> : | AD7: =IFERROR(AD4+AD5,":") -> : | AF7: =IFERROR(AF4+AF5,":") -> : | AH7: =IFERROR(AH4+AH5,":") -> : | AJ7: =IFERROR(AJ4+AJ5,":") -> : | AL7: =IFERROR(AL4+AL5,":") -> : | AN7: =IFERROR(AN4+AN5,":") -> : | AP7: =IFERROR(AP4+AP5,":") -> : | AR7: =IFERROR(AR4+AR5,":") -> : | AT7: =IFERROR(AT4+AT5,":") -> : | AV7: =IFERROR(AV4+AV5,":") -> : | AX7: =IFERROR(AX4+AX5,":") -> : | AZ7: =IFERROR(AZ4+AZ5,":") -> : | BB7: =IFERROR(BB4+BB5,":") -> : | BD7: =IFERROR(BD4+BD5,":") -> : | BF7: =IFERROR(BF4+BF5,":") -> : | BH7: =IFERROR(BH4+BH5,":") -> : | BJ7: =IFERROR(BJ4+BJ5,":") -> : | BL7: =IFERROR(BL4+BL5,":") -> : | BN7: =IFERROR(BN4+BN5,":") -> : | CI7: CALCULATED | CJ7: P | CK7: C | CL7: W0 | CM7: RES | CN7: _T | CO7: BDMI | CP7: TN | CQ7: 3 | CR7: _T | CS7: S1
B8: DMC | C8: H.5 Domestic material consumption (DMC) | F8: =IFERROR(F7-F6,":") -> : | H8: =IFERROR(H7-H6,":") -> : | J8: =IFERROR(J7-J6,":") -> : | L8: =IFERROR(L7-L6,":") -> : | N8: =IFERROR(N7-N6,":") -> : | P8: =IFERROR(P7-P6,":") -> : | R8: =IFERROR(R7-R6,":") -> : | T8: =IFERROR(T7-T6,":") -> : | V8: =IFERROR(V7-V6,":") -> : | X8: =IFERROR(X7-X6,":") -> : | Z8: =IFERROR(Z7-Z6,":") -> : | AB8: =IFERROR(AB7-AB6,":") -> : | AD8: =IFERROR(AD7-AD6,":") -> : | AF8: =IFERROR(AF7-AF6,":") -> : | AH8: =IFERROR(AH7-AH6,":") -> : | AJ8: =IFERROR(AJ7-AJ6,":") -> : | AL8: =IFERROR(AL7-AL6,":") -> : | AN8: =IFERROR(AN7-AN6,":") -> : | AP8: =IFERROR(AP7-AP6,":") -> : | AR8: =IFERROR(AR7-AR6,":") -> : | AT8: =IFERROR(AT7-AT6,":") -> : | AV8: =IFERROR(AV7-AV6,":") -> : | AX8: =IFERROR(AX7-AX6,":") -> : | AZ8: =IFERROR(AZ7-AZ6,":") -> : | BB8: =IFERROR(BB7-BB6,":") -> : | BD8: =IFERROR(BD7-BD6,":") -> : | BF8: =IFERROR(BF7-BF6,":") -> : | BH8: =IFERROR(BH7-BH6,":") -> : | BJ8: =IFERROR(BJ7-BJ6,":") -> : | BL8: =IFERROR(BL7-BL6,":") -> : | BN8: =IFERROR(BN7-BN6,":") -> : | CI8: Kept for | CJ8: P | CK8: D | CL8: W0 | CM8: RES | CN8: _T | CO8: BDMC | CP8: TN | CQ8: 3 | CR8: _T | CS8: S1
B9: PTB | C9: H.6 Physical trade balance (PTB) | F9: =IFERROR(F5-F6,":") -> : | H9: =IFERROR(H5-H6,":") -> : | J9: =IFERROR(J5-J6,":") -> : | L9: =IFERROR(L5-L6,":") -> : | N9: =IFERROR(N5-N6,":") -> : | P9: =IFERROR(P5-P6,":") -> : | R9: =IFERROR(R5-R6,":") -> : | T9: =IFERROR(T5-T6,":") -> : | V9: =IFERROR(V5-V6,":") -> : | X9: =IFERROR(X5-X6,":") -> : | Z9: =IFERROR(Z5-Z6,":") -> : | AB9: =IFERROR(AB5-AB6,":") -> : | AD9: =IFERROR(AD5-AD6,":") -> : | AF9: =IFERROR(AF5-AF6,":") -> : | AH9: =IFERROR(AH5-AH6,":") -> : | AJ9: =IFERROR(AJ5-AJ6,":") -> : | AL9: =IFERROR(AL5-AL6,":") -> : | AN9: =IFERROR(AN5-AN6,":") -> : | AP9: =IFERROR(AP5-AP6,":") -> : | AR9: =IFERROR(AR5-AR6,":") -> : | AT9: =IFERROR(AT5-AT6,":") -> : | AV9: =IFERROR(AV5-AV6,":") -> : | AX9: =IFERROR(AX5-AX6,":") -> : | AZ9: =IFERROR(AZ5-AZ6,":") -> : | BB9: =IFERROR(BB5-BB6,":") -> : | BD9: =IFERROR(BD5-BD6,":") -> : | BF9: =IFERROR(BF5-BF6,":") -> : | BH9: =IFERROR(BH5-BH6,":") -> : | BJ9: =IFERROR(BJ5-BJ6,":") -> : | BL9: =IFERROR(BL5-BL6,":") -> : | BN9: =IFERROR(BN5-BN6,":") -> : | CI9: testing | CJ9: P | CK9: B | CL9: W1 | CM9: RES | CN9: _T | CO9: PPTB | CP9: TN | CQ9: 3 | CR9: _T | CS9: S1
B10: DPO | C10: H.7 Domestic processed output (DPO) | F10: =Table_F!F40 -> : | H10: =Table_F!H40 -> : | J10: =Table_F!J40 -> : | L10: =Table_F!L40 -> : | N10: =Table_F!N40 -> : | P10: =Table_F!P40 -> : | R10: =Table_F!R40 -> : | T10: =Table_F!T40 -> : | V10: =Table_F!V40 -> : | X10: =Table_F!X40 -> : | Z10: =Table_F!Z40 -> : | AB10: =Table_F!AB40 -> : | AD10: =Table_F!AD40 -> : | AF10: =Table_F!AF40 -> : | AH10: =Table_F!AH40 -> : | AJ10: =Table_F!AJ40 -> : | AL10: =Table_F!AL40 -> : | AN10: =Table_F!AN40 -> : | AP10: =Table_F!AP40 -> : | AR10: =Table_F!AR40 -> : | AT10: =Table_F!AT40 -> : | AV10: =Table_F!AV40 -> : | AX10: =Table_F!AX40 -> : | AZ10: =Table_F!AZ40 -> : | BB10: =Table_F!BB40 -> : | BD10: =Table_F!BD40 -> : | BF10: =Table_F!BF40 -> : | BH10: =Table_F!BH40 -> : | BJ10: =Table_F!BJ40 -> : | BL10: =Table_F!BL40 -> : | BN10: =Table_F!BN40 -> : | CI10: purposes | CJ10: P | CK10: EC | CL10: W2 | CM10: RES | CN10: _T | CO10: MDPO | CP10: TN | CQ10: 3 | CR10: _T | CS10: S1
B11: NAS | C11: H.8 Net additions to stock (NAS) | F11: =IFERROR(F8-F10+Table_G!F4-Table_G!F9,":") -> : | H11: =IFERROR(H8-H10+Table_G!H4-Table_G!H9,":") -> : | J11: =IFERROR(J8-J10+Table_G!J4-Table_G!J9,":") -> : | L11: =IFERROR(L8-L10+Table_G!L4-Table_G!L9,":") -> : | N11: =IFERROR(N8-N10+Table_G!N4-Table_G!N9,":") -> : | P11: =IFERROR(P8-P10+Table_G!P4-Table_G!P9,":") -> : | R11: =IFERROR(R8-R10+Table_G!R4-Table_G!R9,":") -> : | T11: =IFERROR(T8-T10+Table_G!T4-Table_G!T9,":") -> : | V11: =IFERROR(V8-V10+Table_G!V4-Table_G!V9,":") -> : | X11: =IFERROR(X8-X10+Table_G!X4-Table_G!X9,":") -> : | Z11: =IFERROR(Z8-Z10+Table_G!Z4-Table_G!Z9,":") -> : | AB11: =IFERROR(AB8-AB10+Table_G!AB4-Table_G!AB9,":") -> : | AD11: =IFERROR(AD8-AD10+Table_G!AD4-Table_G!AD9,":") -> : | AF11: =IFERROR(AF8-AF10+Table_G!AF4-Table_G!AF9,":") -> : | AH11: =IFERROR(AH8-AH10+Table_G!AH4-Table_G!AH9,":") -> : | AJ11: =IFERROR(AJ8-AJ10+Table_G!AJ4-Table_G!AJ9,":") -> : | AL11: =IFERROR(AL8-AL10+Table_G!AL4-Table_G!AL9,":") -> : | AN11: =IFERROR(AN8-AN10+Table_G!AN4-Table_G!AN9,":") -> : | AP11: =IFERROR(AP8-AP10+Table_G!AP4-Table_G!AP9,":") -> : | AR11: =IFERROR(AR8-AR10+Table_G!AR4-Table_G!AR9,":") -> : | AT11: =IFERROR(AT8-AT10+Table_G!AT4-Table_G!AT9,":") -> : | AV11: =IFERROR(AV8-AV10+Table_G!AV4-Table_G!AV9,":") -> : | AX11: =IFERROR(AX8-AX10+Table_G!AX4-Table_G!AX9,":") -> : | AZ11: =IFERROR(AZ8-AZ10+Table_G!AZ4-Table_G!AZ9,":") -> : | BB11: =IFERROR(BB8-BB10+Table_G!BB4-Table_G!BB9,":") -> : | BD11: =IFERROR(BD8-BD10+Table_G!BD4-Table_G!BD9,":") -> : | BF11: =IFERROR(BF8-BF10+Table_G!BF4-Table_G!BF9,":") -> : | BH11: =IFERROR(BH8-BH10+Table_G!BH4-Table_G!BH9,":") -> : | BJ11: =IFERROR(BJ8-BJ10+Table_G!BJ4-Table_G!BJ9,":") -> : | BL11: =IFERROR(BL8-BL10+Table_G!BL4-Table_G!BL9,":") -> : | BN11: =IFERROR(BN8-BN10+Table_G!BN4-Table_G!BN9,":") -> : | CJ11: P | CK11: A | CL11: W2 | CM11: RES | CN11: _T | CO11: KNAS | CP11: TN | CQ11: 3 | CR11: _T | CS11: S1

Sheet Table_I
A1: DATAENTRY | C1: Country: | D1: =intro!H8 ->  | F1: The cells highlighted in light grey are automatically calculated based on data reported in Table A and Table I and the cells are protected . Please fill in only the white cells. | CJ1: DEMAND_PROD | CK1: ACCOUNTING_ENTRY | CL1: COUNTERPART_AREA | CM1: BRIDGE_ITEM | CN1: MATERIAL | CO1: STO | CP1: UNIT_MEASURE | CQ1: UNIT_MULT | CR1: PRODUCT | CS1: SECTOR
B2: THS_T | C2: Unit | D2: Million National Currency | E2: 1000 Metric tonnes
C3: Table I: Material flow accounts in raw material equivalents (RME) | F3: 1990 | H3: 1991 | J3: 1992 | L3: 1993 | N3: 1994 | P3: 1995 | R3: 1996 | T3: 1997 | V3: 1998 | X3: 1999 | Z3: 2000 | AB3: 2001 | AD3: 2002 | AF3: 2003 | AH3: 2004 | AJ3: 2005 | AL3: 2006 | AN3: 2007 | AP3: 2008 | AR3: 2009 | AT3: 2010 | AV3: 2011 | AX3: 2012 | AZ3: 2013 | BB3: 2014 | BD3: 2015 | BF3: 2016 | BH3: 2017 | BJ3: 2018 | BL3: 2019 | BN3: 2020
A4: DE | B4: TOTAL | C4: Domestic extraction (DE) | F4: =IFERROR(IF(COUNT(Table_A!F4,Table_A!F31,Table_A!F48,Table_A!F59)=4,IF(ISBLANK(F9), ":",Table_A!F4+Table_A!F31+Table_A!F48+Table_A!F59),":"),":") -> : | G4: =IF(ISBLANK(F9), "",""&Table_A!G68) ->  | H4: =IFERROR(IF(COUNT(Table_A!H4,Table_A!H31,Table_A!H48,Table_A!H59)=4,IF(ISBLANK(H9), ":",Table_A!H4+Table_A!H31+Table_A!H48+Table_A!H59),":"),":") -> : | I4: =IF(ISBLANK(H9), "",""&Table_A!I68) ->  | J4: =IFERROR(IF(COUNT(Table_A!J4,Table_A!J31,Table_A!J48,Table_A!J59)=4,IF(ISBLANK(J9), ":",Table_A!J4+Table_A!J31+Table_A!J48+Table_A!J59),":"),":") -> : | K4: =IF(ISBLANK(J9), "",""&Table_A!K68) ->  | L4: =IFERROR(IF(COUNT(Table_A!L4,Table_A!L31,Table_A!L48,Table_A!L59)=4,IF(ISBLANK(L9), ":",Table_A!L4+Table_A!L31+Table_A!L48+Table_A!L59),":"),":") -> : | M4: =IF(ISBLANK(L9), "",""&Table_A!M68) ->  | N4: =IFERROR(IF(COUNT(Table_A!N4,Table_A!N31,Table_A!N48,Table_A!N59)=4,IF(ISBLANK(N9), ":",Table_A!N4+Table_A!N31+Table_A!N48+Table_A!N59),":"),":") -> : | O4: =IF(ISBLANK(N9), "",""&Table_A!O68) ->  | P4: =IFERROR(IF(COUNT(Table_A!P4,Table_A!P31,Table_A!P48,Table_A!P59)=4,IF(ISBLANK(P9), ":",Table_A!P4+Table_A!P31+Table_A!P48+Table_A!P59),":"),":") -> : | Q4: =IF(ISBLANK(P9), "",""&Table_A!Q68) ->  | R4: =IFERROR(IF(COUNT(Table_A!R4,Table_A!R31,Table_A!R48,Table_A!R59)=4,IF(ISBLANK(R9), ":",Table_A!R4+Table_A!R31+Table_A!R48+Table_A!R59),":"),":") -> : | S4: =IF(ISBLANK(R9), "",""&Table_A!S68) ->  | T4: =IFERROR(IF(COUNT(Table_A!T4,Table_A!T31,Table_A!T48,Table_A!T59)=4,IF(ISBLANK(T9), ":",Table_A!T4+Table_A!T31+Table_A!T48+Table_A!T59),":"),":") -> : | U4: =IF(ISBLANK(T9), "",""&Table_A!U68) ->  | V4: =IFERROR(IF(COUNT(Table_A!V4,Table_A!V31,Table_A!V48,Table_A!V59)=4,IF(ISBLANK(V9), ":",Table_A!V4+Table_A!V31+Table_A!V48+Table_A!V59),":"),":") -> : | W4: =IF(ISBLANK(V9), "",""&Table_A!W68) ->  | X4: =IFERROR(IF(COUNT(Table_A!X4,Table_A!X31,Table_A!X48,Table_A!X59)=4,IF(ISBLANK(X9), ":",Table_A!X4+Table_A!X31+Table_A!X48+Table_A!X59),":"),":") -> : | Y4: =IF(ISBLANK(X9), "",""&Table_A!Y68) ->  | Z4: =IFERROR(IF(COUNT(Table_A!Z4,Table_A!Z31,Table_A!Z48,Table_A!Z59)=4,IF(ISBLANK(Z9), ":",Table_A!Z4+Table_A!Z31+Table_A!Z48+Table_A!Z59),":"),":") -> : | AA4: =IF(ISBLANK(Z9), "",""&Table_A!AA68) ->  | AB4: =IFERROR(IF(COUNT(Table_A!AB4,Table_A!AB31,Table_A!AB48,Table_A!AB59)=4,IF(ISBLANK(AB9), ":",Table_A!AB4+Table_A!AB31+Table_A!AB48+Table_A!AB59),":"),":") -> : | AC4: =IF(ISBLANK(AB9), "",""&Table_A!AC68) ->  | AD4: =IFERROR(IF(COUNT(Table_A!AD4,Table_A!AD31,Table_A!AD48,Table_A!AD59)=4,IF(ISBLANK(AD9), ":",Table_A!AD4+Table_A!AD31+Table_A!AD48+Table_A!AD59),":"),":") -> : | AE4: =IF(ISBLANK(AD9), "",""&Table_A!AE68) ->  | AF4: =IFERROR(IF(COUNT(Table_A!AF4,Table_A!AF31,Table_A!AF48,Table_A!AF59)=4,IF(ISBLANK(AF9), ":",Table_A!AF4+Table_A!AF31+Table_A!AF48+Table_A!AF59),":"),":") -> : | AG4: =IF(ISBLANK(AF9), "",""&Table_A!AG68) ->  | AH4: =IFERROR(IF(COUNT(Table_A!AH4,Table_A!AH31,Table_A!AH48,Table_A!AH59)=4,IF(ISBLANK(AH9), ":",Table_A!AH4+Table_A!AH31+Table_A!AH48+Table_A!AH59),":"),":") -> : | AI4: =IF(ISBLANK(AH9), "",""&Table_A!AI68) ->  | AJ4: =IFERROR(IF(COUNT(Table_A!AJ4,Table_A!AJ31,Table_A!AJ48,Table_A!AJ59)=4,IF(ISBLANK(AJ9), ":",Table_A!AJ4+Table_A!AJ31+Table_A!AJ48+Table_A!AJ59),":"),":") -> : | AK4: =IF(ISBLANK(AJ9), "",""&Table_A!AK68) ->  | AL4: =IFERROR(IF(COUNT(Table_A!AL4,Table_A!AL31,Table_A!AL48,Table_A!AL59)=4,IF(ISBLANK(AL9), ":",Table_A!AL4+Table_A!AL31+Table_A!AL48+Table_A!AL59),":"),":") -> : | AM4: =IF(ISBLANK(AL9), "",""&Table_A!AM68) ->  | AN4: =IFERROR(IF(COUNT(Table_A!AN4,Table_A!AN31,Table_A!AN48,Table_A!AN59)=4,IF(ISBLANK(AN9), ":",Table_A!AN4+Table_A!AN31+Table_A!AN48+Table_A!AN59),":"),":") -> : | AO4: =IF(ISBLANK(AN9), "",""&Table_A!AO68) ->  | AP4: =IFERROR(IF(COUNT(Table_A!AP4,Table_A!AP31,Table_A!AP48,Table_A!AP59)=4,IF(ISBLANK(AP9), ":",Table_A!AP4+Table_A!AP31+Table_A!AP48+Table_A!AP59),":"),":") -> : | AQ4: =IF(ISBLANK(AP9), "",""&Table_A!AQ68) ->  | AR4: =IFERROR(IF(COUNT(Table_A!AR4,Table_A!AR31,Table_A!AR48,Table_A!AR59)=4,IF(ISBLANK(AR9), ":",Table_A!AR4+Table_A!AR31+Table_A!AR48+Table_A!AR59),":"),":") -> : | AS4: =IF(ISBLANK(AR9), "",""&Table_A!AS68) ->  | AT4: =IFERROR(IF(COUNT(Table_A!AT4,Table_A!AT31,Table_A!AT48,Table_A!AT59)=4,IF(ISBLANK(AT9), ":",Table_A!AT4+Table_A!AT31+Table_A!AT48+Table_A!AT59),":"),":") -> : | AU4: =IF(ISBLANK(AT9), "",""&Table_A!AU68) ->  | AV4: =IFERROR(IF(COUNT(Table_A!AV4,Table_A!AV31,Table_A!AV48,Table_A!AV59)=4,IF(ISBLANK(AV9), ":",Table_A!AV4+Table_A!AV31+Table_A!AV48+Table_A!AV59),":"),":") -> : | AW4: =IF(ISBLANK(AV9), "",""&Table_A!AW68) ->  | AX4: =IFERROR(IF(COUNT(Table_A!AX4,Table_A!AX31,Table_A!AX48,Table_A!AX59)=4,IF(ISBLANK(AX9), ":",Table_A!AX4+Table_A!AX31+Table_A!AX48+Table_A!AX59),":"),":") -> : | AY4: =IF(ISBLANK(AX9), "",""&Table_A!AY68) ->  | AZ4: =IFERROR(IF(COUNT(Table_A!AZ4,Table_A!AZ31,Table_A!AZ48,Table_A!AZ59)=4,IF(ISBLANK(AZ9), ":",Table_A!AZ4+Table_A!AZ31+Table_A!AZ48+Table_A!AZ59),":"),":") -> : | BA4: =IF(ISBLANK(AZ9), "",""&Table_A!BA68) ->  | BB4: =IFERROR(IF(COUNT(Table_A!BB4,Table_A!BB31,Table_A!BB48,Table_A!BB59)=4,IF(ISBLANK(BB9), ":",Table_A!BB4+Table_A!BB31+Table_A!BB48+Table_A!BB59),":"),":") -> : | BC4: =IF(ISBLANK(BB9), "",""&Table_A!BC68) ->  | BD4: =IFERROR(IF(COUNT(Table_A!BD4,Table_A!BD31,Table_A!BD48,Table_A!BD59)=4,IF(ISBLANK(BD9), ":",Table_A!BD4+Table_A!BD31+Table_A!BD48+Table_A!BD59),":"),":") -> : | BE4: =IF(ISBLANK(BD9), "",""&Table_A!BE68) ->  | BF4: =IFERROR(IF(COUNT(Table_A!BF4,Table_A!BF31,Table_A!BF48,Table_A!BF59)=4,IF(ISBLANK(BF9), ":",Table_A!BF4+Table_A!BF31+Table_A!BF48+Table_A!BF59),":"),":") -> : | BG4: =IF(ISBLANK(BF9), "",""&Table_A!BG68) ->  | BH4: =IFERROR(IF(COUNT(Table_A!BH4,Table_A!BH31,Table_A!BH48,Table_A!BH59)=4,IF(ISBLANK(BH9), ":",Table_A!BH4+Table_A!BH31+Table_A!BH48+Table_A!BH59),":"),":") -> : | BI4: =IF(ISBLANK(BH9), "",""&Table_A!BI68) ->  | BJ4: =IFERROR(IF(COUNT(Table_A!BJ4,Table_A!BJ31,Table_A!BJ48,Table_A!BJ59)=4,IF(ISBLANK(BJ9), ":",Table_A!BJ4+Table_A!BJ31+Table_A!BJ48+Table_A!BJ59),":"),":") -> : | BK4: =IF(ISBLANK(BJ9), "",""&Table_A!BK68) ->  | BL4: =IFERROR(IF(COUNT(Table_A!BL4,Table_A!BL31,Table_A!BL48,Table_A!BL59)=4,IF(ISBLANK(BL9), ":",Table_A!BL4+Table_A!BL31+Table_A!BL48+Table_A!BL59),":"),":") -> : | BM4: =IF(ISBLANK(BL9), "",""&Table_A!BM68) ->  | BN4: =IFERROR(IF(COUNT(Table_A!BN4,Table_A!BN31,Table_A!BN48,Table_A!BN59)=4,IF(ISBLANK(BN9), ":",Table_A!BN4+Table_A!BN31+Table_A!BN48+Table_A!BN59),":"),":") -> : | BO4: =IF(ISBLANK(BN9), "",""&Table_A!BO68) -> 
A5: DE | B5: MF1 | C5: MF.1 Biomass | F5: =IFERROR(IF(COUNT(Table_A!F4)=1,IF(ISBLANK(F10), ":",Table_A!F4),":"),":") -> : | G5: =IF(ISBLANK(F10), "",""&Table_A!G4) ->  | H5: =IFERROR(IF(COUNT(Table_A!H4)=1,IF(ISBLANK(H10), ":",Table_A!H4),":"),":") -> : | I5: =IF(ISBLANK(H10), "",""&Table_A!I4) ->  | J5: =IFERROR(IF(COUNT(Table_A!J4)=1,IF(ISBLANK(J10), ":",Table_A!J4),":"),":") -> : | K5: =IF(ISBLANK(J10), "",""&Table_A!K4) ->  | L5: =IFERROR(IF(COUNT(Table_A!L4)=1,IF(ISBLANK(L10), ":",Table_A!L4),":"),":") -> : | M5: =IF(ISBLANK(L10), "",""&Table_A!M4) ->  | N5: =IFERROR(IF(COUNT(Table_A!N4)=1,IF(ISBLANK(N10), ":",Table_A!N4),":"),":") -> : | O5: =IF(ISBLANK(N10), "",""&Table_A!O4) ->  | P5: =IFERROR(IF(COUNT(Table_A!P4)=1,IF(ISBLANK(P10), ":",Table_A!P4),":"),":") -> : | Q5: =IF(ISBLANK(P10), "",""&Table_A!Q4) ->  | R5: =IFERROR(IF(COUNT(Table_A!R4)=1,IF(ISBLANK(R10), ":",Table_A!R4),":"),":") -> : | S5: =IF(ISBLANK(R10), "",""&Table_A!S4) ->  | T5: =IFERROR(IF(COUNT(Table_A!T4)=1,IF(ISBLANK(T10), ":",Table_A!T4),":"),":") -> : | U5: =IF(ISBLANK(T10), "",""&Table_A!U4) ->  | V5: =IFERROR(IF(COUNT(Table_A!V4)=1,IF(ISBLANK(V10), ":",Table_A!V4),":"),":") -> : | W5: =IF(ISBLANK(V10), "",""&Table_A!W4) ->  | X5: =IFERROR(IF(COUNT(Table_A!X4)=1,IF(ISBLANK(X10), ":",Table_A!X4),":"),":") -> : | Y5: =IF(ISBLANK(X10), "",""&Table_A!Y4) ->  | Z5: =IFERROR(IF(COUNT(Table_A!Z4)=1,IF(ISBLANK(Z10), ":",Table_A!Z4),":"),":") -> : | AA5: =IF(ISBLANK(Z10), "",""&Table_A!AA4) ->  | AB5: =IFERROR(IF(COUNT(Table_A!AB4)=1,IF(ISBLANK(AB10), ":",Table_A!AB4),":"),":") -> : | AC5: =IF(ISBLANK(AB10), "",""&Table_A!AC4) ->  | AD5: =IFERROR(IF(COUNT(Table_A!AD4)=1,IF(ISBLANK(AD10), ":",Table_A!AD4),":"),":") -> : | AE5: =IF(ISBLANK(AD10), "",""&Table_A!AE4) ->  | AF5: =IFERROR(IF(COUNT(Table_A!AF4)=1,IF(ISBLANK(AF10), ":",Table_A!AF4),":"),":") -> : | AG5: =IF(ISBLANK(AF10), "",""&Table_A!AG4) ->  | AH5: =IFERROR(IF(COUNT(Table_A!AH4)=1,IF(ISBLANK(AH10), ":",Table_A!AH4),":"),":") -> : | AI5: =IF(ISBLANK(AH10), "",""&Table_A!AI4) ->  | AJ5: =IFERROR(IF(COUNT(Table_A!AJ4)=1,IF(ISBLANK(AJ10), ":",Table_A!AJ4),":"),":") -> : | AK5: =IF(ISBLANK(AJ10), "",""&Table_A!AK4) ->  | AL5: =IFERROR(IF(COUNT(Table_A!AL4)=1,IF(ISBLANK(AL10), ":",Table_A!AL4),":"),":") -> : | AM5: =IF(ISBLANK(AL10), "",""&Table_A!AM4) ->  | AN5: =IFERROR(IF(COUNT(Table_A!AN4)=1,IF(ISBLANK(AN10), ":",Table_A!AN4),":"),":") -> : | AO5: =IF(ISBLANK(AN10), "",""&Table_A!AO4) ->  | AP5: =IFERROR(IF(COUNT(Table_A!AP4)=1,IF(ISBLANK(AP10), ":",Table_A!AP4),":"),":") -> : | AQ5: =IF(ISBLANK(AP10), "",""&Table_A!AQ4) ->  | AR5: =IFERROR(IF(COUNT(Table_A!AR4)=1,IF(ISBLANK(AR10), ":",Table_A!AR4),":"),":") -> : | AS5: =IF(ISBLANK(AR10), "",""&Table_A!AS4) ->  | AT5: =IFERROR(IF(COUNT(Table_A!AT4)=1,IF(ISBLANK(AT10), ":",Table_A!AT4),":"),":") -> : | AU5: =IF(ISBLANK(AT10), "",""&Table_A!AU4) ->  | AV5: =IFERROR(IF(COUNT(Table_A!AV4)=1,IF(ISBLANK(AV10), ":",Table_A!AV4),":"),":") -> : | AW5: =IF(ISBLANK(AV10), "",""&Table_A!AW4) ->  | AX5: =IFERROR(IF(COUNT(Table_A!AX4)=1,IF(ISBLANK(AX10), ":",Table_A!AX4),":"),":") -> : | AY5: =IF(ISBLANK(AX10), "",""&Table_A!AY4) ->  | AZ5: =IFERROR(IF(COUNT(Table_A!AZ4)=1,IF(ISBLANK(AZ10), ":",Table_A!AZ4),":"),":") -> : | BA5: =IF(ISBLANK(AZ10), "",""&Table_A!BA4) ->  | BB5: =IFERROR(IF(COUNT(Table_A!BB4)=1,IF(ISBLANK(BB10), ":",Table_A!BB4),":"),":") -> : | BC5: =IF(ISBLANK(BB10), "",""&Table_A!BC4) ->  | BD5: =IFERROR(IF(COUNT(Table_A!BD4)=1,IF(ISBLANK(BD10), ":",Table_A!BD4),":"),":") -> : | BE5: =IF(ISBLANK(BD10), "",""&Table_A!BE4) ->  | BF5: =IFERROR(IF(COUNT(Table_A!BF4)=1,IF(ISBLANK(BF10), ":",Table_A!BF4),":"),":") -> : | BG5: =IF(ISBLANK(BF10), "",""&Table_A!BG4) ->  | BH5: =IFERROR(IF(COUNT(Table_A!BH4)=1,IF(ISBLANK(BH10), ":",Table_A!BH4),":"),":") -> : | BI5: =IF(ISBLANK(BH10), "",""&Table_A!BI4) ->  | BJ5: =IFERROR(IF(COUNT(Table_A!BJ4)=1,IF(ISBLANK(BJ10), ":",Table_A!BJ4),":"),":") -> : | BK5: =IF(ISBLANK(BJ10), "",""&Table_A!BK4) ->  | BL5: =IFERROR(IF(COUNT(Table_A!BL4)=1,IF(ISBLANK(BL10), ":",Table_A!BL4),":"),":") -> : | BM5: =IF(ISBLANK(BL10), "",""&Table_A!BM4) ->  | BN5: =IFERROR(IF(COUNT(Table_A!BN4)=1,IF(ISBLANK(BN10), ":",Table_A!BN4),":"),":") -> : | BO5: =IF(ISBLANK(BN10), "",""&Table_A!BO4) -> 
A6: DE | B6: MF2 | C6: MF.2 Metal ores (gross ores) | F6: =IFERROR(IF(COUNT(Table_A!F31)=1,IF(ISBLANK(F11), ":",Table_A!F31),":"),":") -> : | G6: =IF(ISBLANK(F11), "",""&Table_A!G31) ->  | H6: =IFERROR(IF(COUNT(Table_A!H31)=1,IF(ISBLANK(H11), ":",Table_A!H31),":"),":") -> : | I6: =IF(ISBLANK(H11), "",""&Table_A!I31) ->  | J6: =IFERROR(IF(COUNT(Table_A!J31)=1,IF(ISBLANK(J11), ":",Table_A!J31),":"),":") -> : | K6: =IF(ISBLANK(J11), "",""&Table_A!K31) ->  | L6: =IFERROR(IF(COUNT(Table_A!L31)=1,IF(ISBLANK(L11), ":",Table_A!L31),":"),":") -> : | M6: =IF(ISBLANK(L11), "",""&Table_A!M31) ->  | N6: =IFERROR(IF(COUNT(Table_A!N31)=1,IF(ISBLANK(N11), ":",Table_A!N31),":"),":") -> : | O6: =IF(ISBLANK(N11), "",""&Table_A!O31) ->  | P6: =IFERROR(IF(COUNT(Table_A!P31)=1,IF(ISBLANK(P11), ":",Table_A!P31),":"),":") -> : | Q6: =IF(ISBLANK(P11), "",""&Table_A!Q31) ->  | R6: =IFERROR(IF(COUNT(Table_A!R31)=1,IF(ISBLANK(R11), ":",Table_A!R31),":"),":") -> : | S6: =IF(ISBLANK(R11), "",""&Table_A!S31) ->  | T6: =IFERROR(IF(COUNT(Table_A!T31)=1,IF(ISBLANK(T11), ":",Table_A!T31),":"),":") -> : | U6: =IF(ISBLANK(T11), "",""&Table_A!U31) ->  | V6: =IFERROR(IF(COUNT(Table_A!V31)=1,IF(ISBLANK(V11), ":",Table_A!V31),":"),":") -> : | W6: =IF(ISBLANK(V11), "",""&Table_A!W31) ->  | X6: =IFERROR(IF(COUNT(Table_A!X31)=1,IF(ISBLANK(X11), ":",Table_A!X31),":"),":") -> : | Y6: =IF(ISBLANK(X11), "",""&Table_A!Y31) ->  | Z6: =IFERROR(IF(COUNT(Table_A!Z31)=1,IF(ISBLANK(Z11), ":",Table_A!Z31),":"),":") -> : | AA6: =IF(ISBLANK(Z11), "",""&Table_A!AA31) ->  | AB6: =IFERROR(IF(COUNT(Table_A!AB31)=1,IF(ISBLANK(AB11), ":",Table_A!AB31),":"),":") -> : | AC6: =IF(ISBLANK(AB11), "",""&Table_A!AC31) ->  | AD6: =IFERROR(IF(COUNT(Table_A!AD31)=1,IF(ISBLANK(AD11), ":",Table_A!AD31),":"),":") -> : | AE6: =IF(ISBLANK(AD11), "",""&Table_A!AE31) ->  | AF6: =IFERROR(IF(COUNT(Table_A!AF31)=1,IF(ISBLANK(AF11), ":",Table_A!AF31),":"),":") -> : | AG6: =IF(ISBLANK(AF11), "",""&Table_A!AG31) ->  | AH6: =IFERROR(IF(COUNT(Table_A!AH31)=1,IF(ISBLANK(AH11), ":",Table_A!AH31),":"),":") -> : | AI6: =IF(ISBLANK(AH11), "",""&Table_A!AI31) ->  | AJ6: =IFERROR(IF(COUNT(Table_A!AJ31)=1,IF(ISBLANK(AJ11), ":",Table_A!AJ31),":"),":") -> : | AK6: =IF(ISBLANK(AJ11), "",""&Table_A!AK31) ->  | AL6: =IFERROR(IF(COUNT(Table_A!AL31)=1,IF(ISBLANK(AL11), ":",Table_A!AL31),":"),":") -> : | AM6: =IF(ISBLANK(AL11), "",""&Table_A!AM31) ->  | AN6: =IFERROR(IF(COUNT(Table_A!AN31)=1,IF(ISBLANK(AN11), ":",Table_A!AN31),":"),":") -> : | AO6: =IF(ISBLANK(AN11), "",""&Table_A!AO31) ->  | AP6: =IFERROR(IF(COUNT(Table_A!AP31)=1,IF(ISBLANK(AP11), ":",Table_A!AP31),":"),":") -> : | AQ6: =IF(ISBLANK(AP11), "",""&Table_A!AQ31) ->  | AR6: =IFERROR(IF(COUNT(Table_A!AR31)=1,IF(ISBLANK(AR11), ":",Table_A!AR31),":"),":") -> : | AS6: =IF(ISBLANK(AR11), "",""&Table_A!AS31) ->  | AT6: =IFERROR(IF(COUNT(Table_A!AT31)=1,IF(ISBLANK(AT11), ":",Table_A!AT31),":"),":") -> : | AU6: =IF(ISBLANK(AT11), "",""&Table_A!AU31) ->  | AV6: =IFERROR(IF(COUNT(Table_A!AV31)=1,IF(ISBLANK(AV11), ":",Table_A!AV31),":"),":") -> : | AW6: =IF(ISBLANK(AV11), "",""&Table_A!AW31) ->  | AX6: =IFERROR(IF(COUNT(Table_A!AX31)=1,IF(ISBLANK(AX11), ":",Table_A!AX31),":"),":") -> : | AY6: =IF(ISBLANK(AX11), "",""&Table_A!AY31) ->  | AZ6: =IFERROR(IF(COUNT(Table_A!AZ31)=1,IF(ISBLANK(AZ11), ":",Table_A!AZ31),":"),":") -> : | BA6: =IF(ISBLANK(AZ11), "",""&Table_A!BA31) ->  | BB6: =IFERROR(IF(COUNT(Table_A!BB31)=1,IF(ISBLANK(BB11), ":",Table_A!BB31),":"),":") -> : | BC6: =IF(ISBLANK(BB11), "",""&Table_A!BC31) ->  | BD6: =IFERROR(IF(COUNT(Table_A!BD31)=1,IF(ISBLANK(BD11), ":",Table_A!BD31),":"),":") -> : | BE6: =IF(ISBLANK(BD11), "",""&Table_A!BE31) ->  | BF6: =IFERROR(IF(COUNT(Table_A!BF31)=1,IF(ISBLANK(BF11), ":",Table_A!BF31),":"),":") -> : | BG6: =IF(ISBLANK(BF11), "",""&Table_A!BG31) ->  | BH6: =IFERROR(IF(COUNT(Table_A!BH31)=1,IF(ISBLANK(BH11), ":",Table_A!BH31),":"),":") -> : | BI6: =IF(ISBLANK(BH11), "",""&Table_A!BI31) ->  | BJ6: =IFERROR(IF(COUNT(Table_A!BJ31)=1,IF(ISBLANK(BJ11), ":",Table_A!BJ31),":"),":") -> : | BK6: =IF(ISBLANK(BJ11), "",""&Table_A!BK31) ->  | BL6: =IFERROR(IF(COUNT(Table_A!BL31)=1,IF(ISBLANK(BL11), ":",Table_A!BL31),":"),":") -> : | BM6: =IF(ISBLANK(BL11), "",""&Table_A!BM31) ->  | BN6: =IFERROR(IF(COUNT(Table_A!BN31)=1,IF(ISBLANK(BN11), ":",Table_A!BN31),":"),":") -> : | BO6: =IF(ISBLANK(BN11), "",""&Table_A!BO31) ->  | CI6: REPORTED IN TABLE A
A7: DE | B7: MF3 | C7: MF.3 Non-metalic minerals | F7: =IFERROR(IF(COUNT(Table_A!F48)=1,IF(ISBLANK(F12), ":",Table_A!F48),":"),":") -> : | G7: =IF(ISBLANK(F12), "",""&Table_A!G48) ->  | H7: =IFERROR(IF(COUNT(Table_A!H48)=1,IF(ISBLANK(H12), ":",Table_A!H48),":"),":") -> : | I7: =IF(ISBLANK(H12), "",""&Table_A!I48) ->  | J7: =IFERROR(IF(COUNT(Table_A!J48)=1,IF(ISBLANK(J12), ":",Table_A!J48),":"),":") -> : | K7: =IF(ISBLANK(J12), "",""&Table_A!K48) ->  | L7: =IFERROR(IF(COUNT(Table_A!L48)=1,IF(ISBLANK(L12), ":",Table_A!L48),":"),":") -> : | M7: =IF(ISBLANK(L12), "",""&Table_A!M48) ->  | N7: =IFERROR(IF(COUNT(Table_A!N48)=1,IF(ISBLANK(N12), ":",Table_A!N48),":"),":") -> : | O7: =IF(ISBLANK(N12), "",""&Table_A!O48) ->  | P7: =IFERROR(IF(COUNT(Table_A!P48)=1,IF(ISBLANK(P12), ":",Table_A!P48),":"),":") -> : | Q7: =IF(ISBLANK(P12), "",""&Table_A!Q48) ->  | R7: =IFERROR(IF(COUNT(Table_A!R48)=1,IF(ISBLANK(R12), ":",Table_A!R48),":"),":") -> : | S7: =IF(ISBLANK(R12), "",""&Table_A!S48) ->  | T7: =IFERROR(IF(COUNT(Table_A!T48)=1,IF(ISBLANK(T12), ":",Table_A!T48),":"),":") -> : | U7: =IF(ISBLANK(T12), "",""&Table_A!U48) ->  | V7: =IFERROR(IF(COUNT(Table_A!V48)=1,IF(ISBLANK(V12), ":",Table_A!V48),":"),":") -> : | W7: =IF(ISBLANK(V12), "",""&Table_A!W48) ->  | X7: =IFERROR(IF(COUNT(Table_A!X48)=1,IF(ISBLANK(X12), ":",Table_A!X48),":"),":") -> : | Y7: =IF(ISBLANK(X12), "",""&Table_A!Y48) ->  | Z7: =IFERROR(IF(COUNT(Table_A!Z48)=1,IF(ISBLANK(Z12), ":",Table_A!Z48),":"),":") -> : | AA7: =IF(ISBLANK(Z12), "",""&Table_A!AA48) ->  | AB7: =IFERROR(IF(COUNT(Table_A!AB48)=1,IF(ISBLANK(AB12), ":",Table_A!AB48),":"),":") -> : | AC7: =IF(ISBLANK(AB12), "",""&Table_A!AC48) ->  | AD7: =IFERROR(IF(COUNT(Table_A!AD48)=1,IF(ISBLANK(AD12), ":",Table_A!AD48),":"),":") -> : | AE7: =IF(ISBLANK(AD12), "",""&Table_A!AE48) ->  | AF7: =IFERROR(IF(COUNT(Table_A!AF48)=1,IF(ISBLANK(AF12), ":",Table_A!AF48),":"),":") -> : | AG7: =IF(ISBLANK(AF12), "",""&Table_A!AG48) ->  | AH7: =IFERROR(IF(COUNT(Table_A!AH48)=1,IF(ISBLANK(AH12), ":",Table_A!AH48),":"),":") -> : | AI7: =IF(ISBLANK(AH12), "",""&Table_A!AI48) ->  | AJ7: =IFERROR(IF(COUNT(Table_A!AJ48)=1,IF(ISBLANK(AJ12), ":",Table_A!AJ48),":"),":") -> : | AK7: =IF(ISBLANK(AJ12), "",""&Table_A!AK48) ->  | AL7: =IFERROR(IF(COUNT(Table_A!AL48)=1,IF(ISBLANK(AL12), ":",Table_A!AL48),":"),":") -> : | AM7: =IF(ISBLANK(AL12), "",""&Table_A!AM48) ->  | AN7: =IFERROR(IF(COUNT(Table_A!AN48)=1,IF(ISBLANK(AN12), ":",Table_A!AN48),":"),":") -> : | AO7: =IF(ISBLANK(AN12), "",""&Table_A!AO48) ->  | AP7: =IFERROR(IF(COUNT(Table_A!AP48)=1,IF(ISBLANK(AP12), ":",Table_A!AP48),":"),":") -> : | AQ7: =IF(ISBLANK(AP12), "",""&Table_A!AQ48) ->  | AR7: =IFERROR(IF(COUNT(Table_A!AR48)=1,IF(ISBLANK(AR12), ":",Table_A!AR48),":"),":") -> : | AS7: =IF(ISBLANK(AR12), "",""&Table_A!AS48) ->  | AT7: =IFERROR(IF(COUNT(Table_A!AT48)=1,IF(ISBLANK(AT12), ":",Table_A!AT48),":"),":") -> : | AU7: =IF(ISBLANK(AT12), "",""&Table_A!AU48) ->  | AV7: =IFERROR(IF(COUNT(Table_A!AV48)=1,IF(ISBLANK(AV12), ":",Table_A!AV48),":"),":") -> : | AW7: =IF(ISBLANK(AV12), "",""&Table_A!AW48) ->  | AX7: =IFERROR(IF(COUNT(Table_A!AX48)=1,IF(ISBLANK(AX12), ":",Table_A!AX48),":"),":") -> : | AY7: =IF(ISBLANK(AX12), "",""&Table_A!AY48) ->  | AZ7: =IFERROR(IF(COUNT(Table_A!AZ48)=1,IF(ISBLANK(AZ12), ":",Table_A!AZ48),":"),":") -> : | BA7: =IF(ISBLANK(AZ12), "",""&Table_A!BA48) ->  | BB7: =IFERROR(IF(COUNT(Table_A!BB48)=1,IF(ISBLANK(BB12), ":",Table_A!BB48),":"),":") -> : | BC7: =IF(ISBLANK(BB12), "",""&Table_A!BC48) ->  | BD7: =IFERROR(IF(COUNT(Table_A!BD48)=1,IF(ISBLANK(BD12), ":",Table_A!BD48),":"),":") -> : | BE7: =IF(ISBLANK(BD12), "",""&Table_A!BE48) ->  | BF7: =IFERROR(IF(COUNT(Table_A!BF48)=1,IF(ISBLANK(BF12), ":",Table_A!BF48),":"),":") -> : | BG7: =IF(ISBLANK(BF12), "",""&Table_A!BG48) ->  | BH7: =IFERROR(IF(COUNT(Table_A!BH48)=1,IF(ISBLANK(BH12), ":",Table_A!BH48),":"),":") -> : | BI7: =IF(ISBLANK(BH12), "",""&Table_A!BI48) ->  | BJ7: =IFERROR(IF(COUNT(Table_A!BJ48)=1,IF(ISBLANK(BJ12), ":",Table_A!BJ48),":"),":") -> : | BK7: =IF(ISBLANK(BJ12), "",""&Table_A!BK48) ->  | BL7: =IFERROR(IF(COUNT(Table_A!BL48)=1,IF(ISBLANK(BL12), ":",Table_A!BL48),":"),":") -> : | BM7: =IF(ISBLANK(BL12), "",""&Table_A!BM48) ->  | BN7: =IFERROR(IF(COUNT(Table_A!BN48)=1,IF(ISBLANK(BN12), ":",Table_A!BN48),":"),":") -> : | BO7: =IF(ISBLANK(BN12), "",""&Table_A!BO48) -> 
A8: DE | B8: MF4 | C8: MF.4 Fossil energy materials/carriers | F8: =IFERROR(IF(COUNT(Table_A!F59)=1,IF(ISBLANK(F13), ":",Table_A!F59),":"),":") -> : | G8: =IF(ISBLANK(F13), "",""&Table_A!G59) ->  | H8: =IFERROR(IF(COUNT(Table_A!H59)=1,IF(ISBLANK(H13), ":",Table_A!H59),":"),":") -> : | I8: =IF(ISBLANK(H13), "",""&Table_A!I59) ->  | J8: =IFERROR(IF(COUNT(Table_A!J59)=1,IF(ISBLANK(J13), ":",Table_A!J59),":"),":") -> : | K8: =IF(ISBLANK(J13), "",""&Table_A!K59) ->  | L8: =IFERROR(IF(COUNT(Table_A!L59)=1,IF(ISBLANK(L13), ":",Table_A!L59),":"),":") -> : | M8: =IF(ISBLANK(L13), "",""&Table_A!M59) ->  | N8: =IFERROR(IF(COUNT(Table_A!N59)=1,IF(ISBLANK(N13), ":",Table_A!N59),":"),":") -> : | O8: =IF(ISBLANK(N13), "",""&Table_A!O59) ->  | P8: =IFERROR(IF(COUNT(Table_A!P59)=1,IF(ISBLANK(P13), ":",Table_A!P59),":"),":") -> : | Q8: =IF(ISBLANK(P13), "",""&Table_A!Q59) ->  | R8: =IFERROR(IF(COUNT(Table_A!R59)=1,IF(ISBLANK(R13), ":",Table_A!R59),":"),":") -> : | S8: =IF(ISBLANK(R13), "",""&Table_A!S59) ->  | T8: =IFERROR(IF(COUNT(Table_A!T59)=1,IF(ISBLANK(T13), ":",Table_A!T59),":"),":") -> : | U8: =IF(ISBLANK(T13), "",""&Table_A!U59) ->  | V8: =IFERROR(IF(COUNT(Table_A!V59)=1,IF(ISBLANK(V13), ":",Table_A!V59),":"),":") -> : | W8: =IF(ISBLANK(V13), "",""&Table_A!W59) ->  | X8: =IFERROR(IF(COUNT(Table_A!X59)=1,IF(ISBLANK(X13), ":",Table_A!X59),":"),":") -> : | Y8: =IF(ISBLANK(X13), "",""&Table_A!Y59) ->  | Z8: =IFERROR(IF(COUNT(Table_A!Z59)=1,IF(ISBLANK(Z13), ":",Table_A!Z59),":"),":") -> : | AA8: =IF(ISBLANK(Z13), "",""&Table_A!AA59) ->  | AB8: =IFERROR(IF(COUNT(Table_A!AB59)=1,IF(ISBLANK(AB13), ":",Table_A!AB59),":"),":") -> : | AC8: =IF(ISBLANK(AB13), "",""&Table_A!AC59) ->  | AD8: =IFERROR(IF(COUNT(Table_A!AD59)=1,IF(ISBLANK(AD13), ":",Table_A!AD59),":"),":") -> : | AE8: =IF(ISBLANK(AD13), "",""&Table_A!AE59) ->  | AF8: =IFERROR(IF(COUNT(Table_A!AF59)=1,IF(ISBLANK(AF13), ":",Table_A!AF59),":"),":") -> : | AG8: =IF(ISBLANK(AF13), "",""&Table_A!AG59) ->  | AH8: =IFERROR(IF(COUNT(Table_A!AH59)=1,IF(ISBLANK(AH13), ":",Table_A!AH59),":"),":") -> : | AI8: =IF(ISBLANK(AH13), "",""&Table_A!AI59) ->  | AJ8: =IFERROR(IF(COUNT(Table_A!AJ59)=1,IF(ISBLANK(AJ13), ":",Table_A!AJ59),":"),":") -> : | AK8: =IF(ISBLANK(AJ13), "",""&Table_A!AK59) ->  | AL8: =IFERROR(IF(COUNT(Table_A!AL59)=1,IF(ISBLANK(AL13), ":",Table_A!AL59),":"),":") -> : | AM8: =IF(ISBLANK(AL13), "",""&Table_A!AM59) ->  | AN8: =IFERROR(IF(COUNT(Table_A!AN59)=1,IF(ISBLANK(AN13), ":",Table_A!AN59),":"),":") -> : | AO8: =IF(ISBLANK(AN13), "",""&Table_A!AO59) ->  | AP8: =IFERROR(IF(COUNT(Table_A!AP59)=1,IF(ISBLANK(AP13), ":",Table_A!AP59),":"),":") -> : | AQ8: =IF(ISBLANK(AP13), "",""&Table_A!AQ59) ->  | AR8: =IFERROR(IF(COUNT(Table_A!AR59)=1,IF(ISBLANK(AR13), ":",Table_A!AR59),":"),":") -> : | AS8: =IF(ISBLANK(AR13), "",""&Table_A!AS59) ->  | AT8: =IFERROR(IF(COUNT(Table_A!AT59)=1,IF(ISBLANK(AT13), ":",Table_A!AT59),":"),":") -> : | AU8: =IF(ISBLANK(AT13), "",""&Table_A!AU59) ->  | AV8: =IFERROR(IF(COUNT(Table_A!AV59)=1,IF(ISBLANK(AV13), ":",Table_A!AV59),":"),":") -> : | AW8: =IF(ISBLANK(AV13), "",""&Table_A!AW59) ->  | AX8: =IFERROR(IF(COUNT(Table_A!AX59)=1,IF(ISBLANK(AX13), ":",Table_A!AX59),":"),":") -> : | AY8: =IF(ISBLANK(AX13), "",""&Table_A!AY59) ->  | AZ8: =IFERROR(IF(COUNT(Table_A!AZ59)=1,IF(ISBLANK(AZ13), ":",Table_A!AZ59),":"),":") -> : | BA8: =IF(ISBLANK(AZ13), "",""&Table_A!BA59) ->  | BB8: =IFERROR(IF(COUNT(Table_A!BB59)=1,IF(ISBLANK(BB13), ":",Table_A!BB59),":"),":") -> : | BC8: =IF(ISBLANK(BB13), "",""&Table_A!BC59) ->  | BD8: =IFERROR(IF(COUNT(Table_A!BD59)=1,IF(ISBLANK(BD13), ":",Table_A!BD59),":"),":") -> : | BE8: =IF(ISBLANK(BD13), "",""&Table_A!BE59) ->  | BF8: =IFERROR(IF(COUNT(Table_A!BF59)=1,IF(ISBLANK(BF13), ":",Table_A!BF59),":"),":") -> : | BG8: =IF(ISBLANK(BF13), "",""&Table_A!BG59) ->  | BH8: =IFERROR(IF(COUNT(Table_A!BH59)=1,IF(ISBLANK(BH13), ":",Table_A!BH59),":"),":") -> : | BI8: =IF(ISBLANK(BH13), "",""&Table_A!BI59) ->  | BJ8: =IFERROR(IF(COUNT(Table_A!BJ59)=1,IF(ISBLANK(BJ13), ":",Table_A!BJ59),":"),":") -> : | BK8: =IF(ISBLANK(BJ13), "",""&Table_A!BK59) ->  | BL8: =IFERROR(IF(COUNT(Table_A!BL59)=1,IF(ISBLANK(BL13), ":",Table_A!BL59),":"),":") -> : | BM8: =IF(ISBLANK(BL13), "",""&Table_A!BM59) ->  | BN8: =IFERROR(IF(COUNT(Table_A!BN59)=1,IF(ISBLANK(BN13), ":",Table_A!BN59),":"),":") -> : | BO8: =IF(ISBLANK(BN13), "",""&Table_A!BO59) -> 
A9: IMP_RME | B9: TOTAL | C9: Imports in RME | CJ9: D | CK9: C | CL9: W1 | CM9: RES | CN9: _T | CO9: P7 | CP9: TN_RME | CQ9: 3 | CR9: _T | CS9: S1
A10: IMP_RME | B10: MF1 | C10: MF.1 Biomass | CJ10: D | CK10: C | CL10: W1 | CM10: RES | CN10: MF1 | CO10: P7 | CP10: TN_RME | CQ10: 3 | CR10: _T | CS10: S1
A11: IMP_RME | B11: MF2 | C11: MF.2 Metal ores (gross ores) | CJ11: D | CK11: C | CL11: W1 | CM11: RES | CN11: MF2 | CO11: P7 | CP11: TN_RME | CQ11: 3 | CR11: _T | CS11: S1
A12: IMP_RME | B12: MF3 | C12: MF.3 Non-metalic minerals | CJ12: D | CK12: C | CL12: W1 | CM12: RES | CN12: MF3 | CO12: P7 | CP12: TN_RME | CQ12: 3 | CR12: _T | CS12: S1
A13: IMP_RME | B13: MF4 | C13: MF.4 Fossil energy materials/carriers | CJ13: D | CK13: C | CL13: W1 | CM13: RES | CN13: MF4 | CO13: P7 | CP13: TN_RME | CQ13: 3 | CR13: _T | CS13: S1
A14: RMI | B14: TOTAL | C14: Raw material input (RMI) | F14: =IFERROR(F4+F9,":") -> : | H14: =IFERROR(H4+H9,":") -> : | J14: =IFERROR(J4+J9,":") -> : | L14: =IFERROR(L4+L9,":") -> : | N14: =IFERROR(N4+N9,":") -> : | P14: =IFERROR(P4+P9,":") -> : | R14: =IFERROR(R4+R9,":") -> : | T14: =IFERROR(T4+T9,":") -> : | V14: =IFERROR(V4+V9,":") -> : | X14: =IFERROR(X4+X9,":") -> : | Z14: =IFERROR(Z4+Z9,":") -> : | AB14: =IFERROR(AB4+AB9,":") -> : | AD14: =IFERROR(AD4+AD9,":") -> : | AF14: =IFERROR(AF4+AF9,":") -> : | AH14: =IFERROR(AH4+AH9,":") -> : | AJ14: =IFERROR(AJ4+AJ9,":") -> : | AL14: =IFERROR(AL4+AL9,":") -> : | AN14: =IFERROR(AN4+AN9,":") -> : | AP14: =IFERROR(AP4+AP9,":") -> : | AR14: =IFERROR(AR4+AR9,":") -> : | AT14: =IFERROR(AT4+AT9,":") -> : | AV14: =IFERROR(AV4+AV9,":") -> : | AX14: =IFERROR(AX4+AX9,":") -> : | AZ14: =IFERROR(AZ4+AZ9,":") -> : | BB14: =IFERROR(BB4+BB9,":") -> : | BD14: =IFERROR(BD4+BD9,":") -> : | BF14: =IFERROR(BF4+BF9,":") -> : | BH14: =IFERROR(BH4+BH9,":") -> : | BJ14: =IFERROR(BJ4+BJ9,":") -> : | BL14: =IFERROR(BL4+BL9,":") -> : | BN14: : | CI14: CALCULATED | CJ14: D | CK14: C | CL14: W0 | CM14: RES | CN14: _T | CO14: BRMI | CP14: TN_RME | CQ14: 3 | CR14: _T | CS14: S1
A15: RMI | B15: MF1 | C15: MF.1 Biomass | F15: =IFERROR(F5+F10,":") -> : | H15: =IFERROR(H5+H10,":") -> : | J15: =IFERROR(J5+J10,":") -> : | L15: =IFERROR(L5+L10,":") -> : | N15: =IFERROR(N5+N10,":") -> : | P15: =IFERROR(P5+P10,":") -> : | R15: =IFERROR(R5+R10,":") -> : | T15: =IFERROR(T5+T10,":") -> : | V15: =IFERROR(V5+V10,":") -> : | X15: =IFERROR(X5+X10,":") -> : | Z15: =IFERROR(Z5+Z10,":") -> : | AB15: =IFERROR(AB5+AB10,":") -> : | AD15: =IFERROR(AD5+AD10,":") -> : | AF15: =IFERROR(AF5+AF10,":") -> : | AH15: =IFERROR(AH5+AH10,":") -> : | AJ15: =IFERROR(AJ5+AJ10,":") -> : | AL15: =IFERROR(AL5+AL10,":") -> : | AN15: =IFERROR(AN5+AN10,":") -> : | AP15: =IFERROR(AP5+AP10,":") -> : | AR15: =IFERROR(AR5+AR10,":") -> : | AT15: =IFERROR(AT5+AT10,":") -> : | AV15: =IFERROR(AV5+AV10,":") -> : | AX15: =IFERROR(AX5+AX10,":") -> : | AZ15: =IFERROR(AZ5+AZ10,":") -> : | BB15: =IFERROR(BB5+BB10,":") -> : | BD15: =IFERROR(BD5+BD10,":") -> : | BF15: =IFERROR(BF5+BF10,":") -> : | BH15: =IFERROR(BH5+BH10,":") -> : | BJ15: =IFERROR(BJ5+BJ10,":") -> : | BL15: =IFERROR(BL5+BL10,":") -> : | BN15: : | CI15: Kept for | CJ15: D | CK15: C | CL15: W0 | CM15: RES | CN15: MF1 | CO15: BRMI | CP15: TN_RME | CQ15: 3 | CR15: _T | CS15: S1
A16: RMI | B16: MF2 | C16: MF.2 Metal ores (gross ores) | F16: =IFERROR(F6+F11,":") -> : | H16: : | J16: : | L16: : | N16: : | P16: : | R16: : | T16: : | V16: : | X16: : | Z16: : | AB16: : | AD16: : | AF16: : | AH16: : | AJ16: : | AL16: : | AN16: : | AP16: : | AR16: : | AT16: : | AV16: : | AX16: : | AZ16: : | BB16: : | BD16: : | BF16: : | BH16: : | BJ16: : | BL16: : | BN16: =IFERROR(BN6+BN11,":") -> : | CI16: testing | CJ16: D | CK16: C | CL16: W0 | CM16: RES | CN16: MF2 | CO16: BRMI | CP16: TN_RME | CQ16: 3 | CR16: _T | CS16: S1
A17: RMI | B17: MF3 | C17: MF.3 Non-metalic minerals | F17: : | H17: =IFERROR(H7+H12,":") -> : | J17: : | L17: : | N17: : | P17: : | R17: : | T17: : | V17: : | X17: : | Z17: : | AB17: : | AD17: : | AF17: : | AH17: : | AJ17: : | AL17: : | AN17: : | AP17: : | AR17: : | AT17: : | AV17: : | AX17: : | AZ17: : | BB17: : | BD17: : | BF17: : | BH17: : | BJ17: : | BL17: : | BN17: =IFERROR(BN7+BN12,":") -> : | CI17: purposes | CJ17: D | CK17: C | CL17: W0 | CM17: RES | CN17: MF3 | CO17: BRMI | CP17: TN_RME | CQ17: 3 | CR17: _T | CS17: S1
A18: RMI | B18: MF4 | C18: MF.4 Fossil energy materials/carriers | F18: : | H18: : | J18: : | L18: : | N18: : | P18: : | R18: : | T18: : | V18: : | X18: : | Z18: : | AB18: : | AD18: : | AF18: : | AH18: : | AJ18: : | AL18: : | AN18: : | AP18: : | AR18: : | AT18: : | AV18: : | AX18: : | AZ18: : | BB18: : | BD18: : | BF18: : | BH18: : | BJ18: : | BL18: : | BN18: =IFERROR(BN8+BN13,":") -> : | CJ18: D | CK18: C | CL18: W0 | CM18: RES | CN18: MF4 | CO18: BRMI | CP18: TN_RME | CQ18: 3 | CR18: _T | CS18: S1
A19: EXP_RME | B19: TOTAL | C19: Exports in RME | CJ19: D | CK19: D | CL19: W1 | CM19: RES | CN19: _T | CO19: P6 | CP19: TN_RME | CQ19: 3 | CR19: _T | CS19: S1
A20: EXP_RME | B20: MF1 | C20: MF.1 Biomass | CJ20: D | CK20: D | CL20: W1 | CM20: RES | CN20: MF1 | CO20: P6 | CP20: TN_RME | CQ20: 3 | CR20: _T | CS20: S1
A21: EXP_RME | B21: MF2 | C21: MF.2 Metal ores (gross ores) | CJ21: D | CK21: D | CL21: W1 | CM21: RES | CN21: MF2 | CO21: P6 | CP21: TN_RME | CQ21: 3 | CR21: _T | CS21: S1
A22: EXP_RME | B22: MF3 | C22: MF.3 Non-metalic minerals | CJ22: D | CK22: D | CL22: W1 | CM22: RES | CN22: MF3 | CO22: P6 | CP22: TN_RME | CQ22: 3 | CR22: _T | CS22: S1
A23: EXP_RME | B23: MF4 | C23: MF.4 Fossil energy materials/carriers | CJ23: D | CK23: D | CL23: W1 | CM23: RES | CN23: MF4 | CO23: P6 | CP23: TN_RME | CQ23: 3 | CR23: _T | CS23: S1
A24: RMC | B24: TOTAL | C24: Raw material consumption (RMC) | F24: =IFERROR(F14-F19,":") -> : | H24: =IFERROR(H14-H19,":") -> : | J24: =IFERROR(J14-J19,":") -> : | L24: =IFERROR(L14-L19,":") -> : | N24: =IFERROR(N14-N19,":") -> : | P24: =IFERROR(P14-P19,":") -> : | R24: =IFERROR(R14-R19,":") -> : | T24: =IFERROR(T14-T19,":") -> : | V24: =IFERROR(V14-V19,":") -> : | X24: =IFERROR(X14-X19,":") -> : | Z24: =IFERROR(Z14-Z19,":") -> : | AB24: =IFERROR(AB14-AB19,":") -> : | AD24: =IFERROR(AD14-AD19,":") -> : | AF24: =IFERROR(AF14-AF19,":") -> : | AH24: =IFERROR(AH14-AH19,":") -> : | AJ24: =IFERROR(AJ14-AJ19,":") -> : | AL24: =IFERROR(AL14-AL19,":") -> : | AN24: =IFERROR(AN14-AN19,":") -> : | AP24: =IFERROR(AP14-AP19,":") -> : | AR24: =IFERROR(AR14-AR19,":") -> : | AT24: =IFERROR(AT14-AT19,":") -> : | AV24: =IFERROR(AV14-AV19,":") -> : | AX24: =IFERROR(AX14-AX19,":") -> : | AZ24: =IFERROR(AZ14-AZ19,":") -> : | BB24: =IFERROR(BB14-BB19,":") -> : | BD24: =IFERROR(BD14-BD19,":") -> : | BF24: =IFERROR(BF14-BF19,":") -> : | BH24: =IFERROR(BH14-BH19,":") -> : | BJ24: =IFERROR(BJ14-BJ19,":") -> : | BL24: =IFERROR(BL14-BL19,":") -> : | BN24: : | CI24: CALCULATED | CJ24: D | CK24: B | CL24: W0 | CM24: RES | CN24: _T | CO24: BRMC | CP24: TN_RME | CQ24: 3 | CR24: _T | CS24: S1
A25: RMC | B25: MF1 | C25: MF.1 Biomass | F25: =IFERROR(F15-F20,":") -> : | H25: =IFERROR(H15-H20,":") -> : | J25: =IFERROR(J15-J20,":") -> : | L25: =IFERROR(L15-L20,":") -> : | N25: =IFERROR(N15-N20,":") -> : | P25: =IFERROR(P15-P20,":") -> : | R25: =IFERROR(R15-R20,":") -> : | T25: =IFERROR(T15-T20,":") -> : | V25: =IFERROR(V15-V20,":") -> : | X25: =IFERROR(X15-X20,":") -> : | Z25: =IFERROR(Z15-Z20,":") -> : | AB25: =IFERROR(AB15-AB20,":") -> : | AD25: =IFERROR(AD15-AD20,":") -> : | AF25: =IFERROR(AF15-AF20,":") -> : | AH25: =IFERROR(AH15-AH20,":") -> : | AJ25: =IFERROR(AJ15-AJ20,":") -> : | AL25: =IFERROR(AL15-AL20,":") -> : | AN25: =IFERROR(AN15-AN20,":") -> : | AP25: =IFERROR(AP15-AP20,":") -> : | AR25: =IFERROR(AR15-AR20,":") -> : | AT25: =IFERROR(AT15-AT20,":") -> : | AV25: =IFERROR(AV15-AV20,":") -> : | AX25: =IFERROR(AX15-AX20,":") -> : | AZ25: =IFERROR(AZ15-AZ20,":") -> : | BB25: =IFERROR(BB15-BB20,":") -> : | BD25: =IFERROR(BD15-BD20,":") -> : | BF25: =IFERROR(BF15-BF20,":") -> : | BH25: =IFERROR(BH15-BH20,":") -> : | BJ25: =IFERROR(BJ15-BJ20,":") -> : | BL25: =IFERROR(BL15-BL20,":") -> : | BN25: : | CI25: Kept for | CJ25: D | CK25: B | CL25: W0 | CM25: RES | CN25: MF1 | CO25: BRMC | CP25: TN_RME | CQ25: 3 | CR25: _T | CS25: S1
A26: RMC | B26: MF2 | C26: MF.2 Metal ores (gross ores) | F26: =IFERROR(F16-F21,":") -> : | H26: : | J26: : | L26: : | N26: : | P26: : | R26: : | T26: : | V26: : | X26: : | Z26: : | AB26: : | AD26: : | AF26: : | AH26: : | AJ26: : | AL26: : | AN26: : | AP26: : | AR26: : | AT26: : | AV26: : | AX26: : | AZ26: : | BB26: : | BD26: : | BF26: : | BH26: : | BJ26: : | BL26: : | BN26: =IFERROR(BN16-BN21,":") -> : | CI26: testing | CJ26: D | CK26: B | CL26: W0 | CM26: RES | CN26: MF2 | CO26: BRMC | CP26: TN_RME | CQ26: 3 | CR26: _T | CS26: S1
A27: RMC | B27: MF3 | C27: MF.3 Non-metalic minerals | F27: : | H27: =IFERROR(H17-H22,":") -> : | J27: : | L27: : | N27: : | P27: : | R27: : | T27: : | V27: : | X27: : | Z27: : | AB27: : | AD27: : | AF27: : | AH27: : | AJ27: : | AL27: : | AN27: : | AP27: : | AR27: : | AT27: : | AV27: : | AX27: : | AZ27: : | BB27: : | BD27: : | BF27: : | BH27: : | BJ27: : | BL27: : | BN27: =IFERROR(BN17-BN22,":") -> : | CI27: purposes | CJ27: D | CK27: B | CL27: W0 | CM27: RES | CN27: MF3 | CO27: BRMC | CP27: TN_RME | CQ27: 3 | CR27: _T | CS27: S1
A28: RMC | B28: MF4 | C28: MF.4 Fossil energy materials/carriers | F28: : | H28: : | J28: : | L28: : | N28: : | P28: : | R28: : | T28: : | V28: : | X28: : | Z28: : | AB28: : | AD28: : | AF28: : | AH28: : | AJ28: : | AL28: : | AN28: : | AP28: : | AR28: : | AT28: : | AV28: : | AX28: : | AZ28: : | BB28: : | BD28: : | BF28: : | BH28: : | BJ28: : | BL28: : | BN28: =IFERROR(BN18-BN23,":") -> : | CJ28: D | CK28: B | CL28: W0 | CM28: RES | CN28: MF4 | CO28: BRMC | CP28: TN_RME | CQ28: 3 | CR28: _T | CS28: S1

Sheet Grazed biomass v1
A1: Compilation tool for "grazed biomass"
A4: Please fill only in the yellow cells. If you have other national factors, change those in the blue cells. Please don't touch the green or red cells!!!
C6: Step 1: Demand side approach: feed balance to identify demand for grazed biomass
C8: roughage requirement = livstock [number] * annual feed intake [t per head and year]
A13: Eurostat table | B13: Code in Eurostat table | E13: Annual feed intake [t/head and year] | F13: Livestock [number]
F14: 1990 | G14: 1991 | H14: 1992 | I14: 1993 | J14: 1994 | K14: 1995 | L14: 1996 | M14: 1997 | N14: 1998 | O14: 1999 | P14: 2000 | Q14: 2001 | R14: 2002 | S14: 2003 | T14: 2004 | U14: 2005 | V14: 2006 | W14: 2007 | X14: 2008 | Y14: 2009 | Z14: 2010 | AA14: 2011 | AB14: 2012 | AC14: 2013 | AD14: 2014 | AE14: 2015 | AF14: 2016 | AG14: 2017 | AH14: 2018 | AI14: 2019 | AJ14: 2020
A15: Bovine population - annual data [apro_mt_lscatl] | B15: A2000 | C15: Bovine cattle, live | E15: 4.5
A16: Sheep population - annual data [apro_mt_lssheep] | B16: A4100 | C16: Sheep, live | E16: 0.5
A17: Goats population - annual data [apro_mt_lsgoat] | B17: A4200 | C17: Goats, live | E17: 0.5
A18: Equidae - annual data [apro_mt_lsequi] | B18: A1100 | C18: Horses* | E18: 3.7
A19: Equidae - annual data [apro_mt_lsequi] | B19: A1200 | C19: Mules and asses* | E19: 2.2
C20: [new animals]
C21: [new animals]
C22: [new animals]
C23: [new animals]
C24: [new animals]
F27: 1990 | G27: 1991 | H27: 1992 | I27: 1993 | J27: 1994 | K27: 1995 | L27: 1996 | M27: 1997 | N27: 1998 | O27: 1999 | P27: 2000 | Q27: 2001 | R27: 2002 | S27: 2003 | T27: 2004 | U27: 2005 | V27: 2006 | W27: 2007 | X27: 2008 | Y27: 2009 | Z27: 2010 | AA27: 2011 | AB27: 2012 | AC27: 2013 | AD27: 2014 | AE27: 2015 | AF27: 2016 | AG27: 2017 | AH27: 2018 | AI27: 2019 | AJ27: 2020
C28: Roughage requirement | F28: =F15*$E15+F16*$E16+F17*$E17+F18*$E18+F19*$E19+$E20*F20+$E21*F21+$E22*F22+$E23*F23+$E24*F24 -> 0 | G28: =G15*$E15+G16*$E16+G17*$E17+G18*$E18+G19*$E19+$E20*G20+$E21*G21+$E22*G22+$E23*G23+$E24*G24 -> 0 | H28: =H15*$E15+H16*$E16+H17*$E17+H18*$E18+H19*$E19+$E20*H20+$E21*H21+$E22*H22+$E23*H23+$E24*H24 -> 0 | I28: =I15*$E15+I16*$E16+I17*$E17+I18*$E18+I19*$E19+$E20*I20+$E21*I21+$E22*I22+$E23*I23+$E24*I24 -> 0 | J28: =J15*$E15+J16*$E16+J17*$E17+J18*$E18+J19*$E19+$E20*J20+$E21*J21+$E22*J22+$E23*J23+$E24*J24 -> 0 | K28: =K15*$E15+K16*$E16+K17*$E17+K18*$E18+K19*$E19+$E20*K20+$E21*K21+$E22*K22+$E23*K23+$E24*K24 -> 0 | L28: 0 | M28: 0 | N28: 0 | O28: 0 | P28: 0 | Q28: 0 | R28: 0 | S28: 0 | T28: 0 | U28: 0 | V28: 0 | W28: 0 | X28: 0 | Y28: 0 | Z28: 0 | AA28: =AA15*$E15+AA16*$E16+AA17*$E17+AA18*$E18+AA19*$E19+$E20*AA20+$E21*AA21+$E22*AA22+$E23*AA23+$E24*AA24 -> 0 | AB28: 0 | AC28: 0 | AD28: 0 | AE28: 0 | AF28: 0 | AG28: 0 | AH28: =AH15*$E15+AH16*$E16+AH17*$E17+AH18*$E18+AH19*$E19+$E20*AH20+$E21*AH21+$E22*AH22+$E23*AH23+$E24*AH24 -> 0 | AI28: 0 | AJ28: =AJ15*$E15+AJ16*$E16+AJ17*$E17+AJ18*$E18+AJ19*$E19+$E20*AJ20+$E21*AJ21+$E22*AJ22+$E23*AJ23+$E24*AJ24 -> 0
C31: demand for grazed biomass = roughage requirement [t at 15% mc] - fodder crops [t at 15%mc]
F34: 1990 | G34: 1991 | H34: 1992 | I34: 1993 | J34: 1994 | K34: 1995 | L34: 1996 | M34: 1997 | N34: 1998 | O34: 1999 | P34: 2000 | Q34: 2001 | R34: 2002 | S34: 2003 | T34: 2004 | U34: 2005 | V34: 2006 | W34: 2007 | X34: 2008 | Y34: 2009 | Z34: 2010 | AA34: 2011 | AB34: 2012 | AC34: 2013 | AD34: 2014 | AE34: 2015 | AF34: 2016 | AG34: 2017 | AH34: 2018 | AI34: 2019 | AJ34: 2020
C35: MF.1.2.2.1 Fodder crops (including biomass harvest from grassland)
C36: Demand for grazed biomass | F36: =F28-F35 -> 0 | G36: =G28-G35 -> 0 | H36: =H28-H35 -> 0 | I36: =I28-I35 -> 0 | J36: =J28-J35 -> 0 | K36: =K28-K35 -> 0 | L36: 0 | M36: 0 | N36: 0 | O36: 0 | P36: 0 | Q36: 0 | R36: 0 | S36: 0 | T36: 0 | U36: 0 | V36: 0 | W36: 0 | X36: 0 | Y36: =Y28-Y35 -> 0 | Z36: 0 | AA36: 0 | AB36: 0 | AC36: 0 | AD36: 0 | AE36: 0 | AF36: 0 | AG36: 0 | AH36: =AH28-AH35 -> 0 | AI36: 0 | AJ36: =AJ28-AJ35 -> 0
C40: Step 2: Supply estimate based on available/used grazed area and information on area yield
D42: Yield range [t at 15%mc/ha] | E42: Average yield [t at 15%mc/ha] | F42: Pasture area [ha]
F43: 1990 | G43: 1991 | H43: 1992 | I43: 1993 | J43: 1994 | K43: 1995 | L43: 1996 | M43: 1997 | N43: 1998 | O43: 1999 | P43: 2000 | Q43: 2001 | R43: 2002 | S43: 2003 | T43: 2004 | U43: 2005 | V43: 2006 | W43: 2007 | X43: 2008 | Y43: 2009 | Z43: 2010 | AA43: 2011 | AB43: 2012 | AC43: 2013 | AD43: 2014 | AE43: 2015 | AF43: 2016 | AG43: 2017 | AH43: 2018 | AI43: 2019 | AJ43: 2020
C44: Rough grazing, alpine pasture | D44: <1 | E44: 0.5
C45: Extensive pasture | D45: 1-5 | E45: 2.5
C46: Improved pasture | D46: 5-10 | E46: 7
C49: grazing potential [tat 15%mc]=pasture area [ha] * pasture yield [t at 15% mc/ha]
F51: 1990 | G51: 1991 | H51: 1992 | I51: 1993 | J51: 1994 | K51: 1995 | L51: 1996 | M51: 1997 | N51: 1998 | O51: 1999 | P51: 2000 | Q51: 2001 | R51: 2002 | S51: 2003 | T51: 2004 | U51: 2005 | V51: 2006 | W51: 2007 | X51: 2008 | Y51: 2009 | Z51: 2010 | AA51: 2011 | AB51: 2012 | AC51: 2013 | AD51: 2014 | AE51: 2015 | AF51: 2016 | AG51: 2017 | AH51: 2018 | AI51: 2019 | AJ51: 2020
C52: grazing potential [t at 15%mc] | F52: =F44*$E44+F45*$E45+F46*$E46 -> 0 | G52: =G44*$E44+G45*$E45+G46*$E46 -> 0 | H52: =H44*$E44+H45*$E45+H46*$E46 -> 0 | I52: =I44*$E44+I45*$E45+I46*$E46 -> 0 | J52: =J44*$E44+J45*$E45+J46*$E46 -> 0 | K52: =K44*$E44+K45*$E45+K46*$E46 -> 0 | L52: 0 | M52: 0 | N52: 0 | O52: 0 | P52: 0 | Q52: 0 | R52: 0 | S52: 0 | T52: 0 | U52: 0 | V52: 0 | W52: 0 | X52: 0 | Y52: =Y44*$E44+Y45*$E45+Y46*$E46 -> 0 | Z52: 0 | AA52: 0 | AB52: 0 | AC52: 0 | AD52: 0 | AE52: 0 | AF52: 0 | AG52: 0 | AH52: =AH44*$E44+AH45*$E45+AH46*$E46 -> 0 | AI52: 0 | AJ52: =AJ44*$E44+AJ45*$E45+AJ46*$E46 -> 0
C54: Step 3: Check that there the grazed biomass demand is covered by the resources available before entering the grazed biomass estimate in the DE table (row MF.1.2.2.2)
F56: 1990 | G56: 1991 | H56: 1992 | I56: 1993 | J56: 1994 | K56: 1995 | L56: 1996 | M56: 1997 | N56: 1998 | O56: 1999 | P56: 2000 | Q56: 2001 | R56: 2002 | S56: 2003 | T56: 2004 | U56: 2005 | V56: 2006 | W56: 2007 | X56: 2008 | Y56: 2009 | Z56: 2010 | AA56: 2011 | AB56: 2012 | AC56: 2013 | AD56: 2014 | AE56: 2015 | AF56: 2016 | AG56: 2017 | AH56: 2018 | AI56: 2019 | AJ56: 2020
C57: demand for grazed biomass ≤ grazing potential | F57: =IF(F36<=F52,"OK"," PLEASE CHECK AGAIN !!!") -> OK | G57: =IF(G36<=G52,"OK"," PLEASE CHECK AGAIN !!!") -> OK | H57: =IF(H36<=H52,"OK"," PLEASE CHECK AGAIN !!!") -> OK | I57: =IF(I36<=I52,"OK"," PLEASE CHECK AGAIN !!!") -> OK | J57: =IF(J36<=J52,"OK"," PLEASE CHECK AGAIN !!!") -> OK | K57: =IF(K36<=K52,"OK"," PLEASE CHECK AGAIN !!!") -> OK | L57: OK | M57: OK | N57: OK | O57: OK | P57: OK | Q57: OK | R57: OK | S57: OK | T57: OK | U57: OK | V57: OK | W57: OK | X57: OK | Y57: =IF(Y36<=Y52,"OK"," PLEASE CHECK AGAIN !!!") -> OK | Z57: OK | AA57: OK | AB57: OK | AC57: OK | AD57: OK | AE57: OK | AF57: =IF(AF36<=AF52,"OK"," PLEASE CHECK AGAIN !!!") -> OK | AG57: OK | AH57: =IF(AH36<=AH52,"OK"," PLEASE CHECK AGAIN !!!") -> OK | AI57: OK | AJ57: =IF(AJ36<=AJ52,"OK"," PLEASE CHECK AGAIN !!!") -> OK
A59: If the message displayed on the red row is "OK" the demand can be covered by the available pasture area, then report the data in row 36 of this calculation tool in Table A row "MF.1.2.2.2 Grazed biomass".
A61: If the message displayed on the red row is "please check again " then the average yields could be too low or the annual feed intakes are too high

Sheet Crop residues v1
A1: Compilation tool for "crop residues"
A4: Please fill only in the yellow cells and if you have other national factors change in the blue cells and don't touch the green cells!!!
A6: Step 1
A8: Identification of crops which provide residues for futher socio-economic use.
A9: In most cases this include all types of cereals (MF.1.1.1), sugar crops (MF.1.1.3) and oil-bearing crops (MF.1.1.6), only in exceptional cases other crops have to be considered
A13: Eurostat table | B13: Code in Eurostat table | D13: Harvest factor | E13: Recovery rate | F13: Primary crop harvest [ 1000 t ]
F14: 1990 | G14: 1991 | H14: 1992 | I14: 1993 | J14: 1994 | K14: 1995 | L14: 1996 | M14: 1997 | N14: 1998 | O14: 1999 | P14: 2000 | Q14: 2001 | R14: 2002 | S14: 2003 | T14: 2004 | U14: 2005 | V14: 2006 | W14: 2007 | X14: 2008 | Y14: 2009 | Z14: 2010 | AA14: 2011 | AB14: 2012 | AC14: 2013 | AD14: 2014 | AE14: 2015 | AF14: 2016 | AG14: 2017 | AH14: 2018 | AI14: 2019 | AJ14: 2020
A15: Crop production in EU standard humidity[apro_cpsh1] | B15: C1100 | C15: Wheat | D15: 1 | E15: 0.7
B16: C1220 | C16: Winter cereal mixtures (maslin) | D16: 1 | E16: 0.7
B17: C1300 | C17: Barley | D17: 1.2 | E17: 0.7
B18: C1210 | C18: Rye | D18: 1.2 | E18: 0.7
B19: C1410 | C19: Oats | D19: 1.2 | E19: 0.7
B20: C1500 | C20: Maize | D20: 1.2 | E20: 0.9
B21: C2000 | C21: Rice | D21: 1.2 | E21: 0.7
B22: C1600 | C22: All other cereals | D22: 1.2 | E22: 0.7
B23: C1700 | D23: 1.2 | E23: 0.7
B24: C1900 | D24: 1.2 | E24: 0.7
B25: I1110 | C25: Rape seed | D25: 1.9 | E25: 0.7
B26: I1130 | C26: Soya beans | D26: 1.2 | E26: 0.7
B27: R2000 | C27: Sugar beet | D27: 0.7 | E27: 0.9
C28: Sugar cane | D28: 0.5 | E28: 0.9
C30: Step 2
C31: Estimation of available crop residues via harvest factors
C33: Available crop residues [t(as is weight)] = primary crop harvest [t(as is weight)] * harvest factor
C36: Standard values for harvest factors and recovery rates for the most common crop residues used in Europe
D38: Harvest factor | E38: Recovery rate | F38: Available crop residues [1000 t ]
F39: 1990 | G39: 1991 | H39: 1992 | I39: 1993 | J39: 1994 | K39: 1995 | L39: 1996 | M39: 1997 | N39: 1998 | O39: 1999 | P39: 2000 | Q39: 2001 | R39: 2002 | S39: 2003 | T39: 2004 | U39: 2005 | V39: 2006 | W39: 2007 | X39: 2008 | Y39: 2009 | Z39: 2010 | AA39: 2011 | AB39: 2012 | AC39: 2013 | AD39: 2014 | AE39: 2015 | AF39: 2016 | AG39: 2017 | AH39: 2018 | AI39: 2019 | AJ39: 2020
C40: Wheat | D40: 1 | E40: 0.7 | F40: =F15*$D15 -> 0 | G40: 0 | H40: 0 | I40: 0 | J40: 0 | K40: =K15*$D15 -> 0 | L40: 0 | M40: 0 | N40: 0 | O40: 0 | P40: 0 | Q40: 0 | R40: 0 | S40: 0 | T40: 0 | U40: 0 | V40: 0 | W40: 0 | X40: 0 | Y40: =Y15*$D15 -> 0 | Z40: 0 | AA40: 0 | AB40: 0 | AC40: 0 | AD40: 0 | AE40: 0 | AF40: =AF15*$D15 -> 0 | AG40: 0 | AH40: =AH15*$D15 -> 0 | AI40: 0 | AJ40: =AJ15*$D15 -> 0
C41: Soft wheat and meslin | D41: 1 | E41: 0.7 | F41: =F16*$D16 -> 0 | G41: =G16*$D16 -> 0 | H41: 0 | I41: 0 | J41: 0 | K41: 0 | L41: 0 | M41: 0 | N41: 0 | O41: 0 | P41: 0 | Q41: 0 | R41: 0 | S41: 0 | T41: 0 | U41: 0 | V41: 0 | W41: 0 | X41: 0 | Y41: 0 | Z41: 0 | AA41: =AA16*$D16 -> 0 | AB41: 0 | AC41: =AC16*$D16 -> 0 | AD41: 0 | AE41: 0 | AF41: =AF16*$D16 -> 0 | AG41: 0 | AH41: =AH16*$D16 -> 0 | AI41: 0 | AJ41: =AJ16*$D16 -> 0
C42: Barley | D42: 1.2 | E42: 0.7 | F42: =F17*$D17 -> 0 | G42: 0 | H42: 0 | I42: 0 | J42: 0 | K42: 0 | L42: 0 | M42: 0 | N42: 0 | O42: 0 | P42: 0 | Q42: 0 | R42: 0 | S42: 0 | T42: 0 | U42: 0 | V42: 0 | W42: 0 | X42: 0 | Y42: =Y17*$D17 -> 0 | Z42: =Z17*$D17 -> 0 | AA42: 0 | AB42: 0 | AC42: 0 | AD42: 0 | AE42: 0 | AF42: =AF17*$D17 -> 0 | AG42: 0 | AH42: =AH17*$D17 -> 0 | AI42: 0 | AJ42: =AJ17*$D17 -> 0
C43: Rye | D43: 1.2 | E43: 0.7 | F43: =F18*$D18 -> 0 | G43: 0 | H43: 0 | I43: 0 | J43: 0 | K43: 0 | L43: 0 | M43: 0 | N43: 0 | O43: 0 | P43: 0 | Q43: 0 | R43: 0 | S43: 0 | T43: 0 | U43: 0 | V43: 0 | W43: 0 | X43: 0 | Y43: =Y18*$D18 -> 0 | Z43: =Z18*$D18 -> 0 | AA43: 0 | AB43: 0 | AC43: 0 | AD43: 0 | AE43: 0 | AF43: =AF18*$D18 -> 0 | AG43: 0 | AH43: =AH18*$D18 -> 0 | AI43: 0 | AJ43: =AJ18*$D18 -> 0
C44: Oats | D44: 1.2 | E44: 0.7 | F44: =F19*$D19 -> 0 | G44: =G19*$D19 -> 0 | H44: 0 | I44: 0 | J44: 0 | K44: 0 | L44: 0 | M44: 0 | N44: 0 | O44: 0 | P44: 0 | Q44: 0 | R44: 0 | S44: 0 | T44: 0 | U44: 0 | V44: 0 | W44: 0 | X44: 0 | Y44: 0 | Z44: 0 | AA44: 0 | AB44: 0 | AC44: 0 | AD44: 0 | AE44: 0 | AF44: =AF19*$D19 -> 0 | AG44: 0 | AH44: =AH19*$D19 -> 0 | AI44: 0 | AJ44: =AJ19*$D19 -> 0
C45: Maize | D45: 1.2 | E45: 0.9 | F45: =F20*$D20 -> 0 | G45: 0 | H45: 0 | I45: 0 | J45: 0 | K45: 0 | L45: 0 | M45: 0 | N45: 0 | O45: 0 | P45: 0 | Q45: 0 | R45: 0 | S45: 0 | T45: 0 | U45: 0 | V45: 0 | W45: 0 | X45: 0 | Y45: =Y20*$D20 -> 0 | Z45: =Z20*$D20 -> 0 | AA45: 0 | AB45: 0 | AC45: 0 | AD45: 0 | AE45: 0 | AF45: =AF20*$D20 -> 0 | AG45: 0 | AH45: =AH20*$D20 -> 0 | AI45: 0 | AJ45: =AJ20*$D20 -> 0
C46: Rice | D46: 1.2 | E46: 0.7 | F46: =F21*$D21 -> 0 | G46: 0 | H46: 0 | I46: 0 | J46: 0 | K46: 0 | L46: 0 | M46: 0 | N46: 0 | O46: 0 | P46: 0 | Q46: 0 | R46: 0 | S46: 0 | T46: 0 | U46: 0 | V46: 0 | W46: 0 | X46: 0 | Y46: =Y21*$D21 -> 0 | Z46: =Z21*$D21 -> 0 | AA46: 0 | AB46: 0 | AC46: 0 | AD46: 0 | AE46: 0 | AF46: =AF21*$D21 -> 0 | AG46: 0 | AH46: =AH21*$D21 -> 0 | AI46: 0 | AJ46: =AJ21*$D21 -> 0
C47: All other cereals | D47: 1.2 | E47: 0.7 | F47: =F22*$D22+F23*$D23+F24*$D24 -> 0 | G47: =G22*$D22+G23*$D23+G24*$D24 -> 0 | H47: 0 | I47: =I22*$D22+I23*$D23+I24*$D24 -> 0 | J47: 0 | K47: =K22*$D22+K23*$D23+K24*$D24 -> 0 | L47: =L22*$D22+L23*$D23+L24*$D24 -> 0 | M47: =M22*$D22+M23*$D23+M24*$D24 -> 0 | N47: =N22*$D22+N23*$D23+N24*$D24 -> 0 | O47: =O22*$D22+O23*$D23+O24*$D24 -> 0 | P47: 0 | Q47: 0 | R47: 0 | S47: 0 | T47: 0 | U47: 0 | V47: 0 | W47: 0 | X47: 0 | Y47: 0 | Z47: 0 | AA47: =AA22*$D22+AA23*$D23+AA24*$D24 -> 0 | AB47: 0 | AC47: 0 | AD47: 0 | AE47: 0 | AF47: 0 | AG47: =AG22*$D22+AG23*$D23+AG24*$D24 -> 0 | AH47: 0 | AI47: =AI22*$D22+AI23*$D23+AI24*$D24 -> 0 | AJ47: 0
C48: Rape seed | D48: 1.9 | E48: 0.7 | F48: =F25*$D25 -> 0 | G48: 0 | H48: 0 | I48: 0 | J48: 0 | K48: =K25*$D25 -> 0 | L48: 0 | M48: 0 | N48: 0 | O48: 0 | P48: 0 | Q48: 0 | R48: 0 | S48: 0 | T48: 0 | U48: 0 | V48: 0 | W48: 0 | X48: 0 | Y48: =Y25*$D25 -> 0 | Z48: 0 | AA48: =AA25*$D25 -> 0 | AB48: 0 | AC48: 0 | AD48: =AD25*$D25 -> 0 | AE48: 0 | AF48: =AF25*$D25 -> 0 | AG48: 0 | AH48: =AH25*$D25 -> 0 | AI48: 0 | AJ48: =AJ25*$D25 -> 0
C49: Soya beans | D49: 1.2 | E49: 0.7 | F49: =F26*$D26 -> 0 | G49: 0 | H49: 0 | I49: 0 | J49: 0 | K49: 0 | L49: 0 | M49: 0 | N49: 0 | O49: 0 | P49: 0 | Q49: 0 | R49: 0 | S49: 0 | T49: 0 | U49: 0 | V49: 0 | W49: 0 | X49: 0 | Y49: 0 | Z49: 0 | AA49: 0 | AB49: 0 | AC49: 0 | AD49: 0 | AE49: 0 | AF49: =AF26*$D26 -> 0 | AG49: 0 | AH49: =AH26*$D26 -> 0 | AI49: 0 | AJ49: =AJ26*$D26 -> 0
C50: Sugar beet | D50: 0.7 | E50: 0.9 | F50: =F27*$D27 -> 0 | G50: 0 | H50: 0 | I50: 0 | J50: 0 | K50: 0 | L50: 0 | M50: 0 | N50: 0 | O50: 0 | P50: 0 | Q50: 0 | R50: 0 | S50: 0 | T50: 0 | U50: 0 | V50: 0 | W50: 0 | X50: 0 | Y50: 0 | Z50: 0 | AA50: 0 | AB50: 0 | AC50: 0 | AD50: 0 | AE50: 0 | AF50: =AF27*$D27 -> 0 | AG50: 0 | AH50: =AH27*$D27 -> 0 | AI50: 0 | AJ50: =AJ27*$D27 -> 0
C51: Sugar cane | D51: 0.5 | E51: 0.9 | F51: =F28*$D28 -> 0 | G51: 0 | H51: 0 | I51: 0 | J51: 0 | K51: 0 | L51: 0 | M51: 0 | N51: 0 | O51: 0 | P51: 0 | Q51: 0 | R51: 0 | S51: 0 | T51: 0 | U51: 0 | V51: 0 | W51: 0 | X51: 0 | Y51: 0 | Z51: 0 | AA51: 0 | AB51: 0 | AC51: 0 | AD51: 0 | AE51: 0 | AF51: =AF28*$D28 -> 0 | AG51: 0 | AH51: =AH28*$D28 -> 0 | AI51: 0 | AJ51: =AJ28*$D28 -> 0
C54: Step 3
C55: Estimation of fraction of used residues
C57: Used crop residues [t (as is weight] = available crop residues [t (as is weight)] * recovery rate
D60: Harvest factor | E60: Recovery rate | F60: Used crop residues [1000 t ]
F61: 1990 | G61: 1991 | H61: 1992 | I61: 1993 | J61: 1994 | K61: 1995 | L61: 1996 | M61: 1997 | N61: 1998 | O61: 1999 | P61: 2000 | Q61: 2001 | R61: 2002 | S61: 2003 | T61: 2004 | U61: 2005 | V61: 2006 | W61: 2007 | X61: 2008 | Y61: 2009 | Z61: 2010 | AA61: 2011 | AB61: 2012 | AC61: 2013 | AD61: 2014 | AE61: 2015 | AF61: 2016 | AG61: 2017 | AH61: 2018 | AI61: 2019 | AJ61: 2020
C62: Wheat | D62: 1 | E62: 0.7 | F62: =F40*$E62 -> 0 | G62: =G40*$E62 -> 0 | H62: 0 | I62: 0 | J62: 0 | K62: =K40*$E62 -> 0 | L62: 0 | M62: 0 | N62: 0 | O62: 0 | P62: 0 | Q62: 0 | R62: 0 | S62: 0 | T62: 0 | U62: 0 | V62: 0 | W62: 0 | X62: 0 | Y62: =Y40*$E62 -> 0 | Z62: 0 | AA62: 0 | AB62: 0 | AC62: 0 | AD62: 0 | AE62: 0 | AF62: =AF40*$E62 -> 0 | AG62: 0 | AH62: =AH40*$E62 -> 0 | AI62: 0 | AJ62: =AJ40*$E62 -> 0
C63: Soft wheat and meslin | D63: 1 | E63: 0.7 | F63: =F41*$E63 -> 0 | G63: =G41*$E63 -> 0 | H63: 0 | I63: 0 | J63: 0 | K63: 0 | L63: 0 | M63: 0 | N63: 0 | O63: 0 | P63: 0 | Q63: 0 | R63: 0 | S63: 0 | T63: 0 | U63: 0 | V63: 0 | W63: 0 | X63: 0 | Y63: 0 | Z63: 0 | AA63: =AA41*$E63 -> 0 | AB63: 0 | AC63: =AC41*$E63 -> 0 | AD63: 0 | AE63: 0 | AF63: =AF41*$E63 -> 0 | AG63: 0 | AH63: =AH41*$E63 -> 0 | AI63: 0 | AJ63: =AJ41*$E63 -> 0
C64: Barley | D64: 1.2 | E64: 0.7 | F64: =F42*$E64 -> 0 | G64: 0 | H64: 0 | I64: 0 | J64: 0 | K64: 0 | L64: 0 | M64: 0 | N64: 0 | O64: 0 | P64: 0 | Q64: 0 | R64: 0 | S64: 0 | T64: 0 | U64: 0 | V64: 0 | W64: 0 | X64: 0 | Y64: =Y42*$E64 -> 0 | Z64: =Z42*$E64 -> 0 | AA64: 0 | AB64: 0 | AC64: 0 | AD64: 0 | AE64: 0 | AF64: =AF42*$E64 -> 0 | AG64: 0 | AH64: =AH42*$E64 -> 0 | AI64: 0 | AJ64: =AJ42*$E64 -> 0
C65: Rye | D65: 1.2 | E65: 0.7 | F65: =F43*$E65 -> 0 | G65: 0 | H65: 0 | I65: 0 | J65: 0 | K65: 0 | L65: 0 | M65: 0 | N65: 0 | O65: 0 | P65: 0 | Q65: 0 | R65: 0 | S65: 0 | T65: 0 | U65: 0 | V65: 0 | W65: 0 | X65: 0 | Y65: =Y43*$E65 -> 0 | Z65: =Z43*$E65 -> 0 | AA65: 0 | AB65: 0 | AC65: 0 | AD65: 0 | AE65: 0 | AF65: =AF43*$E65 -> 0 | AG65: 0 | AH65: =AH43*$E65 -> 0 | AI65: 0 | AJ65: =AJ43*$E65 -> 0
C66: Oats | D66: 1.2 | E66: 0.7 | F66: 0 | G66: 0 | H66: 0 | I66: 0 | J66: 0 | K66: 0 | L66: 0 | M66: 0 | N66: 0 | O66: 0 | P66: 0 | Q66: 0 | R66: 0 | S66: 0 | T66: 0 | U66: 0 | V66: 0 | W66: 0 | X66: 0 | Y66: 0 | Z66: 0 | AA66: 0 | AB66: 0 | AC66: 0 | AD66: 0 | AE66: 0 | AF66: =AF44*$E66 -> 0 | AG66: 0 | AH66: =AH44*$E66 -> 0 | AI66: 0 | AJ66: =AJ44*$E66 -> 0
C67: Maize | D67: 1.2 | E67: 0.9 | F67: =F45*$E67 -> 0 | G67: 0 | H67: 0 | I67: 0 | J67: 0 | K67: 0 | L67: 0 | M67: 0 | N67: 0 | O67: 0 | P67: 0 | Q67: 0 | R67: 0 | S67: 0 | T67: 0 | U67: 0 | V67: 0 | W67: 0 | X67: 0 | Y67: =Y45*$E67 -> 0 | Z67: 0 | AA67: 0 | AB67: 0 | AC67: 0 | AD67: 0 | AE67: 0 | AF67: =AF45*$E67 -> 0 | AG67: 0 | AH67: =AH45*$E67 -> 0 | AI67: 0 | AJ67: =AJ45*$E67 -> 0
C68: Rice | D68: 1.2 | E68: 0.7 | F68: =F46*$E68 -> 0 | G68: 0 | H68: 0 | I68: 0 | J68: 0 | K68: 0 | L68: 0 | M68: 0 | N68: 0 | O68: 0 | P68: 0 | Q68: 0 | R68: 0 | S68: 0 | T68: 0 | U68: 0 | V68: 0 | W68: 0 | X68: 0 | Y68: 0 | Z68: 0 | AA68: 0 | AB68: 0 | AC68: 0 | AD68: 0 | AE68: 0 | AF68: =AF46*$E68 -> 0 | AG68: 0 | AH68: =AH46*$E68 -> 0 | AI68: 0 | AJ68: =AJ46*$E68 -> 0
C69: All other cereals | D69: 1.2 | E69: 0.7 | F69: =F47*$E69 -> 0 | G69: =G47*$E69 -> 0 | H69: 0 | I69: 0 | J69: 0 | K69: 0 | L69: 0 | M69: 0 | N69: 0 | O69: 0 | P69: 0 | Q69: 0 | R69: 0 | S69: 0 | T69: 0 | U69: 0 | V69: 0 | W69: 0 | X69: 0 | Y69: 0 | Z69: 0 | AA69: 0 | AB69: 0 | AC69: 0 | AD69: 0 | AE69: 0 | AF69: =AF47*$E69 -> 0 | AG69: 0 | AH69: =AH47*$E69 -> 0 | AI69: 0 | AJ69: =AJ47*$E69 -> 0
C70: Rape seed | D70: 1.9 | E70: 0.7 | F70: =F48*$E70 -> 0 | G70: 0 | H70: 0 | I70: 0 | J70: 0 | K70: 0 | L70: 0 | M70: 0 | N70: 0 | O70: 0 | P70: 0 | Q70: 0 | R70: 0 | S70: 0 | T70: 0 | U70: 0 | V70: 0 | W70: 0 | X70: 0 | Y70: 0 | Z70: 0 | AA70: 0 | AB70: 0 | AC70: 0 | AD70: 0 | AE70: 0 | AF70: =AF48*$E70 -> 0 | AG70: 0 | AH70: =AH48*$E70 -> 0 | AI70: 0 | AJ70: =AJ48*$E70 -> 0
C71: Soya beans | D71: 1.2 | E71: 0.7 | F71: =F49*$E71 -> 0 | G71: 0 | H71: 0 | I71: 0 | J71: 0 | K71: 0 | L71: 0 | M71: 0 | N71: 0 | O71: 0 | P71: 0 | Q71: 0 | R71: 0 | S71: 0 | T71: 0 | U71: 0 | V71: 0 | W71: 0 | X71: 0 | Y71: 0 | Z71: 0 | AA71: 0 | AB71: 0 | AC71: 0 | AD71: 0 | AE71: 0 | AF71: =AF49*$E71 -> 0 | AG71: 0 | AH71: =AH49*$E71 -> 0 | AI71: 0 | AJ71: =AJ49*$E71 -> 0
C72: Sugar beet | D72: 0.7 | E72: 0.9 | F72: =F50*$E72 -> 0 | G72: 0 | H72: 0 | I72: 0 | J72: 0 | K72: 0 | L72: 0 | M72: 0 | N72: 0 | O72: 0 | P72: 0 | Q72: 0 | R72: 0 | S72: 0 | T72: 0 | U72: 0 | V72: 0 | W72: 0 | X72: 0 | Y72: 0 | Z72: 0 | AA72: 0 | AB72: 0 | AC72: 0 | AD72: 0 | AE72: 0 | AF72: =AF50*$E72 -> 0 | AG72: 0 | AH72: =AH50*$E72 -> 0 | AI72: 0 | AJ72: =AJ50*$E72 -> 0
C73: Sugar cane | D73: 0.5 | E73: 0.9 | F73: =F51*$E73 -> 0 | G73: 0 | H73: 0 | I73: 0 | J73: 0 | K73: 0 | L73: 0 | M73: 0 | N73: 0 | O73: 0 | P73: 0 | Q73: 0 | R73: 0 | S73: 0 | T73: 0 | U73: 0 | V73: 0 | W73: 0 | X73: 0 | Y73: 0 | Z73: 0 | AA73: 0 | AB73: 0 | AC73: 0 | AD73: 0 | AE73: 0 | AF73: =AF51*$E73 -> 0 | AG73: 0 | AH73: =AH51*$E73 -> 0 | AI73: 0 | AJ73: =AJ51*$E73 -> 0
C74: TOTAL USED CROP RESIDUES | F74: =SUM(F62:F73) -> 0 | G74: =SUM(G62:G73) -> 0 | H74: 0 | I74: 0 | J74: 0 | K74: =SUM(K62:K73) -> 0 | L74: =SUM(L62:L73) -> 0 | M74: =SUM(M62:M73) -> 0 | N74: =SUM(N62:N73) -> 0 | O74: =SUM(O62:O73) -> 0 | P74: 0 | Q74: 0 | R74: 0 | S74: 0 | T74: 0 | U74: 0 | V74: 0 | W74: 0 | X74: 0 | Y74: =SUM(Y62:Y73) -> 0 | Z74: 0 | AA74: 0 | AB74: 0 | AC74: 0 | AD74: 0 | AE74: 0 | AF74: =SUM(AF62:AF73) -> 0 | AG74: 0 | AH74: =SUM(AH62:AH73) -> 0 | AI74: 0 | AJ74: =SUM(AJ62:AJ73) -> 0
C76: Enter the figures from row 74 "Total used crop residues" of this calculation tool in Table A row " MF.1.2.1 Crop residues (used)"

Sheet Sand and gravel v1
A1: Compilation tool for "sand and gravel"
A2: Please fill only in the yellow cells and if you have other national factors change in the blue cells and don't touch the green or red cells!!!
A5: If the amount of sand and gravel per capita of the population in the respective year is significantly less than 1 tonne per capita, it means that sand and gravel for construction purposes is not reported (or substantially underestimated) and has to be estimated
A9: Step1
A10: 1a) Estimation of sand and gravel based on concrete production data
A12: 1 tonne of concrete = 6% air + 11% portland cement + 41% gravel or crushed stone (coarse aggregate) + 26% sand + 16% water (PCA 2007)
A15: 41 | C15: Per cent gravel
A16: 26 | C16: Per cent sand
A17: =A15+A16 -> 67 | C17: Per cent of gravel and sand
A19: PRODCOM 2007 CODE | B19: PRODCOM 2017 - 2018 CODE | D19: 1990 | E19: 1991 | F19: 1992 | G19: 1993 | H19: 1994 | I19: 1995 | J19: 1996 | K19: 1997 | L19: 1998 | M19: 1999 | N19: 2000 | O19: 2001 | P19: 2002 | Q19: 2003 | R19: 2004 | S19: 2005 | T19: 2006 | U19: 2007 | V19: 2008 | W19: 2009 | X19: 2010 | Y19: 2011 | Z19: 2012 | AA19: 2013 | AB19: 2014 | AC19: 2015 | AD19: 2016 | AE19: 2017 | AF19: 2018 | AG19: 2019 | AH19: 2020
A20: 26631000 | B20: 23631000 | C20: Ready - mixed concrete
A22: Concrete production (tonnes) * sand and gravel input in % / 100 = sand and gravel (tonnes)
A26: Estimation of sand and gravel based on concrete production (tonnes) | D26: 1990 | E26: 1991 | F26: 1992 | G26: 1993 | H26: 1994 | I26: 1995 | J26: 1996 | K26: 1997 | L26: 1998 | M26: 1999 | N26: 2000 | O26: 2001 | P26: 2002 | Q26: 2003 | R26: 2004 | S26: 2005 | T26: 2006 | U26: 2007 | V26: 2008 | W26: 2009 | X26: 2010 | Y26: 2011 | Z26: 2012 | AA26: 2013 | AB26: 2014 | AC26: 2015 | AD26: 2016 | AE26: 2017 | AF26: 2018 | AG26: 2019 | AH26: 2020
D27: =D20*$A17/100 -> 0 | E27: 0 | F27: 0 | G27: 0 | H27: 0 | I27: 0 | J27: 0 | K27: =K20*$A17/100 -> 0 | L27: =L20*$A17/100 -> 0 | M27: =M20*$A17/100 -> 0 | N27: =N20*$A17/100 -> 0 | O27: =O20*$A17/100 -> 0 | P27: 0 | Q27: 0 | R27: 0 | S27: 0 | T27: 0 | U27: 0 | V27: 0 | W27: =W20*$A17/100 -> 0 | X27: 0 | Y27: 0 | Z27: 0 | AA27: 0 | AB27: 0 | AC27: 0 | AD27: =AD20*$A17/100 -> 0 | AE27: 0 | AF27: =AF20*$A17/100 -> 0 | AG27: 0 | AH27: =AH20*$A17/100 -> 0
A29: 1b) Estimation of sand and gravel based on the consumption of cement
A31: Sand and gravel input [t] = cement consumption [t] * 6.09
A33: Cement consumption = cement production + cement imports - cement exports
A37: CEMENT PRODUCTION (in tonnes)
A38: PRODCOM 2007 CODE | B38: PRODCOM 2017 - 2018 CODE | D38: 1990 | E38: 1991 | F38: 1992 | G38: 1993 | H38: 1994 | I38: 1995 | J38: 1996 | K38: 1997 | L38: 1998 | M38: 1999 | N38: 2000 | O38: 2001 | P38: 2002 | Q38: 2003 | R38: 2004 | S38: 2005 | T38: 2006 | U38: 2007 | V38: 2008 | W38: 2009 | X38: 2010 | Y38: 2011 | Z38: 2012 | AA38: 2013 | AB38: 2014 | AC38: 2015 | AD38: 2016 | AE38: 2017 | AF38: 2018 | AG38: 2019 | AH38: 2020
A39: 26511210 | B39: 23511210 | C39: White Portland cement
A40: 26511230 | C40: Grey Portland cement including blended cement
A41: 26511250 | B41: 23511290 | C41: Alumina cement
A42: 26511290 | C42: Other hydraulic cement
C43: Total cement production | D43: =SUM(D39:D42) -> 0 | E43: 0 | F43: 0 | G43: 0 | H43: 0 | I43: 0 | J43: 0 | K43: =SUM(K39:K42) -> 0 | L43: =SUM(L39:L42) -> 0 | M43: =SUM(M39:M42) -> 0 | N43: =SUM(N39:N42) -> 0 | O43: =SUM(O39:O42) -> 0 | P43: 0 | Q43: 0 | R43: 0 | S43: 0 | T43: 0 | U43: 0 | V43: =SUM(V39:V42) -> 0 | W43: 0 | X43: 0 | Y43: 0 | Z43: 0 | AA43: 0 | AB43: =SUM(AB39:AB42) -> 0 | AC43: 0 | AD43: 0 | AE43: 0 | AF43: 0 | AG43: 0 | AH43: =SUM(AH39:AH42) -> 0
A46: CEMENT IMPORTS (in tonnes)
A47: HS CODE | D47: 1990 | E47: 1991 | F47: 1992 | G47: 1993 | H47: 1994 | I47: 1995 | J47: 1996 | K47: 1997 | L47: 1998 | M47: 1999 | N47: 2000 | O47: 2001 | P47: 2002 | Q47: 2003 | R47: 2004 | S47: 2005 | T47: 2006 | U47: 2007 | V47: 2008 | W47: 2009 | X47: 2010 | Y47: 2011 | Z47: 2012 | AA47: 2013 | AB47: 2014 | AC47: 2015 | AD47: 2016 | AE47: 2017 | AF47: 2018 | AG47: 2019 | AH47: 2020
A48: 252321 | C48: White Portland cement
A49: 252329 | C49: Portland cement excl. white
A50: 252330 | C50: Aluminous cement
A51: 252390 | C51: Cement weather or not coloured excl. Aluminous and Portland cement
C52: Total cement imports | D52: =SUM(D48:D51) -> 0 | E52: 0 | F52: 0 | G52: 0 | H52: 0 | I52: 0 | J52: 0 | K52: =SUM(K48:K51) -> 0 | L52: =SUM(L48:L51) -> 0 | M52: =SUM(M48:M51) -> 0 | N52: =SUM(N48:N51) -> 0 | O52: =SUM(O48:O51) -> 0 | P52: 0 | Q52: 0 | R52: 0 | S52: 0 | T52: 0 | U52: 0 | V52: 0 | W52: =SUM(W48:W51) -> 0 | X52: 0 | Y52: 0 | Z52: 0 | AA52: 0 | AB52: 0 | AC52: 0 | AD52: =SUM(AD48:AD51) -> 0 | AE52: 0 | AF52: =SUM(AF48:AF51) -> 0 | AG52: 0 | AH52: =SUM(AH48:AH51) -> 0
A55: CEMENT EXPORTS (in tonnes)
A56: HS CODE | D56: 1990 | E56: 1991 | F56: 1992 | G56: 1993 | H56: 1994 | I56: 1995 | J56: 1996 | K56: 1997 | L56: 1998 | M56: 1999 | N56: 2000 | O56: 2001 | P56: 2002 | Q56: 2003 | R56: 2004 | S56: 2005 | T56: 2006 | U56: 2007 | V56: 2008 | W56: 2009 | X56: 2010 | Y56: 2011 | Z56: 2012 | AA56: 2013 | AB56: 2014 | AC56: 2015 | AD56: 2016 | AE56: 2017 | AF56: 2018 | AG56: 2019 | AH56: 2020
A57: 252321 | C57: White Portland cement
A58: 252329 | C58: Portland cement excl. white
A59: 252330 | C59: Aluminous cement
A60: 252390 | C60: Cement weather or not coloured excl. Aluminous and Portland cement
C61: Total cement exports | D61: =SUM(D57:D60) -> 0 | E61: 0 | F61: 0 | G61: 0 | H61: 0 | I61: 0 | J61: 0 | K61: =SUM(K57:K60) -> 0 | L61: =SUM(L57:L60) -> 0 | M61: =SUM(M57:M60) -> 0 | N61: =SUM(N57:N60) -> 0 | O61: =SUM(O57:O60) -> 0 | P61: 0 | Q61: 0 | R61: 0 | S61: 0 | T61: 0 | U61: 0 | V61: 0 | W61: =SUM(W57:W60) -> 0 | X61: 0 | Y61: 0 | Z61: 0 | AA61: 0 | AB61: 0 | AC61: 0 | AD61: =SUM(AD57:AD60) -> 0 | AE61: 0 | AF61: =SUM(AF57:AF60) -> 0 | AG61: 0 | AH61: =SUM(AH57:AH60) -> 0
D63: 1990 | E63: 1991 | F63: 1992 | G63: 1993 | H63: 1994 | I63: 1995 | J63: 1996 | K63: 1997 | L63: 1998 | M63: 1999 | N63: 2000 | O63: 2001 | P63: 2002 | Q63: 2003 | R63: 2004 | S63: 2005 | T63: 2006 | U63: 2007 | V63: 2008 | W63: 2009 | X63: 2010 | Y63: 2011 | Z63: 2012 | AA63: 2013 | AB63: 2014 | AC63: 2015 | AD63: 2016 | AE63: 2017 | AF63: 2018 | AG63: 2019 | AH63: 2020
A64: Estimation of sand and gravel based on the consumption of cement | D64: =(D43+D52-D61)*6.09 -> 0 | E64: 0 | F64: 0 | G64: 0 | H64: 0 | I64: 0 | J64: 0 | K64: =(K43+K52-K61)*6.09 -> 0 | L64: =(L43+L52-L61)*6.09 -> 0 | M64: =(M43+M52-M61)*6.09 -> 0 | N64: =(N43+N52-N61)*6.09 -> 0 | O64: =(O43+O52-O61)*6.09 -> 0 | P64: 0 | Q64: 0 | R64: 0 | S64: 0 | T64: 0 | U64: 0 | V64: 0 | W64: =(W43+W52-W61)*6.09 -> 0 | X64: 0 | Y64: 0 | Z64: 0 | AA64: 0 | AB64: 0 | AC64: 0 | AD64: =(AD43+AD52-AD61)*6.09 -> 0 | AE64: 0 | AF64: =(AF43+AF52-AF61)*6.09 -> 0 | AG64: 0 | AH64: =(AH43+AH52-AH61)*6.09 -> 0
A67: Step 2
A68: Use of sand and gravel for road construction and for annual maintenance
C71: tonnes sand and gravel per km
C72: for construction | D72: for annual maintenance
C73: Germany | D73: Germany
A74: Highways | C74: 28383 | D74: 518
A75: National roads | C75: 9692 | D75: 151
A76: Federal state roads | C76: 8719 | D76: 76
A77: District roads | C77: 6777 | D77: 65
A78: Local roads | C78: 5729 | D78: 67
A79: All roads | C79: 6886 | D79: 81
D84: Length of newly built roads [km]
D85: 1990 | E85: 1991 | F85: 1992 | G85: 1993 | H85: 1994 | I85: 1995 | J85: 1996 | K85: 1997 | L85: 1998 | M85: 1999 | N85: 2000 | O85: 2001 | P85: 2002 | Q85: 2003 | R85: 2004 | S85: 2005 | T85: 2006 | U85: 2007 | V85: 2008 | W85: 2009 | X85: 2010 | Y85: 2011 | Z85: 2012 | AA85: 2013 | AB85: 2014 | AC85: 2015 | AD85: 2016 | AE85: 2017 | AF85: 2018 | AG85: 2019 | AH85: 2020
A86: Highways
A87: National roads
A88: Federal state roads
A89: District roads
A90: Local roads
A91: All roads
D94: Length of roads receiving annual maintenance [km]
D95: 1990 | E95: 1991 | F95: 1992 | G95: 1993 | H95: 1994 | I95: 1995 | J95: 1996 | K95: 1997 | L95: 1998 | M95: 1999 | N95: 2000 | O95: 2001 | P95: 2002 | Q95: 2003 | R95: 2004 | S95: 2005 | T95: 2006 | U95: 2007 | V95: 2008 | W95: 2009 | X95: 2010 | Y95: 2011 | Z95: 2012 | AA95: 2013 | AB95: 2014 | AC95: 2015 | AD95: 2016 | AE95: 2017 | AF95: 2018 | AG95: 2019 | AH95: 2020
A96: Highways
A97: National roads
A98: Federal state roads
A99: District roads
A100: Local roads
A101: All roads
D104: Estimation of sand and gravel for road construction and maintenance
D106: 1990 | E106: 1991 | F106: 1992 | G106: 1993 | H106: 1994 | I106: 1995 | J106: 1996 | K106: 1997 | L106: 1998 | M106: 1999 | N106: 2000 | O106: 2001 | P106: 2002 | Q106: 2003 | R106: 2004 | S106: 2005 | T106: 2006 | U106: 2007 | V106: 2008 | W106: 2009 | X106: 2010 | Y106: 2011 | Z106: 2012 | AA106: 2013 | AB106: 2014 | AC106: 2015 | AD106: 2016 | AE106: 2017 | AF106: 2018 | AG106: 2019 | AH106: 2020
A107: Highways | D107: =D86*$C74+D96*$D74 -> 0 | E107: 0 | F107: 0 | G107: 0 | H107: 0 | I107: 0 | J107: 0 | K107: =K86*$C74+K96*$D74 -> 0 | L107: 0 | M107: 0 | N107: 0 | O107: 0 | P107: 0 | Q107: 0 | R107: 0 | S107: 0 | T107: 0 | U107: 0 | V107: =V86*$C74+V96*$D74 -> 0 | W107: 0 | X107: 0 | Y107: 0 | Z107: 0 | AA107: 0 | AB107: =AB86*$C74+AB96*$D74 -> 0 | AC107: 0 | AD107: =AD86*$C74+AD96*$D74 -> 0 | AE107: 0 | AF107: =AF86*$C74+AF96*$D74 -> 0 | AG107: 0 | AH107: =AH86*$C74+AH96*$D74 -> 0
A108: National roads | D108: =D87*$C75+D97*$D75 -> 0 | E108: 0 | F108: 0 | G108: 0 | H108: 0 | I108: 0 | J108: 0 | K108: 0 | L108: 0 | M108: 0 | N108: 0 | O108: 0 | P108: 0 | Q108: 0 | R108: 0 | S108: 0 | T108: 0 | U108: 0 | V108: 0 | W108: 0 | X108: 0 | Y108: 0 | Z108: =Z87*$C75+Z97*$D75 -> 0 | AA108: 0 | AB108: 0 | AC108: 0 | AD108: =AD87*$C75+AD97*$D75 -> 0 | AE108: 0 | AF108: =AF87*$C75+AF97*$D75 -> 0 | AG108: 0 | AH108: =AH87*$C75+AH97*$D75 -> 0
A109: Federal state roads | D109: =D88*$C76+D98*$D76 -> 0 | E109: 0 | F109: 0 | G109: 0 | H109: 0 | I109: 0 | J109: 0 | K109: 0 | L109: 0 | M109: 0 | N109: 0 | O109: 0 | P109: 0 | Q109: 0 | R109: 0 | S109: 0 | T109: 0 | U109: 0 | V109: 0 | W109: 0 | X109: 0 | Y109: 0 | Z109: 0 | AA109: 0 | AB109: 0 | AC109: 0 | AD109: =AD88*$C76+AD98*$D76 -> 0 | AE109: 0 | AF109: =AF88*$C76+AF98*$D76 -> 0 | AG109: 0 | AH109: =AH88*$C76+AH98*$D76 -> 0
A110: District roads | D110: =D89*$C77+D99*$D77 -> 0 | E110: 0 | F110: 0 | G110: 0 | H110: 0 | I110: 0 | J110: 0 | K110: 0 | L110: 0 | M110: 0 | N110: 0 | O110: 0 | P110: 0 | Q110: 0 | R110: 0 | S110: 0 | T110: 0 | U110: 0 | V110: 0 | W110: 0 | X110: 0 | Y110: 0 | Z110: 0 | AA110: 0 | AB110: 0 | AC110: 0 | AD110: =AD89*$C77+AD99*$D77 -> 0 | AE110: 0 | AF110: =AF89*$C77+AF99*$D77 -> 0 | AG110: 0 | AH110: =AH89*$C77+AH99*$D77 -> 0
A111: Local roads | D111: =D90*$C78+D100*$D78 -> 0 | E111: 0 | F111: 0 | G111: 0 | H111: 0 | I111: 0 | J111: 0 | K111: 0 | L111: 0 | M111: 0 | N111: 0 | O111: 0 | P111: 0 | Q111: 0 | R111: 0 | S111: 0 | T111: 0 | U111: 0 | V111: 0 | W111: 0 | X111: 0 | Y111: 0 | Z111: 0 | AA111: 0 | AB111: 0 | AC111: 0 | AD111: =AD90*$C78+AD100*$D78 -> 0 | AE111: 0 | AF111: =AF90*$C78+AF100*$D78 -> 0 | AG111: 0 | AH111: =AH90*$C78+AH100*$D78 -> 0
A112: All roads | D112: =D91*$C79+D101*$D79 -> 0 | E112: 0 | F112: 0 | G112: 0 | H112: 0 | I112: 0 | J112: 0 | K112: 0 | L112: 0 | M112: 0 | N112: 0 | O112: 0 | P112: 0 | Q112: 0 | R112: 0 | S112: 0 | T112: 0 | U112: 0 | V112: 0 | W112: 0 | X112: 0 | Y112: 0 | Z112: 0 | AA112: 0 | AB112: 0 | AC112: 0 | AD112: =AD91*$C79+AD101*$D79 -> 0 | AE112: 0 | AF112: =AF91*$C79+AF101*$D79 -> 0 | AG112: 0 | AH112: =AH91*$C79+AH101*$D79 -> 0
A113: Total | D113: =SUM(D107:D112) -> 0 | E113: 0 | F113: 0 | G113: 0 | H113: 0 | I113: 0 | J113: 0 | K113: =SUM(K107:K112) -> 0 | L113: =SUM(L107:L112) -> 0 | M113: =SUM(M107:M112) -> 0 | N113: =SUM(N107:N112) -> 0 | O113: =SUM(O107:O112) -> 0 | P113: 0 | Q113: 0 | R113: 0 | S113: 0 | T113: 0 | U113: 0 | V113: 0 | W113: =SUM(W107:W112) -> 0 | X113: 0 | Y113: 0 | Z113: 0 | AA113: 0 | AB113: 0 | AC113: 0 | AD113: =SUM(AD107:AD112) -> 0 | AE113: 0 | AF113: =SUM(AF107:AF112) -> 0 | AG113: 0 | AH113: =SUM(AH107:AH112) -> 0
A116: Step 3
D118: 1990 | E118: 1991 | F118: 1992 | G118: 1993 | H118: 1994 | I118: 1995 | J118: 1996 | K118: 1997 | L118: 1998 | M118: 1999 | N118: 2000 | O118: 2001 | P118: 2002 | Q118: 2003 | R118: 2004 | S118: 2005 | T118: 2006 | U118: 2007 | V118: 2008 | W118: 2009 | X118: 2010 | Y118: 2011 | Z118: 2012 | AA118: 2013 | AB118: 2014 | AC118: 2015 | AD118: 2016 | AE118: 2017 | AF118: 2018 | AG118: 2019 | AH118: 2020
A119: Total estimated | D119: =D27+D64+D113 -> 0 | E119: =E27+E64+E113 -> 0 | F119: 0 | G119: 0 | H119: 0 | I119: 0 | J119: 0 | K119: =K27+K64+K113 -> 0 | L119: =L27+L64+L113 -> 0 | M119: =M27+M64+M113 -> 0 | N119: =N27+N64+N113 -> 0 | O119: =O27+O64+O113 -> 0 | P119: 0 | Q119: 0 | R119: 0 | S119: 0 | T119: 0 | U119: 0 | V119: 0 | W119: 0 | X119: 0 | Y119: 0 | Z119: 0 | AA119: 0 | AB119: =AB27+AB64+AB113 -> 0 | AC119: =AC27+AC64+AC113 -> 0 | AD119: =AD27+AD64+AD113 -> 0 | AE119: 0 | AF119: =AF27+AF64+AF113 -> 0 | AG119: 0 | AH119: =AH27+AH64+AH113 -> 0
A120: Sand and gravel reported in statistics or Geological Survey
A121: Domestic extraction of sand and gravel | D121: =IF(D119>D120,"USE ESTIMATED DATA","USE DATA REPORTED IN STATISTICS") -> USE DATA REPORTED IN STATISTICS | E121: USE DATA REPORTED IN STATISTICS | F121: USE DATA REPORTED IN STATISTICS | G121: USE DATA REPORTED IN STATISTICS | H121: USE DATA REPORTED IN STATISTICS | I121: USE DATA REPORTED IN STATISTICS | J121: USE DATA REPORTED IN STATISTICS | K121: =IF(K119>K120,"USE ESTIMATED DATA","USE DATA REPORTED IN STATISTICS") -> USE DATA REPORTED IN STATISTICS | L121: =IF(L119>L120,"USE ESTIMATED DATA","USE DATA REPORTED IN STATISTICS") -> USE DATA REPORTED IN STATISTICS | M121: =IF(M119>M120,"USE ESTIMATED DATA","USE DATA REPORTED IN STATISTICS") -> USE DATA REPORTED IN STATISTICS | N121: =IF(N119>N120,"USE ESTIMATED DATA","USE DATA REPORTED IN STATISTICS") -> USE DATA REPORTED IN STATISTICS | O121: =IF(O119>O120,"USE ESTIMATED DATA","USE DATA REPORTED IN STATISTICS") -> USE DATA REPORTED IN STATISTICS | P121: USE DATA REPORTED IN STATISTICS | Q121: USE DATA REPORTED IN STATISTICS | R121: USE DATA REPORTED IN STATISTICS | S121: USE DATA REPORTED IN STATISTICS | T121: USE DATA REPORTED IN STATISTICS | U121: USE DATA REPORTED IN STATISTICS | V121: USE DATA REPORTED IN STATISTICS | W121: =IF(W119>W120,"USE ESTIMATED DATA","USE DATA REPORTED IN STATISTICS") -> USE DATA REPORTED IN STATISTICS | X121: USE DATA REPORTED IN STATISTICS | Y121: USE DATA REPORTED IN STATISTICS | Z121: USE DATA REPORTED IN STATISTICS | AA121: USE DATA REPORTED IN STATISTICS | AB121: USE DATA REPORTED IN STATISTICS | AC121: USE DATA REPORTED IN STATISTICS | AD121: =IF(AD119>AD120,"USE ESTIMATED DATA","USE DATA REPORTED IN STATISTICS") -> USE DATA REPORTED IN STATISTICS | AE121: USE DATA REPORTED IN STATISTICS | AF121: =IF(AF119>AF120,"USE ESTIMATED DATA","USE DATA REPORTED IN STATISTICS") -> USE DATA REPORTED IN STATISTICS | AG121: USE DATA REPORTED IN STATISTICS | AH121: =IF(AH119>AH120,"USE ESTIMATED DATA","USE DATA REPORTED IN STATISTICS") -> USE DATA REPORTED IN STATISTICS
A124: If the message displayed on the red row is "use data reported in statistics" then report the data in row 119 of this calculation tool to fill in Table A row "MF.3.8 Sand and gravel". NOTE: make sure that the figures in row 119 include both gravel and sand.
A126: If the message displayed on the red row is "use estimated data " then report the data in row 118 of this calculation tool to fill in Table A row "MF.3.8 Sand and gravel"

Sheet Clay v1
A1: Compilation tool for "clay"
A2: Please fill only in the yellow cells and if you have other national factors change in the blue cells and don't touch the green cells!!!
A5: Step1
A6: For the production of bricks: 0.998 tonnes crude clay are required to produce 1 m3 of bricks
A8: 0.998 | C8: tonnes crude clay
D11: Production of bricks [m3]
A12: PRODCOM 2004 CODE | B12: PRODCOM 2017 - 2018 CODE | C12: Name of the code | D12: 1990 | E12: 1991 | F12: 1992 | G12: 1993 | H12: 1994 | I12: 1995 | J12: 1996 | K12: 1997 | L12: 1998 | M12: 1999 | N12: 2000 | O12: 2001 | P12: 2002 | Q12: 2003 | R12: 2004 | S12: 2005 | T12: 2006 | U12: 2007 | V12: 2008 | W12: 2009 | X12: 2010 | Y12: 2011 | Z12: 2012 | AA12: 2013 | AB12: 2014 | AC12: 2015 | AD12: 2016 | AE12: 2017 | AF12: 2018 | AG12: 2019 | AH12: 2020
A13: 26401110 | B13: 23321110 | C13: Non-refractory clay building bricks
A14: 26401113* | C14: Ceramic bricks and blocks for common masonry: formed units, with or without perforation, for walls with rendering or cladding
A15: 26401115* | C15: Ceramic facing bricks: formed units, with or without performation, for use without rendering
A16: 26401117* | C16: Ceramic paving bricks: formed units for floor and road surfacing
C17: Estimated production of crude clay for bricks [t] | D17: =(D13+D14+D15+D16)*$A8 -> 0 | E17: =(E13+E14+E15+E16)*$A8 -> 0 | F17: 0 | G17: 0 | H17: 0 | I17: 0 | J17: 0 | K17: =(K13+K14+K15+K16)*$A8 -> 0 | L17: =(L13+L14+L15+L16)*$A8 -> 0 | M17: =(M13+M14+M15+M16)*$A8 -> 0 | N17: =(N13+N14+N15+N16)*$A8 -> 0 | O17: =(O13+O14+O15+O16)*$A8 -> 0 | P17: 0 | Q17: 0 | R17: 0 | S17: 0 | T17: 0 | U17: 0 | V17: 0 | W17: =(W13+W14+W15+W16)*$A8 -> 0 | X17: 0 | Y17: 0 | Z17: 0 | AA17: 0 | AB17: 0 | AC17: 0 | AD17: =(AD13+AD14+AD15+AD16)*$A8 -> 0 | AE17: 0 | AF17: =(AF13+AF14+AF15+AF16)*$A8 -> 0 | AG17: 0 | AH17: =(AH13+AH14+AH15+AH16)*$A8 -> 0
A18: * these codes are valid only for the period 1995 - 2004
A19: Step 2
A20: For the production of roof bricks: 1349 kg crude clay are required to produce 1t of bricks, and 2.37 kg crude clay are required to produce one single roof brick respectively
A22: 1.349 | C22: kg crude clay per kg clay product
A23: 2.37 | C23: kg crude clay nper piece roof tile
D25: Production of roof bricks [kg]
A26: PRODCOM 2003 CODE | B26: PRODCOM 2017 - 2018 CODE | C26: Name of the code | D26: 1990 | E26: 1991 | F26: 1992 | G26: 1993 | H26: 1994 | I26: 1995 | J26: 1996 | K26: 1997 | L26: 1998 | M26: 1999 | N26: 2000 | O26: 2001 | P26: 2002 | Q26: 2003 | R26: 2004 | S26: 2005 | T26: 2006 | U26: 2007 | V26: 2008 | W26: 2009 | X26: 2010 | Y26: 2011 | Z26: 2012 | AA26: 2013 | AB26: 2014 | AC26: 2015 | AD26: 2016 | AE26: 2017 | AF26: 2018 | AG26: 2019 | AH26: 2020
A27: 26401130 | B27: 23321130 | C27: Non-refractory clay flooring blocks
A28: 26401270 | B28: 23321270 | C28: Non-refractory clay constructional products
A29: 26401300 | B29: 23321300 | C29: Ceramic pipes, conduits, guttering and pipe fittings: drain pipes and guttering with fittings
D30: Production of roof bricks [pieces]
A31: 26401250 | B31: 23321250 | C31: Non-refractory clay roofing tiles
C32: Estimated production of crude clay for bricks [t] | D32: =((D27+D28+D29)*$A22)/1000+D31*$A23/1000 -> 0 | E32: =((E27+E28+E29)*$A22)/1000+E31*$A23/1000 -> 0 | F32: 0 | G32: 0 | H32: 0 | I32: 0 | J32: 0 | K32: 0 | L32: 0 | M32: 0 | N32: 0 | O32: 0 | P32: 0 | Q32: 0 | R32: 0 | S32: 0 | T32: 0 | U32: 0 | V32: 0 | W32: 0 | X32: 0 | Y32: 0 | Z32: 0 | AA32: =((AA27+AA28+AA29)*$A22)/1000+AA31*$A23/1000 -> 0 | AB32: 0 | AC32: 0 | AD32: 0 | AE32: 0 | AF32: 0 | AG32: =((AG27+AG28+AG29)*$A22)/1000+AG31*$A23/1000 -> 0 | AH32: =((AH27+AH28+AH29)*$A22)/1000+AH31*$A23/1000 -> 0
D37: 1990 | E37: 1991 | F37: 1992 | G37: 1993 | H37: 1994 | I37: 1995 | J37: 1996 | K37: 1997 | L37: 1998 | M37: 1999 | N37: 2000 | O37: 2001 | P37: 2002 | Q37: 2003 | R37: 2004 | S37: 2005 | T37: 2006 | U37: 2007 | V37: 2008 | W37: 2009 | X37: 2010 | Y37: 2011 | Z37: 2012 | AA37: 2013 | AB37: 2014 | AC37: 2015 | AD37: 2016 | AE37: 2017 | AF37: 2018 | AG37: 2019 | AH37: 2020
A38: Total estimated production of crude clay [t] | D38: =D17+D32 -> 0 | E38: =E17+E32 -> 0 | F38: 0 | G38: 0 | H38: 0 | I38: 0 | J38: 0 | K38: =K17+K32 -> 0 | L38: =L17+L32 -> 0 | M38: =M17+M32 -> 0 | N38: =N17+N32 -> 0 | O38: =O17+O32 -> 0 | P38: 0 | Q38: 0 | R38: 0 | S38: 0 | T38: 0 | U38: 0 | V38: 0 | W38: 0 | X38: 0 | Y38: 0 | Z38: 0 | AA38: =AA17+AA32 -> 0 | AB38: 0 | AC38: 0 | AD38: 0 | AE38: 0 | AF38: 0 | AG38: =AG17+AG32 -> 0 | AH38: =AH17+AH32 -> 0
A39: Figure for common clays extraction reported in statistics or Geological Survey
D40: =IF(D38>D39, "USE ESTIMATED DATA","USE DATA REPORTED IN STATISTICS") -> USE DATA REPORTED IN STATISTICS | E40: USE DATA REPORTED IN STATISTICS | F40: USE DATA REPORTED IN STATISTICS | G40: USE DATA REPORTED IN STATISTICS | H40: USE DATA REPORTED IN STATISTICS | I40: USE DATA REPORTED IN STATISTICS | J40: USE DATA REPORTED IN STATISTICS | K40: =IF(K38>K39, "USE ESTIMATED DATA","USE DATA REPORTED IN STATISTICS") -> USE DATA REPORTED IN STATISTICS | L40: =IF(L38>L39, "USE ESTIMATED DATA","USE DATA REPORTED IN STATISTICS") -> USE DATA REPORTED IN STATISTICS | M40: =IF(M38>M39, "USE ESTIMATED DATA","USE DATA REPORTED IN STATISTICS") -> USE DATA REPORTED IN STATISTICS | N40: =IF(N38>N39, "USE ESTIMATED DATA","USE DATA REPORTED IN STATISTICS") -> USE DATA REPORTED IN STATISTICS | O40: =IF(O38>O39, "USE ESTIMATED DATA","USE DATA REPORTED IN STATISTICS") -> USE DATA REPORTED IN STATISTICS | P40: USE DATA REPORTED IN STATISTICS | Q40: USE DATA REPORTED IN STATISTICS | R40: USE DATA REPORTED IN STATISTICS | S40: USE DATA REPORTED IN STATISTICS | T40: USE DATA REPORTED IN STATISTICS | U40: USE DATA REPORTED IN STATISTICS | V40: USE DATA REPORTED IN STATISTICS | W40: =IF(W38>W39, "USE ESTIMATED DATA","USE DATA REPORTED IN STATISTICS") -> USE DATA REPORTED IN STATISTICS | X40: USE DATA REPORTED IN STATISTICS | Y40: USE DATA REPORTED IN STATISTICS | Z40: USE DATA REPORTED IN STATISTICS | AA40: USE DATA REPORTED IN STATISTICS | AB40: USE DATA REPORTED IN STATISTICS | AC40: USE DATA REPORTED IN STATISTICS | AD40: =IF(AD38>AD39, "USE ESTIMATED DATA","USE DATA REPORTED IN STATISTICS") -> USE DATA REPORTED IN STATISTICS | AE40: USE DATA REPORTED IN STATISTICS | AF40: =IF(AF38>AF39, "USE ESTIMATED DATA","USE DATA REPORTED IN STATISTICS") -> USE DATA REPORTED IN STATISTICS | AG40: USE DATA REPORTED IN STATISTICS | AH40: =IF(AH38>AH39, "USE ESTIMATED DATA","USE DATA REPORTED IN STATISTICS") -> USE DATA REPORTED IN STATISTICS
A44: If the message displayed on the red row is "use data reported in statistics" then report the data in row 38 of this calculation tool to fill in Table A row "MF.3.7 Clays and kaolin". NOTE: make sure that the figures in row 38 are in tonnes and include both clay and kaolin.
A46: If the message displayed on the red row is "use estimated data " then report the data in row 37 of this calculation tool to fill in Table A row "MF.3.7 Clays and kaolin"

Sheet Limestone v1
A1: Compilation tool for "limestone"
A2: Please fill only in the yellow cells and if you have other national factors change in the blue cells and don't touch the green and red cells!!!
A4: Limestone for cement production [t] = cement production [t] *1.19
A6: 1.19 | C6: tonnes limestone for the production of 1 tonne of cement
A8: CEMENT PRODUCTION (tonnes)
A9: PRODCOM 2003 CODE | B9: PRODCOM 2017 - 2018 CODE | D9: 1990 | E9: 1991 | F9: 1992 | G9: 1993 | H9: 1994 | I9: 1995 | J9: 1996 | K9: 1997 | L9: 1998 | M9: 1999 | N9: 2000 | O9: 2001 | P9: 2002 | Q9: 2003 | R9: 2004 | S9: 2005 | T9: 2006 | U9: 2007 | V9: 2008 | W9: 2009 | X9: 2010 | Y9: 2011 | Z9: 2012 | AA9: 2013 | AB9: 2014 | AC9: 2015 | AD9: 2016 | AE9: 2017 | AF9: 2018 | AG9: 2019 | AH9: 2020
A10: 26511210 | B10: 23511210 | C10: White Portland cement
A11: 26511230 | C11: Grey Portland cement including blended cement
A12: 26511250 | B12: 23511290 | C12: Alumina cement
A13: 26511290 | C13: Other hydraulic cement
C14: Total cement production | D14: =SUM(D10:D13) -> 0 | E14: 0 | F14: 0 | G14: 0 | H14: 0 | I14: 0 | J14: =SUM(J10:J13) -> 0 | K14: =SUM(K10:K13) -> 0 | L14: =SUM(L10:L13) -> 0 | M14: =SUM(M10:M13) -> 0 | N14: =SUM(N10:N13) -> 0 | O14: 0 | P14: 0 | Q14: 0 | R14: 0 | S14: 0 | T14: 0 | U14: 0 | V14: 0 | W14: =SUM(W10:W13) -> 0 | X14: 0 | Y14: 0 | Z14: 0 | AA14: 0 | AB14: 0 | AC14: 0 | AD14: =SUM(AD10:AD13) -> 0 | AE14: 0 | AF14: =SUM(AF10:AF13) -> 0 | AG14: 0 | AH14: =SUM(AH10:AH13) -> 0
D17: 1990 | E17: 1991 | F17: 1992 | G17: 1993 | H17: 1994 | I17: 1995 | J17: 1996 | K17: 1997 | L17: 1998 | M17: 1999 | N17: 2000 | O17: 2001 | P17: 2002 | Q17: 2003 | R17: 2004 | S17: 2005 | T17: 2006 | U17: 2007 | V17: 2008 | W17: 2009 | X17: 2010 | Y17: 2011 | Z17: 2012 | AA17: 2013 | AB17: 2014 | AC17: 2015 | AD17: 2016 | AE17: 2017 | AF17: 2018 | AG17: 2019 | AH17: 2020
A18: Estimation of limestone based on the production of cement | D18: =D14*$A6 -> 0 | E18: =E14*$A6 -> 0 | F18: 0 | G18: 0 | H18: 0 | I18: 0 | J18: =J14*$A6 -> 0 | K18: =K14*$A6 -> 0 | L18: =L14*$A6 -> 0 | M18: =M14*$A6 -> 0 | N18: =N14*$A6 -> 0 | O18: 0 | P18: 0 | Q18: 0 | R18: 0 | S18: 0 | T18: 0 | U18: 0 | V18: =V14*$A6 -> 0 | W18: 0 | X18: 0 | Y18: 0 | Z18: 0 | AA18: 0 | AB18: =AB14*$A6 -> 0 | AC18: 0 | AD18: 0 | AE18: 0 | AF18: 0 | AG18: 0 | AH18: =AH14*$A6 -> 0
A19: Limestone reported in statistics or Geological Survey
A20: Domestic extraction of limestone | D20: =IF(D18>D19,"USE ESTIMATED DATA","USE DATA REPORTED IN STATISTICS") -> USE DATA REPORTED IN STATISTICS | E20: USE DATA REPORTED IN STATISTICS | F20: USE DATA REPORTED IN STATISTICS | G20: USE DATA REPORTED IN STATISTICS | H20: USE DATA REPORTED IN STATISTICS | I20: USE DATA REPORTED IN STATISTICS | J20: =IF(J18>J19,"USE ESTIMATED DATA","USE DATA REPORTED IN STATISTICS") -> USE DATA REPORTED IN STATISTICS | K20: =IF(K18>K19,"USE ESTIMATED DATA","USE DATA REPORTED IN STATISTICS") -> USE DATA REPORTED IN STATISTICS | L20: =IF(L18>L19,"USE ESTIMATED DATA","USE DATA REPORTED IN STATISTICS") -> USE DATA REPORTED IN STATISTICS | M20: =IF(M18>M19,"USE ESTIMATED DATA","USE DATA REPORTED IN STATISTICS") -> USE DATA REPORTED IN STATISTICS | N20: =IF(N18>N19,"USE ESTIMATED DATA","USE DATA REPORTED IN STATISTICS") -> USE DATA REPORTED IN STATISTICS | O20: USE DATA REPORTED IN STATISTICS | P20: USE DATA REPORTED IN STATISTICS | Q20: USE DATA REPORTED IN STATISTICS | R20: USE DATA REPORTED IN STATISTICS | S20: USE DATA REPORTED IN STATISTICS | T20: USE DATA REPORTED IN STATISTICS | U20: USE DATA REPORTED IN STATISTICS | V20: USE DATA REPORTED IN STATISTICS | W20: =IF(W18>W19,"USE ESTIMATED DATA","USE DATA REPORTED IN STATISTICS") -> USE DATA REPORTED IN STATISTICS | X20: USE DATA REPORTED IN STATISTICS | Y20: USE DATA REPORTED IN STATISTICS | Z20: USE DATA REPORTED IN STATISTICS | AA20: USE DATA REPORTED IN STATISTICS | AB20: USE DATA REPORTED IN STATISTICS | AC20: USE DATA REPORTED IN STATISTICS | AD20: =IF(AD18>AD19,"USE ESTIMATED DATA","USE DATA REPORTED IN STATISTICS") -> USE DATA REPORTED IN STATISTICS | AE20: USE DATA REPORTED IN STATISTICS | AF20: =IF(AF18>AF19,"USE ESTIMATED DATA","USE DATA REPORTED IN STATISTICS") -> USE DATA REPORTED IN STATISTICS | AG20: USE DATA REPORTED IN STATISTICS | AH20: =IF(AH18>AH19,"USE ESTIMATED DATA","USE DATA REPORTED IN STATISTICS") -> USE DATA REPORTED IN STATISTICS
A24: If the message displayed on the red row is "use data reported in statistics" then report the data in row 18 of this calculation tool to fill in Table A row "MF.3.6 Limestone and gypsum". NOTE: make sure that the figures in row 18 include both limestone and gypsum.
A26: If the message displayed on the red row is "use estimated data " then report the data in row 17 of this calculation tool to fill in Table A row "MF.3.6 Limestone and gypsum"

Sheet Table G Estimation tool
A1: Estimation tool - Balancing items
A2: Balancing items are an integral part of the EW-MFA, yet their calculation is quite work-intensive challenging their regular reporting. The premise of this tool is therefore to offer a calculation procedure for the balancing items which generates reasonably accurate estimates based on data which are either collected and reported - either in EW-MFA or in other environmental accounts - anyways or which are provided within the tool. The latter group of data can, of course, not reflect specific national consumption patterns and NSIs are encouraged to replace these estimates with more accurate national data wherever such data are available.
A5: Please fill only in the yellow cells. If national factors are available, please change the existing factors in the blue cells. Do not modify the green and red cells!!!
J7: 2000 | K7: 2001 | L7: 2002 | M7: 2003 | N7: 2004 | O7: 2005 | P7: 2006 | Q7: 2007 | R7: 2008 | S7: 2009 | T7: 2010 | U7: 2011 | V7: 2012 | W7: 2013 | X7: 2014 | Y7: 2015 | Z7: 2016 | AA7: 2017 | AB7: 2018 | AC7: 2019 | AD7: 2020
A8: Emissions to air [1000 t], from Table F | C8: oxygen [%] | E8: from fuel combustion [%]
A9: MF.7.1.1 | B9: Carbon dioxide (CO2) | C9: 0.7271074756 | E9: 1 | J9: =IFERROR(Table_F!Z5*$E9,":") -> 0 | K9: =IFERROR(Table_F!AB5*$E9,":") -> 0 | L9: =IFERROR(Table_F!AD5*$E9,":") -> 0 | M9: =IFERROR(Table_F!AF5*$E9,":") -> 0 | N9: =IFERROR(Table_F!AH5*$E9,":") -> 0 | O9: =IFERROR(Table_F!AJ5*$E9,":") -> 0 | P9: =IFERROR(Table_F!AL5*$E9,":") -> 0 | Q9: =IFERROR(Table_F!AN5*$E9,":") -> 0 | R9: =IFERROR(Table_F!AP5*$E9,":") -> 0 | S9: =IFERROR(Table_F!AR5*$E9,":") -> 0 | T9: =IFERROR(Table_F!AT5*$E9,":") -> 0 | U9: =IFERROR(Table_F!AV5*$E9,":") -> 0 | V9: =IFERROR(Table_F!AX5*$E9,":") -> 0 | W9: =IFERROR(Table_F!AZ5*$E9,":") -> 0 | X9: =IFERROR(Table_F!BB5*$E9,":") -> 0 | Y9: =IFERROR(Table_F!BD5*$E9,":") -> 0 | Z9: =IFERROR(Table_F!BF5*$E9,":") -> 0 | AA9: =IFERROR(Table_F!BH5*$E9,":") -> 0 | AB9: =IFERROR(Table_F!BJ5*$E9,":") -> 0 | AC9: =IFERROR(Table_F!BL5*$E9,":") -> 0 | AD9: =IFERROR(Table_F!BN5*$E9,":") -> 0
A10: MF.7.1.3 | B10: Dinitrogen oxide (N2O) | C10: 0.3634711495 | J10: =Table_F!Z9 -> 0 | K10: =Table_F!AB9 -> 0 | L10: =Table_F!AD9 -> 0 | M10: =Table_F!AF9 -> 0 | N10: =Table_F!AH9 -> 0 | O10: =Table_F!AJ9 -> 0 | P10: =Table_F!AL9 -> 0 | Q10: =Table_F!AN9 -> 0 | R10: =Table_F!AP9 -> 0 | S10: =Table_F!AR9 -> 0 | T10: =Table_F!AT9 -> 0 | U10: =Table_F!AV9 -> 0 | V10: =Table_F!AX9 -> 0 | W10: =Table_F!AZ9 -> 0 | X10: =Table_F!BB9 -> 0 | Y10: =Table_F!BD9 -> 0 | Z10: =Table_F!BF9 -> 0 | AA10: =Table_F!BH9 -> 0 | AB10: =Table_F!BJ9 -> 0 | AC10: =Table_F!BL9 -> 0 | AD10: =Table_F!BN9 -> 0
A11: MF.7.1.4 | B11: Nitrous oxides (NOx) | C11: 0.695500978 | J11: =Table_F!Z10 -> 0 | K11: =Table_F!AB10 -> 0 | L11: =Table_F!AD10 -> 0 | M11: =Table_F!AF10 -> 0 | N11: =Table_F!AH10 -> 0 | O11: =Table_F!AJ10 -> 0 | P11: =Table_F!AL10 -> 0 | Q11: =Table_F!AN10 -> 0 | R11: =Table_F!AP10 -> 0 | S11: =Table_F!AR10 -> 0 | T11: =Table_F!AT10 -> 0 | U11: =Table_F!AV10 -> 0 | V11: =Table_F!AX10 -> 0 | W11: =Table_F!AZ10 -> 0 | X11: =Table_F!BB10 -> 0 | Y11: =Table_F!BD10 -> 0 | Z11: =Table_F!BF10 -> 0 | AA11: =Table_F!BH10 -> 0 | AB11: =Table_F!BJ10 -> 0 | AC11: =Table_F!BL10 -> 0 | AD11: =Table_F!BN10 -> 0
A12: MF.7.1.8 | B12: Carbon monoxide (CO) | C12: 0.5712245627 | J12: =Table_F!Z14 -> 0 | K12: =Table_F!AB14 -> 0 | L12: =Table_F!AD14 -> 0 | M12: =Table_F!AF14 -> 0 | N12: =Table_F!AH14 -> 0 | O12: =Table_F!AJ14 -> 0 | P12: =Table_F!AL14 -> 0 | Q12: =Table_F!AN14 -> 0 | R12: =Table_F!AP14 -> 0 | S12: =Table_F!AR14 -> 0 | T12: =Table_F!AT14 -> 0 | U12: =Table_F!AV14 -> 0 | V12: =Table_F!AX14 -> 0 | W12: =Table_F!AZ14 -> 0 | X12: =Table_F!BB14 -> 0 | Y12: =Table_F!BD14 -> 0 | Z12: =Table_F!BF14 -> 0 | AA12: =Table_F!BH14 -> 0 | AB12: =Table_F!BJ14 -> 0 | AC12: =Table_F!BL14 -> 0 | AD12: =Table_F!BN14 -> 0
A13: MF.7.1.A | B13: Sulfur dioxide (SO2) | C13: 0.4994537225 | J13: =Table_F!Z16 -> 0 | K13: =Table_F!AB16 -> 0 | L13: =Table_F!AD16 -> 0 | M13: =Table_F!AF16 -> 0 | N13: =Table_F!AH16 -> 0 | O13: =Table_F!AJ16 -> 0 | P13: =Table_F!AL16 -> 0 | Q13: =Table_F!AN16 -> 0 | R13: =Table_F!AP16 -> 0 | S13: =Table_F!AR16 -> 0 | T13: =Table_F!AT16 -> 0 | U13: =Table_F!AV16 -> 0 | V13: =Table_F!AX16 -> 0 | W13: =Table_F!AZ16 -> 0 | X13: =Table_F!BB16 -> 0 | Y13: =Table_F!BD16 -> 0 | Z13: =Table_F!BF16 -> 0 | AA13: =Table_F!BH16 -> 0 | AB13: =Table_F!BJ16 -> 0 | AC13: =Table_F!BL16 -> 0 | AD13: =Table_F!BN16 -> 0
A15: The estimation of Table G items based on energy carrier from DMC provides only a very rough approximation. Where possible, please perform the calculation based on the PEFA energy use data which may be entered below (J26:Y44) and DMC data are automatically replaced in the 'red' area. Please note that the coefficients highlighted in pink were revised for 2019 data collection.
A16: DMC of energy carriers [1000 t], from Tables A, B, and D | C16: oxygen content [%] | D16: hydrogen content [%] | E16: moisture content [%] | F16: other content (C, N, S, ash, etc.)
A17: MF.1.3.2 | B17: Wood fuel and other extraction | C17: 0.35 | D17: 0.05 | E17: 0.15 | F17: =1-C17-D17-E17 -> 0.45 | J17: =Table_A!Z25+Table_B!Z24-Table_D!Z24 -> 0 | K17: =Table_A!AB25+Table_B!AB24-Table_D!AB24 -> 0 | L17: =Table_A!AD25+Table_B!AD24-Table_D!AD24 -> 0 | M17: =Table_A!AF25+Table_B!AF24-Table_D!AF24 -> 0 | N17: =Table_A!AH25+Table_B!AH24-Table_D!AH24 -> 0 | O17: =Table_A!AJ25+Table_B!AJ24-Table_D!AJ24 -> 0 | P17: =Table_A!AL25+Table_B!AL24-Table_D!AL24 -> 0 | Q17: =Table_A!AN25+Table_B!AN24-Table_D!AN24 -> 0 | R17: =Table_A!AP25+Table_B!AP24-Table_D!AP24 -> 0 | S17: =Table_A!AR25+Table_B!AR24-Table_D!AR24 -> 0 | T17: =Table_A!AT25+Table_B!AT24-Table_D!AT24 -> 0 | U17: =Table_A!AV25+Table_B!AV24-Table_D!AV24 -> 0 | V17: =Table_A!AX25+Table_B!AX24-Table_D!AX24 -> 0 | W17: =Table_A!AZ25+Table_B!AZ24-Table_D!AZ24 -> 0 | X17: =Table_A!BB25+Table_B!BB24-Table_D!BB24 -> 0 | Y17: =IFERROR(Table_A!BD25+Table_B!BD24-Table_D!BD24,":") -> 0 | Z17: =IFERROR(Table_A!BF25+Table_B!BF24-Table_D!BF24,":") -> 0 | AA17: =IFERROR(Table_A!BH25+Table_B!BH24-Table_D!BH24,":") -> 0 | AB17: =IFERROR(Table_A!BJ25+Table_B!BJ24-Table_D!BJ24,":") -> 0 | AC17: =IFERROR(Table_A!BL25+Table_B!BL24-Table_D!BL24,":") -> 0 | AD17: =IFERROR(Table_A!BN25+Table_B!BN24-Table_D!BN24,":") -> 0
A18: MF.4.1.1 | B18: Lignite (brown coal) | C18: 0.1 | D18: 0.03 | E18: 0.5 | F18: =1-C18-D18-E18 -> 0.37 | J18: =Table_A!Z61+Table_B!Z61-Table_D!Z61 -> 0 | K18: =Table_A!AB61+Table_B!AB61-Table_D!AB61 -> 0 | L18: =Table_A!AD61+Table_B!AD61-Table_D!AD61 -> 0 | M18: =Table_A!AF61+Table_B!AF61-Table_D!AF61 -> 0 | N18: =Table_A!AH61+Table_B!AH61-Table_D!AH61 -> 0 | O18: =Table_A!AJ61+Table_B!AJ61-Table_D!AJ61 -> 0 | P18: =Table_A!AL61+Table_B!AL61-Table_D!AL61 -> 0 | Q18: =Table_A!AN61+Table_B!AN61-Table_D!AN61 -> 0 | R18: =Table_A!AP61+Table_B!AP61-Table_D!AP61 -> 0 | S18: =Table_A!AR61+Table_B!AR61-Table_D!AR61 -> 0 | T18: =Table_A!AT61+Table_B!AT61-Table_D!AT61 -> 0 | U18: =Table_A!AV61+Table_B!AV61-Table_D!AV61 -> 0 | V18: =Table_A!AX61+Table_B!AX61-Table_D!AX61 -> 0 | W18: =Table_A!AZ61+Table_B!AZ61-Table_D!AZ61 -> 0 | X18: =Table_A!BB61+Table_B!BB61-Table_D!BB61 -> 0 | Y18: =IFERROR(Table_A!BD61+Table_B!BD61-Table_D!BD61,":") -> 0 | Z18: =IFERROR(Table_A!BF61+Table_B!BF61-Table_D!BF61,":") -> 0 | AA18: =IFERROR(Table_A!BH61+Table_B!BH61-Table_D!BH61,":") -> 0 | AB18: =IFERROR(Table_A!BJ61+Table_B!BJ61-Table_D!BJ61,":") -> 0 | AC18: =IFERROR(Table_A!BL61+Table_B!BL61-Table_D!BL61,":") -> 0 | AD18: =IFERROR(Table_A!BN61+Table_B!BN61-Table_D!BN61,":") -> 0
A19: MF.4.1.2 | B19: Hard coal | C19: 0.04 | D19: 0.05 | E19: 0.15 | F19: 0.76 | J19: =Table_A!Z62+Table_B!Z62-Table_D!Z62 -> 0 | K19: =Table_A!AB62+Table_B!AB62-Table_D!AB62 -> 0 | L19: =Table_A!AD62+Table_B!AD62-Table_D!AD62 -> 0 | M19: =Table_A!AF62+Table_B!AF62-Table_D!AF62 -> 0 | N19: =Table_A!AH62+Table_B!AH62-Table_D!AH62 -> 0 | O19: =Table_A!AJ62+Table_B!AJ62-Table_D!AJ62 -> 0 | P19: =Table_A!AL62+Table_B!AL62-Table_D!AL62 -> 0 | Q19: =Table_A!AN62+Table_B!AN62-Table_D!AN62 -> 0 | R19: =Table_A!AP62+Table_B!AP62-Table_D!AP62 -> 0 | S19: =Table_A!AR62+Table_B!AR62-Table_D!AR62 -> 0 | T19: =Table_A!AT62+Table_B!AT62-Table_D!AT62 -> 0 | U19: =Table_A!AV62+Table_B!AV62-Table_D!AV62 -> 0 | V19: =Table_A!AX62+Table_B!AX62-Table_D!AX62 -> 0 | W19: =Table_A!AZ62+Table_B!AZ62-Table_D!AZ62 -> 0 | X19: =Table_A!BB62+Table_B!BB62-Table_D!BB62 -> 0 | Y19: =IFERROR(Table_A!BD62+Table_B!BD62-Table_D!BD62,":") -> 0 | Z19: =IFERROR(Table_A!BF62+Table_B!BF62-Table_D!BF62,":") -> 0 | AA19: =IFERROR(Table_A!BH62+Table_B!BH62-Table_D!BH62,":") -> 0 | AB19: =IFERROR(Table_A!BJ62+Table_B!BJ62-Table_D!BJ62,":") -> 0 | AC19: =IFERROR(Table_A!BL62+Table_B!BL62-Table_D!BL62,":") -> 0 | AD19: =IFERROR(Table_A!BN62+Table_B!BN62-Table_D!BN62,":") -> 0
A20: MF.4.1.3 | B20: Oil shale and tar sands | C20: 0.0009 | D20: 0.015 | E20: 0.07 | F20: 0.9141 | J20: =Table_A!Z63+Table_B!Z63-Table_D!Z63 -> 0 | K20: =Table_A!AB63+Table_B!AB63-Table_D!AB63 -> 0 | L20: =Table_A!AD63+Table_B!AD63-Table_D!AD63 -> 0 | M20: =Table_A!AF63+Table_B!AF63-Table_D!AF63 -> 0 | N20: =Table_A!AH63+Table_B!AH63-Table_D!AH63 -> 0 | O20: =Table_A!AJ63+Table_B!AJ63-Table_D!AJ63 -> 0 | P20: =Table_A!AL63+Table_B!AL63-Table_D!AL63 -> 0 | Q20: =Table_A!AN63+Table_B!AN63-Table_D!AN63 -> 0 | R20: =Table_A!AP63+Table_B!AP63-Table_D!AP63 -> 0 | S20: =Table_A!AR63+Table_B!AR63-Table_D!AR63 -> 0 | T20: =Table_A!AT63+Table_B!AT63-Table_D!AT63 -> 0 | U20: =Table_A!AV63+Table_B!AV63-Table_D!AV63 -> 0 | V20: =Table_A!AX63+Table_B!AX63-Table_D!AX63 -> 0 | W20: =Table_A!AZ63+Table_B!AZ63-Table_D!AZ63 -> 0 | X20: =Table_A!BB63+Table_B!BB63-Table_D!BB63 -> 0 | Y20: =IFERROR(Table_A!BD63+Table_B!BD63-Table_D!BD63,":") -> 0 | Z20: =IFERROR(Table_A!BF63+Table_B!BF63-Table_D!BF63,":") -> 0 | AA20: =IFERROR(Table_A!BH63+Table_B!BH63-Table_D!BH63,":") -> 0 | AB20: =IFERROR(Table_A!BJ63+Table_B!BJ63-Table_D!BJ63,":") -> 0 | AC20: =IFERROR(Table_A!BL63+Table_B!BL63-Table_D!BL63,":") -> 0 | AD20: =IFERROR(Table_A!BN63+Table_B!BN63-Table_D!BN63,":") -> 0
A21: MF.4.1.4 | B21: Peat | C21: 0.245 | D21: 0.07 | E21: 0.35 | F21: 0.335 | J21: =Table_A!Z64+Table_B!Z64-Table_D!Z64 -> 0 | K21: =Table_A!AB64+Table_B!AB64-Table_D!AB64 -> 0 | L21: =Table_A!AD64+Table_B!AD64-Table_D!AD64 -> 0 | M21: =Table_A!AF64+Table_B!AF64-Table_D!AF64 -> 0 | N21: =Table_A!AH64+Table_B!AH64-Table_D!AH64 -> 0 | O21: =Table_A!AJ64+Table_B!AJ64-Table_D!AJ64 -> 0 | P21: =Table_A!AL64+Table_B!AL64-Table_D!AL64 -> 0 | Q21: =Table_A!AN64+Table_B!AN64-Table_D!AN64 -> 0 | R21: =Table_A!AP64+Table_B!AP64-Table_D!AP64 -> 0 | S21: =Table_A!AR64+Table_B!AR64-Table_D!AR64 -> 0 | T21: =Table_A!AT64+Table_B!AT64-Table_D!AT64 -> 0 | U21: =Table_A!AV64+Table_B!AV64-Table_D!AV64 -> 0 | V21: =Table_A!AX64+Table_B!AX64-Table_D!AX64 -> 0 | W21: =Table_A!AZ64+Table_B!AZ64-Table_D!AZ64 -> 0 | X21: =Table_A!BB64+Table_B!BB64-Table_D!BB64 -> 0 | Y21: =IFERROR(Table_A!BD64+Table_B!BD64-Table_D!BD64,":") -> 0 | Z21: =IFERROR(Table_A!BF64+Table_B!BF64-Table_D!BF64,":") -> 0 | AA21: =IFERROR(Table_A!BH64+Table_B!BH64-Table_D!BH64,":") -> 0 | AB21: =IFERROR(Table_A!BJ64+Table_B!BJ64-Table_D!BJ64,":") -> 0 | AC21: =IFERROR(Table_A!BL64+Table_B!BL64-Table_D!BL64,":") -> 0 | AD21: =IFERROR(Table_A!BN64+Table_B!BN64-Table_D!BN64,":") -> 0
A22: MF.4.2.1 | B22: Crude oil, condensate and natural gas liquids (NGL) | C22: 0 | D22: 0.12 | E22: 0.01 | F22: 0.87 | J22: =Table_A!Z66+Table_B!Z66-Table_D!Z66 -> 0 | K22: =Table_A!AB66+Table_B!AB66-Table_D!AB66 -> 0 | L22: =Table_A!AD66+Table_B!AD66-Table_D!AD66 -> 0 | M22: =Table_A!AF66+Table_B!AF66-Table_D!AF66 -> 0 | N22: =Table_A!AH66+Table_B!AH66-Table_D!AH66 -> 0 | O22: =Table_A!AJ66+Table_B!AJ66-Table_D!AJ66 -> 0 | P22: =Table_A!AL66+Table_B!AL66-Table_D!AL66 -> 0 | Q22: =Table_A!AN66+Table_B!AN66-Table_D!AN66 -> 0 | R22: =Table_A!AP66+Table_B!AP66-Table_D!AP66 -> 0 | S22: =Table_A!AR66+Table_B!AR66-Table_D!AR66 -> 0 | T22: =Table_A!AT66+Table_B!AT66-Table_D!AT66 -> 0 | U22: =Table_A!AV66+Table_B!AV66-Table_D!AV66 -> 0 | V22: =Table_A!AX66+Table_B!AX66-Table_D!AX66 -> 0 | W22: =Table_A!AZ66+Table_B!AZ66-Table_D!AZ66 -> 0 | X22: =Table_A!BB66+Table_B!BB66-Table_D!BB66 -> 0 | Y22: =IFERROR(Table_A!BD66+Table_B!BD66-Table_D!BD66,":") -> 0 | Z22: =IFERROR(Table_A!BF66+Table_B!BF66-Table_D!BF66,":") -> 0 | AA22: =IFERROR(Table_A!BH66+Table_B!BH66-Table_D!BH66,":") -> 0 | AB22: =IFERROR(Table_A!BJ66+Table_B!BJ66-Table_D!BJ66,":") -> 0 | AC22: =IFERROR(Table_A!BL66+Table_B!BL66-Table_D!BL66,":") -> 0 | AD22: =IFERROR(Table_A!BN66+Table_B!BN66-Table_D!BN66,":") -> 0
A23: MF.4.2.2 | B23: Natural gas | C23: 0 | D23: 0.249 | E23: 0.004 | F23: 0.747 | J23: =Table_A!Z67+Table_B!Z67-Table_D!Z67 -> 0 | K23: =Table_A!AB67+Table_B!AB67-Table_D!AB67 -> 0 | L23: =Table_A!AD67+Table_B!AD67-Table_D!AD67 -> 0 | M23: =Table_A!AF67+Table_B!AF67-Table_D!AF67 -> 0 | N23: =Table_A!AH67+Table_B!AH67-Table_D!AH67 -> 0 | O23: =Table_A!AJ67+Table_B!AJ67-Table_D!AJ67 -> 0 | P23: =Table_A!AL67+Table_B!AL67-Table_D!AL67 -> 0 | Q23: =Table_A!AN67+Table_B!AN67-Table_D!AN67 -> 0 | R23: =Table_A!AP67+Table_B!AP67-Table_D!AP67 -> 0 | S23: =Table_A!AR67+Table_B!AR67-Table_D!AR67 -> 0 | T23: =Table_A!AT67+Table_B!AT67-Table_D!AT67 -> 0 | U23: =Table_A!AV67+Table_B!AV67-Table_D!AV67 -> 0 | V23: =Table_A!AX67+Table_B!AX67-Table_D!AX67 -> 0 | W23: =Table_A!AZ67+Table_B!AZ67-Table_D!AZ67 -> 0 | X23: =Table_A!BB67+Table_B!BB67-Table_D!BB67 -> 0 | Y23: =IFERROR(Table_A!BD67+Table_B!BD67-Table_D!BD67,":") -> 0 | Z23: =IFERROR(Table_A!BF67+Table_B!BF67-Table_D!BF67,":") -> 0 | AA23: =IFERROR(Table_A!BH67+Table_B!BH67-Table_D!BH67,":") -> 0 | AB23: =IFERROR(Table_A!BJ67+Table_B!BJ67-Table_D!BJ67,":") -> 0 | AC23: =IFERROR(Table_A!BL67+Table_B!BL67-Table_D!BL67,":") -> 0 | AD23: =IFERROR(Table_A!BN67+Table_B!BN67-Table_D!BN67,":") -> 0
A25: Energy use (emission-relevant) [TJ], from Physical Energy Flow Accounts - Table C: Physical use table of emission-relevant use of energy flows (related to fuel combustion) | C25: oxygen content [%] | D25: hydrogen content [%] | E25: moisture content [%] | F25: other content (C, N, S, ash, etc.) | G25: calorific value [TJ/1000t] | H25: 1 divided by calorific value [1000t/TJ]
A26: P08 | B26: Hard coal | C26: 0.04 | D26: 0.05 | E26: 0.15 | F26: =1-C26-D26-E26 -> 0.76 | G26: 25.68284338 | H26: =1/G26 -> 0.03893649878
A27: P09 | B27: Brown coal and peat | C27: 0.12 | D27: 0.05 | E27: 0.35 | F27: =1-C27-D27-E27 -> 0.48 | G27: 8.724652065 | H27: 0.1146177512
A28: P10 | B28: Derived gases (= manufactured gases excl. biogas) | C28: 0.15 | D28: 0.2 | E28: 0 | F28: 0.65 | G28: 46.5280636 | H28: 0.02149240529
A29: P11 | B29: Secondary coal products (coke, coal tar, patent fuel, BKB and peat products) | C29: 0.12 | D29: 0.09 | E29: 0.02 | F29: 0.77 | G29: 28.9673502 | H29: 0.03452162497
A30: P12 | B30: Crude oil, NGL, and other hydrocarbons (excl. bio) | C30: 0 | D30: 0.12 | E30: 0.01 | F30: 0.87 | G30: 42.07442937 | H30: 0.02376740493
A31: P13 | B31: Natural gas (without bio) | C31: 0 | D31: 0.249 | E31: 0.004 | F31: 0.747 | G31: 46.51999855 | H31: 0.02149613137
A32: P14 | B32: Motor spirit (without bio) | C32: 0.01 | D32: 0.14 | E32: 0 | F32: 0.85 | G32: 44.30110257 | H32: 0.02257280162
A33: P15 | B33: Kerosenes and jet fuels (without bio) | C33: 0.01 | D33: 0.16 | E33: 0 | F33: 0.83 | G33: 43.32500055 | H33: 0.02308136151
A34: P16 | B34: Naphtha | C34: 0.01 | D34: 0.14 | E34: 0 | F34: 0.85 | G34: 43.91854023 | H34: 0.0227694271
A35: P17 | B35: Transport diesel (without bio) | C35: 0.01 | D35: 0.13 | E35: 0 | F35: 0.86 | G35: 43.19738534 | H35: 0.02314954926
A36: P18 | B36: Heating and other gasoil (without bio) | C36: 0.01 | D36: 0.13 | E36: 0 | F36: 0.86 | G36: 43.19738534 | H36: 0.02314954926
A37: P19 | B37: Residual fuel oil | C37: 0.01 | D37: 0.1 | E37: 0 | F37: 0.89 | G37: 40 | H37: 0.025
A38: P20 | B38: Refinery gas, ethane and LPG | C38: 0.015 | D38: 0.24 | E38: 0 | F38: 0.745 | G38: 45.95071485 | H38: 0.02176244708
A39: P21 | B39: Other petroleum products incl. additives/oxygenates and refinery feedstocks | C39: 0.005 | D39: 0.1 | E39: 0 | F39: 0.895 | G39: 32.25202774 | H39: 0.03100580242
A40: P23 | B40: Wood, wood waste and other solid biomass, charcoal | C40: 0.25 | D40: 0.1 | E40: 0.35 | F40: 0.3 | G40: 16 | H40: 0.0625
A41: P24 | B41: Liquid biofuels | C41: 0.36 | D41: 0.11 | E41: 0 | F41: 0.53 | G41: 34.6058299 | H41: 0.02889686515
A42: P25 | B42: Biogas | C42: 0.4 | D42: 0.12 | E42: 0.08 | F42: 0.4 | G42: 20 | H42: 0.05
A43: R28 | B43: Renewable waste | C43: 0.152 | D43: 0.06 | E43: 0.6 | F43: 0.188 | G43: 14 | H43: 0.07142857143
A44: R29 | B44: Non-renewable waste | C44: 0.15 | D44: 0.06 | E44: 0.05 | F44: 0.74 | G44: 14 | H44: 0.07142857143
A46: Extraction of biomass products [1000 t], from Table A | C46: moisture content at harvest [%]
A47: MF.1.1.1 | B47: Cereals | C47: 0.14 | J47: =Table_A!Z6 -> 0 | K47: =Table_A!AB6 -> 0 | L47: =Table_A!AD6 -> 0 | M47: =Table_A!AF6 -> 0 | N47: =Table_A!AH6 -> 0 | O47: =Table_A!AJ6 -> 0 | P47: =Table_A!AL6 -> 0 | Q47: =Table_A!AN6 -> 0 | R47: =Table_A!AP6 -> 0 | S47: =Table_A!AR6 -> 0 | T47: =Table_A!AT6 -> 0 | U47: =Table_A!AV6 -> 0 | V47: =Table_A!AX6 -> 0 | W47: =Table_A!AZ6 -> 0 | X47: =Table_A!BB6 -> 0 | Y47: =Table_A!BD6 -> 0 | Z47: =Table_A!BF6 -> 0 | AA47: =Table_A!BH6 -> 0 | AB47: =Table_A!BJ6 -> 0 | AC47: =Table_A!BL6 -> 0 | AD47: =Table_A!BN6 -> 0
A48: MF.1.1.2 | B48: Roots, tubers | C48: 0.77 | J48: =Table_A!Z7 -> 0 | K48: =Table_A!AB7 -> 0 | L48: =Table_A!AD7 -> 0 | M48: =Table_A!AF7 -> 0 | N48: =Table_A!AH7 -> 0 | O48: =Table_A!AJ7 -> 0 | P48: =Table_A!AL7 -> 0 | Q48: =Table_A!AN7 -> 0 | R48: =Table_A!AP7 -> 0 | S48: =Table_A!AR7 -> 0 | T48: =Table_A!AT7 -> 0 | U48: =Table_A!AV7 -> 0 | V48: =Table_A!AX7 -> 0 | W48: =Table_A!AZ7 -> 0 | X48: =Table_A!BB7 -> 0 | Y48: =Table_A!BD7 -> 0 | Z48: =Table_A!BF7 -> 0 | AA48: =Table_A!BH7 -> 0 | AB48: =Table_A!BJ7 -> 0 | AC48: =Table_A!BL7 -> 0 | AD48: =Table_A!BN7 -> 0
A49: MF.1.1.3 | B49: Sugar crops | C49: 0.77 | J49: =Table_A!Z8 -> 0 | K49: =Table_A!AB8 -> 0 | L49: =Table_A!AD8 -> 0 | M49: =Table_A!AF8 -> 0 | N49: =Table_A!AH8 -> 0 | O49: =Table_A!AJ8 -> 0 | P49: =Table_A!AL8 -> 0 | Q49: =Table_A!AN8 -> 0 | R49: =Table_A!AP8 -> 0 | S49: =Table_A!AR8 -> 0 | T49: =Table_A!AT8 -> 0 | U49: =Table_A!AV8 -> 0 | V49: =Table_A!AX8 -> 0 | W49: =Table_A!AZ8 -> 0 | X49: =Table_A!BB8 -> 0 | Y49: =Table_A!BD8 -> 0 | Z49: =Table_A!BF8 -> 0 | AA49: =Table_A!BH8 -> 0 | AB49: =Table_A!BJ8 -> 0 | AC49: =Table_A!BL8 -> 0 | AD49: =Table_A!BN8 -> 0
A50: MF.1.1.4 | B50: Pulses | C50: 0.1 | J50: =Table_A!Z9 -> 0 | K50: =Table_A!AB9 -> 0 | L50: =Table_A!AD9 -> 0 | M50: =Table_A!AF9 -> 0 | N50: =Table_A!AH9 -> 0 | O50: =Table_A!AJ9 -> 0 | P50: =Table_A!AL9 -> 0 | Q50: =Table_A!AN9 -> 0 | R50: =Table_A!AP9 -> 0 | S50: =Table_A!AR9 -> 0 | T50: =Table_A!AT9 -> 0 | U50: =Table_A!AV9 -> 0 | V50: =Table_A!AX9 -> 0 | W50: =Table_A!AZ9 -> 0 | X50: =Table_A!BB9 -> 0 | Y50: =Table_A!BD9 -> 0 | Z50: =Table_A!BF9 -> 0 | AA50: =Table_A!BH9 -> 0 | AB50: =Table_A!BJ9 -> 0 | AC50: =Table_A!BL9 -> 0 | AD50: =Table_A!BN9 -> 0
A51: MF.1.1.5 | B51: Nuts | C51: 0.05 | J51: =Table_A!Z10 -> 0 | K51: =Table_A!AB10 -> 0 | L51: =Table_A!AD10 -> 0 | M51: =Table_A!AF10 -> 0 | N51: =Table_A!AH10 -> 0 | O51: =Table_A!AJ10 -> 0 | P51: =Table_A!AL10 -> 0 | Q51: =Table_A!AN10 -> 0 | R51: =Table_A!AP10 -> 0 | S51: =Table_A!AR10 -> 0 | T51: =Table_A!AT10 -> 0 | U51: =Table_A!AV10 -> 0 | V51: =Table_A!AX10 -> 0 | W51: =Table_A!AZ10 -> 0 | X51: =Table_A!BB10 -> 0 | Y51: =Table_A!BD10 -> 0 | Z51: =Table_A!BF10 -> 0 | AA51: =Table_A!BH10 -> 0 | AB51: =Table_A!BJ10 -> 0 | AC51: =Table_A!BL10 -> 0 | AD51: =Table_A!BN10 -> 0
A52: MF.1.1.6 | B52: Oil-bearing crops | C52: 0.221 | J52: =Table_A!Z11 -> 0 | K52: =Table_A!AB11 -> 0 | L52: =Table_A!AD11 -> 0 | M52: =Table_A!AF11 -> 0 | N52: =Table_A!AH11 -> 0 | O52: =Table_A!AJ11 -> 0 | P52: =Table_A!AL11 -> 0 | Q52: =Table_A!AN11 -> 0 | R52: =Table_A!AP11 -> 0 | S52: =Table_A!AR11 -> 0 | T52: =Table_A!AT11 -> 0 | U52: =Table_A!AV11 -> 0 | V52: =Table_A!AX11 -> 0 | W52: =Table_A!AZ11 -> 0 | X52: =Table_A!BB11 -> 0 | Y52: =Table_A!BD11 -> 0 | Z52: =Table_A!BF11 -> 0 | AA52: =Table_A!BH11 -> 0 | AB52: =Table_A!BJ11 -> 0 | AC52: =Table_A!BL11 -> 0 | AD52: =Table_A!BN11 -> 0
A53: MF.1.1.7 | B53: Vegetables | C53: 0.9266666667 | J53: =Table_A!Z12 -> 0 | K53: =Table_A!AB12 -> 0 | L53: =Table_A!AD12 -> 0 | M53: =Table_A!AF12 -> 0 | N53: =Table_A!AH12 -> 0 | O53: =Table_A!AJ12 -> 0 | P53: =Table_A!AL12 -> 0 | Q53: =Table_A!AN12 -> 0 | R53: =Table_A!AP12 -> 0 | S53: =Table_A!AR12 -> 0 | T53: =Table_A!AT12 -> 0 | U53: =Table_A!AV12 -> 0 | V53: =Table_A!AX12 -> 0 | W53: =Table_A!AZ12 -> 0 | X53: =Table_A!BB12 -> 0 | Y53: =Table_A!BD12 -> 0 | Z53: =Table_A!BF12 -> 0 | AA53: =Table_A!BH12 -> 0 | AB53: =Table_A!BJ12 -> 0 | AC53: =Table_A!BL12 -> 0 | AD53: =Table_A!BN12 -> 0
A54: MF.1.1.8 | B54: Fruits | C54: 0.7758333333 | J54: =Table_A!Z13 -> 0 | K54: =Table_A!AB13 -> 0 | L54: =Table_A!AD13 -> 0 | M54: =Table_A!AF13 -> 0 | N54: =Table_A!AH13 -> 0 | O54: =Table_A!AJ13 -> 0 | P54: =Table_A!AL13 -> 0 | Q54: =Table_A!AN13 -> 0 | R54: =Table_A!AP13 -> 0 | S54: =Table_A!AR13 -> 0 | T54: =Table_A!AT13 -> 0 | U54: =Table_A!AV13 -> 0 | V54: =Table_A!AX13 -> 0 | W54: =Table_A!AZ13 -> 0 | X54: =Table_A!BB13 -> 0 | Y54: =Table_A!BD13 -> 0 | Z54: =Table_A!BF13 -> 0 | AA54: =Table_A!BH13 -> 0 | AB54: =Table_A!BJ13 -> 0 | AC54: =Table_A!BL13 -> 0 | AD54: =Table_A!BN13 -> 0
A55: MF.1.1.9 | B55: Fibres | C55: 0.105 | J55: =Table_A!Z14 -> 0 | K55: =Table_A!AB14 -> 0 | L55: =Table_A!AD14 -> 0 | M55: =Table_A!AF14 -> 0 | N55: =Table_A!AH14 -> 0 | O55: =Table_A!AJ14 -> 0 | P55: =Table_A!AL14 -> 0 | Q55: =Table_A!AN14 -> 0 | R55: =Table_A!AP14 -> 0 | S55: =Table_A!AR14 -> 0 | T55: =Table_A!AT14 -> 0 | U55: =Table_A!AV14 -> 0 | V55: =Table_A!AX14 -> 0 | W55: =Table_A!AZ14 -> 0 | X55: =Table_A!BB14 -> 0 | Y55: =Table_A!BD14 -> 0 | Z55: =Table_A!BF14 -> 0 | AA55: =Table_A!BH14 -> 0 | AB55: =Table_A!BJ14 -> 0 | AC55: =Table_A!BL14 -> 0 | AD55: =Table_A!BN14 -> 0
A56: MF.1.1.A | B56: Other crops n.e.c. | C56: 0.08285714286 | J56: =Table_A!Z15 -> 0 | K56: =Table_A!AB15 -> 0 | L56: =Table_A!AD15 -> 0 | M56: =Table_A!AF15 -> 0 | N56: =Table_A!AH15 -> 0 | O56: =Table_A!AJ15 -> 0 | P56: =Table_A!AL15 -> 0 | Q56: =Table_A!AN15 -> 0 | R56: =Table_A!AP15 -> 0 | S56: =Table_A!AR15 -> 0 | T56: =Table_A!AT15 -> 0 | U56: =Table_A!AV15 -> 0 | V56: =Table_A!AX15 -> 0 | W56: =Table_A!AZ15 -> 0 | X56: =Table_A!BB15 -> 0 | Y56: =Table_A!BD15 -> 0 | Z56: =Table_A!BF15 -> 0 | AA56: =Table_A!BH15 -> 0 | AB56: =Table_A!BJ15 -> 0 | AC56: =Table_A!BL15 -> 0 | AD56: =Table_A!BM15 -> 0
A58: Population [1000 cap] | C58: oxygen requirement [t/cap] | D58: CO2 from respiration [t/cap] | E58: H2O from respiration [t/cap]
B59: Humans | C59: 0.25 | D59: 0.3 | E59: 0.35
B60: Cattle | C60: 2.45 | D60: 2.92 | E60: 3.38
B61: Sheep | C61: 0.2 | D61: 0.24 | E61: 0.27
B62: Horses | C62: 1.84 | D62: 2.19 | E62: 2.53
B63: Pigs | C63: 0.25 | D63: 0.3 | E63: 0.35
B64: Poultry | C64: 0.01 | D64: 0.01 | E64: 0.01
A66: UNFCCC biogenic CO2 emissions [1000 t]
A67: 5A | B67: Solid waste disposal on land
A68: 5B | B68: Biological treatment of solid waste
A69: 5D | B69: Wastewater handling
A71: Production of nitrogen [1000 t]
B72: N content of ammonia
A74: Export flows [kg] by combined nomenclature (CN) | C74: Water content [%]
A75: 20.09 | B75: Fruit and vegetable juices | C75: 0.85
A76: 22 | B76: Beverages | C76: 0.9
A78: Import flows [kg] by combined nomenclature (CN) | C78: Water content [%]
A79: 20.09 | B79: Fruit and vegetable juices | C79: 0.85
A80: 22 | B80: Beverages | C80: 0.9
A82: MF.8.1 Balancing items: input side [1000 tonnes]
B83: MF.8.1.1 Oxygen for combustion processes | J83: =IFERROR(J84+J85-J86,":") -> 0 | K83: 0 | L83: 0 | M83: 0 | N83: 0 | O83: 0 | P83: 0 | Q83: 0 | R83: 0 | S83: 0 | T83: 0 | U83: 0 | V83: 0 | W83: 0 | X83: 0 | Y83: 0 | Z83: =IFERROR(Z84+Z85-Z86,":") -> 0 | AA83: 0 | AB83: =IFERROR(AB84+AB85-AB86,":") -> 0 | AC83: 0 | AD83: =IFERROR(AD84+AD85-AD86,":") -> 0
B84: Step 1: Oxygen for combustion processes | J84: =IFERROR($C9*J9+$C10*J10+$C11*J11+$C12*J12+$C13*J13,":") -> 0 | K84: 0 | L84: 0 | M84: 0 | N84: 0 | O84: 0 | P84: 0 | Q84: 0 | R84: 0 | S84: 0 | T84: 0 | U84: 0 | V84: 0 | W84: 0 | X84: 0 | Y84: 0 | Z84: =IFERROR($C9*Z9+$C10*Z10+$C11*Z11+$C12*Z12+$C13*Z13,":") -> 0 | AA84: 0 | AB84: =IFERROR($C9*AB9+$C10*AB10+$C11*AB11+$C12*AB12+$C13*AB13,":") -> 0 | AC84: 0 | AD84: =IFERROR($C9*AD9+$C10*AD10+$C11*AD11+$C12*AD12+$C13*AD13,":") -> 0
A85: ='Annex to Table G tool'!B12/(2*'Annex to Table G tool'!B9) -> 7.920792079 | B85: Step 2: Oxygen for combustion of hydrogen | J85: =IF(COUNTBLANK(J26:J44)=19,($D17*J17+$D18*J18+$D19*J19+$D20*J20+$D21*J21+$D22*J22+$D23*J23)*$A$85,($D26*J26*$H26+$D27*J27*$H27+$D28*J28*$H28+$D29*J29*$H29+$D30*J30*$H30+$D31*J31*$H31+$D32*J32*$H32+$D33*J33*$H33+$D34*J34*$H34+$D35*J35*$H35+$D36*J36*$H36+$D37*J37*$H37+$D38*J38*$H38+$D39*J39*$H39+$D40*J40*$H40+$D41*J41*$H41+$D42*J42*$H42+$D43*J43*$H43+$D44*J44*$H44)*$A$85) -> 0 | K85: =IF(COUNTBLANK(K26:K44)=19,($D17*K17+$D18*K18+$D19*K19+$D20*K20+$D21*K21+$D22*K22+$D23*K23)*$A$85,($D26*K26*$H26+$D27*K27*$H27+$D28*K28*$H28+$D29*K29*$H29+$D30*K30*$H30+$D31*K31*$H31+$D32*K32*$H32+$D33*K33*$H33+$D34*K34*$H34+$D35*K35*$H35+$D36*K36*$H36+$D37*K37*$H37+$D38*K38*$H38+$D39*K39*$H39+$D40*K40*$H40+$D41*K41*$H41+$D42*K42*$H42+$D43*K43*$H43+$D44*K44*$H44)*$A$85) -> 0 | L85: 0 | M85: 0 | N85: 0 | O85: 0 | P85: 0 | Q85: 0 | R85: 0 | S85: 0 | T85: 0 | U85: 0 | V85: 0 | W85: 0 | X85: 0 | Y85: =IFERROR(IF(COUNTBLANK(Y26:Y44)=19,($D17*Y17+$D18*Y18+$D19*Y19+$D20*Y20+$D21*Y21+$D22*Y22+$D23*Y23)*$A$85,($D26*Y26*$H26+$D27*Y27*$H27+$D28*Y28*$H28+$D29*Y29*$H29+$D30*Y30*$H30+$D31*Y31*$H31+$D32*Y32*$H32+$D33*Y33*$H33+$D34*Y34*$H34+$D35*Y35*$H35+$D36*Y36*$H36+$D37*Y37*$H37+$D38*Y38*$H38+$D39*Y39*$H39+$D40*Y40*$H40+$D41*Y41*$H41+$D42*Y42*$H42+$D43*Y43*$H43+$D44*Y44*$H44)*$A$85),":") -> 0 | Z85: 0 | AA85: 0 | AB85: 0 | AC85: 0 | AD85: 0
B86: Step 3: Oxygen content | J86: =IF(COUNTBLANK(J26:J44)=19,($C17*J17+$C18*J18+$C19*J19+$C20*J20+$C21*J21+$C22*J22+$C23*J23),($C26*J26*$H26+$C27*J27*$H27+$C28*J28*$H28+$C29*J29*$H29+$C30*J30*$H30+$C31*J31*$H31+$C32*J32*$H32+$C33*J33*$H33+$C34*J34*$H34+$C35*J35*$H35+$C36*J36*$H36+$C37*J37*$H37+$C38*J38*$H38+$C39*J39*$H39+$C40*J40*$H40+$C41*J41*$H41+$C42*J42*$H42+$C43*J43*$H43+$C44*J44*$H44)) -> 0 | K86: =IF(COUNTBLANK(K26:K44)=19,($C17*K17+$C18*K18+$C19*K19+$C20*K20+$C21*K21+$C22*K22+$C23*K23),($C26*K26*$H26+$C27*K27*$H27+$C28*K28*$H28+$C29*K29*$H29+$C30*K30*$H30+$C31*K31*$H31+$C32*K32*$H32+$C33*K33*$H33+$C34*K34*$H34+$C35*K35*$H35+$C36*K36*$H36+$C37*K37*$H37+$C38*K38*$H38+$C39*K39*$H39+$C40*K40*$H40+$C41*K41*$H41+$C42*K42*$H42+$C43*K43*$H43+$C44*K44*$H44)) -> 0 | L86: 0 | M86: 0 | N86: 0 | O86: 0 | P86: 0 | Q86: 0 | R86: 0 | S86: 0 | T86: 0 | U86: 0 | V86: 0 | W86: 0 | X86: 0 | Y86: =IFERROR(IF(COUNTBLANK(Y26:Y44)=19,($C17*Y17+$C18*Y18+$C19*Y19+$C20*Y20+$C21*Y21+$C22*Y22+$C23*Y23),($C26*Y26*$H26+$C27*Y27*$H27+$C28*Y28*$H28+$C29*Y29*$H29+$C30*Y30*$H30+$C31*Y31*$H31+$C32*Y32*$H32+$C33*Y33*$H33+$C34*Y34*$H34+$C35*Y35*$H35+$C36*Y36*$H36+$C37*Y37*$H37+$C38*Y38*$H38+$C39*Y39*$H39+$C40*Y40*$H40+$C41*Y41*$H41+$C42*Y42*$H42+$C43*Y43*$H43+$C44*Y44*$H44)),":") -> 0 | Z86: 0 | AA86: 0 | AB86: 0 | AC86: 0 | AD86: 0
B87: MF.8.1.2 Oxygen for respiration of humans and livestock; bacterial respiration from solid waste and wastewater | J87: =J88+J89 -> 0 | K87: =K88+K89 -> 0 | L87: 0 | M87: 0 | N87: 0 | O87: 0 | P87: 0 | Q87: 0 | R87: 0 | S87: 0 | T87: 0 | U87: 0 | V87: 0 | W87: 0 | X87: 0 | Y87: 0 | Z87: =Z88+Z89 -> 0 | AA87: 0 | AB87: =AB88+AB89 -> 0 | AC87: 0 | AD87: =AD88+AD89 -> 0
B88: Step 1: Oxygen for human and livestock respiration | J88: =$C59*J59+$C60*J60+$C61*J61+$C62*J62+$C63*J63+$C64*J64 -> 0 | K88: =$C59*K59+$C60*K60+$C61*K61+$C62*K62+$C63*K63+$C64*K64 -> 0 | L88: 0 | M88: 0 | N88: 0 | O88: 0 | P88: 0 | Q88: 0 | R88: 0 | S88: 0 | T88: 0 | U88: 0 | V88: 0 | W88: 0 | X88: 0 | Y88: 0 | Z88: =$C59*Z59+$C60*Z60+$C61*Z61+$C62*Z62+$C63*Z63+$C64*Z64 -> 0 | AA88: 0 | AB88: =$C59*AB59+$C60*AB60+$C61*AB61+$C62*AB62+$C63*AB63+$C64*AB64 -> 0 | AC88: 0 | AD88: =$C59*AD59+$C60*AD60+$C61*AD61+$C62*AD62+$C63*AD63+$C64*AD64 -> 0
A89: =(2*'Annex to Table G tool'!B12)/'Annex to Table G tool'!B16 -> 0.7271074756 | B89: Step 2: Oxygen for bacterial respiration | J89: =SUM(J67:J69)*$A$89 -> 0 | K89: =SUM(K67:K69)*$A$89 -> 0 | L89: 0 | M89: 0 | N89: 0 | O89: 0 | P89: 0 | Q89: 0 | R89: 0 | S89: 0 | T89: 0 | U89: 0 | V89: 0 | W89: 0 | X89: 0 | Y89: 0 | Z89: =SUM(Z67:Z69)*$A$89 -> 0 | AA89: 0 | AB89: =SUM(AB67:AB69)*$A$89 -> 0 | AC89: 0 | AD89: =SUM(AD67:AD69)*$A$89 -> 0
B90: MF.8.1.3 Nitrogen for Haber-Bosch process | J90: =J72 -> 0 | K90: =K72 -> 0 | L90: 0 | M90: 0 | N90: 0 | O90: 0 | P90: 0 | Q90: 0 | R90: 0 | S90: 0 | T90: 0 | U90: 0 | V90: 0 | W90: 0 | X90: 0 | Y90: 0 | Z90: =Z72 -> 0 | AA90: 0 | AB90: =AB72 -> 0 | AC90: 0 | AD90: =AD72 -> 0
B91: MF.8.1.4 Water requirements for the domestic production of exported beverages | J91: =($C75*J75+$C76*J76)/10^6 -> 0 | K91: =($C75*K75+$C76*K76)/10^6 -> 0 | L91: 0 | M91: 0 | N91: 0 | O91: 0 | P91: 0 | Q91: 0 | R91: 0 | S91: 0 | T91: 0 | U91: 0 | V91: 0 | W91: 0 | X91: 0 | Y91: 0 | Z91: =($C75*Z75+$C76*Z76)/10^6 -> 0 | AA91: 0 | AB91: =($C75*AB75+$C76*AB76)/10^6 -> 0 | AC91: 0 | AD91: =($C75*AD75+$C76*AD76)/10^6 -> 0
A93: MF.8.2 Balancing items: output side [1000 tonnes]
B94: MF.8.2.1 Water vapour from combustion | J94: =J95+J96 -> 0 | K94: =K95+K96 -> 0 | L94: 0 | M94: 0 | N94: 0 | O94: 0 | P94: 0 | Q94: 0 | R94: 0 | S94: 0 | T94: 0 | U94: 0 | V94: 0 | W94: 0 | X94: 0 | Y94: =IFERROR(Y95+Y96,":") -> 0 | Z94: 0 | AA94: 0 | AB94: 0 | AC94: 0 | AD94: 0
B95: MF.8.2.1.1 Water vapour from moisture content of fuels | J95: =IF(COUNTBLANK(J26:J44)=19,($E17*J17+$E18*J18+$E19*J19+$E20*J20+$E21*J21+$E22*J22+$E23*J23),($E26*J26*$H26+$E27*J27*$H27+$E28*J28*$H28+$E29*J29*$H29+$E30*J30*$H30+$E31*J31*$H31+$E32*J32*$H32+$E33*J33*$H33+$E34*J34*$H34+$E35*J35*$H35+$E36*J36*$H36+$E37*J37*$H37+$E38*J38*$H38+$E39*J39*$H39+$E40*J40*$H40+$E41*J41*$H41+$E42*J42*$H42+$E43*J43*$H43+$E44*J44*$H44)) -> 0 | K95: =IF(COUNTBLANK(K26:K44)=19,($E17*K17+$E18*K18+$E19*K19+$E20*K20+$E21*K21+$E22*K22+$E23*K23),($E26*K26*$H26+$E27*K27*$H27+$E28*K28*$H28+$E29*K29*$H29+$E30*K30*$H30+$E31*K31*$H31+$E32*K32*$H32+$E33*K33*$H33+$E34*K34*$H34+$E35*K35*$H35+$E36*K36*$H36+$E37*K37*$H37+$E38*K38*$H38+$E39*K39*$H39+$E40*K40*$H40+$E41*K41*$H41+$E42*K42*$H42+$E43*K43*$H43+$E44*K44*$H44)) -> 0 | L95: 0 | M95: 0 | N95: 0 | O95: 0 | P95: 0 | Q95: 0 | R95: 0 | S95: 0 | T95: 0 | U95: 0 | V95: 0 | W95: 0 | X95: 0 | Y95: =IFERROR(IF(COUNTBLANK(Y26:Y44)=19,($E17*Y17+$E18*Y18+$E19*Y19+$E20*Y20+$E21*Y21+$E22*Y22+$E23*Y23),($E26*Y26*$H26+$E27*Y27*$H27+$E28*Y28*$H28+$E29*Y29*$H29+$E30*Y30*$H30+$E31*Y31*$H31+$E32*Y32*$H32+$E33*Y33*$H33+$E34*Y34*$H34+$E35*Y35*$H35+$E36*Y36*$H36+$E37*Y37*$H37+$E38*Y38*$H38+$E39*Y39*$H39+$E40*Y40*$H40+$E41*Y41*$H41+$E42*Y42*$H42+$E43*Y43*$H43+$E44*Y44*$H44)),":") -> 0 | Z95: 0 | AA95: 0 | AB95: 0 | AC95: 0 | AD95: 0
A96: ='Annex to Table G tool'!B25/(2*'Annex to Table G tool'!B9) -> 8.920792079 | B96: MF.8.2.1.2 Water vapour from the oxidised hydrogen components of fuels | J96: =IF(COUNTBLANK(J26:J44)=19,($D17*J17+$D18*J18+$D19*J19+$D20*J20+$D21*J21+$D22*J22+$D23*J23)*$A$96,($D26*J26*$H26+$D27*J27*$H27+$D28*J28*$H28+$D29*J29*$H29+$D30*J30*$H30+$D31*J31*$H31+$D32*J32*$H32+$D33*J33*$H33+$D34*J34*$H34+$D35*J35*$H35+$D36*J36*$H36+$D37*J37*$H37+$D38*J38*$H38+$D39*J39*$H39+$D40*J40*$H40+$D41*J41*$H41+$D42*J42*$H42+$D43*J43*$H43+$D44*J44*$H44)*$A$96) -> 0 | K96: =IF(COUNTBLANK(K26:K44)=19,($D17*K17+$D18*K18+$D19*K19+$D20*K20+$D21*K21+$D22*K22+$D23*K23)*$A$96,($D26*K26*$H26+$D27*K27*$H27+$D28*K28*$H28+$D29*K29*$H29+$D30*K30*$H30+$D31*K31*$H31+$D32*K32*$H32+$D33*K33*$H33+$D34*K34*$H34+$D35*K35*$H35+$D36*K36*$H36+$D37*K37*$H37+$D38*K38*$H38+$D39*K39*$H39+$D40*K40*$H40+$D41*K41*$H41+$D42*K42*$H42+$D43*K43*$H43+$D44*K44*$H44)*$A$96) -> 0 | L96: 0 | M96: 0 | N96: 0 | O96: 0 | P96: 0 | Q96: 0 | R96: 0 | S96: 0 | T96: 0 | U96: 0 | V96: 0 | W96: 0 | X96: 0 | Y96: =IFERROR(IF(COUNTBLANK(Y26:Y44)=19,($D17*Y17+$D18*Y18+$D19*Y19+$D20*Y20+$D21*Y21+$D22*Y22+$D23*Y23)*$A$96,($D26*Y26*$H26+$D27*Y27*$H27+$D28*Y28*$H28+$D29*Y29*$H29+$D30*Y30*$H30+$D31*Y31*$H31+$D32*Y32*$H32+$D33*Y33*$H33+$D34*Y34*$H34+$D35*Y35*$H35+$D36*Y36*$H36+$D37*Y37*$H37+$D38*Y38*$H38+$D39*Y39*$H39+$D40*Y40*$H40+$D41*Y41*$H41+$D42*Y42*$H42+$D43*Y43*$H43+$D44*Y44*$H44)*$A$96),":") -> 0 | Z96: 0 | AA96: 0 | AB96: 0 | AC96: 0 | AD96: 0
B97: MF.8.2.2 Gases from respiration of humans and livestock (CO2 and H2O), and from bacterial respiration from solid waste and wastewater (H2O) | J97: =J98+J99 -> 0 | K97: =K98+K99 -> 0 | L97: 0 | M97: 0 | N97: 0 | O97: 0 | P97: 0 | Q97: 0 | R97: 0 | S97: 0 | T97: 0 | U97: 0 | V97: 0 | W97: 0 | X97: 0 | Y97: 0 | Z97: =Z98+Z99 -> 0 | AA97: 0 | AB97: =AB98+AB99 -> 0 | AC97: 0 | AD97: =AD98+AD99 -> 0
B98: MF.8.2.2.1 Carbon dioxide (CO2) | J98: =$D59*J59+$D60*J60+$D61*J61+$D62*J62+$D63*J63+$D64*J64 -> 0 | K98: =$D59*K59+$D60*K60+$D61*K61+$D62*K62+$D63*K63+$D64*K64 -> 0 | L98: 0 | M98: 0 | N98: 0 | O98: 0 | P98: 0 | Q98: 0 | R98: 0 | S98: 0 | T98: 0 | U98: 0 | V98: 0 | W98: 0 | X98: 0 | Y98: =$D59*Y59+$D60*Y60+$D61*Y61+$D62*Y62+$D63*Y63+$D64*Y64 -> 0 | Z98: 0 | AA98: 0 | AB98: 0 | AC98: 0 | AD98: 0
A99: ='Annex to Table G tool'!B25/'Annex to Table G tool'!B16 -> 0.4094523972 | B99: MF.8.2.2.2 Water vapour (H2O) | J99: =$E59*J59+$E60*J60+$E61*J61+$E62*J62+$E63*J63+$E64*J64+(J68+J69)*$A$99 -> 0 | K99: =$E59*K59+$E60*K60+$E61*K61+$E62*K62+$E63*K63+$E64*K64+(K68+K69)*$A$99 -> 0 | L99: 0 | M99: 0 | N99: 0 | O99: 0 | P99: 0 | Q99: 0 | R99: 0 | S99: 0 | T99: 0 | U99: 0 | V99: 0 | W99: 0 | X99: 0 | Y99: =$E59*Y59+$E60*Y60+$E61*Y61+$E62*Y62+$E63*Y63+$E64*Y64+(Y68+Y69)*$A$99 -> 0 | Z99: 0 | AA99: 0 | AB99: 0 | AC99: 0 | AD99: 0
B100: MF.8.2.3 Excorporated water from biomass products | J100: =J101+J102 -> 0 | K100: =K101+K102 -> 0 | L100: 0 | M100: 0 | N100: 0 | O100: 0 | P100: 0 | Q100: 0 | R100: 0 | S100: 0 | T100: 0 | U100: 0 | V100: 0 | W100: 0 | X100: 0 | Y100: =IFERROR(Y101+Y102,":") -> 0 | Z100: 0 | AA100: 0 | AB100: 0 | AC100: 0 | AD100: 0
B101: Step 1: Bulk water from beverage imports | J101: =($C79*J79+$C80*J80)/10^6 -> 0 | K101: =($C79*K79+$C80*K80)/10^6 -> 0 | L101: 0 | M101: 0 | N101: 0 | O101: 0 | P101: 0 | Q101: 0 | R101: 0 | S101: 0 | T101: 0 | U101: 0 | V101: 0 | W101: 0 | X101: 0 | Y101: 0 | Z101: =($C79*Z79+$C80*Z80)/10^6 -> 0 | AA101: 0 | AB101: =($C79*AB79+$C80*AB80)/10^6 -> 0 | AC101: 0 | AD101: =($C79*AD79+$C80*AD80)/10^6 -> 0
B102: Step 2: Water content of biomass products | J102: =$C47*J47+$C48*J48+$C49*J49+$C50*J50+$C51*J51+$C52*J52+$C53*J53+$C54*J54+$C55*J55+$C56*J56 -> 0 | K102: =$C47*K47+$C48*K48+$C49*K49+$C50*K50+$C51*K51+$C52*K52+$C53*K53+$C54*K54+$C55*K55+$C56*K56 -> 0 | L102: 0 | M102: 0 | N102: 0 | O102: 0 | P102: 0 | Q102: 0 | R102: 0 | S102: 0 | T102: 0 | U102: 0 | V102: 0 | W102: 0 | X102: 0 | Y102: =IFERROR($C47*Y47+$C48*Y48+$C49*Y49+$C50*Y50+$C51*Y51+$C52*Y52+$C53*Y53+$C54*Y54+$C55*Y55+$C56*Y56,":") -> 0 | Z102: 0 | AA102: 0 | AB102: 0 | AC102: 0 | AD102: 0
A109: MF.8.1 Balancing items: input side | J109: =SUM(J110:J113) -> 0 | K109: =SUM(K110:K113) -> 0 | L109: 0 | M109: 0 | N109: 0 | O109: 0 | P109: 0 | Q109: 0 | R109: 0 | S109: 0 | T109: 0 | U109: 0 | V109: 0 | W109: 0 | X109: 0 | Y109: 0 | Z109: 0 | AA109: 0 | AB109: =SUM(AB110:AB113) -> 0 | AC109: 0 | AD109: 0
A110: MF.8.1.1 Oxygen for combustion processes | J110: =J83 -> 0 | K110: =K83 -> 0 | L110: 0 | M110: 0 | N110: 0 | O110: 0 | P110: 0 | Q110: 0 | R110: 0 | S110: 0 | T110: 0 | U110: 0 | V110: 0 | W110: 0 | X110: 0 | Y110: 0 | Z110: 0 | AA110: 0 | AB110: =AB83 -> 0 | AC110: 0 | AD110: 0
A111: MF.8.1.2 Oxygen for respiration of humans and livestock; bacterial respiration from solid waste and wastewater | J111: =J87 -> 0 | K111: =K87 -> 0 | L111: 0 | M111: 0 | N111: 0 | O111: 0 | P111: 0 | Q111: 0 | R111: 0 | S111: 0 | T111: 0 | U111: 0 | V111: 0 | W111: 0 | X111: 0 | Y111: 0 | Z111: 0 | AA111: 0 | AB111: =AB87 -> 0 | AC111: 0 | AD111: 0
A112: MF.8.1.3 Nitrogen for Haber-Bosch process | J112: =J90 -> 0 | K112: =K90 -> 0 | L112: 0 | M112: 0 | N112: 0 | O112: 0 | P112: 0 | Q112: 0 | R112: 0 | S112: 0 | T112: 0 | U112: 0 | V112: 0 | W112: 0 | X112: 0 | Y112: 0 | Z112: 0 | AA112: 0 | AB112: =AB90 -> 0 | AC112: 0 | AD112: 0
A113: MF.8.1.4 Water requirements for the domestic production of exported beverages | J113: =J91 -> 0 | K113: =K91 -> 0 | L113: 0 | M113: 0 | N113: 0 | O113: 0 | P113: 0 | Q113: 0 | R113: 0 | S113: 0 | T113: 0 | U113: 0 | V113: 0 | W113: 0 | X113: 0 | Y113: 0 | Z113: 0 | AA113: 0 | AB113: =AB91 -> 0 | AC113: 0 | AD113: 0
A114: MF.8.2 Balancing items: output side | J114: =SUM(J115,J118,J121) -> 0 | K114: =SUM(K115,K118,K121) -> 0 | L114: 0 | M114: 0 | N114: 0 | O114: 0 | P114: 0 | Q114: 0 | R114: 0 | S114: 0 | T114: 0 | U114: 0 | V114: 0 | W114: 0 | X114: 0 | Y114: 0 | Z114: 0 | AA114: 0 | AB114: =SUM(AB115,AB118,AB121) -> 0 | AC114: 0 | AD114: 0
A115: MF.8.2.1 Water vapour from combustion | J115: =J94 -> 0 | K115: =K94 -> 0 | L115: 0 | M115: 0 | N115: 0 | O115: 0 | P115: 0 | Q115: 0 | R115: 0 | S115: 0 | T115: 0 | U115: 0 | V115: 0 | W115: 0 | X115: 0 | Y115: 0 | Z115: 0 | AA115: 0 | AB115: =AB94 -> 0 | AC115: 0 | AD115: 0
A116: MF.8.2.1.1 Water vapour from moisture content of fuels | J116: =J95 -> 0 | K116: 0 | L116: 0 | M116: 0 | N116: 0 | O116: 0 | P116: 0 | Q116: 0 | R116: 0 | S116: 0 | T116: 0 | U116: 0 | V116: 0 | W116: 0 | X116: 0 | Y116: 0 | Z116: 0 | AA116: 0 | AB116: =AB95 -> 0 | AC116: 0 | AD116: 0
A117: MF.8.2.1.2 Water vapour from the oxidised hydrogen components of fuels | J117: 0 | K117: 0 | L117: 0 | M117: 0 | N117: 0 | O117: 0 | P117: 0 | Q117: 0 | R117: 0 | S117: 0 | T117: 0 | U117: 0 | V117: 0 | W117: 0 | X117: 0 | Y117: 0 | Z117: 0 | AA117: 0 | AB117: =AB96 -> 0 | AC117: 0 | AD117: 0
A118: MF.8.2.2 Gases from respiration of humans and livestock (CO2 and H2O), and from bacterial respiration from solid waste and wastewater (H2O) | J118: =J97 -> 0 | K118: =K97 -> 0 | L118: 0 | M118: 0 | N118: 0 | O118: 0 | P118: 0 | Q118: 0 | R118: 0 | S118: 0 | T118: 0 | U118: 0 | V118: 0 | W118: 0 | X118: 0 | Y118: 0 | Z118: 0 | AA118: 0 | AB118: =AB97 -> 0 | AC118: 0 | AD118: 0
A119: MF.8.2.2.1 Carbon dioxide (CO2) | J119: =J98 -> 0 | K119: 0 | L119: 0 | M119: 0 | N119: 0 | O119: 0 | P119: 0 | Q119: 0 | R119: 0 | S119: 0 | T119: 0 | U119: 0 | V119: 0 | W119: 0 | X119: 0 | Y119: 0 | Z119: 0 | AA119: 0 | AB119: =AB98 -> 0 | AC119: 0 | AD119: 0
A120: MF.8.2.2.2 Water vapour (H2O) | J120: =J99 -> 0 | K120: 0 | L120: 0 | M120: 0 | N120: 0 | O120: 0 | P120: 0 | Q120: 0 | R120: 0 | S120: 0 | T120: 0 | U120: 0 | V120: 0 | W120: 0 | X120: 0 | Y120: 0 | Z120: 0 | AA120: 0 | AB120: =AB99 -> 0 | AC120: 0 | AD120: 0
A121: MF.8.2.3 Excorporated water from biomass products | J121: 0 | K121: 0 | L121: 0 | M121: 0 | N121: 0 | O121: 0 | P121: 0 | Q121: 0 | R121: 0 | S121: 0 | T121: 0 | U121: 0 | V121: 0 | W121: 0 | X121: 0 | Y121: 0 | Z121: 0 | AA121: 0 | AB121: =AB100 -> 0 | AC121: 0 | AD121: 0

Sheet Annex to Table G tool
A1: Tool for the estimation of balancing items (Table G)
A2: Annex
A7: Molar masses, composition of compounds
A8: Element | B8: [g/mol]
A9: H | B9: 1.01
A10: C | B10: 12.01
A11: N | B11: 14.01
A12: O | B12: 16
A13: S | B13: 32.07
A15: Gases | B15: [g/mol] | C15: oxygen (%) | D15: nitrogen %
A16: CO2 | B16: ='Annex to Table G tool'!B10+2*'Annex to Table G tool'!B12 -> 44.01 | C16: =2*$B$12/B16 -> 0.7271074756 | D16: n.a.
A17: CH4 | B17: =B10+4*B9 -> 16.05 | C17: n.a. | D17: n.a.
A18: N2O | B18: =2*'Annex to Table G tool'!B11+'Annex to Table G tool'!B12 -> 44.02 | C18: =$B$12/B18 -> 0.3634711495 | D18: =2*B11/B18 -> 0.6365288505
A19: NO2 | B19: ='Annex to Table G tool'!B11+2*'Annex to Table G tool'!B12 -> 46.01 | C19: =2*$B$12/B19 -> 0.695500978 | D19: =B11/B19 -> 0.304499022
A20: CO | B20: ='Annex to Table G tool'!B10+'Annex to Table G tool'!B12 -> 28.01 | C20: =$B$12/B20 -> 0.5712245627 | D20: n.a.
A21: SO2 | B21: ='Annex to Table G tool'!B13+2*'Annex to Table G tool'!B12 -> 64.07 | C21: =2*$B$12/B21 -> 0.4994537225 | D21: n.a.
A22: NH3 | B22: =B11+3*B9 -> 17.04 | C22: n.a. | D22: =B11/B22 -> 0.8221830986
A24: Water (vapor) | B24: [g/mol] | C24: oxygen (%) | D24: Ratio of oxygen to hydrogen content
A25: H2O | B25: =2*B9+B12 -> 18.02 | C25: =B12/B25 -> 0.8879023307 | D25: =B12/(2*B9) -> 7.920792079
A29: Moisture content of crops
A30: Crop | B30: Moisture content [%] | C30: EW-MFA Parent Code | D30: Assumed European averages
A31: Barley | B31: 0.14 | C31: MF.1.1.1
A32: Brans | B32: 0.12 | C32: MF.1.1.1
A33: Cereals, Other | B33: 0.1 | C33: MF.1.1.1
A34: Maize | B34: 0.14 | C34: MF.1.1.1
A35: Millet | B35: 0.12 | C35: MF.1.1.1
A36: Oats | B36: 0.14 | C36: MF.1.1.1
A37: Rice (Paddy Equivalent) | B37: 0.14 | C37: MF.1.1.1
A38: Rye | B38: 0.14 | C38: MF.1.1.1
A39: Sorghum | B39: 0.14 | C39: MF.1.1.1
A40: Wheat | B40: 0.14 | C40: MF.1.1.1 | D40: =B40 -> 0.14
A41: Cassava | B41: 0.7 | C41: MF.1.1.2
A42: Potatoes | B42: 0.78 | C42: MF.1.1.2
A43: Roots, Other | B43: 0.75 | C43: MF.1.1.2
A44: Sweet Potatoes | B44: 0.7 | C44: MF.1.1.2
A45: Yams | B45: 0.74 | C45: MF.1.1.2 | D45: 0.77
A46: Molasses | B46: 0.24 | C46: MF.1.1.3
A47: Sugar Beet | B47: 0.77 | C47: MF.1.1.3
A48: Sugar Cane | B48: 0.83 | C48: MF.1.1.3 | D48: =B47 -> 0.77
A49: Beans | B49: 0.1 | C49: MF.1.1.4
A50: Peas | B50: 0.1 | C50: MF.1.1.4
A51: Pulses, Other | B51: 0.1 | C51: MF.1.1.4 | D51: =B51 -> 0.1
A52: Nuts | B52: 0.05 | C52: MF.1.1.5 | D52: =B52 -> 0.05
A53: Coconuts - Incl Copra | B53: 0.4 | C53: MF.1.1.6
A54: Groundnut Cake | B54: 0.1 | C54: MF.1.1.6
A55: Groundnuts (Shelled Eq) | B55: 0.06 | C55: MF.1.1.6
A56: Oilcrops, Other | B56: 0.1 | C56: MF.1.1.6
A57: Olives | B57: 0.6 | C57: MF.1.1.6
A58: Palmkernels | B58: 0.6 | C58: MF.1.1.6
A59: Rape and Mustardseed | B59: 0.12 | C59: MF.1.1.6
A60: Sesameseed | B60: 0.06 | C60: MF.1.1.6
A61: Soyabeans | B61: 0.1 | C61: MF.1.1.6
A62: Sunflowerseed | B62: 0.07 | C62: MF.1.1.6 | D62: 0.22
A63: Onions | B63: 0.89 | C63: MF.1.1.7
A64: Tomatoes | B64: 0.94 | C64: MF.1.1.7
A65: Vegetables, Other | B65: 0.95 | C65: MF.1.1.7 | D65: 0.93
A66: Apples | B66: 0.85 | C66: MF.1.1.8
A67: Bananas | B67: 0.75 | C67: MF.1.1.8
A68: Citrus, Other | B68: 0.86 | C68: MF.1.1.8
A69: Dates | B69: 0.22 | C69: MF.1.1.8
A70: Fruits, Other | B70: 0.85 | C70: MF.1.1.8
A71: Grapefruit | B71: 0.88 | C71: MF.1.1.8
A72: Grapes | B72: 0.81 | C72: MF.1.1.8
A73: Lemons, Limes | B73: 0.87 | C73: MF.1.1.8
A74: Oranges, Mandarines | B74: 0.86 | C74: MF.1.1.8
A75: Pineapples | B75: 0.85 | C75: MF.1.1.8
A76: Plantains | B76: 0.66 | C76: MF.1.1.8
A77: Wine | B77: 0.85 | C77: MF.1.1.8 | D77: 0.78
A78: Cottonseed | B78: 0.1 | C78: MF.1.1.9
A79: Abaca | B79: 0.1 | C79: MF.1.1.9
A80: Cotton Lint | B80: 0.1 | C80: MF.1.1.9
A81: Hard Fibres, Other | B81: 0.1 | C81: MF.1.1.9
A82: Jute | B82: 0.13 | C82: MF.1.1.9
A83: Jute-Like Fibres | B83: 0.13 | C83: MF.1.1.9
A84: Sisal | B84: 0.08 | C84: MF.1.1.9
A85: Soft-Fibres, Other | B85: 0.1 | C85: MF.1.1.9 | D85: 0.11
A86: Cloves | B86: 0.05 | C86: MF.1.1.A
A87: Pepper | B87: 0.1 | C87: MF.1.1.A
A88: Pimento | B88: 0.2 | C88: MF.1.1.A
A89: Spices, Other | B89: 0.05 | C89: MF.1.1.A
A90: Cocoa Beans | B90: 0.1 | C90: MF.1.1.A
A91: Coffee | B91: 0.03 | C91: MF.1.1.A
A92: Tea | B92: 0.05 | C92: MF.1.1.A

Sheet Check Report
A1: Table | B1: Error type | C1: Cells | D1: Correct total of parts or Error Message | E1: Click on a cell address to be directed to the detected error
